Workbook

Sheet LDC Filter (hidden)
A1: OPA Conservation & Demand Management Programs
A2: LDC Filter
B4: Local Distribution Company
B5: PowerStream Inc.

Sheet Allocation Methodology
A1: OPA Conservation & Demand Management Programs
A2: Allocation Methodology
A4: # | B4: Initiative Name | C4: Program Name | D4: Program Year | E4: Results Status | F4: Allocation Methodology | G4: Notes
A5: 1 | B5: Secondary Refrigerator Retirement Pilot | C5: Consumer | D5: 2006 | E5: Final | F5: Measure level allocation based on 2006 residential energy throughput by LDC
A6: =A5+1 -> 2 | B6: Cool & Hot Savings Rebate | C6: Consumer | D6: 2006 | E6: Final | F6: Measure level allocation based on 2006 residential energy throughput by LDC
A7: =A6+1 -> 3 | B7: Every Kilowatt Counts | C7: Consumer | D7: 2006 | E7: Final | F7: Measure level allocation based on 2006 residential energy throughput by LDC
A8: 4 | B8: Demand Response 1 | C8: Business, Industrial | D8: 2006 | E8: Final | F8: Initiative level allocation based on 2007 non-residential energy throughput by LDCs | G8: 1) Although the program is managed internally and actual participant data is available, the small participant population of Demand Response 1 can lead to participant confidentiality issues if disclosed on an actual LDC share basis. 2) Program results are based on contracted nameplate capacity at the end of the calendar year and not actual summer coincident peak demand reduction.
A9: 5 | B9: Loblaw & York Region Demand Response | C9: Business, Industrial | D9: 2006 | E9: Final | F9: Measure level allocation based on 2007 non-residential energy throughput by LDCs | G9: 1) Although the program is managed internally and actual participant data is available, the small participant population of Electricity Resources Demand Response can lead to participant confidentiality issues if disclosed on an actual LDC share basis. 2) Program results are based on contracted nameplate capacity at the end of the calendar year and not actual summer coincident peak demand reduction.
A10: 6 | B10: Great Refrigerator Roundup | C10: Consumer | D10: 2007 | E10: Final | F10: Actual LDC specific results
A11: 7 | B11: Cool & Hot Savings Rebate | C11: Consumer | D11: 2007 | E11: Final | F11: Measure level allocation based on 2007 residential energy throughput by LDC
A12: 8 | B12: Every Kilowatt Counts | C12: Consumer | D12: 2007 | E12: Final | F12: Measure level allocation based on 2007 residential energy throughput by LDC
A13: 9 | B13: peaksaver® | C13: Consumer, Business | D13: 2007 | E13: Final | F13: Actual LDC specific results
A14: 10 | B14: Summer Savings | C14: Consumer | D14: 2007 | E14: Final | F14: Actual LDC specific results
A15: 11 | B15: Aboriginal | C15: Consumer | D15: 2007 | E15: Final | F15: Actual LDC specific results
A16: 12 | B16: Affordable Housing Pilot | C16: Consumer Low-Income | D16: 2007 | E16: Final | F16: Actual LDC specific results
A17: 13 | B17: Social Housing Pilot | C17: Consumer Low-Income | D17: 2007 | E17: Final | F17: Initiative level allocation based on 2007 Residential Energy Throughput
A18: 14 | B18: Energy Efficiency Assistance for Houses Pilot | C18: Consumer Low-Income | D18: 2007 | E18: Final | F18: Initiative level allocation based on 2007 Residential Energy Throughput
A19: 15 | B19: Electricity Retrofit Incentive | C19: Business | D19: 2007 | E19: Final | F19: LDC’s respective proportion of province-wide reported gross demand savings.
A20: 16 | B20: Toronto Comprehensive | C20: Business | D20: 2007 | E20: Final | F20: Program run exclusively in Toronto Hydro-Electric System Ltd. service territory
A21: 17 | B21: Demand Response 1 | C21: Business, Industrial | D21: 2007 | E21: Final | F21: Initiative level allocation based on 2007 non-residential energy throughput by LDCs | G21: 1) Although the program is managed internally and actual participant data is available, the small participant population of Demand Response 1 can lead to participant confidentiality issues if disclosed on an actual LDC share basis. 2) Program results are based on contracted nameplate capacity at the end of the calendar year and not actual summer coincident peak demand reduction.
A22: 18 | B22: Loblaw & York Region Demand Response | C22: Business, Industrial | D22: 2007 | E22: Final | F22: Initiative level allocation based on 2007 non-residential energy throughput by LDCs | G22: 1) Although the program is managed internally and actual participant data is available, the small participant population of Electricity Resources Demand Response can lead to participant confidentiality issues if disclosed on an actual LDC share basis. 2) Program results are based on contracted nameplate capacity at the end of the calendar year and not actual summer coincident peak demand reduction.
A23: 19 | B23: Renewable Energy Standard Offer | C23: Consumer, Business, Industrial | D23: 2007 | E23: Final | F23: Actual LDC specific results | G23: Program results are based on contracted nameplate capacity and not actual summer coincident peak generation
A24: 20 | B24: Great Refrigerator Roundup | C24: Consumer | D24: 2008 | E24: Final | F24: Actual LDC specific results
A25: 21 | B25: Cool Savings Rebate | C25: Consumer | D25: 2008 | E25: Final | F25: Measure level allocation based on 2008 Residential Energy Throughput
A26: 22 | B26: Every Kilowatt Counts Power Savings Event | C26: Consumer | D26: 2008 | E26: Final | F26: Measure level allocation based on 2008 Residential Energy Throughput
A27: 23 | B27: peaksaver® | C27: Consumer, Business | D27: 2008 | E27: Final | F27: Actual LDC specific results
A28: 24 | B28: Summer Sweepstakes | C28: Consumer | D28: 2008 | E28: Final | F28: Actual LDC specific results
A29: 25 | B29: Electricity Retrofit Incentive | C29: Consumer, Business | D29: 2008 | E29: Final | F29: LDC’s respective proportion of province-wide reported gross demand savings. | G29: While this initiative underwent a thorough evaluation process at the provincial level, individual prescriptive input assumptions were not verified for all measures nor were reported savings from every individual LDC verified. A representative sample of retrofit projects were measured and verified and a province-wide savings total was derived. The province wide verified energy and demand savings were allocated to individual LDCs based on their respective proportion of province-wide reported gross demand savings.
A30: 26 | B30: Toronto Comprehensive | C30: Consumer, Consumer Low-Income, Business | D30: 2008 | E30: Final | F30: Program run exclusively in Toronto Hydro-Electric System Ltd. service territory
A31: 27 | B31: High Performance New Construction | C31: Business | D31: 2008 | E31: Final | F31: Initiative level allocation based on 2008 non-residential energy throughput by LDCs
A32: 28 | B32: Power Savings Blitz | C32: Business | D32: 2008 | E32: Final | F32: Actual LDC specific results
A33: 29 | B33: Demand Response 1 | C33: Business, Industrial | D33: 2008 | E33: Final | F33: Initiative level allocation based on 2008 non-residential energy throughput by LDCs | G33: 1) Although the program is managed internally and actual participant data is available, the small participant population of Demand Response 1 can lead to participant confidentiality issues if disclosed on an actual LDC share basis. 2) Program results are based on contracted nameplate capacity at the end of the calendar year and not actual summer coincident peak demand reduction.
A34: =A33+1 -> 30 | B34: Demand Response 3 | C34: Business, Industrial | D34: 2008 | E34: Final | F34: Initiative level allocation based on 2008 non-residential energy throughput by LDCs | G34: 1) Although the program is managed internally and actual participant data is available, the small participant population of Demand Response 3 can lead to participant confidentiality issues if disclosed on an actual LDC share basis. 2) Program results are based on contracted nameplate capacity at the end of the calendar year and not actual summer coincident peak demand reduction.
A35: 31 | B35: Loblaw & York Region Demand Response | C35: Business, Industrial | D35: 2008 | E35: Final | F35: Initiative level allocation based on 2008 non-residential energy throughput by LDCs | G35: 1) Although the program is managed internally and actual participant data is available, the small participant population of Electricity Resources Demand Response can lead to participant confidentiality issues if disclosed on an actual LDC share basis. 2) Program results are based on contracted nameplate capacity at the end of the calendar year and not actual summer coincident peak demand reduction.
A36: 32 | B36: Renewable Energy Standard Offer | C36: Consumer, Business | D36: 2008 | E36: Final | F36: Initiative level allocation based on 2008 non-residential energy throughput by LDCs | G36: Program results are based on contracted nameplate capacity and not actual summer coincident peak generation
A37: 33 | B37: Other Customer Based Generation | C37: Business | D37: 2008 | E37: Final | F37: Contract level allocation based on 2008 non-residential energy throughput by LDCs | G37: Program results are based on contracted nameplate capacity and not actual summer coincident peak generation
A38: 34 | B38: LDC Custom - Hydro One Networks Inc. - Double Return | C38: Business, Industrial | D38: 2008 | E38: Final | F38: Program run exclusively in Hydro One Networks Inc. service territory
A39: 35 | B39: Great Refrigerator Roundup | C39: Consumer | D39: 2009 | E39: Final | F39: Actual LDC specific results
A40: 36 | B40: Cool Savings Rebate | C40: Consumer | D40: 2009 | E40: Final | F40: Measure level allocation based on 2009 Residential Energy Throughput
A41: 37 | B41: Every Kilowatt Counts Power Savings Event | C41: Consumer | D41: 2009 | E41: Final | F41: Measure level allocation based on 2009 Residential Energy Throughput
A42: 38 | B42: peaksaver® | C42: Consumer, Business | D42: 2009 | E42: Final | F42: Actual LDC specific results
A43: 39 | B43: Electricity Retrofit Incentive | C43: Consumer, Business | D43: 2009 | E43: Final | F43: LDC’s respective proportion of province-wide reported gross demand savings.
A44: 40 | B44: Toronto Comprehensive | C44: Consumer, Consumer Low-Income, Business, Industrial | D44: 2009 | E44: Final | F44: Program run exclusively in Toronto Hydro-Electric System Ltd. service territory
A45: 41 | B45: High Performance New Construction | C45: Business | D45: 2009 | E45: Final | F45: Measure level allocation based on 2009 Non-Residential Energy Throughput
A46: 42 | B46: Power Savings Blitz | C46: Business | D46: 2009 | E46: Final | F46: LDC’s respective proportion of province-wide reported gross demand savings.
A47: 43 | B47: Multi-Family Energy Efficiency Rebates | C47: Consumer, Consumer Low-Income | D47: 2009 | E47: Final | F47: LDC’s respective proportion of province-wide reported gross demand savings.
A48: 44 | B48: Demand Response 1 | C48: Business, Industrial | D48: 2009 | E48: Final | F48: Initiative level allocation based on 2009 non-residential energy throughput by LDCs | G48: 1) Although the program is managed internally and actual participant data is available, the small participant population of Demand Response 1 can lead to participant confidentiality issues if disclosed on an actual LDC share basis. 2) Program results are based on contracted nameplate capacity at the end of the calendar year and not actual summer coincident peak demand reduction.
A49: 45 | B49: Demand Response 2 | C49: Business, Industrial | D49: 2009 | E49: Final | F49: Initiative level allocation based on 2009 non-residential energy throughput by LDCs | G49: 1) Although the program is managed internally and actual participant data is available, the small participant population of Demand Response 2 can lead to participant confidentiality issues if disclosed on an actual LDC share basis. 2) Program results are based on contracted nameplate capacity at the end of the calendar year and not actual summer coincident peak demand reduction.
A50: 46 | B50: Demand Response 3 | C50: Business, Industrial | D50: 2009 | E50: Final | F50: Initiative level allocation based on 2009 non-residential energy throughput by LDCs | G50: 1) Although the program is managed internally and actual participant data is available, the small participant population of Demand Response 3 can lead to participant confidentiality issues if disclosed on an actual LDC share basis. 2) Program results are based on contracted nameplate capacity at the end of the calendar year and not actual summer coincident peak demand reduction.
A51: 47 | B51: Loblaw & York Region Demand Response | C51: Business, Industrial | D51: 2009 | E51: Final | F51: Initiative level allocation based on 2009 non-residential energy throughput by LDCs | G51: 1) Although the program is managed internally and actual participant data is available, the small participant population of Electricity Resources Demand Response can lead to participant confidentiality issues if disclosed on an actual LDC share basis. 2) Program results are based on contracted nameplate capacity at the end of the calendar year and not actual summer coincident peak demand reduction.
A52: 48 | B52: LDC Custom - Thunder Bay Hydro - Phantom Load | C52: Consumer | D52: 2009 | E52: Final | F52: Program run exclusively in Thunder Bay Hydro Electricity Distribution Inc. service territory.
A53: 49 | B53: LDC Custom - Toronto Hydro - Summer Challenge | C53: Consumer | D53: 2009 | E53: Final | F53: Program run exclusively in Toronto Hydro-Electric System Ltd. service territory
A54: 50 | B54: LDC Custom - PowerStream - Data Centers | C54: Business | D54: 2009 | E54: Final | F54: Program run exclusively in PowerStream Inc. service territory
A55: 51 | B55: Toronto Comprehensive Adjustment | C55: Consumer, Business | D55: 2008 | E55: Final | F55: Program run exclusively in Toronto Hydro-Electric System Ltd. service territory
A56: 52 | B56: LDC Custom - Hydro One Networks Inc. - Double Return Adjustment | C56: Business, Industrial | D56: 2008 | E56: Final | F56: Program run exclusively in Hydro One Networks Inc. service territory
A57: 53 | B57: Great Refrigerator Roundup | C57: Consumer | D57: 2010 | E57: Final | F57: Actual LDC specific results
A58: 54 | B58: Cool Savings Rebate | C58: Consumer | D58: 2010 | E58: Final | F58: Measure level allocation based on 2010 Residential Energy Throughput
A59: 55 | B59: Every Kilowatt Counts Power Savings Event | C59: Consumer | D59: 2010 | E59: Final | F59: Measure level allocation based on 2010 Residential Energy Throughput
A60: 56 | B60: peaksaver® | C60: Consumer, Business | D60: 2010 | E60: Final | F60: Actual LDC specific results
A61: 57 | B61: Electricity Retrofit Incentive | C61: Consumer, Business | D61: 2010 | E61: Final | F61: Each LDC’s proportion of province-wide reported gross demand savings identified in invoices received and entered into OPA processing on or before March 31, 2011. | G61: Net-to-gross ratios and effective useful life assumptions were developed with the best available information in accordance with the OPA’s EM&V Protocols and industry best practice. They are representative of the overall initiative.
A62: 58 | B62: Toronto Comprehensive | C62: Consumer, Consumer Low-Income, Business, Industrial | D62: 2010 | E62: Final | F62: Program run exclusively in Toronto Hydro-Electric System Ltd. service territory
A63: 59 | B63: High Performance New Construction | C63: Business | D63: 2010 | E63: Final | F63: Measure level allocation based on 2010 Non-Residential Energy Throughput | G63: Net-to-gross ratios and effective useful life assumptions were developed with the best available information in accordance with the OPA’s EM&V Protocols and industry best practice. They are representative of the overall initiative.
A64: 60 | B64: Power Savings Blitz | C64: Business | D64: 2010 | E64: Final | F64: Each LDC’s proportion of province-wide reported gross demand savings identified in invoices received and entered into OPA processing on or before March 31, 2011. | G64: Net-to-gross ratios and effective useful life assumptions were developed with the best available information in accordance with the OPA’s EM&V Protocols and industry best practice. They are representative of the overall initiative.
A65: 61 | B65: Multi-Family Energy Efficiency Rebates | C65: Consumer, Consumer Low-Income | D65: 2010 | E65: Final | F65: Each LDC’s proportion of province-wide reported gross demand savings identified in invoices received and entered into OPA processing on or before March 31, 2011. | G65: Net-to-gross ratios and effective useful life assumptions were developed with the best available information in accordance with the OPA’s EM&V Protocols and industry best practice. They are representative of the overall initiative.
A66: 62 | B66: Demand Response 2 | C66: Business, Industrial | D66: 2010 | E66: Final | F66: Initiative level allocation based on 2010 non-residential energy throughput by LDCs | G66: 1) Although the program is managed internally and actual participant data is available, the small participant population of Demand Response 2 can lead to participant confidentiality issues if disclosed on an actual LDC share basis. 2) Program results are based on contracted nameplate capacity at the end of the calendar year and not actual summer coincident peak demand reduction.
A67: 63 | B67: Demand Response 3 | C67: Business, Industrial | D67: 2010 | E67: Final | F67: Initiative level allocation based on 2010 non-residential energy throughput by LDCs | G67: 1) Although the program is managed internally and actual participant data is available, the small participant population of Demand Response 3 can lead to participant confidentiality issues if disclosed on an actual LDC share basis. 2) Program results are based on contracted nameplate capacity at the end of the calendar year and not actual summer coincident peak demand reduction.
A68: 64 | B68: Loblaw & York Region Demand Response | C68: Business, Industrial | D68: 2010 | E68: Final | F68: Initiative level allocation based on 2010 non-residential energy throughput by LDCs | G68: 1) Although the program is managed internally and actual participant data is available, the small participant population of Electricity Resources Demand Response can lead to participant confidentiality issues if disclosed on an actual LDC share basis. 2) Program results are based on contracted nameplate capacity at the end of the calendar year and not actual summer coincident peak demand reduction.
A69: 65 | B69: LDC Custom - Hydro Ottawa - Small Commercial Demand Response | C69: Consumer | D69: 2010 | E69: Final | F69: Program run exclusively in Hydro Ottawa service territory.

Sheet Summary - LDC
A1: OPA Conservation & Demand Management Programs
A2: Annual Results at the End-User Level
A4: For: | B4: Cambridge and North Dumfries Hydro Inc.
A6: Net Summer Peak Demand Savings (MW)
A7: # | B7: Program Year | C7: Results Status | E7: 2006 | F7: =E7+1 -> 2007 | G7: =F7+1 -> 2008 | H7: 2009 | I7: 2010 | J7: 2011 | K7: 2012 | L7: 2013 | M7: 2014 | N7: 2015 | O7: 2016 | P7: 2017 | Q7: 2018 | R7: 2019 | S7: 2020 | T7: 2021 | U7: 2022 | V7: 2023 | W7: 2024 | X7: 2025 | Y7: 2026 | Z7: 2027 | AA7: 2028 | AB7: 2029 | AC7: 2030 | AD7: 2031 | AE7: 2032 | AF7: =AE7+1 -> 2033 | AG7: =AF7+1 -> 2034 | AH7: =AG7+1 -> 2035 | AI7: =AH7+1 -> 2036 | AJ7: 2037 | AK7: 2038 | AL7: 2039 | AM7: 2040 | AN7: 2041 | AO7: 2042 | AP7: 2043 | AQ7: 2044 | AR7: 2045 | AS7: 2046 | AT7: 2047 | AU7: 2048 | AV7: 2049 | AW7: 2050
A9: 1 | B9: 2006 Programs | C9: Final | E9: ='Initiative Level - LDC'!G75 -> 4.369578307 | F9: ='Initiative Level - LDC'!H75 -> 0.1769432946 | G9: ='Initiative Level - LDC'!I75 -> 0.1769432946 | H9: ='Initiative Level - LDC'!J75 -> 0.1769432946 | I9: ='Initiative Level - LDC'!K75 -> 0.1769432946 | J9: ='Initiative Level - LDC'!L75 -> 0.1769432946 | K9: ='Initiative Level - LDC'!M75 -> 0.16467784 | L9: ='Initiative Level - LDC'!N75 -> 0.16467784 | M9: ='Initiative Level - LDC'!O75 -> 0.1287977511 | N9: ='Initiative Level - LDC'!P75 -> 0.1287977511 | O9: ='Initiative Level - LDC'!Q75 -> 0.1287977511 | P9: ='Initiative Level - LDC'!R75 -> 0.1287977511 | Q9: ='Initiative Level - LDC'!S75 -> 0.1287977511 | R9: ='Initiative Level - LDC'!T75 -> 0.1287977511 | S9: ='Initiative Level - LDC'!U75 -> 0.07882674851 | T9: ='Initiative Level - LDC'!V75 -> 0.05380662122 | U9: ='Initiative Level - LDC'!W75 -> 0.05380662122 | V9: ='Initiative Level - LDC'!X75 -> 0.05380662122 | W9: ='Initiative Level - LDC'!Y75 -> 0.001512853486 | X9: ='Initiative Level - LDC'!Z75 -> 0.001512853486 | Y9: ='Initiative Level - LDC'!AA75 -> 0 | Z9: ='Initiative Level - LDC'!AB75 -> 0 | AA9: ='Initiative Level - LDC'!AC75 -> 0 | AB9: ='Initiative Level - LDC'!AD75 -> 0 | AC9: ='Initiative Level - LDC'!AE75 -> 0 | AD9: ='Initiative Level - LDC'!AF75 -> 0 | AE9: ='Initiative Level - LDC'!AG75 -> 0 | AF9: ='Initiative Level - LDC'!AH75 -> 0 | AG9: ='Initiative Level - LDC'!AI75 -> 0 | AH9: ='Initiative Level - LDC'!BH75 -> 0 | AI9: 0 | AJ9: 0 | AK9: 0 | AL9: 0 | AM9: 0 | AN9: 0 | AO9: 0 | AP9: 0 | AQ9: 0 | AR9: 0 | AS9: 0 | AT9: 0 | AU9: 0 | AV9: 0 | AW9: 0
A10: =A9+1 -> 2 | B10: 2007 Programs | C10: Final | E10: ='Initiative Level - LDC'!G77 -> 0 | F10: ='Initiative Level - LDC'!H77 -> 5.459775999 | G10: ='Initiative Level - LDC'!I77 -> 0.3694958707 | H10: ='Initiative Level - LDC'!J77 -> 0.317555639 | I10: ='Initiative Level - LDC'!K77 -> 0.317555639 | J10: ='Initiative Level - LDC'!L77 -> 0.3156193382 | K10: ='Initiative Level - LDC'!M77 -> 0.302104852 | L10: ='Initiative Level - LDC'!N77 -> 0.302104852 | M10: ='Initiative Level - LDC'!O77 -> 0.302104852 | N10: ='Initiative Level - LDC'!P77 -> 0.2658576611 | O10: ='Initiative Level - LDC'!Q77 -> 0.2564623857 | P10: ='Initiative Level - LDC'!R77 -> 0.2327133243 | Q10: ='Initiative Level - LDC'!S77 -> 0.2327133243 | R10: ='Initiative Level - LDC'!T77 -> 0.2298783243 | S10: ='Initiative Level - LDC'!U77 -> 0.2298783243 | T10: ='Initiative Level - LDC'!V77 -> 0.1746809469 | U10: ='Initiative Level - LDC'!W77 -> 0.06954213935 | V10: ='Initiative Level - LDC'!X77 -> 0.06926910145 | W10: ='Initiative Level - LDC'!Y77 -> 0.06926910145 | X10: ='Initiative Level - LDC'!Z77 -> 0.04514333333 | Y10: ='Initiative Level - LDC'!AA77 -> 0.02342 | Z10: ='Initiative Level - LDC'!AB77 -> 0 | AA10: ='Initiative Level - LDC'!AC77 -> 0 | AB10: ='Initiative Level - LDC'!AD77 -> 0 | AC10: ='Initiative Level - LDC'!AE77 -> 0 | AD10: ='Initiative Level - LDC'!AF77 -> 0 | AE10: ='Initiative Level - LDC'!AG77 -> 0 | AF10: ='Initiative Level - LDC'!AH77 -> 0 | AG10: ='Initiative Level - LDC'!AI77 -> 0 | AH10: ='Initiative Level - LDC'!BH77 -> 0 | AI10: 0 | AJ10: 0 | AK10: 0 | AL10: 0 | AM10: 0 | AN10: 0 | AO10: 0 | AP10: 0 | AQ10: 0 | AR10: 0 | AS10: 0 | AT10: 0 | AU10: 0 | AV10: 0 | AW10: 0
A11: =A10+1 -> 3 | B11: 2008 Programs | C11: Final | E11: ='Initiative Level - LDC'!G79 -> 0 | F11: ='Initiative Level - LDC'!H79 -> 0 | G11: ='Initiative Level - LDC'!I79 -> 8.438924104 | H11: ='Initiative Level - LDC'!J79 -> 0.6482387051 | I11: ='Initiative Level - LDC'!K79 -> 0.6477067451 | J11: ='Initiative Level - LDC'!L79 -> 0.6477067451 | K11: ='Initiative Level - LDC'!M79 -> 0.641870371 | L11: ='Initiative Level - LDC'!N79 -> 0.641870371 | M11: ='Initiative Level - LDC'!O79 -> 0.6295823494 | N11: ='Initiative Level - LDC'!P79 -> 0.6254320223 | O11: ='Initiative Level - LDC'!Q79 -> 0.6045210463 | P11: ='Initiative Level - LDC'!R79 -> 0.5799638466 | Q11: ='Initiative Level - LDC'!S79 -> 0.5761848582 | R11: ='Initiative Level - LDC'!T79 -> 0.5761848582 | S11: ='Initiative Level - LDC'!U79 -> 0.5663934542 | T11: ='Initiative Level - LDC'!V79 -> 0.3820209269 | U11: ='Initiative Level - LDC'!W79 -> 0.3767576808 | V11: ='Initiative Level - LDC'!X79 -> 0.3408374814 | W11: ='Initiative Level - LDC'!Y79 -> 0.2184357623 | X11: ='Initiative Level - LDC'!Z79 -> 0.2184357623 | Y11: ='Initiative Level - LDC'!AA79 -> 0.1046759928 | Z11: ='Initiative Level - LDC'!AB79 -> 0.1046759928 | AA11: ='Initiative Level - LDC'!AC79 -> 0 | AB11: ='Initiative Level - LDC'!AD79 -> 0 | AC11: ='Initiative Level - LDC'!AE79 -> 0 | AD11: ='Initiative Level - LDC'!AF79 -> 0 | AE11: ='Initiative Level - LDC'!AG79 -> 0 | AF11: ='Initiative Level - LDC'!AH79 -> 0 | AG11: ='Initiative Level - LDC'!AI79 -> 0 | AH11: ='Initiative Level - LDC'!BH79 -> 0 | AI11: 0 | AJ11: 0 | AK11: 0 | AL11: 0 | AM11: 0 | AN11: 0 | AO11: 0 | AP11: 0 | AQ11: 0 | AR11: 0 | AS11: 0 | AT11: 0 | AU11: 0 | AV11: 0 | AW11: 0
A12: =A11+1 -> 4 | B12: 2009 Programs | C12: Final | E12: ='Initiative Level - LDC'!G81 -> 0 | F12: ='Initiative Level - LDC'!H81 -> 0 | G12: ='Initiative Level - LDC'!I81 -> 0 | H12: ='Initiative Level - LDC'!J81 -> 7.852174456 | I12: ='Initiative Level - LDC'!K81 -> 1.323110574 | J12: ='Initiative Level - LDC'!L81 -> 1.323110574 | K12: ='Initiative Level - LDC'!M81 -> 1.321842018 | L12: ='Initiative Level - LDC'!N81 -> 1.313189041 | M12: ='Initiative Level - LDC'!O81 -> 1.294288369 | N12: ='Initiative Level - LDC'!P81 -> 1.290771957 | O12: ='Initiative Level - LDC'!Q81 -> 1.267614062 | P12: ='Initiative Level - LDC'!R81 -> 1.257137503 | Q12: ='Initiative Level - LDC'!S81 -> 0.6327347679 | R12: ='Initiative Level - LDC'!T81 -> 0.6261262512 | S12: ='Initiative Level - LDC'!U81 -> 0.3847500383 | T12: ='Initiative Level - LDC'!V81 -> 0.3699010386 | U12: ='Initiative Level - LDC'!W81 -> 0.2463433033 | V12: ='Initiative Level - LDC'!X81 -> 0.2456289248 | W12: ='Initiative Level - LDC'!Y81 -> 0.2291465979 | X12: ='Initiative Level - LDC'!Z81 -> 0.2277526797 | Y12: ='Initiative Level - LDC'!AA81 -> 0.2277526797 | Z12: ='Initiative Level - LDC'!AB81 -> 0.1809173482 | AA12: ='Initiative Level - LDC'!AC81 -> 0.05205791127 | AB12: ='Initiative Level - LDC'!AD81 -> 0 | AC12: ='Initiative Level - LDC'!AE81 -> 0 | AD12: ='Initiative Level - LDC'!AF81 -> 0 | AE12: ='Initiative Level - LDC'!AG81 -> 0 | AF12: ='Initiative Level - LDC'!AH81 -> 0 | AG12: ='Initiative Level - LDC'!AI81 -> 0 | AH12: ='Initiative Level - LDC'!BH81 -> 0 | AI12: 0 | AJ12: 0 | AK12: 0 | AL12: 0 | AM12: 0 | AN12: 0 | AO12: 0 | AP12: 0 | AQ12: 0 | AR12: 0 | AS12: 0 | AT12: 0 | AU12: 0 | AV12: 0 | AW12: 0
A13: =A12+1 -> 5 | B13: 2010 Programs | C13: Final | E13: ='Initiative Level - LDC'!G83 -> 0 | F13: ='Initiative Level - LDC'!H83 -> 0 | G13: ='Initiative Level - LDC'!I83 -> 0 | H13: ='Initiative Level - LDC'!J83 -> 0 | I13: ='Initiative Level - LDC'!K83 -> 8.048937377 | J13: ='Initiative Level - LDC'!L83 -> 2.546912409 | K13: ='Initiative Level - LDC'!M83 -> 2.546535252 | L13: ='Initiative Level - LDC'!N83 -> 2.54598006 | M13: ='Initiative Level - LDC'!O83 -> 2.537241428 | N13: ='Initiative Level - LDC'!P83 -> 2.490638824 | O13: ='Initiative Level - LDC'!Q83 -> 2.490029281 | P13: ='Initiative Level - LDC'!R83 -> 2.490029281 | Q13: ='Initiative Level - LDC'!S83 -> 1.958983019 | R13: ='Initiative Level - LDC'!T83 -> 1.944079161 | S13: ='Initiative Level - LDC'!U83 -> 0.8250693305 | T13: ='Initiative Level - LDC'!V83 -> 0.8250693305 | U13: ='Initiative Level - LDC'!W83 -> 0.8246263453 | V13: ='Initiative Level - LDC'!X83 -> 0.4103063453 | W13: ='Initiative Level - LDC'!Y83 -> 0.4103063453 | X13: ='Initiative Level - LDC'!Z83 -> 0.3991816548 | Y13: ='Initiative Level - LDC'!AA83 -> 0.3984177173 | Z13: ='Initiative Level - LDC'!AB83 -> 0.3984177173 | AA13: ='Initiative Level - LDC'!AC83 -> 0.3525275715 | AB13: ='Initiative Level - LDC'!AD83 -> 0.177595758 | AC13: ='Initiative Level - LDC'!AE83 -> 0 | AD13: ='Initiative Level - LDC'!AF83 -> 0 | AE13: ='Initiative Level - LDC'!AG83 -> 0 | AF13: ='Initiative Level - LDC'!AH83 -> 0 | AG13: ='Initiative Level - LDC'!AI83 -> 0 | AH13: ='Initiative Level - LDC'!AJ83 -> 0 | AI13: ='Initiative Level - LDC'!AK83 -> 0 | AJ13: ='Initiative Level - LDC'!AL83 -> 0 | AK13: ='Initiative Level - LDC'!AM83 -> 0 | AL13: ='Initiative Level - LDC'!AN83 -> 0 | AM13: ='Initiative Level - LDC'!AO83 -> 0 | AN13: ='Initiative Level - LDC'!AP83 -> 0 | AO13: ='Initiative Level - LDC'!AQ83 -> 0 | AP13: ='Initiative Level - LDC'!AR83 -> 0 | AQ13: ='Initiative Level - LDC'!AS83 -> 0 | AR13: ='Initiative Level - LDC'!AT83 -> 0 | AS13: ='Initiative Level - LDC'!AU83 -> 0 | AT13: ='Initiative Level - LDC'!AV83 -> 0 | AU13: ='Initiative Level - LDC'!AW83 -> 0 | AV13: ='Initiative Level - LDC'!AX83 -> 0 | AW13: ='Initiative Level - LDC'!AY83 -> 0
A14: Total | E14: =SUM(E9:E13) -> 4.369578307 | F14: =SUM(F9:F13) -> 5.636719294 | G14: 8.985363269 | H14: 8.994912095 | I14: 10.51425363 | J14: 5.010292361 | K14: 4.977030333 | L14: 4.967822164 | M14: 4.89201475 | N14: 4.801498216 | O14: 4.747424526 | P14: 4.688641706 | Q14: 3.52941372 | R14: 3.505066346 | S14: 2.084917896 | T14: 1.805478864 | U14: 1.57107609 | V14: 1.119848474 | W14: 0.9286706604 | X14: 0.8920262836 | Y14: 0.7542663898 | Z14: 0.6840110583 | AA14: 0.4045854828 | AB14: 0.177595758 | AC14: 0 | AD14: 0 | AE14: 0 | AF14: 0 | AG14: 0 | AH14: 0 | AI14: 0 | AJ14: 0 | AK14: 0 | AL14: 0 | AM14: 0 | AN14: 0 | AO14: 0 | AP14: 0 | AQ14: 0 | AR14: 0 | AS14: 0 | AT14: 0 | AU14: 0 | AV14: 0 | AW14: 0
A16: Net Energy Savings (MWh)
A17: # | B17: Program Year | C17: Results Status | E17: 2006 | F17: =E17+1 -> 2007 | G17: =F17+1 -> 2008 | H17: 2009 | I17: 2010 | J17: 2011 | K17: 2012 | L17: 2013 | M17: 2014 | N17: 2015 | O17: 2016 | P17: 2017 | Q17: 2018 | R17: 2019 | S17: 2020 | T17: 2021 | U17: 2022 | V17: 2023 | W17: 2024 | X17: 2025 | Y17: 2026 | Z17: 2027 | AA17: 2028 | AB17: 2029 | AC17: 2030 | AD17: 2031 | AE17: 2032 | AF17: 2033 | AG17: 2034 | AH17: 2035 | AI17: =AH17+1 -> 2036 | AJ17: 2037 | AK17: 2038 | AL17: 2039 | AM17: 2040 | AN17: 2041 | AO17: 2042 | AP17: 2043 | AQ17: 2044 | AR17: 2045 | AS17: 2046 | AT17: 2047 | AU17: 2048 | AV17: 2049 | AW17: 2050
A19: 1 | B19: 2006 Programs | C19: Final | E19: ='Initiative Level - LDC'!G157 -> 3653.79172 | F19: ='Initiative Level - LDC'!H157 -> 3653.79172 | G19: ='Initiative Level - LDC'!I157 -> 3653.79172 | H19: ='Initiative Level - LDC'!J157 -> 3653.79172 | I19: ='Initiative Level - LDC'!K157 -> 634.5827174 | J19: ='Initiative Level - LDC'!L157 -> 634.5827174 | K19: ='Initiative Level - LDC'!M157 -> 580.4704176 | L19: ='Initiative Level - LDC'!N157 -> 580.4704176 | M19: ='Initiative Level - LDC'!O157 -> 545.4413928 | N19: ='Initiative Level - LDC'!P157 -> 545.4413928 | O19: ='Initiative Level - LDC'!Q157 -> 515.3218037 | P19: ='Initiative Level - LDC'!R157 -> 515.3218037 | Q19: ='Initiative Level - LDC'!S157 -> 515.3218037 | R19: ='Initiative Level - LDC'!T157 -> 515.3218037 | S19: ='Initiative Level - LDC'!U157 -> 466.4629872 | T19: ='Initiative Level - LDC'!V157 -> 405.4567406 | U19: ='Initiative Level - LDC'!W157 -> 405.4567406 | V19: ='Initiative Level - LDC'!X157 -> 405.4567406 | W19: ='Initiative Level - LDC'!Y157 -> 219.0802205 | X19: ='Initiative Level - LDC'!Z157 -> 219.0802205 | Y19: ='Initiative Level - LDC'!AA157 -> 127.8328468 | Z19: ='Initiative Level - LDC'!AB157 -> 127.8328468 | AA19: ='Initiative Level - LDC'!AC157 -> 127.8328468 | AB19: ='Initiative Level - LDC'!AD157 -> 127.8328468 | AC19: ='Initiative Level - LDC'!AE157 -> 127.8328468 | AD19: ='Initiative Level - LDC'!AF157 -> 10.65123502 | AE19: ='Initiative Level - LDC'!AG157 -> 10.65123502 | AF19: ='Initiative Level - LDC'!AH157 -> 10.65123502 | AG19: ='Initiative Level - LDC'!AI157 -> 10.65123502 | AH19: ='Initiative Level - LDC'!AJ157 -> 10.65123502 | AI19: 0 | AJ19: 0 | AK19: 0 | AL19: 0 | AM19: 0 | AN19: 0 | AO19: 0 | AP19: 0 | AQ19: 0 | AR19: 0 | AS19: 0 | AT19: 0 | AU19: 0 | AV19: 0 | AW19: 0
A20: =A19+1 -> 2 | B20: 2007 Programs | C20: Final | E20: ='Initiative Level - LDC'!G159 -> 0 | F20: ='Initiative Level - LDC'!H159 -> 2556.891721 | G20: ='Initiative Level - LDC'!I159 -> 2042.665051 | H20: ='Initiative Level - LDC'!J159 -> 1979.816362 | I20: ='Initiative Level - LDC'!K159 -> 1979.816362 | J20: ='Initiative Level - LDC'!L159 -> 1979.402305 | K20: ='Initiative Level - LDC'!M159 -> 1919.291361 | L20: ='Initiative Level - LDC'!N159 -> 1919.291361 | M20: ='Initiative Level - LDC'!O159 -> 1919.291361 | N20: ='Initiative Level - LDC'!P159 -> 786.0087495 | O20: ='Initiative Level - LDC'!Q159 -> 698.873513 | P20: ='Initiative Level - LDC'!R159 -> 505.4835194 | Q20: ='Initiative Level - LDC'!S159 -> 505.4835194 | R20: ='Initiative Level - LDC'!T159 -> 505.4835194 | S20: ='Initiative Level - LDC'!U159 -> 505.4835194 | T20: ='Initiative Level - LDC'!V159 -> 401.3150633 | U20: ='Initiative Level - LDC'!W159 -> 215.9813266 | V20: ='Initiative Level - LDC'!X159 -> 209.9891199 | W20: ='Initiative Level - LDC'!Y159 -> 209.9891199 | X20: ='Initiative Level - LDC'!Z159 -> 183.096357 | Y20: ='Initiative Level - LDC'!AA159 -> 26.670696 | Z20: ='Initiative Level - LDC'!AB159 -> 0 | AA20: ='Initiative Level - LDC'!AC159 -> 0 | AB20: ='Initiative Level - LDC'!AD159 -> 0 | AC20: ='Initiative Level - LDC'!AE159 -> 0 | AD20: ='Initiative Level - LDC'!AF159 -> 0 | AE20: ='Initiative Level - LDC'!AG159 -> 0 | AF20: ='Initiative Level - LDC'!AH159 -> 0 | AG20: ='Initiative Level - LDC'!AI159 -> 0 | AH20: ='Initiative Level - LDC'!AJ159 -> 0 | AI20: 0 | AJ20: 0 | AK20: 0 | AL20: 0 | AM20: 0 | AN20: 0 | AO20: 0 | AP20: 0 | AQ20: 0 | AR20: 0 | AS20: 0 | AT20: 0 | AU20: 0 | AV20: 0 | AW20: 0
A21: =A20+1 -> 3 | B21: 2008 Programs | C21: Final | E21: ='Initiative Level - LDC'!G161 -> 0 | F21: ='Initiative Level - LDC'!H161 -> 0 | G21: ='Initiative Level - LDC'!I161 -> 3005.935203 | H21: ='Initiative Level - LDC'!J161 -> 2484.038624 | I21: ='Initiative Level - LDC'!K161 -> 2480.133628 | J21: ='Initiative Level - LDC'!L161 -> 2480.133628 | K21: ='Initiative Level - LDC'!M161 -> 2310.616336 | L21: ='Initiative Level - LDC'!N161 -> 2310.368116 | M21: ='Initiative Level - LDC'!O161 -> 2134.103843 | N21: ='Initiative Level - LDC'!P161 -> 2002.419505 | O21: ='Initiative Level - LDC'!Q161 -> 1538.911234 | P21: ='Initiative Level - LDC'!R161 -> 1344.915654 | Q21: ='Initiative Level - LDC'!S161 -> 1234.138435 | R21: ='Initiative Level - LDC'!T161 -> 1234.138435 | S21: ='Initiative Level - LDC'!U161 -> 1217.263457 | T21: ='Initiative Level - LDC'!V161 -> 1199.637766 | U21: ='Initiative Level - LDC'!W161 -> 1190.670282 | V21: ='Initiative Level - LDC'!X161 -> 1109.202651 | W21: ='Initiative Level - LDC'!Y161 -> 273.7780549 | X21: ='Initiative Level - LDC'!Z161 -> 273.7780549 | Y21: ='Initiative Level - LDC'!AA161 -> 97.18486551 | Z21: ='Initiative Level - LDC'!AB161 -> 97.18486551 | AA21: ='Initiative Level - LDC'!AC161 -> 0 | AB21: ='Initiative Level - LDC'!AD161 -> 0 | AC21: ='Initiative Level - LDC'!AE161 -> 0 | AD21: ='Initiative Level - LDC'!AF161 -> 0 | AE21: ='Initiative Level - LDC'!AG161 -> 0 | AF21: ='Initiative Level - LDC'!AH161 -> 0 | AG21: ='Initiative Level - LDC'!AI161 -> 0 | AH21: ='Initiative Level - LDC'!AJ161 -> 0 | AI21: 0 | AJ21: 0 | AK21: 0 | AL21: 0 | AM21: 0 | AN21: 0 | AO21: 0 | AP21: 0 | AQ21: 0 | AR21: 0 | AS21: 0 | AT21: 0 | AU21: 0 | AV21: 0 | AW21: 0
A22: =A21+1 -> 4 | B22: 2009 Programs | C22: Final | E22: ='Initiative Level - LDC'!G163 -> 0 | F22: ='Initiative Level - LDC'!H163 -> 0 | G22: ='Initiative Level - LDC'!I163 -> 0 | H22: ='Initiative Level - LDC'!J163 -> 6475.623381 | I22: ='Initiative Level - LDC'!K163 -> 5365.408145 | J22: ='Initiative Level - LDC'!L163 -> 5365.408145 | K22: ='Initiative Level - LDC'!M163 -> 5363.983297 | L22: ='Initiative Level - LDC'!N163 -> 5304.157526 | M22: ='Initiative Level - LDC'!O163 -> 5149.284985 | N22: ='Initiative Level - LDC'!P163 -> 4910.539063 | O22: ='Initiative Level - LDC'!Q163 -> 4805.421101 | P22: ='Initiative Level - LDC'!R163 -> 3614.991518 | Q22: ='Initiative Level - LDC'!S163 -> 2242.985507 | R22: ='Initiative Level - LDC'!T163 -> 1865.920226 | S22: ='Initiative Level - LDC'!U163 -> 548.076013 | T22: ='Initiative Level - LDC'!V163 -> 499.4941658 | U22: ='Initiative Level - LDC'!W163 -> 499.2803909 | V22: ='Initiative Level - LDC'!X163 -> 492.3573879 | W22: ='Initiative Level - LDC'!Y163 -> 434.9651701 | X22: ='Initiative Level - LDC'!Z163 -> 399.3511493 | Y22: ='Initiative Level - LDC'!AA163 -> 392.2742942 | Z22: ='Initiative Level - LDC'!AB163 -> 349.4626054 | AA22: ='Initiative Level - LDC'!AC163 -> 129.2397616 | AB22: ='Initiative Level - LDC'!AD163 -> 0 | AC22: ='Initiative Level - LDC'!AE163 -> 0 | AD22: ='Initiative Level - LDC'!AF163 -> 0 | AE22: ='Initiative Level - LDC'!AG163 -> 0 | AF22: ='Initiative Level - LDC'!AH163 -> 0 | AG22: ='Initiative Level - LDC'!AI163 -> 0 | AH22: ='Initiative Level - LDC'!AJ163 -> 0 | AI22: 0 | AJ22: 0 | AK22: 0 | AL22: 0 | AM22: 0 | AN22: 0 | AO22: 0 | AP22: 0 | AQ22: 0 | AR22: 0 | AS22: 0 | AT22: 0 | AU22: 0 | AV22: 0 | AW22: 0
A23: =A22+1 -> 5 | B23: 2010 Programs | C23: Final | E23: ='Initiative Level - LDC'!G165 -> 0 | F23: ='Initiative Level - LDC'!H165 -> 0 | G23: ='Initiative Level - LDC'!I165 -> 0 | H23: ='Initiative Level - LDC'!J165 -> 0 | I23: ='Initiative Level - LDC'!K165 -> 11339.91228 | J23: ='Initiative Level - LDC'!L165 -> 9336.106181 | K23: ='Initiative Level - LDC'!M165 -> 9330.910898 | L23: ='Initiative Level - LDC'!N165 -> 9330.362419 | M23: ='Initiative Level - LDC'!O165 -> 9282.062546 | N23: ='Initiative Level - LDC'!P165 -> 8874.603293 | O23: ='Initiative Level - LDC'!Q165 -> 8855.367044 | P23: ='Initiative Level - LDC'!R165 -> 8325.628251 | Q23: ='Initiative Level - LDC'!S165 -> 7156.61146 | R23: ='Initiative Level - LDC'!T165 -> 2233.563498 | S23: ='Initiative Level - LDC'!U165 -> 800.728478 | T23: ='Initiative Level - LDC'!V165 -> 800.728478 | U23: ='Initiative Level - LDC'!W165 -> 795.6184626 | V23: ='Initiative Level - LDC'!X165 -> 793.9316104 | W23: ='Initiative Level - LDC'!Y165 -> 793.9316104 | X23: ='Initiative Level - LDC'!Z165 -> 770.0310335 | Y23: ='Initiative Level - LDC'!AA165 -> 748.5400118 | Z23: ='Initiative Level - LDC'!AB165 -> 748.5400118 | AA23: ='Initiative Level - LDC'!AC165 -> 706.0849545 | AB23: ='Initiative Level - LDC'!AD165 -> 405.4316521 | AC23: ='Initiative Level - LDC'!AE165 -> 0 | AD23: ='Initiative Level - LDC'!AF165 -> 0 | AE23: ='Initiative Level - LDC'!AG165 -> 0 | AF23: ='Initiative Level - LDC'!AH165 -> 0 | AG23: ='Initiative Level - LDC'!AI165 -> 0 | AH23: ='Initiative Level - LDC'!AJ165 -> 0 | AI23: ='Initiative Level - LDC'!AK165 -> 0 | AJ23: ='Initiative Level - LDC'!AL165 -> 0 | AK23: ='Initiative Level - LDC'!AM165 -> 0 | AL23: ='Initiative Level - LDC'!AN165 -> 0 | AM23: ='Initiative Level - LDC'!AO165 -> 0 | AN23: ='Initiative Level - LDC'!AP165 -> 0 | AO23: ='Initiative Level - LDC'!AQ165 -> 0 | AP23: ='Initiative Level - LDC'!AR165 -> 0 | AQ23: ='Initiative Level - LDC'!AS165 -> 0 | AR23: ='Initiative Level - LDC'!AT165 -> 0 | AS23: ='Initiative Level - LDC'!AU165 -> 0 | AT23: ='Initiative Level - LDC'!AV165 -> 0 | AU23: ='Initiative Level - LDC'!AW165 -> 0 | AV23: ='Initiative Level - LDC'!AX165 -> 0 | AW23: ='Initiative Level - LDC'!AY165 -> 0
A24: Total | E24: =SUM(E19:E23) -> 3653.79172 | F24: =SUM(F19:F23) -> 6210.68344 | G24: 8702.391973 | H24: 14593.27009 | I24: 21799.85313 | J24: 19795.63298 | K24: 19505.27231 | L24: 19444.64984 | M24: 19030.18413 | N24: 17119.012 | O24: 16413.8947 | P24: 14306.34075 | Q24: 11654.54072 | R24: 6354.427483 | S24: 3538.014455 | T24: 3306.632214 | U24: 3107.007203 | V24: 3010.93751 | W24: 1931.744176 | X24: 1845.336815 | Y24: 1392.502714 | Z24: 1323.020329 | AA24: 963.157563 | AB24: 533.2644989 | AC24: 127.8328468 | AD24: 10.65123502 | AE24: 10.65123502 | AF24: 10.65123502 | AG24: 10.65123502 | AH24: 10.65123502 | AI24: 0 | AJ24: 0 | AK24: 0 | AL24: 0 | AM24: 0 | AN24: 0 | AO24: 0 | AP24: 0 | AQ24: 0 | AR24: 0 | AS24: 0 | AT24: 0 | AU24: 0 | AV24: 0 | AW24: 0
A26: Gross Summer Peak Demand Savings (MW)
A27: # | B27: Program Year | C27: Results Status | E27: 2006 | F27: =E27+1 -> 2007 | G27: =F27+1 -> 2008 | H27: 2009 | I27: 2010 | J27: 2011 | K27: 2012 | L27: 2013 | M27: 2014 | N27: 2015 | O27: 2016 | P27: 2017 | Q27: 2018 | R27: 2019 | S27: 2020 | T27: 2021 | U27: 2022 | V27: 2023 | W27: 2024 | X27: 2025 | Y27: 2026 | Z27: 2027 | AA27: 2028 | AB27: 2029 | AC27: 2030 | AD27: 2031 | AE27: 2032 | AF27: 2033 | AG27: 2034 | AH27: 2035 | AI27: =AH27+1 -> 2036 | AJ27: 2037 | AK27: 2038 | AL27: 2039 | AM27: 2040 | AN27: 2041 | AO27: 2042 | AP27: 2043 | AQ27: 2044 | AR27: 2045 | AS27: 2046 | AT27: 2047 | AU27: 2048 | AV27: 2049 | AW27: 2050
A29: 1 | B29: 2006 Programs | C29: Final | E29: ='Initiative Level - LDC'!G239 -> 4.402212898 | F29: ='Initiative Level - LDC'!H239 -> 0.2095778847 | G29: ='Initiative Level - LDC'!I239 -> 0.2095778847 | H29: ='Initiative Level - LDC'!J239 -> 0.2095778847 | I29: ='Initiative Level - LDC'!K239 -> 0.2095778847 | J29: ='Initiative Level - LDC'!L239 -> 0.2095778847 | K29: ='Initiative Level - LDC'!M239 -> 0.1959496018 | L29: ='Initiative Level - LDC'!N239 -> 0.1959496018 | M29: ='Initiative Level - LDC'!O239 -> 0.1560828363 | N29: ='Initiative Level - LDC'!P239 -> 0.1560828363 | O29: ='Initiative Level - LDC'!Q239 -> 0.1560828363 | P29: ='Initiative Level - LDC'!R239 -> 0.1560828363 | Q29: ='Initiative Level - LDC'!S239 -> 0.1560828363 | R29: ='Initiative Level - LDC'!T239 -> 0.1560828363 | S29: ='Initiative Level - LDC'!U239 -> 0.1005595001 | T29: ='Initiative Level - LDC'!V239 -> 0.06153558839 | U29: ='Initiative Level - LDC'!W239 -> 0.06153558839 | V29: ='Initiative Level - LDC'!X239 -> 0.06153558839 | W29: ='Initiative Level - LDC'!Y239 -> 0.001680948317 | X29: ='Initiative Level - LDC'!Z239 -> 0.001680948317 | Y29: ='Initiative Level - LDC'!AA239 -> 0 | Z29: ='Initiative Level - LDC'!AB239 -> 0 | AA29: ='Initiative Level - LDC'!AC239 -> 0 | AB29: ='Initiative Level - LDC'!AD239 -> 0 | AC29: ='Initiative Level - LDC'!AE239 -> 0 | AD29: ='Initiative Level - LDC'!AF239 -> 0 | AE29: ='Initiative Level - LDC'!AG239 -> 0 | AF29: ='Initiative Level - LDC'!AH239 -> 0 | AG29: ='Initiative Level - LDC'!AI239 -> 0 | AH29: ='Initiative Level - LDC'!AJ239 -> 0 | AI29: 0 | AJ29: 0 | AK29: 0 | AL29: 0 | AM29: 0 | AN29: 0 | AO29: 0 | AP29: 0 | AQ29: 0 | AR29: 0 | AS29: 0 | AT29: 0 | AU29: 0 | AV29: 0 | AW29: 0
A30: =A29+1 -> 2 | B30: 2007 Programs | C30: Final | E30: ='Initiative Level - LDC'!G241 -> 0 | F30: ='Initiative Level - LDC'!H241 -> 8.119094037 | G30: ='Initiative Level - LDC'!I241 -> 1.296488531 | H30: ='Initiative Level - LDC'!J241 -> 0.863653266 | I30: ='Initiative Level - LDC'!K241 -> 0.863653266 | J30: ='Initiative Level - LDC'!L241 -> 0.8591606889 | K30: ='Initiative Level - LDC'!M241 -> 0.7870063907 | L30: ='Initiative Level - LDC'!N241 -> 0.7870063907 | M30: ='Initiative Level - LDC'!O241 -> 0.7870063907 | N30: ='Initiative Level - LDC'!P241 -> 0.7350894194 | O30: ='Initiative Level - LDC'!Q241 -> 0.7112905657 | P30: ='Initiative Level - LDC'!R241 -> 0.6793174014 | Q30: ='Initiative Level - LDC'!S241 -> 0.6793174014 | R30: ='Initiative Level - LDC'!T241 -> 0.6761674014 | S30: ='Initiative Level - LDC'!U241 -> 0.6761674014 | T30: ='Initiative Level - LDC'!V241 -> 0.270468389 | U30: ='Initiative Level - LDC'!W241 -> 0.08774551186 | V30: ='Initiative Level - LDC'!X241 -> 0.08724907932 | W30: ='Initiative Level - LDC'!Y241 -> 0.08724907932 | X30: ='Initiative Level - LDC'!Z241 -> 0.04514333333 | Y30: ='Initiative Level - LDC'!AA241 -> 0.02342 | Z30: ='Initiative Level - LDC'!AB241 -> 0 | AA30: ='Initiative Level - LDC'!AC241 -> 0 | AB30: ='Initiative Level - LDC'!AD241 -> 0 | AC30: ='Initiative Level - LDC'!AE241 -> 0 | AD30: ='Initiative Level - LDC'!AF241 -> 0 | AE30: ='Initiative Level - LDC'!AG241 -> 0 | AF30: ='Initiative Level - LDC'!AH241 -> 0 | AG30: ='Initiative Level - LDC'!AI241 -> 0 | AH30: ='Initiative Level - LDC'!AJ241 -> 0 | AI30: 0 | AJ30: 0 | AK30: 0 | AL30: 0 | AM30: 0 | AN30: 0 | AO30: 0 | AP30: 0 | AQ30: 0 | AR30: 0 | AS30: 0 | AT30: 0 | AU30: 0 | AV30: 0 | AW30: 0
A31: =A30+1 -> 3 | B31: 2008 Programs | C31: Final | E31: ='Initiative Level - LDC'!G243 -> 0 | F31: ='Initiative Level - LDC'!H243 -> 0 | G31: ='Initiative Level - LDC'!I243 -> 8.816452143 | H31: ='Initiative Level - LDC'!J243 -> 0.9955100281 | I31: ='Initiative Level - LDC'!K243 -> 0.9949380281 | J31: ='Initiative Level - LDC'!L243 -> 0.9949380281 | K31: ='Initiative Level - LDC'!M243 -> 0.9797124096 | L31: ='Initiative Level - LDC'!N243 -> 0.9797124096 | M31: ='Initiative Level - LDC'!O243 -> 0.9529078417 | N31: ='Initiative Level - LDC'!P243 -> 0.9418307875 | O31: ='Initiative Level - LDC'!Q243 -> 0.9046496899 | P31: ='Initiative Level - LDC'!R243 -> 0.8576119526 | Q31: ='Initiative Level - LDC'!S243 -> 0.8497017918 | R31: ='Initiative Level - LDC'!T243 -> 0.8497017918 | S31: ='Initiative Level - LDC'!U243 -> 0.8273009215 | T31: ='Initiative Level - LDC'!V243 -> 0.6221892147 | U31: ='Initiative Level - LDC'!W243 -> 0.6147450415 | V31: ='Initiative Level - LDC'!X243 -> 0.5553108012 | W31: ='Initiative Level - LDC'!Y243 -> 0.332563362 | X31: ='Initiative Level - LDC'!Z243 -> 0.332563362 | Y31: ='Initiative Level - LDC'!AA243 -> 0.1349160839 | Z31: ='Initiative Level - LDC'!AB243 -> 0.1349160839 | AA31: ='Initiative Level - LDC'!AC243 -> 0 | AB31: ='Initiative Level - LDC'!AD243 -> 0 | AC31: ='Initiative Level - LDC'!AE243 -> 0 | AD31: ='Initiative Level - LDC'!AF243 -> 0 | AE31: ='Initiative Level - LDC'!AG243 -> 0 | AF31: ='Initiative Level - LDC'!AH243 -> 0 | AG31: ='Initiative Level - LDC'!AI243 -> 0 | AH31: ='Initiative Level - LDC'!AJ243 -> 0 | AI31: 0 | AJ31: 0 | AK31: 0 | AL31: 0 | AM31: 0 | AN31: 0 | AO31: 0 | AP31: 0 | AQ31: 0 | AR31: 0 | AS31: 0 | AT31: 0 | AU31: 0 | AV31: 0 | AW31: 0
A32: =A31+1 -> 4 | B32: 2009 Programs | C32: Final | E32: ='Initiative Level - LDC'!G245 -> 0 | F32: ='Initiative Level - LDC'!H245 -> 0 | G32: ='Initiative Level - LDC'!I245 -> 0 | H32: ='Initiative Level - LDC'!J245 -> 8.412637744 | I32: ='Initiative Level - LDC'!K245 -> 1.878961788 | J32: ='Initiative Level - LDC'!L245 -> 1.878961788 | K32: ='Initiative Level - LDC'!M245 -> 1.876949364 | L32: ='Initiative Level - LDC'!N245 -> 1.859729997 | M32: ='Initiative Level - LDC'!O245 -> 1.824932368 | N32: ='Initiative Level - LDC'!P245 -> 1.817500638 | O32: ='Initiative Level - LDC'!Q245 -> 1.789079586 | P32: ='Initiative Level - LDC'!R245 -> 1.765619107 | Q32: ='Initiative Level - LDC'!S245 -> 1.108353069 | R32: ='Initiative Level - LDC'!T245 -> 1.093469021 | S32: ='Initiative Level - LDC'!U245 -> 0.7116260606 | T32: ='Initiative Level - LDC'!V245 -> 0.6831192734 | U32: ='Initiative Level - LDC'!W245 -> 0.5458329008 | V32: ='Initiative Level - LDC'!X245 -> 0.5429887244 | W32: ='Initiative Level - LDC'!Y245 -> 0.4884082857 | X32: ='Initiative Level - LDC'!Z245 -> 0.4856329741 | Y32: ='Initiative Level - LDC'!AA245 -> 0.4856329741 | Z32: ='Initiative Level - LDC'!AB245 -> 0.4032841897 | AA32: ='Initiative Level - LDC'!AC245 -> 0.07876417737 | AB32: ='Initiative Level - LDC'!AD245 -> 0 | AC32: ='Initiative Level - LDC'!AE245 -> 0 | AD32: ='Initiative Level - LDC'!AF245 -> 0 | AE32: ='Initiative Level - LDC'!AG245 -> 0 | AF32: ='Initiative Level - LDC'!AH245 -> 0 | AG32: ='Initiative Level - LDC'!AI245 -> 0 | AH32: ='Initiative Level - LDC'!AJ245 -> 0 | AI32: 0 | AJ32: 0 | AK32: 0 | AL32: 0 | AM32: 0 | AN32: 0 | AO32: 0 | AP32: 0 | AQ32: 0 | AR32: 0 | AS32: 0 | AT32: 0 | AU32: 0 | AV32: 0 | AW32: 0
A33: =A32+1 -> 5 | B33: 2010 Programs | C33: Final | E33: ='Initiative Level - LDC'!G247 -> 0 | F33: ='Initiative Level - LDC'!H247 -> 0 | G33: ='Initiative Level - LDC'!I247 -> 0 | H33: ='Initiative Level - LDC'!J247 -> 0 | I33: ='Initiative Level - LDC'!K247 -> 9.558634645 | J33: ='Initiative Level - LDC'!L247 -> 4.057354501 | K33: ='Initiative Level - LDC'!M247 -> 4.057335489 | L33: ='Initiative Level - LDC'!N247 -> 4.055793291 | M33: ='Initiative Level - LDC'!O247 -> 4.036991787 | N33: ='Initiative Level - LDC'!P247 -> 3.950137777 | O33: ='Initiative Level - LDC'!Q247 -> 3.949086799 | P33: ='Initiative Level - LDC'!R247 -> 3.949086799 | Q33: ='Initiative Level - LDC'!S247 -> 3.412726112 | R33: ='Initiative Level - LDC'!T247 -> 3.388659285 | S33: ='Initiative Level - LDC'!U247 -> 1.246933938 | T33: ='Initiative Level - LDC'!V247 -> 1.246933938 | U33: ='Initiative Level - LDC'!W247 -> 1.245820965 | V33: ='Initiative Level - LDC'!X247 -> 0.7854654093 | W33: ='Initiative Level - LDC'!Y247 -> 0.7854654093 | X33: ='Initiative Level - LDC'!Z247 -> 0.7587411904 | Y33: ='Initiative Level - LDC'!AA247 -> 0.7570539602 | Z33: ='Initiative Level - LDC'!AB247 -> 0.7570539602 | AA33: ='Initiative Level - LDC'!AC247 -> 0.6800932428 | AB33: ='Initiative Level - LDC'!AD247 -> 0.2537064195 | AC33: ='Initiative Level - LDC'!AE247 -> 0 | AD33: ='Initiative Level - LDC'!AF247 -> 0 | AE33: ='Initiative Level - LDC'!AG247 -> 0 | AF33: ='Initiative Level - LDC'!AH247 -> 0 | AG33: ='Initiative Level - LDC'!AI247 -> 0 | AH33: ='Initiative Level - LDC'!AJ247 -> 0 | AI33: ='Initiative Level - LDC'!AK247 -> 0 | AJ33: ='Initiative Level - LDC'!AL247 -> 0 | AK33: ='Initiative Level - LDC'!AM247 -> 0 | AL33: ='Initiative Level - LDC'!AN247 -> 0 | AM33: ='Initiative Level - LDC'!AO247 -> 0 | AN33: ='Initiative Level - LDC'!AP247 -> 0 | AO33: ='Initiative Level - LDC'!AQ247 -> 0 | AP33: ='Initiative Level - LDC'!AR247 -> 0 | AQ33: ='Initiative Level - LDC'!AS247 -> 0 | AR33: ='Initiative Level - LDC'!AT247 -> 0 | AS33: ='Initiative Level - LDC'!AU247 -> 0 | AT33: ='Initiative Level - LDC'!AV247 -> 0 | AU33: ='Initiative Level - LDC'!AW247 -> 0 | AV33: ='Initiative Level - LDC'!AX247 -> 0 | AW33: ='Initiative Level - LDC'!AY247 -> 0
A34: Total | E34: =SUM(E29:E33) -> 4.402212898 | F34: =SUM(F29:F33) -> 8.328671921 | G34: 10.32251856 | H34: 10.48137892 | I34: 13.50576561 | J34: 7.999992891 | K34: 7.896953256 | L34: 7.87819169 | M34: 7.757921224 | N34: 7.600641458 | O34: 7.510189477 | P34: 7.407718096 | Q34: 6.20618121 | R34: 6.164080335 | S34: 3.562587821 | T34: 2.884246403 | U34: 2.555680008 | V34: 2.032549603 | W34: 1.695367085 | X34: 1.623761808 | Y34: 1.401023018 | Z34: 1.295254234 | AA34: 0.7588574201 | AB34: 0.2537064195 | AC34: 0 | AD34: 0 | AE34: 0 | AF34: 0 | AG34: 0 | AH34: 0 | AI34: 0 | AJ34: 0 | AK34: 0 | AL34: 0 | AM34: 0 | AN34: 0 | AO34: 0 | AP34: 0 | AQ34: 0 | AR34: 0 | AS34: 0 | AT34: 0 | AU34: 0 | AV34: 0 | AW34: 0
A36: Gross Energy Savings (MWh)
A37: # | B37: Program Year | C37: Results Status | E37: 2006 | F37: =E37+1 -> 2007 | G37: =F37+1 -> 2008 | H37: 2009 | I37: 2010 | J37: 2011 | K37: 2012 | L37: 2013 | M37: 2014 | N37: 2015 | O37: 2016 | P37: 2017 | Q37: 2018 | R37: 2019 | S37: 2020 | T37: 2021 | U37: 2022 | V37: 2023 | W37: 2024 | X37: 2025 | Y37: 2026 | Z37: 2027 | AA37: 2028 | AB37: 2029 | AC37: 2030 | AD37: 2031 | AE37: 2032 | AF37: 2033 | AG37: 2034 | AH37: 2035 | AI37: =AH37+1 -> 2036 | AJ37: 2037 | AK37: 2038 | AL37: 2039 | AM37: 2040 | AN37: 2041 | AO37: 2042 | AP37: 2043 | AQ37: 2044 | AR37: 2045 | AS37: 2046 | AT37: 2047 | AU37: 2048 | AV37: 2049 | AW37: 2050
A39: 1 | B39: 2006 Programs | C39: Final | E39: ='Initiative Level - LDC'!G321 -> 4080.568036 | F39: ='Initiative Level - LDC'!H321 -> 4080.568036 | G39: ='Initiative Level - LDC'!I321 -> 4080.568036 | H39: ='Initiative Level - LDC'!J321 -> 4080.568036 | I39: ='Initiative Level - LDC'!K321 -> 725.8913674 | J39: ='Initiative Level - LDC'!L321 -> 725.8913674 | K39: ='Initiative Level - LDC'!M321 -> 665.7665898 | L39: ='Initiative Level - LDC'!N321 -> 665.7665898 | M39: ='Initiative Level - LDC'!O321 -> 626.8454511 | N39: ='Initiative Level - LDC'!P321 -> 626.8454511 | O39: ='Initiative Level - LDC'!Q321 -> 593.3792411 | P39: ='Initiative Level - LDC'!R321 -> 593.3792411 | Q39: ='Initiative Level - LDC'!S321 -> 593.3792411 | R39: ='Initiative Level - LDC'!T321 -> 593.3792411 | S39: ='Initiative Level - LDC'!U321 -> 539.0916672 | T39: ='Initiative Level - LDC'!V321 -> 452.1082691 | U39: ='Initiative Level - LDC'!W321 -> 452.1082691 | V39: ='Initiative Level - LDC'!X321 -> 452.1082691 | W39: ='Initiative Level - LDC'!Y321 -> 243.4224672 | X39: ='Initiative Level - LDC'!Z321 -> 243.4224672 | Y39: ='Initiative Level - LDC'!AA321 -> 142.0364965 | Z39: ='Initiative Level - LDC'!AB321 -> 142.0364965 | AA39: ='Initiative Level - LDC'!AC321 -> 142.0364965 | AB39: ='Initiative Level - LDC'!AD321 -> 142.0364965 | AC39: ='Initiative Level - LDC'!AE321 -> 142.0364965 | AD39: ='Initiative Level - LDC'!AF321 -> 11.83470558 | AE39: ='Initiative Level - LDC'!AG321 -> 11.83470558 | AF39: ='Initiative Level - LDC'!AH321 -> 11.83470558 | AG39: ='Initiative Level - LDC'!AI321 -> 11.83470558 | AH39: ='Initiative Level - LDC'!AJ321 -> 11.83470558 | AI39: 0 | AJ39: 0 | AK39: 0 | AL39: 0 | AM39: 0 | AN39: 0 | AO39: 0 | AP39: 0 | AQ39: 0 | AR39: 0 | AS39: 0 | AT39: 0 | AU39: 0 | AV39: 0 | AW39: 0
A40: =A39+1 -> 2 | B40: 2007 Programs | C40: Final | E40: ='Initiative Level - LDC'!G323 -> 0 | F40: ='Initiative Level - LDC'!H323 -> 7772.929721 | G40: ='Initiative Level - LDC'!I323 -> 3587.917147 | H40: ='Initiative Level - LDC'!J323 -> 3064.178075 | I40: ='Initiative Level - LDC'!K323 -> 3064.178075 | J40: ='Initiative Level - LDC'!L323 -> 3063.217386 | K40: ='Initiative Level - LDC'!M323 -> 2893.878612 | L40: ='Initiative Level - LDC'!N323 -> 2893.878612 | M40: ='Initiative Level - LDC'!O323 -> 2893.878612 | N40: ='Initiative Level - LDC'!P323 -> 1321.606267 | O40: ='Initiative Level - LDC'!Q323 -> 1100.859875 | P40: ='Initiative Level - LDC'!R323 -> 845.1121693 | Q40: ='Initiative Level - LDC'!S323 -> 845.1121693 | R40: ='Initiative Level - LDC'!T323 -> 845.1121693 | S40: ='Initiative Level - LDC'!U323 -> 845.1121693 | T40: ='Initiative Level - LDC'!V323 -> 562.6658622 | U40: ='Initiative Level - LDC'!W323 -> 238.7693187 | V40: ='Initiative Level - LDC'!X323 -> 227.8743975 | W40: ='Initiative Level - LDC'!Y323 -> 227.8743975 | X40: ='Initiative Level - LDC'!Z323 -> 183.096357 | Y40: ='Initiative Level - LDC'!AA323 -> 26.670696 | Z40: ='Initiative Level - LDC'!AB323 -> 0 | AA40: ='Initiative Level - LDC'!AC323 -> 0 | AB40: ='Initiative Level - LDC'!AD323 -> 0 | AC40: ='Initiative Level - LDC'!AE323 -> 0 | AD40: ='Initiative Level - LDC'!AF323 -> 0 | AE40: ='Initiative Level - LDC'!AG323 -> 0 | AF40: ='Initiative Level - LDC'!AH323 -> 0 | AG40: ='Initiative Level - LDC'!AI323 -> 0 | AH40: ='Initiative Level - LDC'!AJ323 -> 0 | AI40: 0 | AJ40: 0 | AK40: 0 | AL40: 0 | AM40: 0 | AN40: 0 | AO40: 0 | AP40: 0 | AQ40: 0 | AR40: 0 | AS40: 0 | AT40: 0 | AU40: 0 | AV40: 0 | AW40: 0
A41: =A40+1 -> 3 | B41: 2008 Programs | C41: Final | E41: ='Initiative Level - LDC'!G325 -> 0 | F41: ='Initiative Level - LDC'!H325 -> 0 | G41: ='Initiative Level - LDC'!I325 -> 5703.398952 | H41: ='Initiative Level - LDC'!J325 -> 5023.094522 | I41: ='Initiative Level - LDC'!K325 -> 5018.895602 | J41: ='Initiative Level - LDC'!L325 -> 5018.895602 | K41: ='Initiative Level - LDC'!M325 -> 4579.315581 | L41: ='Initiative Level - LDC'!N325 -> 4578.626081 | M41: ='Initiative Level - LDC'!O325 -> 4184.375443 | N41: ='Initiative Level - LDC'!P325 -> 3832.9153 | O41: ='Initiative Level - LDC'!Q325 -> 3037.240606 | P41: ='Initiative Level - LDC'!R325 -> 2682.15495 | Q41: ='Initiative Level - LDC'!S325 -> 2461.753627 | R41: ='Initiative Level - LDC'!T325 -> 2461.753627 | S41: ='Initiative Level - LDC'!U325 -> 2423.146885 | T41: ='Initiative Level - LDC'!V325 -> 2401.079761 | U41: ='Initiative Level - LDC'!W325 -> 2388.96417 | V41: ='Initiative Level - LDC'!X325 -> 2247.385177 | W41: ='Initiative Level - LDC'!Y325 -> 432.8832618 | X41: ='Initiative Level - LDC'!Z325 -> 432.8832618 | Y41: ='Initiative Level - LDC'!AA325 -> 125.2608274 | Z41: ='Initiative Level - LDC'!AB325 -> 125.2608274 | AA41: ='Initiative Level - LDC'!AC325 -> 0 | AB41: ='Initiative Level - LDC'!AD325 -> 0 | AC41: ='Initiative Level - LDC'!AE325 -> 0 | AD41: ='Initiative Level - LDC'!AF325 -> 0 | AE41: ='Initiative Level - LDC'!AG325 -> 0 | AF41: ='Initiative Level - LDC'!AH325 -> 0 | AG41: ='Initiative Level - LDC'!AI325 -> 0 | AH41: ='Initiative Level - LDC'!AJ325 -> 0 | AI41: 0 | AJ41: 0 | AK41: 0 | AL41: 0 | AM41: 0 | AN41: 0 | AO41: 0 | AP41: 0 | AQ41: 0 | AR41: 0 | AS41: 0 | AT41: 0 | AU41: 0 | AV41: 0 | AW41: 0
A42: =A41+1 -> 4 | B42: 2009 Programs | C42: Final | E42: ='Initiative Level - LDC'!G327 -> 0 | F42: ='Initiative Level - LDC'!H327 -> 0 | G42: ='Initiative Level - LDC'!I327 -> 0 | H42: ='Initiative Level - LDC'!J327 -> 9036.431106 | I42: ='Initiative Level - LDC'!K327 -> 7820.105487 | J42: ='Initiative Level - LDC'!L327 -> 7820.105487 | K42: ='Initiative Level - LDC'!M327 -> 7817.911957 | L42: ='Initiative Level - LDC'!N327 -> 7702.329613 | M42: ='Initiative Level - LDC'!O327 -> 7407.607459 | N42: ='Initiative Level - LDC'!P327 -> 7060.448028 | O42: ='Initiative Level - LDC'!Q327 -> 6931.772762 | P42: ='Initiative Level - LDC'!R327 -> 5525.962367 | Q42: ='Initiative Level - LDC'!S327 -> 4081.745513 | R42: ='Initiative Level - LDC'!T327 -> 3406.421081 | S42: ='Initiative Level - LDC'!U327 -> 1315.277182 | T42: ='Initiative Level - LDC'!V327 -> 1221.556435 | U42: ='Initiative Level - LDC'!W327 -> 1221.318907 | V42: ='Initiative Level - LDC'!X327 -> 1194.003562 | W42: ='Initiative Level - LDC'!Y327 -> 985.2093441 | X42: ='Initiative Level - LDC'!Z327 -> 912.8604046 | Y42: ='Initiative Level - LDC'!AA327 -> 863.1213876 | Z42: ='Initiative Level - LDC'!AB327 -> 787.8983416 | AA42: ='Initiative Level - LDC'!AC327 -> 233.2884375 | AB42: ='Initiative Level - LDC'!AD327 -> 0 | AC42: ='Initiative Level - LDC'!AE327 -> 0 | AD42: ='Initiative Level - LDC'!AF327 -> 0 | AE42: ='Initiative Level - LDC'!AG327 -> 0 | AF42: ='Initiative Level - LDC'!AH327 -> 0 | AG42: ='Initiative Level - LDC'!AI327 -> 0 | AH42: ='Initiative Level - LDC'!AJ327 -> 0 | AI42: 0 | AJ42: 0 | AK42: 0 | AL42: 0 | AM42: 0 | AN42: 0 | AO42: 0 | AP42: 0 | AQ42: 0 | AR42: 0 | AS42: 0 | AT42: 0 | AU42: 0 | AV42: 0 | AW42: 0
A43: =A42+1 -> 5 | B43: 2010 Programs | C43: Final | E43: ='Initiative Level - LDC'!G329 -> 0 | F43: ='Initiative Level - LDC'!H329 -> 0 | G43: ='Initiative Level - LDC'!I329 -> 0 | H43: ='Initiative Level - LDC'!J329 -> 0 | I43: ='Initiative Level - LDC'!K329 -> 18704.77511 | J43: ='Initiative Level - LDC'!L329 -> 16722.37731 | K43: ='Initiative Level - LDC'!M329 -> 16721.78398 | L43: ='Initiative Level - LDC'!N329 -> 16720.26042 | M43: ='Initiative Level - LDC'!O329 -> 16625.40374 | N43: ='Initiative Level - LDC'!P329 -> 15786.48677 | O43: ='Initiative Level - LDC'!Q329 -> 15753.69772 | P43: ='Initiative Level - LDC'!R329 -> 15218.60803 | Q43: ='Initiative Level - LDC'!S329 -> 13996.55104 | R43: ='Initiative Level - LDC'!T329 -> 4334.380924 | S43: ='Initiative Level - LDC'!U329 -> 1499.161133 | T43: ='Initiative Level - LDC'!V329 -> 1499.161133 | U43: ='Initiative Level - LDC'!W329 -> 1486.322537 | V43: ='Initiative Level - LDC'!X329 -> 1484.448257 | W43: ='Initiative Level - LDC'!Y329 -> 1484.448257 | X43: ='Initiative Level - LDC'!Z329 -> 1433.786737 | Y43: ='Initiative Level - LDC'!AA329 -> 1383.123451 | Z43: ='Initiative Level - LDC'!AB329 -> 1383.123451 | AA43: ='Initiative Level - LDC'!AC329 -> 1311.923597 | AB43: ='Initiative Level - LDC'!AD329 -> 579.0974524 | AC43: ='Initiative Level - LDC'!AE329 -> 0 | AD43: ='Initiative Level - LDC'!AF329 -> 0 | AE43: ='Initiative Level - LDC'!AG329 -> 0 | AF43: ='Initiative Level - LDC'!AH329 -> 0 | AG43: ='Initiative Level - LDC'!AI329 -> 0 | AH43: ='Initiative Level - LDC'!AJ329 -> 0 | AI43: ='Initiative Level - LDC'!AK329 -> 0 | AJ43: ='Initiative Level - LDC'!AL329 -> 0 | AK43: ='Initiative Level - LDC'!AM329 -> 0 | AL43: ='Initiative Level - LDC'!AN329 -> 0 | AM43: ='Initiative Level - LDC'!AO329 -> 0 | AN43: ='Initiative Level - LDC'!AP329 -> 0 | AO43: ='Initiative Level - LDC'!AQ329 -> 0 | AP43: ='Initiative Level - LDC'!AR329 -> 0 | AQ43: ='Initiative Level - LDC'!AS329 -> 0 | AR43: ='Initiative Level - LDC'!AT329 -> 0 | AS43: ='Initiative Level - LDC'!AU329 -> 0 | AT43: ='Initiative Level - LDC'!AV329 -> 0 | AU43: ='Initiative Level - LDC'!AW329 -> 0 | AV43: ='Initiative Level - LDC'!AX329 -> 0 | AW43: ='Initiative Level - LDC'!AY329 -> 0
A44: Total | E44: =SUM(E39:E43) -> 4080.568036 | F44: =SUM(F39:F43) -> 11853.49776 | G44: 13371.88414 | H44: 21204.27174 | I44: 35333.84564 | J44: 33350.48715 | K44: 32678.65672 | L44: 32560.86132 | M44: 31738.11071 | N44: 28628.30181 | O44: 27416.9502 | P44: 24865.21676 | Q44: 21978.54159 | R44: 11641.04704 | S44: 6621.789037 | T44: 6136.571459 | U44: 5787.483202 | V44: 5605.819662 | W44: 3373.837727 | X44: 3206.049227 | Y44: 2540.212859 | Z44: 2438.319117 | AA44: 1687.248531 | AB44: 721.1339489 | AC44: 142.0364965 | AD44: 11.83470558 | AE44: 11.83470558 | AF44: 11.83470558 | AG44: 11.83470558 | AH44: 11.83470558 | AI44: 0 | AJ44: 0 | AK44: 0 | AL44: 0 | AM44: 0 | AN44: 0 | AO44: 0 | AP44: 0 | AQ44: 0 | AR44: 0 | AS44: 0 | AT44: 0 | AU44: 0 | AV44: 0 | AW44: 0

Sheet Summary - Prov
A1: OPA Conservation & Demand Management Programs
A2: Annual Results at the End-User Level
A4: For: | B4: Province Wide
A6: Net Summer Peak Demand Savings (MW)
A7: # | B7: Program Year | C7: Results Status | E7: 2006 | F7: =E7+1 -> 2007 | G7: =F7+1 -> 2008 | H7: 2009 | I7: 2010 | J7: 2011 | K7: 2012 | L7: 2013 | M7: 2014 | N7: 2015 | O7: 2016 | P7: 2017 | Q7: 2018 | R7: 2019 | S7: 2020 | T7: 2021 | U7: 2022 | V7: 2023 | W7: 2024 | X7: 2025 | Y7: 2026 | Z7: 2027 | AA7: 2028 | AB7: 2029 | AC7: 2030 | AD7: 2031 | AE7: 2032 | AF7: 2033 | AG7: 2034 | AH7: =AG7+1 -> 2035 | AI7: =AH7+1 -> 2036 | AJ7: 2037 | AK7: 2038 | AL7: 2039 | AM7: 2040 | AN7: 2041 | AO7: 2042 | AP7: 2043 | AQ7: 2044 | AR7: 2045 | AS7: 2046 | AT7: 2047 | AU7: 2048 | AV7: 2049 | AW7: 2050
A9: 1 | B9: 2006 Programs | C9: Final | E9: ='Initiative Level - Prov'!G75 -> 296.8959308 | F9: ='Initiative Level - Prov'!H75 -> 18.29593077 | G9: ='Initiative Level - Prov'!I75 -> 18.29593077 | H9: ='Initiative Level - Prov'!J75 -> 18.29593077 | I9: ='Initiative Level - Prov'!K75 -> 18.29593077 | J9: ='Initiative Level - Prov'!L75 -> 18.29593077 | K9: ='Initiative Level - Prov'!M75 -> 17.02768317 | L9: ='Initiative Level - Prov'!N75 -> 17.02768317 | M9: ='Initiative Level - Prov'!O75 -> 13.31768317 | N9: ='Initiative Level - Prov'!P75 -> 13.31768317 | O9: ='Initiative Level - Prov'!Q75 -> 13.31768317 | P9: ='Initiative Level - Prov'!R75 -> 13.31768317 | Q9: ='Initiative Level - Prov'!S75 -> 13.31768317 | R9: ='Initiative Level - Prov'!T75 -> 13.31768317 | S9: ='Initiative Level - Prov'!U75 -> 8.150683169 | T9: ='Initiative Level - Prov'!V75 -> 5.563602841 | U9: ='Initiative Level - Prov'!W75 -> 5.563602841 | V9: ='Initiative Level - Prov'!X75 -> 5.563602841 | W9: ='Initiative Level - Prov'!Y75 -> 0.156429 | X9: ='Initiative Level - Prov'!Z75 -> 0.156429 | Y9: ='Initiative Level - Prov'!AA75 -> 0 | Z9: ='Initiative Level - Prov'!AB75 -> 0 | AA9: ='Initiative Level - Prov'!AC75 -> 0 | AB9: ='Initiative Level - Prov'!AD75 -> 0 | AC9: ='Initiative Level - Prov'!AE75 -> 0 | AD9: ='Initiative Level - Prov'!AF75 -> 0 | AE9: ='Initiative Level - Prov'!AG75 -> 0 | AF9: ='Initiative Level - Prov'!AH75 -> 0 | AG9: ='Initiative Level - Prov'!AI75 -> 0 | AH9: ='Initiative Level - Prov'!BH75 -> 0 | AI9: 0 | AJ9: 0 | AK9: 0 | AL9: 0 | AM9: 0 | AN9: 0 | AO9: 0 | AP9: 0 | AQ9: 0 | AR9: 0 | AS9: 0 | AT9: 0 | AU9: 0 | AV9: 0 | AW9: 0
A10: =A9+1 -> 2 | B10: 2007 Programs | C10: Final | E10: ='Initiative Level - Prov'!G77 -> 0 | F10: ='Initiative Level - Prov'!H77 -> 562.0233621 | G10: ='Initiative Level - Prov'!I77 -> 185.9718416 | H10: ='Initiative Level - Prov'!J77 -> 178.9590074 | I10: ='Initiative Level - Prov'!K77 -> 178.9590074 | J10: ='Initiative Level - Prov'!L77 -> 177.8289458 | K10: ='Initiative Level - Prov'!M77 -> 43.99659429 | L10: ='Initiative Level - Prov'!N77 -> 43.99659429 | M10: ='Initiative Level - Prov'!O77 -> 43.99659429 | N10: ='Initiative Level - Prov'!P77 -> 40.09764642 | O10: ='Initiative Level - Prov'!Q77 -> 38.90892339 | P10: ='Initiative Level - Prov'!R77 -> 36.43646561 | Q10: ='Initiative Level - Prov'!S77 -> 36.43646561 | R10: ='Initiative Level - Prov'!T77 -> 23.11422461 | S10: ='Initiative Level - Prov'!U77 -> 23.11422461 | T10: ='Initiative Level - Prov'!V77 -> 16.3493667 | U10: ='Initiative Level - Prov'!W77 -> 5.403617799 | V10: ='Initiative Level - Prov'!X77 -> 5.375192479 | W10: ='Initiative Level - Prov'!Y77 -> 5.375192479 | X10: ='Initiative Level - Prov'!Z77 -> 2.863516667 | Y10: ='Initiative Level - Prov'!AA77 -> 2.36055 | Z10: ='Initiative Level - Prov'!AB77 -> 0 | AA10: ='Initiative Level - Prov'!AC77 -> 0 | AB10: ='Initiative Level - Prov'!AD77 -> 0 | AC10: ='Initiative Level - Prov'!AE77 -> 0 | AD10: ='Initiative Level - Prov'!AF77 -> 0 | AE10: ='Initiative Level - Prov'!AG77 -> 0 | AF10: ='Initiative Level - Prov'!AH77 -> 0 | AG10: ='Initiative Level - Prov'!AI77 -> 0 | AH10: ='Initiative Level - Prov'!BH77 -> 0 | AI10: 0 | AJ10: 0 | AK10: 0 | AL10: 0 | AM10: 0 | AN10: 0 | AO10: 0 | AP10: 0 | AQ10: 0 | AR10: 0 | AS10: 0 | AT10: 0 | AU10: 0 | AV10: 0 | AW10: 0
A11: =A10+1 -> 3 | B11: 2008 Programs | C11: Final | E11: ='Initiative Level - Prov'!G79 -> 0 | F11: ='Initiative Level - Prov'!H79 -> 0 | G11: ='Initiative Level - Prov'!I79 -> 701.7452154 | H11: ='Initiative Level - Prov'!J79 -> 98.64530161 | I11: ='Initiative Level - Prov'!K79 -> 98.53857153 | J11: ='Initiative Level - Prov'!L79 -> 98.53857153 | K11: ='Initiative Level - Prov'!M79 -> 97.86166548 | L11: ='Initiative Level - Prov'!N79 -> 97.86163452 | M11: ='Initiative Level - Prov'!O79 -> 95.86354324 | N11: ='Initiative Level - Prov'!P79 -> 91.82279124 | O11: ='Initiative Level - Prov'!Q79 -> 87.69079388 | P11: ='Initiative Level - Prov'!R79 -> 80.95553669 | Q11: ='Initiative Level - Prov'!S79 -> 80.61032965 | R11: ='Initiative Level - Prov'!T79 -> 80.61032965 | S11: ='Initiative Level - Prov'!U79 -> 79.49797795 | T11: ='Initiative Level - Prov'!V79 -> 45.37920451 | U11: ='Initiative Level - Prov'!W79 -> 45.01436148 | V11: ='Initiative Level - Prov'!X79 -> 41.2145362 | W11: ='Initiative Level - Prov'!Y79 -> 26.40512018 | X11: ='Initiative Level - Prov'!Z79 -> 26.40512018 | Y11: ='Initiative Level - Prov'!AA79 -> 14.38768 | Z11: ='Initiative Level - Prov'!AB79 -> 14.38768 | AA11: ='Initiative Level - Prov'!AC79 -> 0 | AB11: ='Initiative Level - Prov'!AD79 -> 0 | AC11: ='Initiative Level - Prov'!AE79 -> 0 | AD11: ='Initiative Level - Prov'!AF79 -> 0 | AE11: ='Initiative Level - Prov'!AG79 -> 0 | AF11: ='Initiative Level - Prov'!AH79 -> 0 | AG11: ='Initiative Level - Prov'!AI79 -> 0 | AH11: ='Initiative Level - Prov'!BH79 -> 0 | AI11: 0 | AJ11: 0 | AK11: 0 | AL11: 0 | AM11: 0 | AN11: 0 | AO11: 0 | AP11: 0 | AQ11: 0 | AR11: 0 | AS11: 0 | AT11: 0 | AU11: 0 | AV11: 0 | AW11: 0
A12: =A11+1 -> 4 | B12: 2009 Programs | C12: Final | E12: ='Initiative Level - Prov'!G81 -> 0 | F12: ='Initiative Level - Prov'!H81 -> 0 | G12: ='Initiative Level - Prov'!I81 -> 0 | H12: ='Initiative Level - Prov'!J81 -> 609.8922327 | I12: ='Initiative Level - Prov'!K81 -> 116.0067077 | J12: ='Initiative Level - Prov'!L81 -> 116.0067077 | K12: ='Initiative Level - Prov'!M81 -> 115.7645286 | L12: ='Initiative Level - Prov'!N81 -> 114.3346057 | M12: ='Initiative Level - Prov'!O81 -> 110.8356706 | N12: ='Initiative Level - Prov'!P81 -> 110.47286 | O12: ='Initiative Level - Prov'!Q81 -> 109.89886 | P12: ='Initiative Level - Prov'!R81 -> 106.9269271 | Q12: ='Initiative Level - Prov'!S81 -> 61.06692713 | R12: ='Initiative Level - Prov'!T81 -> 60.38508462 | S12: ='Initiative Level - Prov'!U81 -> 57.67778702 | T12: ='Initiative Level - Prov'!V81 -> 53.33972166 | U12: ='Initiative Level - Prov'!W81 -> 27.3239588 | V12: ='Initiative Level - Prov'!X81 -> 27.25025184 | W12: ='Initiative Level - Prov'!Y81 -> 25.54966578 | X12: ='Initiative Level - Prov'!Z81 -> 25.40584641 | Y12: ='Initiative Level - Prov'!AA81 -> 25.40584641 | Z12: ='Initiative Level - Prov'!AB81 -> 20.57354861 | AA12: ='Initiative Level - Prov'!AC81 -> 7.278304304 | AB12: ='Initiative Level - Prov'!AD81 -> 0.4176 | AC12: ='Initiative Level - Prov'!AE81 -> 0 | AD12: ='Initiative Level - Prov'!AF81 -> 0 | AE12: ='Initiative Level - Prov'!AG81 -> 0 | AF12: ='Initiative Level - Prov'!AH81 -> 0 | AG12: ='Initiative Level - Prov'!AI81 -> 0 | AH12: ='Initiative Level - Prov'!BH81 -> 0 | AI12: 0 | AJ12: 0 | AK12: 0 | AL12: 0 | AM12: 0 | AN12: 0 | AO12: 0 | AP12: 0 | AQ12: 0 | AR12: 0 | AS12: 0 | AT12: 0 | AU12: 0 | AV12: 0 | AW12: 0
A13: =A12+1 -> 5 | B13: 2010 Programs | C13: Final | E13: ='Initiative Level - Prov'!G83 -> 0 | F13: ='Initiative Level - Prov'!H83 -> 0 | G13: ='Initiative Level - Prov'!I83 -> 0 | H13: ='Initiative Level - Prov'!J83 -> 0 | I13: ='Initiative Level - Prov'!K83 -> 546.3607233 | J13: ='Initiative Level - Prov'!L83 -> 146.3741359 | K13: ='Initiative Level - Prov'!M83 -> 146.3353544 | L13: ='Initiative Level - Prov'!N83 -> 146.1842065 | M13: ='Initiative Level - Prov'!O83 -> 144.4964913 | N13: ='Initiative Level - Prov'!P83 -> 140.3017929 | O13: ='Initiative Level - Prov'!Q83 -> 131.739116 | P13: ='Initiative Level - Prov'!R83 -> 131.739116 | Q13: ='Initiative Level - Prov'!S83 -> 88.33405886 | R13: ='Initiative Level - Prov'!T83 -> 85.66161094 | S13: ='Initiative Level - Prov'!U83 -> 55.15733952 | T13: ='Initiative Level - Prov'!V83 -> 55.15733952 | U13: ='Initiative Level - Prov'!W83 -> 55.11178914 | V13: ='Initiative Level - Prov'!X83 -> 33.71419914 | W13: ='Initiative Level - Prov'!Y83 -> 33.71419914 | X13: ='Initiative Level - Prov'!Z83 -> 32.84062555 | Y13: ='Initiative Level - Prov'!AA83 -> 32.76207293 | Z13: ='Initiative Level - Prov'!AB83 -> 32.76207293 | AA13: ='Initiative Level - Prov'!AC83 -> 28.44096086 | AB13: ='Initiative Level - Prov'!AD83 -> 12.91046709 | AC13: ='Initiative Level - Prov'!AE83 -> 0 | AD13: ='Initiative Level - Prov'!AF83 -> 0 | AE13: ='Initiative Level - Prov'!AG83 -> 0 | AF13: ='Initiative Level - Prov'!AH83 -> 0 | AG13: ='Initiative Level - Prov'!AI83 -> 0 | AH13: ='Initiative Level - Prov'!AJ83 -> 0 | AI13: ='Initiative Level - Prov'!AK83 -> 0 | AJ13: ='Initiative Level - Prov'!AL83 -> 0 | AK13: ='Initiative Level - Prov'!AM83 -> 0 | AL13: ='Initiative Level - Prov'!AN83 -> 0 | AM13: ='Initiative Level - Prov'!AO83 -> 0 | AN13: ='Initiative Level - Prov'!AP83 -> 0 | AO13: ='Initiative Level - Prov'!AQ83 -> 0 | AP13: ='Initiative Level - Prov'!AR83 -> 0 | AQ13: ='Initiative Level - Prov'!AS83 -> 0 | AR13: ='Initiative Level - Prov'!AT83 -> 0 | AS13: ='Initiative Level - Prov'!AU83 -> 0 | AT13: ='Initiative Level - Prov'!AV83 -> 0 | AU13: ='Initiative Level - Prov'!AW83 -> 0 | AV13: ='Initiative Level - Prov'!AX83 -> 0 | AW13: ='Initiative Level - Prov'!AY83 -> 0
A14: Total | E14: =SUM(E9:E13) -> 296.8959308 | F14: =SUM(F9:F13) -> 580.3192929 | G14: 906.0129878 | H14: 905.7924724 | I14: 958.1609407 | J14: 557.0442917 | K14: 420.985826 | L14: 419.4047242 | M14: 408.5099826 | N14: 396.0127738 | O14: 381.5553764 | P14: 369.3757286 | Q14: 279.7654644 | R14: 263.088933 | S14: 223.5980123 | T14: 175.7892352 | U14: 138.4173301 | V14: 113.1177825 | W14: 91.20060658 | X14: 87.67153781 | Y14: 74.91614934 | Z14: 67.72330154 | AA14: 35.71926516 | AB14: 13.32806709 | AC14: 0 | AD14: 0 | AE14: 0 | AF14: 0 | AG14: 0 | AH14: 0 | AI14: 0 | AJ14: 0 | AK14: 0 | AL14: 0 | AM14: 0 | AN14: 0 | AO14: 0 | AP14: 0 | AQ14: 0 | AR14: 0 | AS14: 0 | AT14: 0 | AU14: 0 | AV14: 0 | AW14: 0
A16: Net Energy Savings (MWh)
A17: # | B17: Program Year | C17: Results Status | E17: 2006 | F17: =E17+1 -> 2007 | G17: =F17+1 -> 2008 | H17: 2009 | I17: 2010 | J17: 2011 | K17: 2012 | L17: 2013 | M17: 2014 | N17: 2015 | O17: 2016 | P17: 2017 | Q17: 2018 | R17: 2019 | S17: 2020 | T17: 2021 | U17: 2022 | V17: 2023 | W17: 2024 | X17: 2025 | Y17: 2026 | Z17: 2027 | AA17: 2028 | AB17: 2029 | AC17: 2030 | AD17: 2031 | AE17: 2032 | AF17: 2033 | AG17: 2034 | AH17: 2035 | AI17: 2036 | AJ17: 2037 | AK17: 2038 | AL17: 2039 | AM17: 2040 | AN17: 2041 | AO17: 2042 | AP17: 2043 | AQ17: 2044 | AR17: 2045 | AS17: 2046 | AT17: 2047 | AU17: 2048 | AV17: 2049 | AW17: 2050
A19: 1 | B19: 2006 Programs | C19: Final | E19: ='Initiative Level - Prov'!G157 -> 377801.942 | F19: ='Initiative Level - Prov'!H157 -> 377801.942 | G19: ='Initiative Level - Prov'!I157 -> 377801.942 | H19: ='Initiative Level - Prov'!J157 -> 377801.942 | I19: ='Initiative Level - Prov'!K157 -> 65615.83184 | J19: ='Initiative Level - Prov'!L157 -> 65615.83184 | K19: ='Initiative Level - Prov'!M157 -> 60020.62184 | L19: ='Initiative Level - Prov'!N157 -> 60020.62184 | M19: ='Initiative Level - Prov'!O157 -> 56398.62184 | N19: ='Initiative Level - Prov'!P157 -> 56398.62184 | O19: ='Initiative Level - Prov'!Q157 -> 53284.25734 | P19: ='Initiative Level - Prov'!R157 -> 53284.25734 | Q19: ='Initiative Level - Prov'!S157 -> 53284.25734 | R19: ='Initiative Level - Prov'!T157 -> 53284.25734 | S19: ='Initiative Level - Prov'!U157 -> 48232.25734 | T19: ='Initiative Level - Prov'!V157 -> 41924.21347 | U19: ='Initiative Level - Prov'!W157 -> 41924.21347 | V19: ='Initiative Level - Prov'!X157 -> 41924.21347 | W19: ='Initiative Level - Prov'!Y157 -> 22652.8875 | X19: ='Initiative Level - Prov'!Z157 -> 22652.8875 | Y19: ='Initiative Level - Prov'!AA157 -> 13217.9121 | Z19: ='Initiative Level - Prov'!AB157 -> 13217.9121 | AA19: ='Initiative Level - Prov'!AC157 -> 13217.9121 | AB19: ='Initiative Level - Prov'!AD157 -> 13217.9121 | AC19: ='Initiative Level - Prov'!AE157 -> 13217.9121 | AD19: ='Initiative Level - Prov'!AF157 -> 13217.9121 | AE19: ='Initiative Level - Prov'!AG157 -> 13217.9121 | AF19: ='Initiative Level - Prov'!AH157 -> 13217.9121 | AG19: ='Initiative Level - Prov'!AI157 -> 13217.9121 | AH19: ='Initiative Level - Prov'!AJ157 -> 13217.9121 | AI19: 0 | AJ19: 0 | AK19: 0 | AL19: 0 | AM19: 0 | AN19: 0 | AO19: 0 | AP19: 0 | AQ19: 0 | AR19: 0 | AS19: 0 | AT19: 0 | AU19: 0 | AV19: 0 | AW19: 0
A20: =A19+1 -> 2 | B20: 2007 Programs | C20: Final | E20: ='Initiative Level - Prov'!G159 -> 0 | F20: ='Initiative Level - Prov'!H159 -> 465094.3026 | G20: ='Initiative Level - Prov'!I159 -> 396140.187 | H20: ='Initiative Level - Prov'!J159 -> 387654.5215 | I20: ='Initiative Level - Prov'!K159 -> 387654.5215 | J20: ='Initiative Level - Prov'!L159 -> 367817.8343 | K20: ='Initiative Level - Prov'!M159 -> 191636.3523 | L20: ='Initiative Level - Prov'!N159 -> 191636.3523 | M20: ='Initiative Level - Prov'!O159 -> 191636.3523 | N20: ='Initiative Level - Prov'!P159 -> 72438.92037 | O20: ='Initiative Level - Prov'!Q159 -> 61414.26616 | P20: ='Initiative Level - Prov'!R159 -> 41280.89809 | Q20: ='Initiative Level - Prov'!S159 -> 41280.89809 | R20: ='Initiative Level - Prov'!T159 -> 41280.89809 | S20: ='Initiative Level - Prov'!U159 -> 41280.89809 | T20: ='Initiative Level - Prov'!V159 -> 33745.00345 | U20: ='Initiative Level - Prov'!W159 -> 14450.35296 | V20: ='Initiative Level - Prov'!X159 -> 13826.51871 | W20: ='Initiative Level - Prov'!Y159 -> 13826.51871 | X20: ='Initiative Level - Prov'!Z159 -> 11026.7777 | Y20: ='Initiative Level - Prov'!AA159 -> 8726.7777 | Z20: ='Initiative Level - Prov'!AB159 -> 0 | AA20: ='Initiative Level - Prov'!AC159 -> 0 | AB20: ='Initiative Level - Prov'!AD159 -> 0 | AC20: ='Initiative Level - Prov'!AE159 -> 0 | AD20: ='Initiative Level - Prov'!AF159 -> 0 | AE20: ='Initiative Level - Prov'!AG159 -> 0 | AF20: ='Initiative Level - Prov'!AH159 -> 0 | AG20: ='Initiative Level - Prov'!AI159 -> 0 | AH20: ='Initiative Level - Prov'!AJ159 -> 0 | AI20: 0 | AJ20: 0 | AK20: 0 | AL20: 0 | AM20: 0 | AN20: 0 | AO20: 0 | AP20: 0 | AQ20: 0 | AR20: 0 | AS20: 0 | AT20: 0 | AU20: 0 | AV20: 0 | AW20: 0
A21: =A20+1 -> 3 | B21: 2008 Programs | C21: Final | E21: ='Initiative Level - Prov'!G161 -> 0 | F21: ='Initiative Level - Prov'!H161 -> 0 | G21: ='Initiative Level - Prov'!I161 -> 390367.1031 | H21: ='Initiative Level - Prov'!J161 -> 365822.7813 | I21: ='Initiative Level - Prov'!K161 -> 364758.9618 | J21: ='Initiative Level - Prov'!L161 -> 364758.9618 | K21: ='Initiative Level - Prov'!M161 -> 346821.4905 | L21: ='Initiative Level - Prov'!N161 -> 343024.4327 | M21: ='Initiative Level - Prov'!O161 -> 314681.5029 | N21: ='Initiative Level - Prov'!P161 -> 286731.0806 | O21: ='Initiative Level - Prov'!Q161 -> 239570.2547 | P21: ='Initiative Level - Prov'!R161 -> 199575.2982 | Q21: ='Initiative Level - Prov'!S161 -> 190142.5652 | R21: ='Initiative Level - Prov'!T161 -> 190142.5652 | S21: ='Initiative Level - Prov'!U161 -> 187656.6988 | T21: ='Initiative Level - Prov'!V161 -> 186327.2792 | U21: ='Initiative Level - Prov'!W161 -> 185809.2628 | V21: ='Initiative Level - Prov'!X161 -> 174853.1423 | W21: ='Initiative Level - Prov'!Y161 -> 62616.99874 | X21: ='Initiative Level - Prov'!Z161 -> 62616.99874 | Y21: ='Initiative Level - Prov'!AA161 -> 43961.91443 | Z21: ='Initiative Level - Prov'!AB161 -> 43961.91443 | AA21: ='Initiative Level - Prov'!AC161 -> 0 | AB21: ='Initiative Level - Prov'!AD161 -> 0 | AC21: ='Initiative Level - Prov'!AE161 -> 0 | AD21: ='Initiative Level - Prov'!AF161 -> 0 | AE21: ='Initiative Level - Prov'!AG161 -> 0 | AF21: ='Initiative Level - Prov'!AH161 -> 0 | AG21: ='Initiative Level - Prov'!AI161 -> 0 | AH21: ='Initiative Level - Prov'!AJ161 -> 0 | AI21: 0 | AJ21: 0 | AK21: 0 | AL21: 0 | AM21: 0 | AN21: 0 | AO21: 0 | AP21: 0 | AQ21: 0 | AR21: 0 | AS21: 0 | AT21: 0 | AU21: 0 | AV21: 0 | AW21: 0
A22: =A21+1 -> 4 | B22: 2009 Programs | C22: Final | E22: ='Initiative Level - Prov'!G163 -> 0 | F22: ='Initiative Level - Prov'!H163 -> 0 | G22: ='Initiative Level - Prov'!I163 -> 0 | H22: ='Initiative Level - Prov'!J163 -> 443834.0167 | I22: ='Initiative Level - Prov'!K163 -> 358059.8995 | J22: ='Initiative Level - Prov'!L163 -> 358059.8995 | K22: ='Initiative Level - Prov'!M163 -> 357802.9403 | L22: ='Initiative Level - Prov'!N163 -> 348746.6005 | M22: ='Initiative Level - Prov'!O163 -> 321655.1189 | N22: ='Initiative Level - Prov'!P163 -> 308236.8161 | O22: ='Initiative Level - Prov'!Q163 -> 298404.4975 | P22: ='Initiative Level - Prov'!R163 -> 192801.4376 | Q22: ='Initiative Level - Prov'!S163 -> 92561.43756 | R22: ='Initiative Level - Prov'!T163 -> 76044.56005 | S22: ='Initiative Level - Prov'!U163 -> 64618.02562 | T22: ='Initiative Level - Prov'!V163 -> 54425.52872 | U22: ='Initiative Level - Prov'!W163 -> 54278.27305 | V22: ='Initiative Level - Prov'!X163 -> 53563.98297 | W22: ='Initiative Level - Prov'!Y163 -> 47642.46434 | X22: ='Initiative Level - Prov'!Z163 -> 43967.94024 | Y22: ='Initiative Level - Prov'!AA163 -> 43237.77627 | Z22: ='Initiative Level - Prov'!AB163 -> 38820.62317 | AA22: ='Initiative Level - Prov'!AC163 -> 16098.83749 | AB22: ='Initiative Level - Prov'!AD163 -> 4.2 | AC22: ='Initiative Level - Prov'!AE163 -> 0 | AD22: ='Initiative Level - Prov'!AF163 -> 0 | AE22: ='Initiative Level - Prov'!AG163 -> 0 | AF22: ='Initiative Level - Prov'!AH163 -> 0 | AG22: ='Initiative Level - Prov'!AI163 -> 0 | AH22: ='Initiative Level - Prov'!AJ163 -> 0 | AI22: 0 | AJ22: 0 | AK22: 0 | AL22: 0 | AM22: 0 | AN22: 0 | AO22: 0 | AP22: 0 | AQ22: 0 | AR22: 0 | AS22: 0 | AT22: 0 | AU22: 0 | AV22: 0 | AW22: 0
A23: =A22+1 -> 5 | B23: 2010 Programs | C23: Final | E23: ='Initiative Level - Prov'!G165 -> 0 | F23: ='Initiative Level - Prov'!H165 -> 0 | G23: ='Initiative Level - Prov'!I165 -> 0 | H23: ='Initiative Level - Prov'!J165 -> 0 | I23: ='Initiative Level - Prov'!K165 -> 674922.8958 | J23: ='Initiative Level - Prov'!L165 -> 528580.6632 | K23: ='Initiative Level - Prov'!M165 -> 528046.4532 | L23: ='Initiative Level - Prov'!N165 -> 527897.1326 | M23: ='Initiative Level - Prov'!O165 -> 518457.448 | N23: ='Initiative Level - Prov'!P165 -> 461952.1657 | O23: ='Initiative Level - Prov'!Q165 -> 433467.3474 | P23: ='Initiative Level - Prov'!R165 -> 386944.0464 | Q23: ='Initiative Level - Prov'!S165 -> 294646.7546 | R23: ='Initiative Level - Prov'!T165 -> 121150.7771 | S23: ='Initiative Level - Prov'!U165 -> 67485.25099 | T23: ='Initiative Level - Prov'!V165 -> 67485.25099 | U23: ='Initiative Level - Prov'!W165 -> 66959.80867 | V23: ='Initiative Level - Prov'!X165 -> 64530.03463 | W23: ='Initiative Level - Prov'!Y165 -> 64530.03463 | X23: ='Initiative Level - Prov'!Z165 -> 62388.22182 | Y23: ='Initiative Level - Prov'!AA165 -> 60178.38654 | Z23: ='Initiative Level - Prov'!AB165 -> 60178.38654 | AA23: ='Initiative Level - Prov'!AC165 -> 56180.72958 | AB23: ='Initiative Level - Prov'!AD165 -> 29488.64799 | AC23: ='Initiative Level - Prov'!AE165 -> 0 | AD23: ='Initiative Level - Prov'!AF165 -> 0 | AE23: ='Initiative Level - Prov'!AG165 -> 0 | AF23: ='Initiative Level - Prov'!AH165 -> 0 | AG23: ='Initiative Level - Prov'!AI165 -> 0 | AH23: ='Initiative Level - Prov'!AJ165 -> 0 | AI23: ='Initiative Level - Prov'!AK165 -> 0 | AJ23: ='Initiative Level - Prov'!AL165 -> 0 | AK23: ='Initiative Level - Prov'!AM165 -> 0 | AL23: ='Initiative Level - Prov'!AN165 -> 0 | AM23: ='Initiative Level - Prov'!AO165 -> 0 | AN23: ='Initiative Level - Prov'!AP165 -> 0 | AO23: ='Initiative Level - Prov'!AQ165 -> 0 | AP23: ='Initiative Level - Prov'!AR165 -> 0 | AQ23: ='Initiative Level - Prov'!AS165 -> 0 | AR23: ='Initiative Level - Prov'!AT165 -> 0 | AS23: ='Initiative Level - Prov'!AU165 -> 0 | AT23: ='Initiative Level - Prov'!AV165 -> 0 | AU23: ='Initiative Level - Prov'!AW165 -> 0 | AV23: ='Initiative Level - Prov'!AX165 -> 0 | AW23: ='Initiative Level - Prov'!AY165 -> 0
A24: Total | E24: =SUM(E19:E23) -> 377801.942 | F24: =SUM(F19:F23) -> 842896.2447 | G24: 1164309.232 | H24: 1575113.261 | I24: 1851012.11 | J24: 1684833.191 | K24: 1484327.858 | L24: 1471325.14 | M24: 1402829.044 | N24: 1185757.605 | O24: 1086140.623 | P24: 873885.9376 | Q24: 671915.9128 | R24: 481903.0578 | S24: 409273.1308 | T24: 383907.2759 | U24: 363421.911 | V24: 348697.8921 | W24: 211268.9039 | X24: 202652.826 | Y24: 169322.767 | Z24: 156178.8362 | AA24: 85497.47917 | AB24: 42710.76009 | AC24: 13217.9121 | AD24: 13217.9121 | AE24: 13217.9121 | AF24: 13217.9121 | AG24: 13217.9121 | AH24: 13217.9121 | AI24: 0 | AJ24: 0 | AK24: 0 | AL24: 0 | AM24: 0 | AN24: 0 | AO24: 0 | AP24: 0 | AQ24: 0 | AR24: 0 | AS24: 0 | AT24: 0 | AU24: 0 | AV24: 0 | AW24: 0
A26: Gross Summer Peak Demand Savings (MW)
A27: # | B27: Program Year | C27: Results Status | E27: 2006 | F27: =E27+1 -> 2007 | G27: =F27+1 -> 2008 | H27: 2009 | I27: 2010 | J27: 2011 | K27: 2012 | L27: 2013 | M27: 2014 | N27: 2015 | O27: 2016 | P27: 2017 | Q27: 2018 | R27: 2019 | S27: 2020 | T27: 2021 | U27: 2022 | V27: 2023 | W27: 2024 | X27: 2025 | Y27: 2026 | Z27: 2027 | AA27: 2028 | AB27: 2029 | AC27: 2030 | AD27: 2031 | AE27: 2032 | AF27: 2033 | AG27: 2034 | AH27: 2035 | AI27: 2036 | AJ27: 2037 | AK27: 2038 | AL27: 2039 | AM27: 2040 | AN27: 2041 | AO27: 2042 | AP27: 2043 | AQ27: 2044 | AR27: 2045 | AS27: 2046 | AT27: 2047 | AU27: 2048 | AV27: 2049 | AW27: 2050
A29: 1 | B29: 2006 Programs | C29: Final | E29: ='Initiative Level - Prov'!G239 -> 300.2703463 | F29: ='Initiative Level - Prov'!H239 -> 21.6703463 | G29: ='Initiative Level - Prov'!I239 -> 21.6703463 | H29: ='Initiative Level - Prov'!J239 -> 21.6703463 | I29: ='Initiative Level - Prov'!K239 -> 21.6703463 | J29: ='Initiative Level - Prov'!L239 -> 21.6703463 | K29: ='Initiative Level - Prov'!M239 -> 20.2611823 | L29: ='Initiative Level - Prov'!N239 -> 20.2611823 | M29: ='Initiative Level - Prov'!O239 -> 16.13896007 | N29: ='Initiative Level - Prov'!P239 -> 16.13896007 | O29: ='Initiative Level - Prov'!Q239 -> 16.13896007 | P29: ='Initiative Level - Prov'!R239 -> 16.13896007 | Q29: ='Initiative Level - Prov'!S239 -> 16.13896007 | R29: ='Initiative Level - Prov'!T239 -> 16.13896007 | S29: ='Initiative Level - Prov'!U239 -> 10.39784896 | T29: ='Initiative Level - Prov'!V239 -> 6.362777789 | U29: ='Initiative Level - Prov'!W239 -> 6.362777789 | V29: ='Initiative Level - Prov'!X239 -> 6.362777789 | W29: ='Initiative Level - Prov'!Y239 -> 0.17381 | X29: ='Initiative Level - Prov'!Z239 -> 0.17381 | Y29: ='Initiative Level - Prov'!AA239 -> 0 | Z29: ='Initiative Level - Prov'!AB239 -> 0 | AA29: ='Initiative Level - Prov'!AC239 -> 0 | AB29: ='Initiative Level - Prov'!AD239 -> 0 | AC29: ='Initiative Level - Prov'!AE239 -> 0 | AD29: ='Initiative Level - Prov'!AF239 -> 0 | AE29: ='Initiative Level - Prov'!AG239 -> 0 | AF29: ='Initiative Level - Prov'!AH239 -> 0 | AG29: ='Initiative Level - Prov'!AI239 -> 0 | AH29: ='Initiative Level - Prov'!AJ239 -> 0 | AI29: 0 | AJ29: 0 | AK29: 0 | AL29: 0 | AM29: 0 | AN29: 0 | AO29: 0 | AP29: 0 | AQ29: 0 | AR29: 0 | AS29: 0 | AT29: 0 | AU29: 0 | AV29: 0 | AW29: 0
A30: =A29+1 -> 2 | B30: 2007 Programs | C30: Final | E30: ='Initiative Level - Prov'!G241 -> 0 | F30: ='Initiative Level - Prov'!H241 -> 931.6103548 | G30: ='Initiative Level - Prov'!I241 -> 321.7803541 | H30: ='Initiative Level - Prov'!J241 -> 263.3400691 | I30: ='Initiative Level - Prov'!K241 -> 263.3400691 | J30: ='Initiative Level - Prov'!L241 -> 261.9668417 | K30: ='Initiative Level - Prov'!M241 -> 107.3157078 | L30: ='Initiative Level - Prov'!N241 -> 107.3157078 | M30: ='Initiative Level - Prov'!O241 -> 107.3157078 | N30: ='Initiative Level - Prov'!P241 -> 101.5524925 | O30: ='Initiative Level - Prov'!Q241 -> 98.54137844 | P30: ='Initiative Level - Prov'!R241 -> 95.21272904 | Q30: ='Initiative Level - Prov'!S241 -> 95.21272904 | R30: ='Initiative Level - Prov'!T241 -> 80.41023904 | S30: ='Initiative Level - Prov'!U241 -> 80.41023904 | T30: ='Initiative Level - Prov'!V241 -> 26.32156739 | U30: ='Initiative Level - Prov'!W241 -> 7.29872722 | V30: ='Initiative Level - Prov'!X241 -> 7.24704482 | W30: ='Initiative Level - Prov'!Y241 -> 7.24704482 | X30: ='Initiative Level - Prov'!Z241 -> 2.863516667 | Y30: ='Initiative Level - Prov'!AA241 -> 2.36055 | Z30: ='Initiative Level - Prov'!AB241 -> 0 | AA30: ='Initiative Level - Prov'!AC241 -> 0 | AB30: ='Initiative Level - Prov'!AD241 -> 0 | AC30: ='Initiative Level - Prov'!AE241 -> 0 | AD30: ='Initiative Level - Prov'!AF241 -> 0 | AE30: ='Initiative Level - Prov'!AG241 -> 0 | AF30: ='Initiative Level - Prov'!AH241 -> 0 | AG30: ='Initiative Level - Prov'!AI241 -> 0 | AH30: ='Initiative Level - Prov'!AJ241 -> 0 | AI30: 0 | AJ30: 0 | AK30: 0 | AL30: 0 | AM30: 0 | AN30: 0 | AO30: 0 | AP30: 0 | AQ30: 0 | AR30: 0 | AS30: 0 | AT30: 0 | AU30: 0 | AV30: 0 | AW30: 0
A31: =A30+1 -> 3 | B31: 2008 Programs | C31: Final | E31: ='Initiative Level - Prov'!G243 -> 0 | F31: ='Initiative Level - Prov'!H243 -> 0 | G31: ='Initiative Level - Prov'!I243 -> 749.1161594 | H31: ='Initiative Level - Prov'!J243 -> 144.3132903 | I31: ='Initiative Level - Prov'!K243 -> 144.1837221 | J31: ='Initiative Level - Prov'!L243 -> 144.1837221 | K31: ='Initiative Level - Prov'!M243 -> 142.4076435 | L31: ='Initiative Level - Prov'!N243 -> 142.4076102 | M31: ='Initiative Level - Prov'!O243 -> 138.4760091 | N31: ='Initiative Level - Prov'!P243 -> 131.2033519 | O31: ='Initiative Level - Prov'!Q243 -> 124.3781879 | P31: ='Initiative Level - Prov'!R243 -> 111.3740796 | Q31: ='Initiative Level - Prov'!S243 -> 110.602704 | R31: ='Initiative Level - Prov'!T243 -> 110.602704 | S31: ='Initiative Level - Prov'!U243 -> 108.1111914 | T31: ='Initiative Level - Prov'!V243 -> 70.18968238 | U31: ='Initiative Level - Prov'!W243 -> 69.67194811 | V31: ='Initiative Level - Prov'!X243 -> 63.44336869 | W31: ='Initiative Level - Prov'!Y243 -> 36.96288141 | X31: ='Initiative Level - Prov'!Z243 -> 36.96288141 | Y31: ='Initiative Level - Prov'!AA243 -> 16.08366943 | Z31: ='Initiative Level - Prov'!AB243 -> 16.08366943 | AA31: ='Initiative Level - Prov'!AC243 -> 0 | AB31: ='Initiative Level - Prov'!AD243 -> 0 | AC31: ='Initiative Level - Prov'!AE243 -> 0 | AD31: ='Initiative Level - Prov'!AF243 -> 0 | AE31: ='Initiative Level - Prov'!AG243 -> 0 | AF31: ='Initiative Level - Prov'!AH243 -> 0 | AG31: ='Initiative Level - Prov'!AI243 -> 0 | AH31: ='Initiative Level - Prov'!AJ243 -> 0 | AI31: 0 | AJ31: 0 | AK31: 0 | AL31: 0 | AM31: 0 | AN31: 0 | AO31: 0 | AP31: 0 | AQ31: 0 | AR31: 0 | AS31: 0 | AT31: 0 | AU31: 0 | AV31: 0 | AW31: 0
A32: =A31+1 -> 4 | B32: 2009 Programs | C32: Final | E32: ='Initiative Level - Prov'!G245 -> 0 | F32: ='Initiative Level - Prov'!H245 -> 0 | G32: ='Initiative Level - Prov'!I245 -> 0 | H32: ='Initiative Level - Prov'!J245 -> 663.3351568 | I32: ='Initiative Level - Prov'!K245 -> 168.8689325 | J32: ='Initiative Level - Prov'!L245 -> 168.8689325 | K32: ='Initiative Level - Prov'!M245 -> 168.3483608 | L32: ='Initiative Level - Prov'!N245 -> 165.4011641 | M32: ='Initiative Level - Prov'!O245 -> 158.9535131 | N32: ='Initiative Level - Prov'!P245 -> 158.1867344 | O32: ='Initiative Level - Prov'!Q245 -> 157.4867344 | P32: ='Initiative Level - Prov'!R245 -> 151.9661682 | Q32: ='Initiative Level - Prov'!S245 -> 103.2187998 | R32: ='Initiative Level - Prov'!T245 -> 101.6831182 | S32: ='Initiative Level - Prov'!U245 -> 97.58056169 | T32: ='Initiative Level - Prov'!V245 -> 88.5393359 | U32: ='Initiative Level - Prov'!W245 -> 59.66626605 | V32: ='Initiative Level - Prov'!X245 -> 59.37281435 | W32: ='Initiative Level - Prov'!Y245 -> 53.74140478 | X32: ='Initiative Level - Prov'!Z245 -> 53.4550583 | Y32: ='Initiative Level - Prov'!AA245 -> 53.4550583 | Z32: ='Initiative Level - Prov'!AB245 -> 44.95861262 | AA32: ='Initiative Level - Prov'!AC245 -> 11.47582745 | AB32: ='Initiative Level - Prov'!AD245 -> 0.696 | AC32: ='Initiative Level - Prov'!AE245 -> 0 | AD32: ='Initiative Level - Prov'!AF245 -> 0 | AE32: ='Initiative Level - Prov'!AG245 -> 0 | AF32: ='Initiative Level - Prov'!AH245 -> 0 | AG32: ='Initiative Level - Prov'!AI245 -> 0 | AH32: ='Initiative Level - Prov'!AJ245 -> 0 | AI32: 0 | AJ32: 0 | AK32: 0 | AL32: 0 | AM32: 0 | AN32: 0 | AO32: 0 | AP32: 0 | AQ32: 0 | AR32: 0 | AS32: 0 | AT32: 0 | AU32: 0 | AV32: 0 | AW32: 0
A33: =A32+1 -> 5 | B33: 2010 Programs | C33: Final | E33: ='Initiative Level - Prov'!G247 -> 0 | F33: ='Initiative Level - Prov'!H247 -> 0 | G33: ='Initiative Level - Prov'!I247 -> 0 | H33: ='Initiative Level - Prov'!J247 -> 0 | I33: ='Initiative Level - Prov'!K247 -> 627.6867193 | J33: ='Initiative Level - Prov'!L247 -> 227.7767193 | K33: ='Initiative Level - Prov'!M247 -> 227.7747644 | L33: ='Initiative Level - Prov'!N247 -> 227.3549092 | M33: ='Initiative Level - Prov'!O247 -> 223.7390939 | N33: ='Initiative Level - Prov'!P247 -> 215.9142823 | O33: ='Initiative Level - Prov'!Q247 -> 194.9062144 | P33: ='Initiative Level - Prov'!R247 -> 194.9062144 | Q33: ='Initiative Level - Prov'!S247 -> 150.3799518 | R33: ='Initiative Level - Prov'!T247 -> 146.1453405 | S33: ='Initiative Level - Prov'!U247 -> 89.68850779 | T33: ='Initiative Level - Prov'!V247 -> 89.68850779 | U33: ='Initiative Level - Prov'!W247 -> 89.57406529 | V33: ='Initiative Level - Prov'!X247 -> 65.79896529 | W33: ='Initiative Level - Prov'!Y247 -> 65.79896529 | X33: ='Initiative Level - Prov'!Z247 -> 63.71834946 | Y33: ='Initiative Level - Prov'!AA247 -> 63.54485837 | Z33: ='Initiative Level - Prov'!AB247 -> 63.54485837 | AA33: ='Initiative Level - Prov'!AC247 -> 56.29807631 | AB33: ='Initiative Level - Prov'!AD247 -> 18.44333869 | AC33: ='Initiative Level - Prov'!AE247 -> 0 | AD33: ='Initiative Level - Prov'!AF247 -> 0 | AE33: ='Initiative Level - Prov'!AG247 -> 0 | AF33: ='Initiative Level - Prov'!AH247 -> 0 | AG33: ='Initiative Level - Prov'!AI247 -> 0 | AH33: ='Initiative Level - Prov'!AJ247 -> 0 | AI33: ='Initiative Level - Prov'!AK247 -> 0 | AJ33: ='Initiative Level - Prov'!AL247 -> 0 | AK33: ='Initiative Level - Prov'!AM247 -> 0 | AL33: ='Initiative Level - Prov'!AN247 -> 0 | AM33: ='Initiative Level - Prov'!AO247 -> 0 | AN33: ='Initiative Level - Prov'!AP247 -> 0 | AO33: ='Initiative Level - Prov'!AQ247 -> 0 | AP33: ='Initiative Level - Prov'!AR247 -> 0 | AQ33: ='Initiative Level - Prov'!AS247 -> 0 | AR33: ='Initiative Level - Prov'!AT247 -> 0 | AS33: ='Initiative Level - Prov'!AU247 -> 0 | AT33: ='Initiative Level - Prov'!AV247 -> 0 | AU33: ='Initiative Level - Prov'!AW247 -> 0 | AV33: ='Initiative Level - Prov'!AX247 -> 0 | AW33: ='Initiative Level - Prov'!AY247 -> 0
A34: Total | E34: =SUM(E29:E33) -> 300.2703463 | F34: =SUM(F29:F33) -> 953.2807011 | G34: 1092.56686 | H34: 1092.658863 | I34: 1225.749789 | J34: 824.4665619 | K34: 666.1076589 | L34: 662.7405736 | M34: 644.623284 | N34: 622.9958211 | O34: 591.4514753 | P34: 569.5981513 | Q34: 475.5531447 | R34: 454.9803619 | S34: 386.1883489 | T34: 281.1018713 | U34: 232.5737845 | V34: 202.2249709 | W34: 163.9241063 | X34: 157.1736158 | Y34: 135.4441361 | Z34: 124.5871404 | AA34: 67.77390375 | AB34: 19.13933869 | AC34: 0 | AD34: 0 | AE34: 0 | AF34: 0 | AG34: 0 | AH34: 0 | AI34: 0 | AJ34: 0 | AK34: 0 | AL34: 0 | AM34: 0 | AN34: 0 | AO34: 0 | AP34: 0 | AQ34: 0 | AR34: 0 | AS34: 0 | AT34: 0 | AU34: 0 | AV34: 0 | AW34: 0
A36: Gross Energy Savings (MWh)
A37: # | B37: Program Year | C37: Results Status | E37: 2006 | F37: =E37+1 -> 2007 | G37: =F37+1 -> 2008 | H37: 2009 | I37: 2010 | J37: 2011 | K37: 2012 | L37: 2013 | M37: 2014 | N37: 2015 | O37: 2016 | P37: 2017 | Q37: 2018 | R37: 2019 | S37: 2020 | T37: 2021 | U37: 2022 | V37: 2023 | W37: 2024 | X37: 2025 | Y37: 2026 | Z37: 2027 | AA37: 2028 | AB37: 2029 | AC37: 2030 | AD37: 2031 | AE37: 2032 | AF37: 2033 | AG37: 2034 | AH37: 2035 | AI37: 2036 | AJ37: 2037 | AK37: 2038 | AL37: 2039 | AM37: 2040 | AN37: 2041 | AO37: 2042 | AP37: 2043 | AQ37: 2044 | AR37: 2045 | AS37: 2046 | AT37: 2047 | AU37: 2048 | AV37: 2049 | AW37: 2050
A39: 1 | B39: 2006 Programs | C39: Final | E39: ='Initiative Level - Prov'!G321 -> 421930.599 | F39: ='Initiative Level - Prov'!H321 -> 421930.599 | G39: ='Initiative Level - Prov'!I321 -> 421930.599 | H39: ='Initiative Level - Prov'!J321 -> 421930.599 | I39: ='Initiative Level - Prov'!K321 -> 75057.1432 | J39: ='Initiative Level - Prov'!L321 -> 75057.1432 | K39: ='Initiative Level - Prov'!M321 -> 68840.2432 | L39: ='Initiative Level - Prov'!N321 -> 68840.2432 | M39: ='Initiative Level - Prov'!O321 -> 64815.79876 | N39: ='Initiative Level - Prov'!P321 -> 64815.79876 | O39: ='Initiative Level - Prov'!Q321 -> 61355.39376 | P39: ='Initiative Level - Prov'!R321 -> 61355.39376 | Q39: ='Initiative Level - Prov'!S321 -> 61355.39376 | R39: ='Initiative Level - Prov'!T321 -> 61355.39376 | S39: ='Initiative Level - Prov'!U321 -> 55742.06042 | T39: ='Initiative Level - Prov'!V321 -> 46747.97995 | U39: ='Initiative Level - Prov'!W321 -> 46747.97995 | V39: ='Initiative Level - Prov'!X321 -> 46747.97995 | W39: ='Initiative Level - Prov'!Y321 -> 25169.875 | X39: ='Initiative Level - Prov'!Z321 -> 25169.875 | Y39: ='Initiative Level - Prov'!AA321 -> 14686.569 | Z39: ='Initiative Level - Prov'!AB321 -> 14686.569 | AA39: ='Initiative Level - Prov'!AC321 -> 14686.569 | AB39: ='Initiative Level - Prov'!AD321 -> 14686.569 | AC39: ='Initiative Level - Prov'!AE321 -> 14686.569 | AD39: ='Initiative Level - Prov'!AF321 -> 14686.569 | AE39: ='Initiative Level - Prov'!AG321 -> 14686.569 | AF39: ='Initiative Level - Prov'!AH321 -> 14686.569 | AG39: ='Initiative Level - Prov'!AI321 -> 14686.569 | AH39: ='Initiative Level - Prov'!AJ321 -> 14686.569 | AI39: 0 | AJ39: 0 | AK39: 0 | AL39: 0 | AM39: 0 | AN39: 0 | AO39: 0 | AP39: 0 | AQ39: 0 | AR39: 0 | AS39: 0 | AT39: 0 | AU39: 0 | AV39: 0 | AW39: 0
A40: =A39+1 -> 2 | B40: 2007 Programs | C40: Final | E40: ='Initiative Level - Prov'!G323 -> 0 | F40: ='Initiative Level - Prov'!H323 -> 1166926.888 | G40: ='Initiative Level - Prov'!I323 -> 602741.847 | H40: ='Initiative Level - Prov'!J323 -> 532027.9678 | I40: ='Initiative Level - Prov'!K323 -> 532027.9678 | J40: ='Initiative Level - Prov'!L323 -> 512139.2823 | K40: ='Initiative Level - Prov'!M323 -> 305710.4637 | L40: ='Initiative Level - Prov'!N323 -> 305710.4637 | M40: ='Initiative Level - Prov'!O323 -> 305710.4637 | N40: ='Initiative Level - Prov'!P323 -> 136704.2352 | O40: ='Initiative Level - Prov'!Q323 -> 108774.6313 | P40: ='Initiative Level - Prov'!R323 -> 82149.35151 | Q40: ='Initiative Level - Prov'!S323 -> 82149.35151 | R40: ='Initiative Level - Prov'!T323 -> 82149.35151 | S40: ='Initiative Level - Prov'!U323 -> 82149.35151 | T40: ='Initiative Level - Prov'!V323 -> 50542.84786 | U40: ='Initiative Level - Prov'!W323 -> 16822.75612 | V40: ='Initiative Level - Prov'!X323 -> 15688.51202 | W40: ='Initiative Level - Prov'!Y323 -> 15688.51202 | X40: ='Initiative Level - Prov'!Z323 -> 11026.7777 | Y40: ='Initiative Level - Prov'!AA323 -> 8726.7777 | Z40: ='Initiative Level - Prov'!AB323 -> 0 | AA40: ='Initiative Level - Prov'!AC323 -> 0 | AB40: ='Initiative Level - Prov'!AD323 -> 0 | AC40: ='Initiative Level - Prov'!AE323 -> 0 | AD40: ='Initiative Level - Prov'!AF323 -> 0 | AE40: ='Initiative Level - Prov'!AG323 -> 0 | AF40: ='Initiative Level - Prov'!AH323 -> 0 | AG40: ='Initiative Level - Prov'!AI323 -> 0 | AH40: ='Initiative Level - Prov'!AJ323 -> 0 | AI40: 0 | AJ40: 0 | AK40: 0 | AL40: 0 | AM40: 0 | AN40: 0 | AO40: 0 | AP40: 0 | AQ40: 0 | AR40: 0 | AS40: 0 | AT40: 0 | AU40: 0 | AV40: 0 | AW40: 0
A41: =A40+1 -> 3 | B41: 2008 Programs | C41: Final | E41: ='Initiative Level - Prov'!G325 -> 0 | F41: ='Initiative Level - Prov'!H325 -> 0 | G41: ='Initiative Level - Prov'!I325 -> 727126.9937 | H41: ='Initiative Level - Prov'!J325 -> 694676.8619 | I41: ='Initiative Level - Prov'!K325 -> 693276.0183 | J41: ='Initiative Level - Prov'!L325 -> 693276.0183 | K41: ='Initiative Level - Prov'!M325 -> 646756.344 | L41: ='Initiative Level - Prov'!N325 -> 640215.7508 | M41: ='Initiative Level - Prov'!O325 -> 582062.7517 | N41: ='Initiative Level - Prov'!P325 -> 521142.2524 | O41: ='Initiative Level - Prov'!Q325 -> 437429.3898 | P41: ='Initiative Level - Prov'!R325 -> 362601.0738 | Q41: ='Initiative Level - Prov'!S325 -> 342235.6577 | R41: ='Initiative Level - Prov'!T325 -> 342235.6577 | S41: ='Initiative Level - Prov'!U325 -> 337029.2583 | T41: ='Initiative Level - Prov'!V325 -> 335436.858 | U41: ='Initiative Level - Prov'!W325 -> 334729.1028 | V41: ='Initiative Level - Prov'!X325 -> 316966.0709 | W41: ='Initiative Level - Prov'!Y325 -> 82625.4642 | X41: ='Initiative Level - Prov'!Z325 -> 82625.4642 | Y41: ='Initiative Level - Prov'!AA325 -> 50128.61384 | Z41: ='Initiative Level - Prov'!AB325 -> 50128.61384 | AA41: ='Initiative Level - Prov'!AC325 -> 0 | AB41: ='Initiative Level - Prov'!AD325 -> 0 | AC41: ='Initiative Level - Prov'!AE325 -> 0 | AD41: ='Initiative Level - Prov'!AF325 -> 0 | AE41: ='Initiative Level - Prov'!AG325 -> 0 | AF41: ='Initiative Level - Prov'!AH325 -> 0 | AG41: ='Initiative Level - Prov'!AI325 -> 0 | AH41: ='Initiative Level - Prov'!AJ325 -> 0 | AI41: 0 | AJ41: 0 | AK41: 0 | AL41: 0 | AM41: 0 | AN41: 0 | AO41: 0 | AP41: 0 | AQ41: 0 | AR41: 0 | AS41: 0 | AT41: 0 | AU41: 0 | AV41: 0 | AW41: 0
A42: =A41+1 -> 4 | B42: 2009 Programs | C42: Final | E42: ='Initiative Level - Prov'!G327 -> 0 | F42: ='Initiative Level - Prov'!H327 -> 0 | G42: ='Initiative Level - Prov'!I327 -> 0 | H42: ='Initiative Level - Prov'!J327 -> 649703.4055 | I42: ='Initiative Level - Prov'!K327 -> 552579.7586 | J42: ='Initiative Level - Prov'!L327 -> 552579.7586 | K42: ='Initiative Level - Prov'!M327 -> 552044.2844 | L42: ='Initiative Level - Prov'!N327 -> 534418.5713 | M42: ='Initiative Level - Prov'!O327 -> 483509.7311 | N42: ='Initiative Level - Prov'!P327 -> 461145.5386 | O42: ='Initiative Level - Prov'!Q327 -> 447593.5716 | P42: ='Initiative Level - Prov'!R327 -> 312405.2091 | Q42: ='Initiative Level - Prov'!S327 -> 206047.3144 | R42: ='Initiative Level - Prov'!T327 -> 172573.5861 | S42: ='Initiative Level - Prov'!U327 -> 150648.8906 | T42: ='Initiative Level - Prov'!V327 -> 131479.1275 | U42: ='Initiative Level - Prov'!W327 -> 131326.6212 | V42: ='Initiative Level - Prov'!X327 -> 128508.324 | W42: ='Initiative Level - Prov'!Y327 -> 106965.702 | X42: ='Initiative Level - Prov'!Z327 -> 99501.00367 | Y42: ='Initiative Level - Prov'!AA327 -> 94369.11424 | Z42: ='Initiative Level - Prov'!AB327 -> 86607.87613 | AA42: ='Initiative Level - Prov'!AC327 -> 29385.25942 | AB42: ='Initiative Level - Prov'!AD327 -> 7 | AC42: ='Initiative Level - Prov'!AE327 -> 0 | AD42: ='Initiative Level - Prov'!AF327 -> 0 | AE42: ='Initiative Level - Prov'!AG327 -> 0 | AF42: ='Initiative Level - Prov'!AH327 -> 0 | AG42: ='Initiative Level - Prov'!AI327 -> 0 | AH42: ='Initiative Level - Prov'!AJ327 -> 0 | AI42: 0 | AJ42: 0 | AK42: 0 | AL42: 0 | AM42: 0 | AN42: 0 | AO42: 0 | AP42: 0 | AQ42: 0 | AR42: 0 | AS42: 0 | AT42: 0 | AU42: 0 | AV42: 0 | AW42: 0
A43: =A42+1 -> 5 | B43: 2010 Programs | C43: Final | E43: ='Initiative Level - Prov'!G329 -> 0 | F43: ='Initiative Level - Prov'!H329 -> 0 | G43: ='Initiative Level - Prov'!I329 -> 0 | H43: ='Initiative Level - Prov'!J329 -> 0 | I43: ='Initiative Level - Prov'!K329 -> 1081956.204 | J43: ='Initiative Level - Prov'!L329 -> 937815.2998 | K43: ='Initiative Level - Prov'!M329 -> 937754.2895 | L43: ='Initiative Level - Prov'!N329 -> 937339.5102 | M43: ='Initiative Level - Prov'!O329 -> 918820.5371 | N43: ='Initiative Level - Prov'!P329 -> 793593.7856 | O43: ='Initiative Level - Prov'!Q329 -> 724422.2197 | P43: ='Initiative Level - Prov'!R329 -> 675196.9672 | Q43: ='Initiative Level - Prov'!S329 -> 579642.7103 | R43: ='Initiative Level - Prov'!T329 -> 259492.8107 | S43: ='Initiative Level - Prov'!U329 -> 127541.3321 | T43: ='Initiative Level - Prov'!V329 -> 127541.3321 | U43: ='Initiative Level - Prov'!W329 -> 126221.191 | V43: ='Initiative Level - Prov'!X329 -> 123521.4421 | W43: ='Initiative Level - Prov'!Y329 -> 123521.4421 | X43: ='Initiative Level - Prov'!Z329 -> 119091.6541 | Y43: ='Initiative Level - Prov'!AA329 -> 113882.1523 | Z43: ='Initiative Level - Prov'!AB329 -> 113882.1523 | AA43: ='Initiative Level - Prov'!AC329 -> 107177.8253 | AB43: ='Initiative Level - Prov'!AD329 -> 42117.32169 | AC43: ='Initiative Level - Prov'!AE329 -> 0 | AD43: ='Initiative Level - Prov'!AF329 -> 0 | AE43: ='Initiative Level - Prov'!AG329 -> 0 | AF43: ='Initiative Level - Prov'!AH329 -> 0 | AG43: ='Initiative Level - Prov'!AI329 -> 0 | AH43: ='Initiative Level - Prov'!AJ329 -> 0 | AI43: ='Initiative Level - Prov'!AK329 -> 0 | AJ43: ='Initiative Level - Prov'!AL329 -> 0 | AK43: ='Initiative Level - Prov'!AM329 -> 0 | AL43: ='Initiative Level - Prov'!AN329 -> 0 | AM43: ='Initiative Level - Prov'!AO329 -> 0 | AN43: ='Initiative Level - Prov'!AP329 -> 0 | AO43: ='Initiative Level - Prov'!AQ329 -> 0 | AP43: ='Initiative Level - Prov'!AR329 -> 0 | AQ43: ='Initiative Level - Prov'!AS329 -> 0 | AR43: ='Initiative Level - Prov'!AT329 -> 0 | AS43: ='Initiative Level - Prov'!AU329 -> 0 | AT43: ='Initiative Level - Prov'!AV329 -> 0 | AU43: ='Initiative Level - Prov'!AW329 -> 0 | AV43: ='Initiative Level - Prov'!AX329 -> 0 | AW43: ='Initiative Level - Prov'!AY329 -> 0
A44: Total | E44: =SUM(E39:E43) -> 421930.599 | F44: =SUM(F39:F43) -> 1588857.487 | G44: 1751799.44 | H44: 2298338.834 | I44: 2934897.092 | J44: 2770867.502 | K44: 2511105.625 | L44: 2486524.539 | M44: 2354919.282 | N44: 1977401.611 | O44: 1779575.206 | P44: 1493707.995 | Q44: 1271430.428 | R44: 917806.7998 | S44: 753110.893 | T44: 691748.1454 | U44: 655847.651 | V44: 631432.3289 | W44: 353970.9953 | X44: 337414.7747 | Y44: 281793.2271 | Z44: 265305.2113 | AA44: 151249.6537 | AB44: 56810.89069 | AC44: 14686.569 | AD44: 14686.569 | AE44: 14686.569 | AF44: 14686.569 | AG44: 14686.569 | AH44: 14686.569 | AI44: 0 | AJ44: 0 | AK44: 0 | AL44: 0 | AM44: 0 | AN44: 0 | AO44: 0 | AP44: 0 | AQ44: 0 | AR44: 0 | AS44: 0 | AT44: 0 | AU44: 0 | AV44: 0 | AW44: 0

Sheet Initiative Level - LDC
A1: OPA Conservation & Demand Management Programs
A2: Initiative Results at End-User Level | G2: 1 | H2: 2 | I2: 3 | J2: 4 | K2: 5 | L2: 6 | M2: 7 | N2: 8 | O2: 9 | P2: 10 | Q2: 11 | R2: 12 | S2: 13 | T2: 14 | U2: 15 | V2: 16 | W2: 17 | X2: 18 | Y2: 19 | Z2: 20 | AA2: 21 | AB2: 22 | AC2: 23 | AD2: 24 | AE2: 25 | AF2: 26 | AG2: 27 | AH2: 28 | AI2: 29 | AJ2: 30
A4: For: | B4: Cambridge and North Dumfries Hydro Inc.
A6: Net Summer Peak Demand Savings (MW)
A7: # | B7: Initiative Name | C7: Program Name | D7: Program Year | E7: Results Status | G7: 2006 | H7: =G7+1 -> 2007 | I7: 2008 | J7: 2009 | K7: 2010 | L7: 2011 | M7: 2012 | N7: 2013 | O7: 2014 | P7: 2015 | Q7: 2016 | R7: 2017 | S7: 2018 | T7: 2019 | U7: 2020 | V7: 2021 | W7: 2022 | X7: 2023 | Y7: 2024 | Z7: 2025 | AA7: 2026 | AB7: 2027 | AC7: 2028 | AD7: 2029 | AE7: 2030 | AF7: 2031 | AG7: 2032 | AH7: 2033 | AI7: 2034 | AJ7: 2035 | AK7: =AJ7+1 -> 2036 | AL7: 2037 | AM7: 2038 | AN7: 2039 | AO7: 2040 | AP7: 2041 | AQ7: 2042 | AR7: 2043 | AS7: 2044 | AT7: 2045 | AU7: 2046 | AV7: 2047 | AW7: 2048 | AX7: 2049 | AY7: 2050
A9: ='Allocation Methodology'!A5 -> 1 | B9: ='Allocation Methodology'!B5 -> Secondary Refrigerator Retirement Pilot | C9: ='Allocation Methodology'!C5 -> Consumer | D9: ='Allocation Methodology'!D5 -> 2006 | E9: ='Allocation Methodology'!E5 -> Final | G9: 0.01226545463 | H9: 0.01226545463 | I9: 0.01226545463 | J9: 0.01226545463 | K9: 0.01226545463 | L9: 0.01226545463 | M9: 0 | N9: 0 | O9: 0 | P9: 0 | Q9: 0 | R9: 0 | S9: 0 | T9: 0 | U9: 0 | V9: 0 | W9: 0 | X9: 0 | Y9: 0 | Z9: 0 | AA9: 0 | AB9: 0 | AC9: 0 | AD9: 0 | AE9: 0 | AF9: 0 | AG9: 0 | AH9: 0 | AI9: 0 | AJ9: 0 | AK9: 0 | AL9: 0 | AM9: 0 | AN9: 0 | AO9: 0 | AP9: 0 | AQ9: 0 | AR9: 0 | AS9: 0 | AT9: 0 | AU9: 0 | AV9: 0 | AW9: 0 | AX9: 0 | AY9: 0
A10: ='Allocation Methodology'!A6 -> 2 | B10: ='Allocation Methodology'!B6 -> Cool & Hot Savings Rebate | C10: ='Allocation Methodology'!C6 -> Consumer | D10: ='Allocation Methodology'!D6 -> 2006 | E10: ='Allocation Methodology'!E6 -> Final | F10: FALSE | G10: 0.1237984644 | H10: 0.1237984644 | I10: 0.1237984644 | J10: 0.1237984644 | K10: 0.1237984644 | L10: 0.1237984644 | M10: 0.1237984644 | N10: 0.1237984644 | O10: 0.08791837551 | P10: 0.08791837551 | Q10: 0.08791837551 | R10: 0.08791837551 | S10: 0.08791837551 | T10: 0.08791837551 | U10: 0.03794737295 | V10: 0.02002976246 | W10: 0.02002976246 | X10: 0.02002976246 | Y10: 0 | Z10: 0 | AA10: 0 | AB10: 0 | AC10: 0 | AD10: 0 | AE10: 0 | AF10: 0 | AG10: 0 | AH10: 0 | AI10: 0 | AJ10: 0 | AK10: 0 | AL10: 0 | AM10: 0 | AN10: 0 | AO10: 0 | AP10: 0 | AQ10: 0 | AR10: 0 | AS10: 0 | AT10: 0 | AU10: 0 | AV10: 0 | AW10: 0 | AX10: 0 | AY10: 0
A11: ='Allocation Methodology'!A7 -> 3 | B11: ='Allocation Methodology'!B7 -> Every Kilowatt Counts | C11: ='Allocation Methodology'!C7 -> Consumer | D11: ='Allocation Methodology'!D7 -> 2006 | E11: ='Allocation Methodology'!E7 -> Final | F11: FALSE | G11: 0.04087937556 | H11: 0.04087937556 | I11: 0.04087937556 | J11: 0.04087937556 | K11: 0.04087937556 | L11: 0.04087937556 | M11: 0.04087937556 | N11: 0.04087937556 | O11: 0.04087937556 | P11: 0.04087937556 | Q11: 0.04087937556 | R11: 0.04087937556 | S11: 0.04087937556 | T11: 0.04087937556 | U11: 0.04087937556 | V11: 0.03377685877 | W11: 0.03377685877 | X11: 0.03377685877 | Y11: 0.001512853486 | Z11: 0.001512853486 | AA11: 0 | AB11: 0 | AC11: 0 | AD11: 0 | AE11: 0 | AF11: 0 | AG11: 0 | AH11: 0 | AI11: 0 | AJ11: 0 | AK11: 0 | AL11: 0 | AM11: 0 | AN11: 0 | AO11: 0 | AP11: 0 | AQ11: 0 | AR11: 0 | AS11: 0 | AT11: 0 | AU11: 0 | AV11: 0 | AW11: 0 | AX11: 0 | AY11: 0
A12: ='Allocation Methodology'!A8 -> 4 | B12: ='Allocation Methodology'!B8 -> Demand Response 1 | C12: ='Allocation Methodology'!C8 -> Business, Industrial | D12: ='Allocation Methodology'!D8 -> 2006 | E12: ='Allocation Methodology'!E8 -> Final | F12: FALSE | G12: 3.996998778 | H12: 0 | I12: 0 | J12: 0 | K12: 0 | L12: 0 | M12: 0 | N12: 0 | O12: 0 | P12: 0 | Q12: 0 | R12: 0 | S12: 0 | T12: 0 | U12: 0 | V12: 0 | W12: 0 | X12: 0 | Y12: 0 | Z12: 0 | AA12: 0 | AB12: 0 | AC12: 0 | AD12: 0 | AE12: 0 | AF12: 0 | AG12: 0 | AH12: 0 | AI12: 0 | AJ12: 0 | AK12: 0 | AL12: 0 | AM12: 0 | AN12: 0 | AO12: 0 | AP12: 0 | AQ12: 0 | AR12: 0 | AS12: 0 | AT12: 0 | AU12: 0 | AV12: 0 | AW12: 0 | AX12: 0 | AY12: 0
A13: ='Allocation Methodology'!A9 -> 5 | B13: ='Allocation Methodology'!B9 -> Loblaw & York Region Demand Response | C13: ='Allocation Methodology'!C9 -> Business, Industrial | D13: ='Allocation Methodology'!D9 -> 2006 | E13: ='Allocation Methodology'!E9 -> Final | F13: FALSE | G13: 0.1956362353 | H13: 0 | I13: 0 | J13: 0 | K13: 0 | L13: 0 | M13: 0 | N13: 0 | O13: 0 | P13: 0 | Q13: 0 | R13: 0 | S13: 0 | T13: 0 | U13: 0 | V13: 0 | W13: 0 | X13: 0 | Y13: 0 | Z13: 0 | AA13: 0 | AB13: 0 | AC13: 0 | AD13: 0 | AE13: 0 | AF13: 0 | AG13: 0 | AH13: 0 | AI13: 0 | AJ13: 0 | AK13: 0 | AL13: 0 | AM13: 0 | AN13: 0 | AO13: 0 | AP13: 0 | AQ13: 0 | AR13: 0 | AS13: 0 | AT13: 0 | AU13: 0 | AV13: 0 | AW13: 0 | AX13: 0 | AY13: 0
A14: ='Allocation Methodology'!A10 -> 6 | B14: ='Allocation Methodology'!B10 -> Great Refrigerator Roundup | C14: ='Allocation Methodology'!C10 -> Consumer | D14: ='Allocation Methodology'!D10 -> 2007 | E14: ='Allocation Methodology'!E10 -> Final | F14: FALSE | G14: 0 | H14: 0.0137509744 | I14: 0.0137509744 | J14: 0.0137509744 | K14: 0.0137509744 | L14: 0.01181467368 | M14: 0.01181467368 | N14: 0.01181467368 | O14: 0.01181467368 | P14: 0.009395275399 | Q14: 0 | R14: 0 | S14: 0 | T14: 0 | U14: 0 | V14: 0 | W14: 0 | X14: 0 | Y14: 0 | Z14: 0 | AA14: 0 | AB14: 0 | AC14: 0 | AD14: 0 | AE14: 0 | AF14: 0 | AG14: 0 | AH14: 0 | AI14: 0 | AJ14: 0 | AK14: 0 | AL14: 0 | AM14: 0 | AN14: 0 | AO14: 0 | AP14: 0 | AQ14: 0 | AR14: 0 | AS14: 0 | AT14: 0 | AU14: 0 | AV14: 0 | AW14: 0 | AX14: 0 | AY14: 0
A15: ='Allocation Methodology'!A11 -> 7 | B15: ='Allocation Methodology'!B11 -> Cool & Hot Savings Rebate | C15: ='Allocation Methodology'!C11 -> Consumer | D15: ='Allocation Methodology'!D11 -> 2007 | E15: ='Allocation Methodology'!E11 -> Final | F15: FALSE | G15: 0 | H15: 0.1399807739 | I15: 0.1399807739 | J15: 0.1399807739 | K15: 0.1399807739 | L15: 0.1399807739 | M15: 0.1291040368 | N15: 0.1291040368 | O15: 0.1291040368 | P15: 0.1291040368 | Q15: 0.1291040368 | R15: 0.1291040368 | S15: 0.1291040368 | T15: 0.1291040368 | U15: 0.1291040368 | V15: 0.1291040368 | W15: 0.02396522929 | X15: 0.02396522929 | Y15: 0.02396522929 | Z15: 0 | AA15: 0 | AB15: 0 | AC15: 0 | AD15: 0 | AE15: 0 | AF15: 0 | AG15: 0 | AH15: 0 | AI15: 0 | AJ15: 0 | AK15: 0 | AL15: 0 | AM15: 0 | AN15: 0 | AO15: 0 | AP15: 0 | AQ15: 0 | AR15: 0 | AS15: 0 | AT15: 0 | AU15: 0 | AV15: 0 | AW15: 0 | AX15: 0 | AY15: 0
A16: ='Allocation Methodology'!A12 -> 8 | B16: ='Allocation Methodology'!B12 -> Every Kilowatt Counts | C16: ='Allocation Methodology'!C12 -> Consumer | D16: ='Allocation Methodology'!D12 -> 2007 | E16: ='Allocation Methodology'!E12 -> Final | F16: FALSE | G16: 0 | H16: 0.04869829333 | I16: 0.04412886554 | J16: 0.04412886554 | K16: 0.04412886554 | L16: 0.04412886554 | M16: 0.04412886554 | N16: 0.04412886554 | O16: 0.04412886554 | P16: 0.01073501278 | Q16: 0.01073501278 | R16: 0.0004335767233 | S16: 0.0004335767233 | T16: 0.0004335767233 | U16: 0.0004335767233 | V16: 0.0004335767233 | W16: 0.0004335767233 | X16: 0.0001605388274 | Y16: 0.0001605388274 | Z16: 0 | AA16: 0 | AB16: 0 | AC16: 0 | AD16: 0 | AE16: 0 | AF16: 0 | AG16: 0 | AH16: 0 | AI16: 0 | AJ16: 0 | AK16: 0 | AL16: 0 | AM16: 0 | AN16: 0 | AO16: 0 | AP16: 0 | AQ16: 0 | AR16: 0 | AS16: 0 | AT16: 0 | AU16: 0 | AV16: 0 | AW16: 0 | AX16: 0 | AY16: 0
A17: ='Allocation Methodology'!A13 -> 9 | B17: ='Allocation Methodology'!B13 -> peaksaver® | C17: ='Allocation Methodology'!C13 -> Consumer, Business | D17: ='Allocation Methodology'!D13 -> 2007 | E17: ='Allocation Methodology'!E13 -> Final | F17: FALSE | G17: 0 | H17: 0.002835 | I17: 0.002835 | J17: 0.002835 | K17: 0.002835 | L17: 0.002835 | M17: 0.002835 | N17: 0.002835 | O17: 0.002835 | P17: 0.002835 | Q17: 0.002835 | R17: 0.002835 | S17: 0.002835 | T17: 0 | U17: 0 | V17: 0 | W17: 0 | X17: 0 | Y17: 0 | Z17: 0 | AA17: 0 | AB17: 0 | AC17: 0 | AD17: 0 | AE17: 0 | AF17: 0 | AG17: 0 | AH17: 0 | AI17: 0 | AJ17: 0 | AK17: 0 | AL17: 0 | AM17: 0 | AN17: 0 | AO17: 0 | AP17: 0 | AQ17: 0 | AR17: 0 | AS17: 0 | AT17: 0 | AU17: 0 | AV17: 0 | AW17: 0 | AX17: 0 | AY17: 0
A18: ='Allocation Methodology'!A14 -> 10 | B18: ='Allocation Methodology'!B14 -> Summer Savings | C18: ='Allocation Methodology'!C14 -> Consumer | D18: ='Allocation Methodology'!D14 -> 2007 | E18: ='Allocation Methodology'!E14 -> Final | F18: FALSE | G18: 0 | H18: 0.3358862247 | I18: 0.1001698491 | J18: 0.04822961733 | K18: 0.04822961733 | L18: 0.04822961733 | M18: 0.04822961733 | N18: 0.04822961733 | O18: 0.04822961733 | P18: 0.04779567748 | Q18: 0.04779567748 | R18: 0.04779567748 | S18: 0.04779567748 | T18: 0.04779567748 | U18: 0.04779567748 | V18: 0 | W18: 0 | X18: 0 | Y18: 0 | Z18: 0 | AA18: 0 | AB18: 0 | AC18: 0 | AD18: 0 | AE18: 0 | AF18: 0 | AG18: 0 | AH18: 0 | AI18: 0 | AJ18: 0 | AK18: 0 | AL18: 0 | AM18: 0 | AN18: 0 | AO18: 0 | AP18: 0 | AQ18: 0 | AR18: 0 | AS18: 0 | AT18: 0 | AU18: 0 | AV18: 0 | AW18: 0 | AX18: 0 | AY18: 0
A19: ='Allocation Methodology'!A15 -> 11 | B19: ='Allocation Methodology'!B15 -> Aboriginal | C19: ='Allocation Methodology'!C15 -> Consumer | D19: ='Allocation Methodology'!D15 -> 2007 | E19: ='Allocation Methodology'!E15 -> Final | F19: FALSE | G19: 0 | H19: 0 | I19: 0 | J19: 0 | K19: 0 | L19: 0 | M19: 0 | N19: 0 | O19: 0 | P19: 0 | Q19: 0 | R19: 0 | S19: 0 | T19: 0 | U19: 0 | V19: 0 | W19: 0 | X19: 0 | Y19: 0 | Z19: 0 | AA19: 0 | AB19: 0 | AC19: 0 | AD19: 0 | AE19: 0 | AF19: 0 | AG19: 0 | AH19: 0 | AI19: 0 | AJ19: 0 | AK19: 0 | AL19: 0 | AM19: 0 | AN19: 0 | AO19: 0 | AP19: 0 | AQ19: 0 | AR19: 0 | AS19: 0 | AT19: 0 | AU19: 0 | AV19: 0 | AW19: 0 | AX19: 0 | AY19: 0
A20: ='Allocation Methodology'!A16 -> 12 | B20: ='Allocation Methodology'!B16 -> Affordable Housing Pilot | C20: ='Allocation Methodology'!C16 -> Consumer Low-Income | D20: ='Allocation Methodology'!D16 -> 2007 | E20: ='Allocation Methodology'!E16 -> Final | F20: FALSE | G20: 0 | H20: 0.0074017 | I20: 0.0074017 | J20: 0.0074017 | K20: 0.0074017 | L20: 0.0074017 | M20: 0.0074017 | N20: 0.0074017 | O20: 0.0074017 | P20: 0.0074017 | Q20: 0.0074017 | R20: 0.0074017 | S20: 0.0074017 | T20: 0.0074017 | U20: 0.0074017 | V20: 0 | W20: 0 | X20: 0 | Y20: 0 | Z20: 0 | AA20: 0 | AB20: 0 | AC20: 0 | AD20: 0 | AE20: 0 | AF20: 0 | AG20: 0 | AH20: 0 | AI20: 0 | AJ20: 0 | AK20: 0 | AL20: 0 | AM20: 0 | AN20: 0 | AO20: 0 | AP20: 0 | AQ20: 0 | AR20: 0 | AS20: 0 | AT20: 0 | AU20: 0 | AV20: 0 | AW20: 0 | AX20: 0 | AY20: 0
A21: ='Allocation Methodology'!A17 -> 13 | B21: ='Allocation Methodology'!B17 -> Social Housing Pilot | C21: ='Allocation Methodology'!C17 -> Consumer Low-Income | D21: ='Allocation Methodology'!D17 -> 2007 | E21: ='Allocation Methodology'!E17 -> Final | F21: FALSE | G21: 0 | H21: 0.01344762537 | I21: 0.01344762537 | J21: 0.01344762537 | K21: 0.01344762537 | L21: 0.01344762537 | M21: 0.01344762537 | N21: 0.01344762537 | O21: 0.01344762537 | P21: 0.01344762537 | Q21: 0.01344762537 | R21: 0 | S21: 0 | T21: 0 | U21: 0 | V21: 0 | W21: 0 | X21: 0 | Y21: 0 | Z21: 0 | AA21: 0 | AB21: 0 | AC21: 0 | AD21: 0 | AE21: 0 | AF21: 0 | AG21: 0 | AH21: 0 | AI21: 0 | AJ21: 0 | AK21: 0 | AL21: 0 | AM21: 0 | AN21: 0 | AO21: 0 | AP21: 0 | AQ21: 0 | AR21: 0 | AS21: 0 | AT21: 0 | AU21: 0 | AV21: 0 | AW21: 0 | AX21: 0 | AY21: 0
A22: ='Allocation Methodology'!A18 -> 14 | B22: ='Allocation Methodology'!B18 -> Energy Efficiency Assistance for Houses Pilot | C22: ='Allocation Methodology'!C18 -> Consumer Low-Income | D22: ='Allocation Methodology'!D18 -> 2007 | E22: ='Allocation Methodology'!E18 -> Final | F22: FALSE | G22: 0 | H22: 0.02172333333 | I22: 0.02172333333 | J22: 0.02172333333 | K22: 0.02172333333 | L22: 0.02172333333 | M22: 0.02172333333 | N22: 0.02172333333 | O22: 0.02172333333 | P22: 0.02172333333 | Q22: 0.02172333333 | R22: 0.02172333333 | S22: 0.02172333333 | T22: 0.02172333333 | U22: 0.02172333333 | V22: 0.02172333333 | W22: 0.02172333333 | X22: 0.02172333333 | Y22: 0.02172333333 | Z22: 0.02172333333 | AA22: 0 | AB22: 0 | AC22: 0 | AD22: 0 | AE22: 0 | AF22: 0 | AG22: 0 | AH22: 0 | AI22: 0 | AJ22: 0 | AK22: 0 | AL22: 0 | AM22: 0 | AN22: 0 | AO22: 0 | AP22: 0 | AQ22: 0 | AR22: 0 | AS22: 0 | AT22: 0 | AU22: 0 | AV22: 0 | AW22: 0 | AX22: 0 | AY22: 0
A23: ='Allocation Methodology'!A19 -> 15 | B23: ='Allocation Methodology'!B19 -> Electricity Retrofit Incentive | C23: ='Allocation Methodology'!C19 -> Business | D23: ='Allocation Methodology'!D19 -> 2007 | E23: ='Allocation Methodology'!E19 -> Final | F23: FALSE | G23: 0 | H23: 0.002637749121 | I23: 0.002637749121 | J23: 0.002637749121 | K23: 0.002637749121 | L23: 0.002637749121 | M23: 0 | N23: 0 | O23: 0 | P23: 0 | Q23: 0 | R23: 0 | S23: 0 | T23: 0 | U23: 0 | V23: 0 | W23: 0 | X23: 0 | Y23: 0 | Z23: 0 | AA23: 0 | AB23: 0 | AC23: 0 | AD23: 0 | AE23: 0 | AF23: 0 | AG23: 0 | AH23: 0 | AI23: 0 | AJ23: 0 | AK23: 0 | AL23: 0 | AM23: 0 | AN23: 0 | AO23: 0 | AP23: 0 | AQ23: 0 | AR23: 0 | AS23: 0 | AT23: 0 | AU23: 0 | AV23: 0 | AW23: 0 | AX23: 0 | AY23: 0
A24: ='Allocation Methodology'!A20 -> 16 | B24: ='Allocation Methodology'!B20 -> Toronto Comprehensive | C24: ='Allocation Methodology'!C20 -> Business | D24: ='Allocation Methodology'!D20 -> 2007 | E24: ='Allocation Methodology'!E20 -> Final | F24: FALSE | G24: 0 | H24: 0 | I24: 0 | J24: 0 | K24: 0 | L24: 0 | M24: 0 | N24: 0 | O24: 0 | P24: 0 | Q24: 0 | R24: 0 | S24: 0 | T24: 0 | U24: 0 | V24: 0 | W24: 0 | X24: 0 | Y24: 0 | Z24: 0 | AA24: 0 | AB24: 0 | AC24: 0 | AD24: 0 | AE24: 0 | AF24: 0 | AG24: 0 | AH24: 0 | AI24: 0 | AJ24: 0 | AK24: 0 | AL24: 0 | AM24: 0 | AN24: 0 | AO24: 0 | AP24: 0 | AQ24: 0 | AR24: 0 | AS24: 0 | AT24: 0 | AU24: 0 | AV24: 0 | AW24: 0 | AX24: 0 | AY24: 0
A25: ='Allocation Methodology'!A21 -> 17 | B25: ='Allocation Methodology'!B21 -> Demand Response 1 | C25: ='Allocation Methodology'!C21 -> Business, Industrial | D25: ='Allocation Methodology'!D21 -> 2007 | E25: ='Allocation Methodology'!E21 -> Final | F25: FALSE | G25: 0 | H25: 4.477514761 | I25: 0 | J25: 0 | K25: 0 | L25: 0 | M25: 0 | N25: 0 | O25: 0 | P25: 0 | Q25: 0 | R25: 0 | S25: 0 | T25: 0 | U25: 0 | V25: 0 | W25: 0 | X25: 0 | Y25: 0 | Z25: 0 | AA25: 0 | AB25: 0 | AC25: 0 | AD25: 0 | AE25: 0 | AF25: 0 | AG25: 0 | AH25: 0 | AI25: 0 | AJ25: 0 | AK25: 0 | AL25: 0 | AM25: 0 | AN25: 0 | AO25: 0 | AP25: 0 | AQ25: 0 | AR25: 0 | AS25: 0 | AT25: 0 | AU25: 0 | AV25: 0 | AW25: 0 | AX25: 0 | AY25: 0
A26: ='Allocation Methodology'!A22 -> 18 | B26: ='Allocation Methodology'!B22 -> Loblaw & York Region Demand Response | C26: ='Allocation Methodology'!C22 -> Business, Industrial | D26: ='Allocation Methodology'!D22 -> 2007 | E26: ='Allocation Methodology'!E22 -> Final | F26: FALSE | G26: 0 | H26: 0.3724795642 | I26: 0 | J26: 0 | K26: 0 | L26: 0 | M26: 0 | N26: 0 | O26: 0 | P26: 0 | Q26: 0 | R26: 0 | S26: 0 | T26: 0 | U26: 0 | V26: 0 | W26: 0 | X26: 0 | Y26: 0 | Z26: 0 | AA26: 0 | AB26: 0 | AC26: 0 | AD26: 0 | AE26: 0 | AF26: 0 | AG26: 0 | AH26: 0 | AI26: 0 | AJ26: 0 | AK26: 0 | AL26: 0 | AM26: 0 | AN26: 0 | AO26: 0 | AP26: 0 | AQ26: 0 | AR26: 0 | AS26: 0 | AT26: 0 | AU26: 0 | AV26: 0 | AW26: 0 | AX26: 0 | AY26: 0
A27: ='Allocation Methodology'!A23 -> 19 | B27: ='Allocation Methodology'!B23 -> Renewable Energy Standard Offer | C27: ='Allocation Methodology'!C23 -> Consumer, Business, Industrial | D27: ='Allocation Methodology'!D23 -> 2007 | E27: ='Allocation Methodology'!E23 -> Final | F27: FALSE | G27: 0 | H27: 0.02342 | I27: 0.02342 | J27: 0.02342 | K27: 0.02342 | L27: 0.02342 | M27: 0.02342 | N27: 0.02342 | O27: 0.02342 | P27: 0.02342 | Q27: 0.02342 | R27: 0.02342 | S27: 0.02342 | T27: 0.02342 | U27: 0.02342 | V27: 0.02342 | W27: 0.02342 | X27: 0.02342 | Y27: 0.02342 | Z27: 0.02342 | AA27: 0.02342 | AB27: 0 | AC27: 0 | AD27: 0 | AE27: 0 | AF27: 0 | AG27: 0 | AH27: 0 | AI27: 0 | AJ27: 0 | AK27: 0 | AL27: 0 | AM27: 0 | AN27: 0 | AO27: 0 | AP27: 0 | AQ27: 0 | AR27: 0 | AS27: 0 | AT27: 0 | AU27: 0 | AV27: 0 | AW27: 0 | AX27: 0 | AY27: 0
A28: ='Allocation Methodology'!A24 -> 20 | B28: ='Allocation Methodology'!B24 -> Great Refrigerator Roundup | C28: ='Allocation Methodology'!C24 -> Consumer | D28: ='Allocation Methodology'!D24 -> 2008 | E28: ='Allocation Methodology'!E24 -> Final | F28: FALSE | G28: 0 | H28: 0 | I28: 0.02508137943 | J28: 0.02508137943 | K28: 0.02508137943 | L28: 0.02508137943 | M28: 0.02457989943 | N28: 0.02457989943 | O28: 0.02457989943 | P28: 0.02457989943 | Q28: 0.01934263037 | R28: 0 | S28: 0 | T28: 0 | U28: 0 | V28: 0 | W28: 0 | X28: 0 | Y28: 0 | Z28: 0 | AA28: 0 | AB28: 0 | AC28: 0 | AD28: 0 | AE28: 0 | AF28: 0 | AG28: 0 | AH28: 0 | AI28: 0 | AJ28: 0 | AK28: 0 | AL28: 0 | AM28: 0 | AN28: 0 | AO28: 0 | AP28: 0 | AQ28: 0 | AR28: 0 | AS28: 0 | AT28: 0 | AU28: 0 | AV28: 0 | AW28: 0 | AX28: 0 | AY28: 0
A29: ='Allocation Methodology'!A25 -> 21 | B29: ='Allocation Methodology'!B25 -> Cool Savings Rebate | C29: ='Allocation Methodology'!C25 -> Consumer | D29: ='Allocation Methodology'!D25 -> 2008 | E29: ='Allocation Methodology'!E25 -> Final | F29: FALSE | G29: 0 | H29: 0 | I29: 0.1402818204 | J29: 0.1402818204 | K29: 0.1402818204 | L29: 0.1402818204 | M29: 0.1402818204 | N29: 0.1402818204 | O29: 0.1402818204 | P29: 0.1402818204 | Q29: 0.1402818204 | R29: 0.1402818204 | S29: 0.1402818204 | T29: 0.1402818204 | U29: 0.1402818204 | V29: 0.1402818204 | W29: 0.1402818204 | X29: 0.1137597694 | Y29: 0.1137597694 | Z29: 0.1137597694 | AA29: 0 | AB29: 0 | AC29: 0 | AD29: 0 | AE29: 0 | AF29: 0 | AG29: 0 | AH29: 0 | AI29: 0 | AJ29: 0 | AK29: 0 | AL29: 0 | AM29: 0 | AN29: 0 | AO29: 0 | AP29: 0 | AQ29: 0 | AR29: 0 | AS29: 0 | AT29: 0 | AU29: 0 | AV29: 0 | AW29: 0 | AX29: 0 | AY29: 0
A30: ='Allocation Methodology'!A26 -> 22 | B30: ='Allocation Methodology'!B26 -> Every Kilowatt Counts Power Savings Event | C30: ='Allocation Methodology'!C26 -> Consumer | D30: ='Allocation Methodology'!D26 -> 2008 | E30: ='Allocation Methodology'!E26 -> Final | F30: FALSE | G30: 0 | H30: 0 | I30: 0.06130538606 | J30: 0.05858139567 | K30: 0.05858139567 | L30: 0.05858139567 | M30: 0.05324650149 | N30: 0.05324650149 | O30: 0.04095847994 | P30: 0.03680815287 | Q30: 0.02697639021 | R30: 0.02176182089 | S30: 0.01918183189 | T30: 0.01918183189 | U30: 0.009390427967 | V30: 0.009390427967 | W30: 0.009390427967 | X30: 0.009390427967 | Y30: 0 | Z30: 0 | AA30: 0 | AB30: 0 | AC30: 0 | AD30: 0 | AE30: 0 | AF30: 0 | AG30: 0 | AH30: 0 | AI30: 0 | AJ30: 0 | AK30: 0 | AL30: 0 | AM30: 0 | AN30: 0 | AO30: 0 | AP30: 0 | AQ30: 0 | AR30: 0 | AS30: 0 | AT30: 0 | AU30: 0 | AV30: 0 | AW30: 0 | AX30: 0 | AY30: 0
A31: ='Allocation Methodology'!A27 -> 23 | B31: ='Allocation Methodology'!B27 -> peaksaver® | C31: ='Allocation Methodology'!C27 -> Consumer, Business | D31: ='Allocation Methodology'!D27 -> 2008 | E31: ='Allocation Methodology'!E27 -> Final | F31: FALSE | G31: 0 | H31: 0 | I31: 0.1829475 | J31: 0.1829475 | K31: 0.1829475 | L31: 0.1829475 | M31: 0.1829475 | N31: 0.1829475 | O31: 0.1829475 | P31: 0.1829475 | Q31: 0.1829475 | R31: 0.1829475 | S31: 0.1829475 | T31: 0.1829475 | U31: 0.1829475 | V31: 0 | W31: 0 | X31: 0 | Y31: 0 | Z31: 0 | AA31: 0 | AB31: 0 | AC31: 0 | AD31: 0 | AE31: 0 | AF31: 0 | AG31: 0 | AH31: 0 | AI31: 0 | AJ31: 0 | AK31: 0 | AL31: 0 | AM31: 0 | AN31: 0 | AO31: 0 | AP31: 0 | AQ31: 0 | AR31: 0 | AS31: 0 | AT31: 0 | AU31: 0 | AV31: 0 | AW31: 0 | AX31: 0 | AY31: 0
A32: ='Allocation Methodology'!A28 -> 24 | B32: ='Allocation Methodology'!B28 -> Summer Sweepstakes | C32: ='Allocation Methodology'!C28 -> Consumer | D32: ='Allocation Methodology'!D28 -> 2008 | E32: ='Allocation Methodology'!E28 -> Final | F32: FALSE | G32: 0 | H32: 0 | I32: 0.20464337 | J32: 0.1173536368 | K32: 0.1173536368 | L32: 0.1173536368 | M32: 0.1173536368 | N32: 0.1173536368 | O32: 0.1173536368 | P32: 0.1173536368 | Q32: 0.1132694073 | R32: 0.1132694073 | S32: 0.1120704078 | T32: 0.1120704078 | U32: 0.1120704078 | V32: 0.1106453804 | W32: 0.1101102266 | X32: 0.1046759928 | Y32: 0.1046759928 | Z32: 0.1046759928 | AA32: 0.1046759928 | AB32: 0.1046759928 | AC32: 0 | AD32: 0 | AE32: 0 | AF32: 0 | AG32: 0 | AH32: 0 | AI32: 0 | AJ32: 0 | AK32: 0 | AL32: 0 | AM32: 0 | AN32: 0 | AO32: 0 | AP32: 0 | AQ32: 0 | AR32: 0 | AS32: 0 | AT32: 0 | AU32: 0 | AV32: 0 | AW32: 0 | AX32: 0 | AY32: 0
A33: ='Allocation Methodology'!A29 -> 25 | B33: ='Allocation Methodology'!B29 -> Electricity Retrofit Incentive | C33: ='Allocation Methodology'!C29 -> Consumer, Business | D33: ='Allocation Methodology'!D29 -> 2008 | E33: ='Allocation Methodology'!E29 -> Final | F33: FALSE | G33: 0 | H33: 0 | I33: 0.1182642006 | J33: 0.1182642006 | K33: 0.1182642006 | L33: 0.1182642006 | M33: 0.1182642006 | N33: 0.1182642006 | O33: 0.1182642006 | P33: 0.1182642006 | Q33: 0.1165064858 | R33: 0.1165064858 | S33: 0.1165064858 | T33: 0.1165064858 | U33: 0.1165064858 | V33: 0.1165064858 | W33: 0.1165064858 | X33: 0.1130112912 | Y33: 0 | Z33: 0 | AA33: 0 | AB33: 0 | AC33: 0 | AD33: 0 | AE33: 0 | AF33: 0 | AG33: 0 | AH33: 0 | AI33: 0 | AJ33: 0 | AK33: 0 | AL33: 0 | AM33: 0 | AN33: 0 | AO33: 0 | AP33: 0 | AQ33: 0 | AR33: 0 | AS33: 0 | AT33: 0 | AU33: 0 | AV33: 0 | AW33: 0 | AX33: 0 | AY33: 0
A34: ='Allocation Methodology'!A30 -> 26 | B34: ='Allocation Methodology'!B30 -> Toronto Comprehensive | C34: ='Allocation Methodology'!C30 -> Consumer, Consumer Low-Income, Business | D34: ='Allocation Methodology'!D30 -> 2008 | E34: ='Allocation Methodology'!E30 -> Final | F34: FALSE | G34: 0 | H34: 0 | I34: 0 | J34: 0 | K34: 0 | L34: 0 | M34: 0 | N34: 0 | O34: 0 | P34: 0 | Q34: 0 | R34: 0 | S34: 0 | T34: 0 | U34: 0 | V34: 0 | W34: 0 | X34: 0 | Y34: 0 | Z34: 0 | AA34: 0 | AB34: 0 | AC34: 0 | AD34: 0 | AE34: 0 | AF34: 0 | AG34: 0 | AH34: 0 | AI34: 0 | AJ34: 0 | AK34: 0 | AL34: 0 | AM34: 0 | AN34: 0 | AO34: 0 | AP34: 0 | AQ34: 0 | AR34: 0 | AS34: 0 | AT34: 0 | AU34: 0 | AV34: 0 | AW34: 0 | AX34: 0 | AY34: 0
A35: ='Allocation Methodology'!A31 -> 27 | B35: ='Allocation Methodology'!B31 -> High Performance New Construction | C35: ='Allocation Methodology'!C31 -> Business | D35: ='Allocation Methodology'!D31 -> 2008 | E35: ='Allocation Methodology'!E31 -> Final | F35: FALSE | G35: 0 | H35: 0 | I35: 0.004728092259 | J35: 0.004728092259 | K35: 0.004728092259 | L35: 0.004728092259 | M35: 0.004728092259 | N35: 0.004728092259 | O35: 0.004728092259 | P35: 0.004728092259 | Q35: 0.004728092259 | R35: 0.004728092259 | S35: 0.004728092259 | T35: 0.004728092259 | U35: 0.004728092259 | V35: 0.004728092259 | W35: 0 | X35: 0 | Y35: 0 | Z35: 0 | AA35: 0 | AB35: 0 | AC35: 0 | AD35: 0 | AE35: 0 | AF35: 0 | AG35: 0 | AH35: 0 | AI35: 0 | AJ35: 0 | AK35: 0 | AL35: 0 | AM35: 0 | AN35: 0 | AO35: 0 | AP35: 0 | AQ35: 0 | AR35: 0 | AS35: 0 | AT35: 0 | AU35: 0 | AV35: 0 | AW35: 0 | AX35: 0 | AY35: 0
A36: ='Allocation Methodology'!A32 -> 28 | B36: ='Allocation Methodology'!B32 -> Power Savings Blitz | C36: ='Allocation Methodology'!C32 -> Business | D36: ='Allocation Methodology'!D32 -> 2008 | E36: ='Allocation Methodology'!E32 -> Final | F36: FALSE | G36: 0 | H36: 0 | I36: 0.00100068 | J36: 0.00100068 | K36: 0.00046872 | L36: 0.00046872 | M36: 0.00046872 | N36: 0.00046872 | O36: 0.00046872 | P36: 0.00046872 | Q36: 0.00046872 | R36: 0.00046872 | S36: 0.00046872 | T36: 0.00046872 | U36: 0.00046872 | V36: 0.00046872 | W36: 0.00046872 | X36: 0 | Y36: 0 | Z36: 0 | AA36: 0 | AB36: 0 | AC36: 0 | AD36: 0 | AE36: 0 | AF36: 0 | AG36: 0 | AH36: 0 | AI36: 0 | AJ36: 0 | AK36: 0 | AL36: 0 | AM36: 0 | AN36: 0 | AO36: 0 | AP36: 0 | AQ36: 0 | AR36: 0 | AS36: 0 | AT36: 0 | AU36: 0 | AV36: 0 | AW36: 0 | AX36: 0 | AY36: 0
A37: ='Allocation Methodology'!A33 -> 29 | B37: ='Allocation Methodology'!B33 -> Demand Response 1 | C37: ='Allocation Methodology'!C33 -> Business, Industrial | D37: ='Allocation Methodology'!D33 -> 2008 | E37: ='Allocation Methodology'!E33 -> Final | F37: FALSE | G37: 0 | H37: 0 | I37: 6.112449861 | J37: 0 | K37: 0 | L37: 0 | M37: 0 | N37: 0 | O37: 0 | P37: 0 | Q37: 0 | R37: 0 | S37: 0 | T37: 0 | U37: 0 | V37: 0 | W37: 0 | X37: 0 | Y37: 0 | Z37: 0 | AA37: 0 | AB37: 0 | AC37: 0 | AD37: 0 | AE37: 0 | AF37: 0 | AG37: 0 | AH37: 0 | AI37: 0 | AJ37: 0 | AK37: 0 | AL37: 0 | AM37: 0 | AN37: 0 | AO37: 0 | AP37: 0 | AQ37: 0 | AR37: 0 | AS37: 0 | AT37: 0 | AU37: 0 | AV37: 0 | AW37: 0 | AX37: 0 | AY37: 0
A38: ='Allocation Methodology'!A34 -> 30 | B38: ='Allocation Methodology'!B34 -> Demand Response 3 | C38: ='Allocation Methodology'!C34 -> Business, Industrial | D38: ='Allocation Methodology'!D34 -> 2008 | E38: ='Allocation Methodology'!E34 -> Final | F38: FALSE | G38: 0 | H38: 0 | I38: 1.182023065 | J38: 0 | K38: 0 | L38: 0 | M38: 0 | N38: 0 | O38: 0 | P38: 0 | Q38: 0 | R38: 0 | S38: 0 | T38: 0 | U38: 0 | V38: 0 | W38: 0 | X38: 0 | Y38: 0 | Z38: 0 | AA38: 0 | AB38: 0 | AC38: 0 | AD38: 0 | AE38: 0 | AF38: 0 | AG38: 0 | AH38: 0 | AI38: 0 | AJ38: 0 | AK38: 0 | AL38: 0 | AM38: 0 | AN38: 0 | AO38: 0 | AP38: 0 | AQ38: 0 | AR38: 0 | AS38: 0 | AT38: 0 | AU38: 0 | AV38: 0 | AW38: 0 | AX38: 0 | AY38: 0
A39: ='Allocation Methodology'!A35 -> 31 | B39: ='Allocation Methodology'!B35 -> Loblaw & York Region Demand Response | C39: ='Allocation Methodology'!C35 -> Business, Industrial | D39: ='Allocation Methodology'!D35 -> 2008 | E39: ='Allocation Methodology'!E35 -> Final | F39: FALSE | G39: 0 | H39: 0 | I39: 0.4061987497 | J39: 0 | K39: 0 | L39: 0 | M39: 0 | N39: 0 | O39: 0 | P39: 0 | Q39: 0 | R39: 0 | S39: 0 | T39: 0 | U39: 0 | V39: 0 | W39: 0 | X39: 0 | Y39: 0 | Z39: 0 | AA39: 0 | AB39: 0 | AC39: 0 | AD39: 0 | AE39: 0 | AF39: 0 | AG39: 0 | AH39: 0 | AI39: 0 | AJ39: 0 | AK39: 0 | AL39: 0 | AM39: 0 | AN39: 0 | AO39: 0 | AP39: 0 | AQ39: 0 | AR39: 0 | AS39: 0 | AT39: 0 | AU39: 0 | AV39: 0 | AW39: 0 | AX39: 0 | AY39: 0
A40: ='Allocation Methodology'!A36 -> 32 | B40: ='Allocation Methodology'!B36 -> Renewable Energy Standard Offer | C40: ='Allocation Methodology'!C36 -> Consumer, Business | D40: ='Allocation Methodology'!D36 -> 2008 | E40: ='Allocation Methodology'!E36 -> Final | F40: FALSE | G40: 0 | H40: 0 | I40: 0 | J40: 0 | K40: 0 | L40: 0 | M40: 0 | N40: 0 | O40: 0 | P40: 0 | Q40: 0 | R40: 0 | S40: 0 | T40: 0 | U40: 0 | V40: 0 | W40: 0 | X40: 0 | Y40: 0 | Z40: 0 | AA40: 0 | AB40: 0 | AC40: 0 | AD40: 0 | AE40: 0 | AF40: 0 | AG40: 0 | AH40: 0 | AI40: 0 | AJ40: 0 | AK40: 0 | AL40: 0 | AM40: 0 | AN40: 0 | AO40: 0 | AP40: 0 | AQ40: 0 | AR40: 0 | AS40: 0 | AT40: 0 | AU40: 0 | AV40: 0 | AW40: 0 | AX40: 0 | AY40: 0
A41: ='Allocation Methodology'!A37 -> 33 | B41: ='Allocation Methodology'!B37 -> Other Customer Based Generation | C41: ='Allocation Methodology'!C37 -> Business | D41: ='Allocation Methodology'!D37 -> 2008 | E41: ='Allocation Methodology'!E37 -> Final | F41: FALSE | G41: 0 | H41: 0 | I41: 0 | J41: 0 | K41: 0 | L41: 0 | M41: 0 | N41: 0 | O41: 0 | P41: 0 | Q41: 0 | R41: 0 | S41: 0 | T41: 0 | U41: 0 | V41: 0 | W41: 0 | X41: 0 | Y41: 0 | Z41: 0 | AA41: 0 | AB41: 0 | AC41: 0 | AD41: 0 | AE41: 0 | AF41: 0 | AG41: 0 | AH41: 0 | AI41: 0 | AJ41: 0 | AK41: 0 | AL41: 0 | AM41: 0 | AN41: 0 | AO41: 0 | AP41: 0 | AQ41: 0 | AR41: 0 | AS41: 0 | AT41: 0 | AU41: 0 | AV41: 0 | AW41: 0 | AX41: 0 | AY41: 0
A42: ='Allocation Methodology'!A38 -> 34 | B42: ='Allocation Methodology'!B38 -> LDC Custom - Hydro One Networks Inc. - Double Return | C42: ='Allocation Methodology'!C38 -> Business, Industrial | D42: ='Allocation Methodology'!D38 -> 2008 | E42: ='Allocation Methodology'!E38 -> Final | F42: FALSE | G42: 0 | H42: 0 | I42: 0 | J42: 0 | K42: 0 | L42: 0 | M42: 0 | N42: 0 | O42: 0 | P42: 0 | Q42: 0 | R42: 0 | S42: 0 | T42: 0 | U42: 0 | V42: 0 | W42: 0 | X42: 0 | Y42: 0 | Z42: 0 | AA42: 0 | AB42: 0 | AC42: 0 | AD42: 0 | AE42: 0 | AF42: 0 | AG42: 0 | AH42: 0 | AI42: 0 | AJ42: 0 | AK42: 0 | AL42: 0 | AM42: 0 | AN42: 0 | AO42: 0 | AP42: 0 | AQ42: 0 | AR42: 0 | AS42: 0 | AT42: 0 | AU42: 0 | AV42: 0 | AW42: 0 | AX42: 0 | AY42: 0
A43: ='Allocation Methodology'!A39 -> 35 | B43: ='Allocation Methodology'!B39 -> Great Refrigerator Roundup | C43: ='Allocation Methodology'!C39 -> Consumer | D43: ='Allocation Methodology'!D39 -> 2009 | E43: ='Allocation Methodology'!E39 -> Final | F43: FALSE | G43: 0 | H43: 0 | I43: 0 | J43: 0.02752166609 | K43: 0.02752166609 | L43: 0.02752166609 | M43: 0.02711109832 | N43: 0.0188163846 | O43: 0 | P43: 0 | Q43: 0 | R43: 0 | S43: 0 | T43: 0 | U43: 0 | V43: 0 | W43: 0 | X43: 0 | Y43: 0 | Z43: 0 | AA43: 0 | AB43: 0 | AC43: 0 | AD43: 0 | AE43: 0 | AF43: 0 | AG43: 0 | AH43: 0 | AI43: 0 | AJ43: 0 | AK43: 0 | AL43: 0 | AM43: 0 | AN43: 0 | AO43: 0 | AP43: 0 | AQ43: 0 | AR43: 0 | AS43: 0 | AT43: 0 | AU43: 0 | AV43: 0 | AW43: 0 | AX43: 0 | AY43: 0
A44: ='Allocation Methodology'!A40 -> 36 | B44: ='Allocation Methodology'!B40 -> Cool Savings Rebate | C44: ='Allocation Methodology'!C40 -> Consumer | D44: ='Allocation Methodology'!D40 -> 2009 | E44: ='Allocation Methodology'!E40 -> Final | F44: FALSE | G44: 0 | H44: 0 | I44: 0 | J44: 0.1835044612 | K44: 0.1835044612 | L44: 0.1835044612 | M44: 0.1826464732 | N44: 0.1825048605 | O44: 0.1824205733 | P44: 0.1824205733 | Q44: 0.1824205733 | R44: 0.1824205733 | S44: 0.1824205733 | T44: 0.1796394744 | U44: 0.1796394744 | V44: 0.1796394744 | W44: 0.1796394744 | X44: 0.1796394744 | Y44: 0.1752717443 | Z44: 0.1752717443 | AA44: 0.1752717443 | AB44: 0.1288594369 | AC44: 0 | AD44: 0 | AE44: 0 | AF44: 0 | AG44: 0 | AH44: 0 | AI44: 0 | AJ44: 0 | AK44: 0 | AL44: 0 | AM44: 0 | AN44: 0 | AO44: 0 | AP44: 0 | AQ44: 0 | AR44: 0 | AS44: 0 | AT44: 0 | AU44: 0 | AV44: 0 | AW44: 0 | AX44: 0 | AY44: 0
A45: ='Allocation Methodology'!A41 -> 37 | B45: ='Allocation Methodology'!B41 -> Every Kilowatt Counts Power Savings Event | C45: ='Allocation Methodology'!C41 -> Consumer | D45: ='Allocation Methodology'!D41 -> 2009 | E45: ='Allocation Methodology'!E41 -> Final | F45: FALSE | G45: 0 | H45: 0 | I45: 0 | J45: 0.04908199171 | K45: 0.04825210204 | L45: 0.04825210204 | M45: 0.04825210204 | N45: 0.04803545108 | O45: 0.04803545108 | P45: 0.04451903848 | Q45: 0.04451903848 | R45: 0.03404247994 | S45: 0.03404247994 | T45: 0.03021506218 | U45: 0.03020248565 | V45: 0.01535348587 | W45: 0.01535348587 | X45: 0.01463910735 | Y45: 0.002524510644 | Z45: 0.001130592489 | AA45: 0.001130592489 | AB45: 0.0007075683044 | AC45: 0.0007075683044 | AD45: 0 | AE45: 0 | AF45: 0 | AG45: 0 | AH45: 0 | AI45: 0 | AJ45: 0 | AK45: 0 | AL45: 0 | AM45: 0 | AN45: 0 | AO45: 0 | AP45: 0 | AQ45: 0 | AR45: 0 | AS45: 0 | AT45: 0 | AU45: 0 | AV45: 0 | AW45: 0 | AX45: 0 | AY45: 0
A46: ='Allocation Methodology'!A42 -> 38 | B46: ='Allocation Methodology'!B42 -> peaksaver® | C46: ='Allocation Methodology'!C42 -> Consumer, Business | D46: ='Allocation Methodology'!D42 -> 2009 | E46: ='Allocation Methodology'!E42 -> Final | F46: FALSE | G46: 0 | H46: 0 | I46: 0 | J46: 0.1235577353 | K46: 0.1235577353 | L46: 0.1235577353 | M46: 0.1235577353 | N46: 0.1235577353 | O46: 0.1235577353 | P46: 0.1235577353 | Q46: 0.1235577353 | R46: 0.1235577353 | S46: 0.1235577353 | T46: 0.1235577353 | U46: 0.1235577353 | V46: 0.1235577353 | W46: 0 | X46: 0 | Y46: 0 | Z46: 0 | AA46: 0 | AB46: 0 | AC46: 0 | AD46: 0 | AE46: 0 | AF46: 0 | AG46: 0 | AH46: 0 | AI46: 0 | AJ46: 0 | AK46: 0 | AL46: 0 | AM46: 0 | AN46: 0 | AO46: 0 | AP46: 0 | AQ46: 0 | AR46: 0 | AS46: 0 | AT46: 0 | AU46: 0 | AV46: 0 | AW46: 0 | AX46: 0 | AY46: 0
A47: ='Allocation Methodology'!A43 -> 39 | B47: ='Allocation Methodology'!B43 -> Electricity Retrofit Incentive | C47: ='Allocation Methodology'!C43 -> Consumer, Business | D47: ='Allocation Methodology'!D43 -> 2009 | E47: ='Allocation Methodology'!E43 -> Final | F47: FALSE | G47: 0 | H47: 0 | I47: 0 | J47: 0.2645215311 | K47: 0.2645215311 | L47: 0.2645215311 | M47: 0.2645215311 | N47: 0.2645215311 | O47: 0.2645215311 | P47: 0.2645215311 | Q47: 0.2413636364 | R47: 0.2413636364 | S47: 0.2413636364 | T47: 0.2413636364 | U47: 0 | V47: 0 | W47: 0 | X47: 0 | Y47: 0 | Z47: 0 | AA47: 0 | AB47: 0 | AC47: 0 | AD47: 0 | AE47: 0 | AF47: 0 | AG47: 0 | AH47: 0 | AI47: 0 | AJ47: 0 | AK47: 0 | AL47: 0 | AM47: 0 | AN47: 0 | AO47: 0 | AP47: 0 | AQ47: 0 | AR47: 0 | AS47: 0 | AT47: 0 | AU47: 0 | AV47: 0 | AW47: 0 | AX47: 0 | AY47: 0
A48: ='Allocation Methodology'!A44 -> 40 | B48: ='Allocation Methodology'!B44 -> Toronto Comprehensive | C48: ='Allocation Methodology'!C44 -> Consumer, Consumer Low-Income, Business, Industrial | D48: ='Allocation Methodology'!D44 -> 2009 | E48: ='Allocation Methodology'!E44 -> Final | F48: FALSE | G48: 0 | H48: 0 | I48: 0 | J48: 0 | K48: 0 | L48: 0 | M48: 0 | N48: 0 | O48: 0 | P48: 0 | Q48: 0 | R48: 0 | S48: 0 | T48: 0 | U48: 0 | V48: 0 | W48: 0 | X48: 0 | Y48: 0 | Z48: 0 | AA48: 0 | AB48: 0 | AC48: 0 | AD48: 0 | AE48: 0 | AF48: 0 | AG48: 0 | AH48: 0 | AI48: 0 | AJ48: 0 | AK48: 0 | AL48: 0 | AM48: 0 | AN48: 0 | AO48: 0 | AP48: 0 | AQ48: 0 | AR48: 0 | AS48: 0 | AT48: 0 | AU48: 0 | AV48: 0 | AW48: 0 | AX48: 0 | AY48: 0
A49: ='Allocation Methodology'!A45 -> 41 | B49: ='Allocation Methodology'!B45 -> High Performance New Construction | C49: ='Allocation Methodology'!C45 -> Business | D49: ='Allocation Methodology'!D45 -> 2009 | E49: ='Allocation Methodology'!E45 -> Final | F49: FALSE | G49: 0 | H49: 0 | I49: 0 | J49: 0.05135034297 | K49: 0.05135034297 | L49: 0.05135034297 | M49: 0.05135034297 | N49: 0.05135034297 | O49: 0.05135034297 | P49: 0.05135034297 | Q49: 0.05135034297 | R49: 0.05135034297 | S49: 0.05135034297 | T49: 0.05135034297 | U49: 0.05135034297 | V49: 0.05135034297 | W49: 0.05135034297 | X49: 0.05135034297 | Y49: 0.05135034297 | Z49: 0.05135034297 | AA49: 0.05135034297 | AB49: 0.05135034297 | AC49: 0.05135034297 | AD49: 0 | AE49: 0 | AF49: 0 | AG49: 0 | AH49: 0 | AI49: 0 | AJ49: 0 | AK49: 0 | AL49: 0 | AM49: 0 | AN49: 0 | AO49: 0 | AP49: 0 | AQ49: 0 | AR49: 0 | AS49: 0 | AT49: 0 | AU49: 0 | AV49: 0 | AW49: 0 | AX49: 0 | AY49: 0
A50: ='Allocation Methodology'!A46 -> 42 | B50: ='Allocation Methodology'!B46 -> Power Savings Blitz | C50: ='Allocation Methodology'!C46 -> Business | D50: ='Allocation Methodology'!D46 -> 2009 | E50: ='Allocation Methodology'!E46 -> Final | F50: FALSE | G50: 0 | H50: 0 | I50: 0 | J50: 0.6244027356 | K50: 0.6244027356 | L50: 0.6244027356 | M50: 0.6244027356 | N50: 0.6244027356 | O50: 0.6244027356 | P50: 0.6244027356 | Q50: 0.6244027356 | R50: 0.6244027356 | S50: 0 | T50: 0 | U50: 0 | V50: 0 | W50: 0 | X50: 0 | Y50: 0 | Z50: 0 | AA50: 0 | AB50: 0 | AC50: 0 | AD50: 0 | AE50: 0 | AF50: 0 | AG50: 0 | AH50: 0 | AI50: 0 | AJ50: 0 | AK50: 0 | AL50: 0 | AM50: 0 | AN50: 0 | AO50: 0 | AP50: 0 | AQ50: 0 | AR50: 0 | AS50: 0 | AT50: 0 | AU50: 0 | AV50: 0 | AW50: 0 | AX50: 0 | AY50: 0
A51: ='Allocation Methodology'!A47 -> 43 | B51: ='Allocation Methodology'!B47 -> Multi-Family Energy Efficiency Rebates | C51: ='Allocation Methodology'!C47 -> Consumer, Consumer Low-Income | D51: ='Allocation Methodology'!D47 -> 2009 | E51: ='Allocation Methodology'!E47 -> Final | F51: FALSE | G51: 0 | H51: 0 | I51: 0 | J51: 0 | K51: 0 | L51: 0 | M51: 0 | N51: 0 | O51: 0 | P51: 0 | Q51: 0 | R51: 0 | S51: 0 | T51: 0 | U51: 0 | V51: 0 | W51: 0 | X51: 0 | Y51: 0 | Z51: 0 | AA51: 0 | AB51: 0 | AC51: 0 | AD51: 0 | AE51: 0 | AF51: 0 | AG51: 0 | AH51: 0 | AI51: 0 | AJ51: 0 | AK51: 0 | AL51: 0 | AM51: 0 | AN51: 0 | AO51: 0 | AP51: 0 | AQ51: 0 | AR51: 0 | AS51: 0 | AT51: 0 | AU51: 0 | AV51: 0 | AW51: 0 | AX51: 0 | AY51: 0
A52: ='Allocation Methodology'!A48 -> 44 | B52: ='Allocation Methodology'!B48 -> Demand Response 1 | C52: ='Allocation Methodology'!C48 -> Business, Industrial | D52: ='Allocation Methodology'!D48 -> 2009 | E52: ='Allocation Methodology'!E48 -> Final | F52: FALSE | G52: 0 | H52: 0 | I52: 0 | J52: 2.318471623 | K52: 0 | L52: 0 | M52: 0 | N52: 0 | O52: 0 | P52: 0 | Q52: 0 | R52: 0 | S52: 0 | T52: 0 | U52: 0 | V52: 0 | W52: 0 | X52: 0 | Y52: 0 | Z52: 0 | AA52: 0 | AB52: 0 | AC52: 0 | AD52: 0 | AE52: 0 | AF52: 0 | AG52: 0 | AH52: 0 | AI52: 0 | AJ52: 0 | AK52: 0 | AL52: 0 | AM52: 0 | AN52: 0 | AO52: 0 | AP52: 0 | AQ52: 0 | AR52: 0 | AS52: 0 | AT52: 0 | AU52: 0 | AV52: 0 | AW52: 0 | AX52: 0 | AY52: 0
A53: ='Allocation Methodology'!A49 -> 45 | B53: ='Allocation Methodology'!B49 -> Demand Response 2 | C53: ='Allocation Methodology'!C49 -> Business, Industrial | D53: ='Allocation Methodology'!D49 -> 2009 | E53: ='Allocation Methodology'!E49 -> Final | F53: FALSE | G53: 0 | H53: 0 | I53: 0 | J53: 1.574311687 | K53: 0 | L53: 0 | M53: 0 | N53: 0 | O53: 0 | P53: 0 | Q53: 0 | R53: 0 | S53: 0 | T53: 0 | U53: 0 | V53: 0 | W53: 0 | X53: 0 | Y53: 0 | Z53: 0 | AA53: 0 | AB53: 0 | AC53: 0 | AD53: 0 | AE53: 0 | AF53: 0 | AG53: 0 | AH53: 0 | AI53: 0 | AJ53: 0 | AK53: 0 | AL53: 0 | AM53: 0 | AN53: 0 | AO53: 0 | AP53: 0 | AQ53: 0 | AR53: 0 | AS53: 0 | AT53: 0 | AU53: 0 | AV53: 0 | AW53: 0 | AX53: 0 | AY53: 0
A54: ='Allocation Methodology'!A50 -> 46 | B54: ='Allocation Methodology'!B50 -> Demand Response 3 | C54: ='Allocation Methodology'!C50 -> Business, Industrial | D54: ='Allocation Methodology'!D50 -> 2009 | E54: ='Allocation Methodology'!E50 -> Final | F54: FALSE | G54: 0 | H54: 0 | I54: 0 | J54: 2.249016696 | K54: 0 | L54: 0 | M54: 0 | N54: 0 | O54: 0 | P54: 0 | Q54: 0 | R54: 0 | S54: 0 | T54: 0 | U54: 0 | V54: 0 | W54: 0 | X54: 0 | Y54: 0 | Z54: 0 | AA54: 0 | AB54: 0 | AC54: 0 | AD54: 0 | AE54: 0 | AF54: 0 | AG54: 0 | AH54: 0 | AI54: 0 | AJ54: 0 | AK54: 0 | AL54: 0 | AM54: 0 | AN54: 0 | AO54: 0 | AP54: 0 | AQ54: 0 | AR54: 0 | AS54: 0 | AT54: 0 | AU54: 0 | AV54: 0 | AW54: 0 | AX54: 0 | AY54: 0
A55: ='Allocation Methodology'!A51 -> 47 | B55: ='Allocation Methodology'!B51 -> Loblaw & York Region Demand Response | C55: ='Allocation Methodology'!C51 -> Business, Industrial | D55: ='Allocation Methodology'!D51 -> 2009 | E55: ='Allocation Methodology'!E51 -> Final | F55: FALSE | G55: 0 | H55: 0 | I55: 0 | J55: 0.3864339864 | K55: 0 | L55: 0 | M55: 0 | N55: 0 | O55: 0 | P55: 0 | Q55: 0 | R55: 0 | S55: 0 | T55: 0 | U55: 0 | V55: 0 | W55: 0 | X55: 0 | Y55: 0 | Z55: 0 | AA55: 0 | AB55: 0 | AC55: 0 | AD55: 0 | AE55: 0 | AF55: 0 | AG55: 0 | AH55: 0 | AI55: 0 | AJ55: 0 | AK55: 0 | AL55: 0 | AM55: 0 | AN55: 0 | AO55: 0 | AP55: 0 | AQ55: 0 | AR55: 0 | AS55: 0 | AT55: 0 | AU55: 0 | AV55: 0 | AW55: 0 | AX55: 0 | AY55: 0
A56: ='Allocation Methodology'!A52 -> 48 | B56: ='Allocation Methodology'!B52 -> LDC Custom - Thunder Bay Hydro - Phantom Load | C56: ='Allocation Methodology'!C52 -> Consumer | D56: ='Allocation Methodology'!D52 -> 2009 | E56: ='Allocation Methodology'!E52 -> Final | F56: FALSE | G56: 0 | H56: 0 | I56: 0 | J56: 0 | K56: 0 | L56: 0 | M56: 0 | N56: 0 | O56: 0 | P56: 0 | Q56: 0 | R56: 0 | S56: 0 | T56: 0 | U56: 0 | V56: 0 | W56: 0 | X56: 0 | Y56: 0 | Z56: 0 | AA56: 0 | AB56: 0 | AC56: 0 | AD56: 0 | AE56: 0 | AF56: 0 | AG56: 0 | AH56: 0 | AI56: 0 | AJ56: 0 | AK56: 0 | AL56: 0 | AM56: 0 | AN56: 0 | AO56: 0 | AP56: 0 | AQ56: 0 | AR56: 0 | AS56: 0 | AT56: 0 | AU56: 0 | AV56: 0 | AW56: 0 | AX56: 0 | AY56: 0
A57: ='Allocation Methodology'!A53 -> 49 | B57: ='Allocation Methodology'!B53 -> LDC Custom - Toronto Hydro - Summer Challenge | C57: ='Allocation Methodology'!C53 -> Consumer | D57: ='Allocation Methodology'!D53 -> 2009 | E57: ='Allocation Methodology'!E53 -> Final | F57: FALSE | G57: 0 | H57: 0 | I57: 0 | J57: 0 | K57: 0 | L57: 0 | M57: 0 | N57: 0 | O57: 0 | P57: 0 | Q57: 0 | R57: 0 | S57: 0 | T57: 0 | U57: 0 | V57: 0 | W57: 0 | X57: 0 | Y57: 0 | Z57: 0 | AA57: 0 | AB57: 0 | AC57: 0 | AD57: 0 | AE57: 0 | AF57: 0 | AG57: 0 | AH57: 0 | AI57: 0 | AJ57: 0 | AK57: 0 | AL57: 0 | AM57: 0 | AN57: 0 | AO57: 0 | AP57: 0 | AQ57: 0 | AR57: 0 | AS57: 0 | AT57: 0 | AU57: 0 | AV57: 0 | AW57: 0 | AX57: 0 | AY57: 0
A58: ='Allocation Methodology'!A54 -> 50 | B58: ='Allocation Methodology'!B54 -> LDC Custom - PowerStream - Data Centers | C58: ='Allocation Methodology'!C54 -> Business | D58: ='Allocation Methodology'!D54 -> 2009 | E58: ='Allocation Methodology'!E54 -> Final | G58: 0 | H58: 0 | I58: 0 | J58: 0 | K58: 0 | L58: 0 | M58: 0 | N58: 0 | O58: 0 | P58: 0 | Q58: 0 | R58: 0 | S58: 0 | T58: 0 | U58: 0 | V58: 0 | W58: 0 | X58: 0 | Y58: 0 | Z58: 0 | AA58: 0 | AB58: 0 | AC58: 0 | AD58: 0 | AE58: 0 | AF58: 0 | AG58: 0 | AH58: 0 | AI58: 0 | AJ58: 0 | AK58: 0 | AL58: 0 | AM58: 0 | AN58: 0 | AO58: 0 | AP58: 0 | AQ58: 0 | AR58: 0 | AS58: 0 | AT58: 0 | AU58: 0 | AV58: 0 | AW58: 0 | AX58: 0 | AY58: 0
A59: ='Allocation Methodology'!A55 -> 51 | B59: ='Allocation Methodology'!B55 -> Toronto Comprehensive Adjustment | C59: ='Allocation Methodology'!C55 -> Consumer, Business | D59: ='Allocation Methodology'!D55 -> 2008 | E59: ='Allocation Methodology'!E55 -> Final | G59: 0 | H59: 0 | I59: 0 | J59: 0 | K59: 0 | L59: 0 | M59: 0 | N59: 0 | O59: 0 | P59: 0 | Q59: 0 | R59: 0 | S59: 0 | T59: 0 | U59: 0 | V59: 0 | W59: 0 | X59: 0 | Y59: 0 | Z59: 0 | AA59: 0 | AB59: 0 | AC59: 0 | AD59: 0 | AE59: 0 | AF59: 0 | AG59: 0 | AH59: 0 | AI59: 0 | AJ59: 0 | AK59: 0 | AL59: 0 | AM59: 0 | AN59: 0 | AO59: 0 | AP59: 0 | AQ59: 0 | AR59: 0 | AS59: 0 | AT59: 0 | AU59: 0 | AV59: 0 | AW59: 0 | AX59: 0 | AY59: 0
A60: ='Allocation Methodology'!A56 -> 52 | B60: ='Allocation Methodology'!B56 -> LDC Custom - Hydro One Networks Inc. - Double Return Adjustment | C60: ='Allocation Methodology'!C56 -> Business, Industrial | D60: ='Allocation Methodology'!D56 -> 2008 | E60: ='Allocation Methodology'!E56 -> Final | G60: 0 | H60: 0 | I60: 0 | J60: 0 | K60: 0 | L60: 0 | M60: 0 | N60: 0 | O60: 0 | P60: 0 | Q60: 0 | R60: 0 | S60: 0 | T60: 0 | U60: 0 | V60: 0 | W60: 0 | X60: 0 | Y60: 0 | Z60: 0 | AA60: 0 | AB60: 0 | AC60: 0 | AD60: 0 | AE60: 0 | AF60: 0 | AG60: 0 | AH60: 0 | AI60: 0 | AJ60: 0 | AK60: 0 | AL60: 0 | AM60: 0 | AN60: 0 | AO60: 0 | AP60: 0 | AQ60: 0 | AR60: 0 | AS60: 0 | AT60: 0 | AU60: 0 | AV60: 0 | AW60: 0 | AX60: 0 | AY60: 0
A61: ='Allocation Methodology'!A57 -> 53 | B61: ='Allocation Methodology'!B57 -> Great Refrigerator Roundup | C61: ='Allocation Methodology'!C57 -> Consumer | D61: ='Allocation Methodology'!D57 -> 2010 | E61: ='Allocation Methodology'!E57 -> Final | G61: 0 | H61: 0 | I61: 0 | J61: 0 | K61: 0.05539377768 | L61: 0.05539377768 | M61: 0.05539377768 | N61: 0.05483858632 | O61: 0.04609995412 | P61: 0 | Q61: 0 | R61: 0 | S61: 0 | T61: 0 | U61: 0 | V61: 0 | W61: 0 | X61: 0 | Y61: 0 | Z61: 0 | AA61: 0 | AB61: 0 | AC61: 0 | AD61: 0 | AE61: 0 | AF61: 0 | AG61: 0 | AH61: 0 | AI61: 0 | AJ61: 0 | AK61: 0 | AL61: 0 | AM61: 0 | AN61: 0 | AO61: 0 | AP61: 0 | AQ61: 0 | AR61: 0 | AS61: 0 | AT61: 0 | AU61: 0 | AV61: 0 | AW61: 0 | AX61: 0 | AY61: 0
A62: ='Allocation Methodology'!A58 -> 54 | B62: ='Allocation Methodology'!B58 -> Cool Savings Rebate | C62: ='Allocation Methodology'!C58 -> Consumer | D62: ='Allocation Methodology'!D58 -> 2010 | E62: ='Allocation Methodology'!E58 -> Final | G62: 0 | H62: 0 | I62: 0 | J62: 0 | K62: 0.2270116537 | L62: 0.2270116537 | M62: 0.2270116537 | N62: 0.2270116537 | O62: 0.2270116537 | P62: 0.2270116537 | Q62: 0.2270116537 | R62: 0.2270116537 | S62: 0.2270116537 | T62: 0.2270116537 | U62: 0.2270116537 | V62: 0.2270116537 | W62: 0.2270116537 | X62: 0.2270116537 | Y62: 0.2270116537 | Z62: 0.2208219593 | AA62: 0.2208219593 | AB62: 0.2208219593 | AC62: 0.1749318135 | AD62: 0 | AE62: 0 | AF62: 0 | AG62: 0 | AH62: 0 | AI62: 0 | AJ62: 0 | AK62: 0 | AL62: 0 | AM62: 0 | AN62: 0 | AO62: 0 | AP62: 0 | AQ62: 0 | AR62: 0 | AS62: 0 | AT62: 0 | AU62: 0 | AV62: 0 | AW62: 0 | AX62: 0 | AY62: 0
A63: ='Allocation Methodology'!A59 -> 55 | B63: ='Allocation Methodology'!B59 -> Every Kilowatt Counts Power Savings Event | C63: ='Allocation Methodology'!C59 -> Consumer | D63: ='Allocation Methodology'!D59 -> 2010 | E63: ='Allocation Methodology'!E59 -> Final | G63: 0 | H63: 0 | I63: 0 | J63: 0 | K63: 0.0164759787 | L63: 0.01573115382 | M63: 0.01535399655 | N63: 0.01535399655 | O63: 0.01535399655 | P63: 0.01485134713 | Q63: 0.01424180339 | R63: 0.01424180339 | S63: 0.01419262208 | T63: 0.01057050311 | U63: 0.006152636763 | V63: 0.006152636763 | W63: 0.005709651602 | X63: 0.005709651602 | Y63: 0.005709651602 | Z63: 0.0007746555216 | AA63: 1.071798887e-05 | AB63: 1.071798887e-05 | AC63: 1.071798887e-05 | AD63: 1.071798887e-05 | AE63: 0 | AF63: 0 | AG63: 0 | AH63: 0 | AI63: 0 | AJ63: 0 | AK63: 0 | AL63: 0 | AM63: 0 | AN63: 0 | AO63: 0 | AP63: 0 | AQ63: 0 | AR63: 0 | AS63: 0 | AT63: 0 | AU63: 0 | AV63: 0 | AW63: 0 | AX63: 0 | AY63: 0
A64: ='Allocation Methodology'!A60 -> 56 | B64: ='Allocation Methodology'!B60 -> peaksaver® | C64: ='Allocation Methodology'!C60 -> Consumer, Business | D64: ='Allocation Methodology'!D60 -> 2010 | E64: ='Allocation Methodology'!E60 -> Final | G64: 0 | H64: 0 | I64: 0 | J64: 0 | K64: 0.41432 | L64: 0.41432 | M64: 0.41432 | N64: 0.41432 | O64: 0.41432 | P64: 0.41432 | Q64: 0.41432 | R64: 0.41432 | S64: 0.41432 | T64: 0.41432 | U64: 0.41432 | V64: 0.41432 | W64: 0.41432 | X64: 0 | Y64: 0 | Z64: 0 | AA64: 0 | AB64: 0 | AC64: 0 | AD64: 0 | AE64: 0 | AF64: 0 | AG64: 0 | AH64: 0 | AI64: 0 | AJ64: 0 | AK64: 0 | AL64: 0 | AM64: 0 | AN64: 0 | AO64: 0 | AP64: 0 | AQ64: 0 | AR64: 0 | AS64: 0 | AT64: 0 | AU64: 0 | AV64: 0 | AW64: 0 | AX64: 0 | AY64: 0
A65: ='Allocation Methodology'!A61 -> 57 | B65: ='Allocation Methodology'!B61 -> Electricity Retrofit Incentive | C65: ='Allocation Methodology'!C61 -> Consumer, Business | D65: ='Allocation Methodology'!D61 -> 2010 | E65: ='Allocation Methodology'!E61 -> Final | G65: 0 | H65: 0 | I65: 0 | J65: 0 | K65: 1.11689214 | L65: 1.11689214 | M65: 1.11689214 | N65: 1.11689214 | O65: 1.11689214 | P65: 1.11689214 | Q65: 1.11689214 | R65: 1.11689214 | S65: 1.11689214 | T65: 1.105610401 | U65: 0 | V65: 0 | W65: 0 | X65: 0 | Y65: 0 | Z65: 0 | AA65: 0 | AB65: 0 | AC65: 0 | AD65: 0 | AE65: 0 | AF65: 0 | AG65: 0 | AH65: 0 | AI65: 0 | AJ65: 0 | AK65: 0 | AL65: 0 | AM65: 0 | AN65: 0 | AO65: 0 | AP65: 0 | AQ65: 0 | AR65: 0 | AS65: 0 | AT65: 0 | AU65: 0 | AV65: 0 | AW65: 0 | AX65: 0 | AY65: 0
A66: ='Allocation Methodology'!A62 -> 58 | B66: ='Allocation Methodology'!B62 -> Toronto Comprehensive | C66: ='Allocation Methodology'!C62 -> Consumer, Consumer Low-Income, Business, Industrial | D66: ='Allocation Methodology'!D62 -> 2010 | E66: ='Allocation Methodology'!E62 -> Final | G66: 0 | H66: 0 | I66: 0 | J66: 0 | K66: 0 | L66: 0 | M66: 0 | N66: 0 | O66: 0 | P66: 0 | Q66: 0 | R66: 0 | S66: 0 | T66: 0 | U66: 0 | V66: 0 | W66: 0 | X66: 0 | Y66: 0 | Z66: 0 | AA66: 0 | AB66: 0 | AC66: 0 | AD66: 0 | AE66: 0 | AF66: 0 | AG66: 0 | AH66: 0 | AI66: 0 | AJ66: 0 | AK66: 0 | AL66: 0 | AM66: 0 | AN66: 0 | AO66: 0 | AP66: 0 | AQ66: 0 | AR66: 0 | AS66: 0 | AT66: 0 | AU66: 0 | AV66: 0 | AW66: 0 | AX66: 0 | AY66: 0
A67: ='Allocation Methodology'!A63 -> 59 | B67: ='Allocation Methodology'!B63 -> High Performance New Construction | C67: ='Allocation Methodology'!C63 -> Business | D67: ='Allocation Methodology'!D63 -> 2010 | E67: ='Allocation Methodology'!E63 -> Final | G67: 0 | H67: 0 | I67: 0 | J67: 0 | K67: 0.17758504 | L67: 0.17758504 | M67: 0.17758504 | N67: 0.17758504 | O67: 0.17758504 | P67: 0.17758504 | Q67: 0.17758504 | R67: 0.17758504 | S67: 0.17758504 | T67: 0.17758504 | U67: 0.17758504 | V67: 0.17758504 | W67: 0.17758504 | X67: 0.17758504 | Y67: 0.17758504 | Z67: 0.17758504 | AA67: 0.17758504 | AB67: 0.17758504 | AC67: 0.17758504 | AD67: 0.17758504 | AE67: 0 | AF67: 0 | AG67: 0 | AH67: 0 | AI67: 0 | AJ67: 0 | AK67: 0 | AL67: 0 | AM67: 0 | AN67: 0 | AO67: 0 | AP67: 0 | AQ67: 0 | AR67: 0 | AS67: 0 | AT67: 0 | AU67: 0 | AV67: 0 | AW67: 0 | AX67: 0 | AY67: 0
A68: ='Allocation Methodology'!A64 -> 60 | B68: ='Allocation Methodology'!B64 -> Power Savings Blitz | C68: ='Allocation Methodology'!C64 -> Business | D68: ='Allocation Methodology'!D64 -> 2010 | E68: ='Allocation Methodology'!E64 -> Final | G68: 0 | H68: 0 | I68: 0 | J68: 0 | K68: 0.5309970805 | L68: 0.5309970805 | M68: 0.5309970805 | N68: 0.5309970805 | O68: 0.5309970805 | P68: 0.5309970805 | Q68: 0.5309970805 | R68: 0.5309970805 | S68: 0 | T68: 0 | U68: 0 | V68: 0 | W68: 0 | X68: 0 | Y68: 0 | Z68: 0 | AA68: 0 | AB68: 0 | AC68: 0 | AD68: 0 | AE68: 0 | AF68: 0 | AG68: 0 | AH68: 0 | AI68: 0 | AJ68: 0 | AK68: 0 | AL68: 0 | AM68: 0 | AN68: 0 | AO68: 0 | AP68: 0 | AQ68: 0 | AR68: 0 | AS68: 0 | AT68: 0 | AU68: 0 | AV68: 0 | AW68: 0 | AX68: 0 | AY68: 0
A69: ='Allocation Methodology'!A65 -> 61 | B69: ='Allocation Methodology'!B65 -> Multi-Family Energy Efficiency Rebates | C69: ='Allocation Methodology'!C65 -> Consumer, Consumer Low-Income | D69: ='Allocation Methodology'!D65 -> 2010 | E69: ='Allocation Methodology'!E65 -> Final | G69: 0 | H69: 0 | I69: 0 | J69: 0 | K69: 0.008981563213 | L69: 0.008981563213 | M69: 0.008981563213 | N69: 0.008981563213 | O69: 0.008981563213 | P69: 0.008981563213 | Q69: 0.008981563213 | R69: 0.008981563213 | S69: 0.008981563213 | T69: 0.008981563213 | U69: 0 | V69: 0 | W69: 0 | X69: 0 | Y69: 0 | Z69: 0 | AA69: 0 | AB69: 0 | AC69: 0 | AD69: 0 | AE69: 0 | AF69: 0 | AG69: 0 | AH69: 0 | AI69: 0 | AJ69: 0 | AK69: 0 | AL69: 0 | AM69: 0 | AN69: 0 | AO69: 0 | AP69: 0 | AQ69: 0 | AR69: 0 | AS69: 0 | AT69: 0 | AU69: 0 | AV69: 0 | AW69: 0 | AX69: 0 | AY69: 0
A70: ='Allocation Methodology'!A66 -> 62 | B70: ='Allocation Methodology'!B66 -> Demand Response 2 | C70: ='Allocation Methodology'!C66 -> Business, Industrial | D70: ='Allocation Methodology'!D66 -> 2010 | E70: ='Allocation Methodology'!E66 -> Final | G70: 0 | H70: 0 | I70: 0 | J70: 0 | K70: 1.636999167 | L70: 0 | M70: 0 | N70: 0 | O70: 0 | P70: 0 | Q70: 0 | R70: 0 | S70: 0 | T70: 0 | U70: 0 | V70: 0 | W70: 0 | X70: 0 | Y70: 0 | Z70: 0 | AA70: 0 | AB70: 0 | AC70: 0 | AD70: 0 | AE70: 0 | AF70: 0 | AG70: 0 | AH70: 0 | AI70: 0 | AJ70: 0 | AK70: 0 | AL70: 0 | AM70: 0 | AN70: 0 | AO70: 0 | AP70: 0 | AQ70: 0 | AR70: 0 | AS70: 0 | AT70: 0 | AU70: 0 | AV70: 0 | AW70: 0 | AX70: 0 | AY70: 0
A71: ='Allocation Methodology'!A67 -> 63 | B71: ='Allocation Methodology'!B67 -> Demand Response 3 | C71: ='Allocation Methodology'!C67 -> Business, Industrial | D71: ='Allocation Methodology'!D67 -> 2010 | E71: ='Allocation Methodology'!E67 -> Final | G71: 0 | H71: 0 | I71: 0 | J71: 0 | K71: 3.462459584 | L71: 0 | M71: 0 | N71: 0 | O71: 0 | P71: 0 | Q71: 0 | R71: 0 | S71: 0 | T71: 0 | U71: 0 | V71: 0 | W71: 0 | X71: 0 | Y71: 0 | Z71: 0 | AA71: 0 | AB71: 0 | AC71: 0 | AD71: 0 | AE71: 0 | AF71: 0 | AG71: 0 | AH71: 0 | AI71: 0 | AJ71: 0 | AK71: 0 | AL71: 0 | AM71: 0 | AN71: 0 | AO71: 0 | AP71: 0 | AQ71: 0 | AR71: 0 | AS71: 0 | AT71: 0 | AU71: 0 | AV71: 0 | AW71: 0 | AX71: 0 | AY71: 0
A72: ='Allocation Methodology'!A68 -> 64 | B72: ='Allocation Methodology'!B68 -> Loblaw & York Region Demand Response | C72: ='Allocation Methodology'!C68 -> Business, Industrial | D72: ='Allocation Methodology'!D68 -> 2010 | E72: ='Allocation Methodology'!E68 -> Final | G72: 0 | H72: 0 | I72: 0 | J72: 0 | K72: 0.4018213923 | L72: 0 | M72: 0 | N72: 0 | O72: 0 | P72: 0 | Q72: 0 | R72: 0 | S72: 0 | T72: 0 | U72: 0 | V72: 0 | W72: 0 | X72: 0 | Y72: 0 | Z72: 0 | AA72: 0 | AB72: 0 | AC72: 0 | AD72: 0 | AE72: 0 | AF72: 0 | AG72: 0 | AH72: 0 | AI72: 0 | AJ72: 0 | AK72: 0 | AL72: 0 | AM72: 0 | AN72: 0 | AO72: 0 | AP72: 0 | AQ72: 0 | AR72: 0 | AS72: 0 | AT72: 0 | AU72: 0 | AV72: 0 | AW72: 0 | AX72: 0 | AY72: 0
A73: ='Allocation Methodology'!A69 -> 65 | B73: ='Allocation Methodology'!B69 -> LDC Custom - Hydro Ottawa - Small Commercial Demand Response | C73: ='Allocation Methodology'!C69 -> Consumer | D73: ='Allocation Methodology'!D69 -> 2010 | E73: ='Allocation Methodology'!E69 -> Final | G73: 0 | H73: 0 | I73: 0 | J73: 0 | K73: 0 | L73: 0 | M73: 0 | N73: 0 | O73: 0 | P73: 0 | Q73: 0 | R73: 0 | S73: 0 | T73: 0 | U73: 0 | V73: 0 | W73: 0 | X73: 0 | Y73: 0 | Z73: 0 | AA73: 0 | AB73: 0 | AC73: 0 | AD73: 0 | AE73: 0 | AF73: 0 | AG73: 0 | AH73: 0 | AI73: 0 | AJ73: 0 | AK73: 0 | AL73: 0 | AM73: 0 | AN73: 0 | AO73: 0 | AP73: 0 | AQ73: 0 | AR73: 0 | AS73: 0 | AT73: 0 | AU73: 0 | AV73: 0 | AW73: 0 | AX73: 0 | AY73: 0
A75: 2006 Subtotal | G75: =SUM(G9:G13) -> 4.369578307 | H75: =SUM(H9:H13) -> 0.1769432946 | I75: =SUM(I9:I13) -> 0.1769432946 | J75: 0.1769432946 | K75: 0.1769432946 | L75: 0.1769432946 | M75: 0.16467784 | N75: 0.16467784 | O75: 0.1287977511 | P75: 0.1287977511 | Q75: 0.1287977511 | R75: 0.1287977511 | S75: 0.1287977511 | T75: 0.1287977511 | U75: 0.07882674851 | V75: 0.05380662122 | W75: 0.05380662122 | X75: 0.05380662122 | Y75: 0.001512853486 | Z75: 0.001512853486 | AA75: 0 | AB75: 0 | AC75: 0 | AD75: 0 | AE75: 0 | AF75: 0 | AG75: 0 | AH75: 0 | AI75: 0 | AJ75: 0 | AK75: =SUM(AK9:AK13) -> 0 | AL75: 0 | AM75: 0 | AN75: 0 | AO75: 0 | AP75: 0 | AQ75: 0 | AR75: 0 | AS75: 0 | AT75: 0 | AU75: 0 | AV75: 0 | AW75: 0 | AX75: 0 | AY75: 0
A77: 2007 Subtotal | G77: =SUM(G14:G27) -> 0 | H77: =SUM(H14:H27) -> 5.459775999 | I77: 0.3694958707 | J77: 0.317555639 | K77: 0.317555639 | L77: 0.3156193382 | M77: 0.302104852 | N77: 0.302104852 | O77: 0.302104852 | P77: 0.2658576611 | Q77: 0.2564623857 | R77: 0.2327133243 | S77: 0.2327133243 | T77: 0.2298783243 | U77: 0.2298783243 | V77: 0.1746809469 | W77: 0.06954213935 | X77: 0.06926910145 | Y77: 0.06926910145 | Z77: 0.04514333333 | AA77: 0.02342 | AB77: 0 | AC77: 0 | AD77: 0 | AE77: 0 | AF77: 0 | AG77: 0 | AH77: 0 | AI77: 0 | AJ77: 0 | AK77: =SUM(AK14:AK27) -> 0 | AL77: 0 | AM77: 0 | AN77: 0 | AO77: 0 | AP77: 0 | AQ77: 0 | AR77: 0 | AS77: 0 | AT77: 0 | AU77: 0 | AV77: 0 | AW77: 0 | AX77: 0 | AY77: 0
A79: 2008 Subtotal | G79: =SUM(G28:G42,G59:G60) -> 0 | H79: =SUM(H28:H42,H59:H60) -> 0 | I79: 8.438924104 | J79: 0.6482387051 | K79: 0.6477067451 | L79: 0.6477067451 | M79: 0.641870371 | N79: 0.641870371 | O79: 0.6295823494 | P79: 0.6254320223 | Q79: 0.6045210463 | R79: 0.5799638466 | S79: 0.5761848582 | T79: 0.5761848582 | U79: 0.5663934542 | V79: 0.3820209269 | W79: 0.3767576808 | X79: 0.3408374814 | Y79: 0.2184357623 | Z79: 0.2184357623 | AA79: 0.1046759928 | AB79: 0.1046759928 | AC79: 0 | AD79: 0 | AE79: 0 | AF79: 0 | AG79: 0 | AH79: 0 | AI79: 0 | AJ79: 0 | AK79: 0 | AL79: 0 | AM79: 0 | AN79: 0 | AO79: 0 | AP79: 0 | AQ79: 0 | AR79: 0 | AS79: 0 | AT79: 0 | AU79: 0 | AV79: 0 | AW79: 0 | AX79: 0 | AY79: 0
A81: 2009 Subtotal | G81: =SUM(G43:G58) -> 0 | H81: =SUM(H43:H58) -> 0 | I81: 0 | J81: 7.852174456 | K81: 1.323110574 | L81: 1.323110574 | M81: 1.321842018 | N81: 1.313189041 | O81: 1.294288369 | P81: 1.290771957 | Q81: 1.267614062 | R81: 1.257137503 | S81: 0.6327347679 | T81: 0.6261262512 | U81: 0.3847500383 | V81: 0.3699010386 | W81: 0.2463433033 | X81: 0.2456289248 | Y81: 0.2291465979 | Z81: 0.2277526797 | AA81: 0.2277526797 | AB81: 0.1809173482 | AC81: 0.05205791127 | AD81: 0 | AE81: 0 | AF81: 0 | AG81: 0 | AH81: 0 | AI81: 0 | AJ81: 0 | AK81: 0 | AL81: 0 | AM81: 0 | AN81: 0 | AO81: 0 | AP81: 0 | AQ81: 0 | AR81: 0 | AS81: 0 | AT81: 0 | AU81: 0 | AV81: 0 | AW81: 0 | AX81: 0 | AY81: 0
A83: 2010 Subtotal | G83: =SUM(G61:G73) -> 0 | H83: =SUM(H61:H73) -> 0 | I83: 0 | J83: 0 | K83: 8.048937377 | L83: 2.546912409 | M83: 2.546535252 | N83: 2.54598006 | O83: 2.537241428 | P83: 2.490638824 | Q83: 2.490029281 | R83: 2.490029281 | S83: 1.958983019 | T83: 1.944079161 | U83: 0.8250693305 | V83: 0.8250693305 | W83: 0.8246263453 | X83: 0.4103063453 | Y83: 0.4103063453 | Z83: 0.3991816548 | AA83: 0.3984177173 | AB83: 0.3984177173 | AC83: 0.3525275715 | AD83: 0.177595758 | AE83: 0 | AF83: 0 | AG83: 0 | AH83: 0 | AI83: 0 | AJ83: 0 | AK83: 0 | AL83: 0 | AM83: 0 | AN83: 0 | AO83: 0 | AP83: 0 | AQ83: 0 | AR83: 0 | AS83: 0 | AT83: 0 | AU83: 0 | AV83: 0 | AW83: 0 | AX83: 0 | AY83: 0
A85: Overall Total | G85: =SUM(G9:G73) -> 4.369578307 | H85: =SUM(H9:H73) -> 5.636719294 | I85: =SUM(I9:I73) -> 8.985363269 | J85: 8.994912095 | K85: 10.51425363 | L85: 5.010292361 | M85: 4.977030333 | N85: 4.967822164 | O85: 4.89201475 | P85: 4.801498216 | Q85: 4.747424526 | R85: 4.688641706 | S85: 3.52941372 | T85: 3.505066346 | U85: 2.084917896 | V85: 1.805478864 | W85: 1.57107609 | X85: 1.119848474 | Y85: 0.9286706604 | Z85: 0.8920262836 | AA85: 0.7542663898 | AB85: 0.6840110583 | AC85: 0.4045854828 | AD85: 0.177595758 | AE85: 0 | AF85: 0 | AG85: 0 | AH85: 0 | AI85: 0 | AJ85: 0 | AK85: 0 | AL85: 0 | AM85: 0 | AN85: 0 | AO85: 0 | AP85: 0 | AQ85: 0 | AR85: 0 | AS85: 0 | AT85: 0 | AU85: 0 | AV85: 0 | AW85: 0 | AX85: 0 | AY85: 0
G86: 65 | H86: =G86+1 -> 66 | I86: =H86+1 -> 67 | J86: 68 | K86: 69 | L86: 70 | M86: 71 | N86: 72 | O86: 73 | P86: 74 | Q86: 75 | R86: 76 | S86: 77 | T86: 78 | U86: 79 | V86: 80 | W86: 81 | X86: 82 | Y86: 83 | Z86: 84 | AA86: 85 | AB86: 86 | AC86: 87 | AD86: 88 | AE86: 89 | AF86: 90 | AG86: 91 | AH86: 92 | AI86: 93 | AJ86: 94 | AK86: =AJ86+1 -> 95 | AL86: 96 | AM86: 97 | AN86: 98 | AO86: 99 | AP86: 100 | AQ86: 101 | AR86: 102 | AS86: 103 | AT86: 104 | AU86: 105 | AV86: 106 | AW86: 107 | AX86: 108 | AY86: 109
A88: Net Energy Savings (MWh)
A89: # | B89: Initiative Name | C89: Program Name | D89: Program Year | E89: Results Status | G89: 2006 | H89: =G89+1 -> 2007 | I89: =H89+1 -> 2008 | J89: 2009 | K89: 2010 | L89: 2011 | M89: 2012 | N89: 2013 | O89: 2014 | P89: 2015 | Q89: 2016 | R89: 2017 | S89: 2018 | T89: 2019 | U89: 2020 | V89: 2021 | W89: 2022 | X89: 2023 | Y89: 2024 | Z89: 2025 | AA89: 2026 | AB89: 2027 | AC89: 2028 | AD89: 2029 | AE89: 2030 | AF89: 2031 | AG89: 2032 | AH89: 2033 | AI89: 2034 | AJ89: 2035 | AK89: =AJ89+1 -> 2036 | AL89: 2037 | AM89: 2038 | AN89: 2039 | AO89: 2040 | AP89: 2041 | AQ89: 2042 | AR89: 2043 | AS89: 2044 | AT89: 2045 | AU89: 2046 | AV89: 2047 | AW89: 2048 | AX89: 2049 | AY89: 2050
A91: ='Allocation Methodology'!A5 -> 1 | B91: ='Allocation Methodology'!B5 -> Secondary Refrigerator Retirement Pilot | C91: ='Allocation Methodology'!C5 -> Consumer | D91: ='Allocation Methodology'!D5 -> 2006 | E91: ='Allocation Methodology'!E5 -> Final | F91: FALSE | G91: 54.11229984 | H91: 54.11229984 | I91: 54.11229984 | J91: 54.11229984 | K91: 54.11229984 | L91: 54.11229984 | M91: 0 | N91: 0 | O91: 0 | P91: 0 | Q91: 0 | R91: 0 | S91: 0 | T91: 0 | U91: 0 | V91: 0 | W91: 0 | X91: 0 | Y91: 0 | Z91: 0 | AA91: 0 | AB91: 0 | AC91: 0 | AD91: 0 | AE91: 0 | AF91: 0 | AG91: 0 | AH91: 0 | AI91: 0 | AJ91: 0 | AK91: 0 | AL91: 0 | AM91: 0 | AN91: 0 | AO91: 0 | AP91: 0 | AQ91: 0 | AR91: 0 | AS91: 0 | AT91: 0 | AU91: 0 | AV91: 0 | AW91: 0 | AX91: 0 | AY91: 0
A92: ='Allocation Methodology'!A6 -> 2 | B92: ='Allocation Methodology'!B6 -> Cool & Hot Savings Rebate | C92: ='Allocation Methodology'!C6 -> Consumer | D92: ='Allocation Methodology'!D6 -> 2006 | E92: ='Allocation Methodology'!E6 -> Final | F92: FALSE | G92: 133.5805303 | H92: 133.5805303 | I92: 133.5805303 | J92: 133.5805303 | K92: 133.5805303 | L92: 133.5805303 | M92: 133.5805303 | N92: 133.5805303 | O92: 98.55150545 | P92: 98.55150545 | Q92: 98.55150545 | R92: 98.55150545 | S92: 98.55150545 | T92: 98.55150545 | U92: 49.69268893 | V92: 19.36931488 | W92: 19.36931488 | X92: 19.36931488 | Y92: 0 | Z92: 0 | AA92: 0 | AB92: 0 | AC92: 0 | AD92: 0 | AE92: 0 | AF92: 0 | AG92: 0 | AH92: 0 | AI92: 0 | AJ92: 0 | AK92: 0 | AL92: 0 | AM92: 0 | AN92: 0 | AO92: 0 | AP92: 0 | AQ92: 0 | AR92: 0 | AS92: 0 | AT92: 0 | AU92: 0 | AV92: 0 | AW92: 0 | AX92: 0 | AY92: 0
A93: ='Allocation Methodology'!A7 -> 3 | B93: ='Allocation Methodology'!B7 -> Every Kilowatt Counts | C93: ='Allocation Methodology'!C7 -> Consumer | D93: ='Allocation Methodology'!D7 -> 2006 | E93: ='Allocation Methodology'!E7 -> Final | F93: FALSE | G93: 3466.098889 | H93: 3466.098889 | I93: 3466.098889 | J93: 3466.098889 | K93: 446.8898873 | L93: 446.8898873 | M93: 446.8898873 | N93: 446.8898873 | O93: 446.8898873 | P93: 446.8898873 | Q93: 416.7702983 | R93: 416.7702983 | S93: 416.7702983 | T93: 416.7702983 | U93: 416.7702983 | V93: 386.0874257 | W93: 386.0874257 | X93: 386.0874257 | Y93: 219.0802205 | Z93: 219.0802205 | AA93: 127.8328468 | AB93: 127.8328468 | AC93: 127.8328468 | AD93: 127.8328468 | AE93: 127.8328468 | AF93: 10.65123502 | AG93: 10.65123502 | AH93: 10.65123502 | AI93: 10.65123502 | AJ93: 10.65123502 | AK93: 0 | AL93: 0 | AM93: 0 | AN93: 0 | AO93: 0 | AP93: 0 | AQ93: 0 | AR93: 0 | AS93: 0 | AT93: 0 | AU93: 0 | AV93: 0 | AW93: 0 | AX93: 0 | AY93: 0
A94: ='Allocation Methodology'!A8 -> 4 | B94: ='Allocation Methodology'!B8 -> Demand Response 1 | C94: ='Allocation Methodology'!C8 -> Business, Industrial | D94: ='Allocation Methodology'!D8 -> 2006 | E94: ='Allocation Methodology'!E8 -> Final | F94: FALSE | G94: 0 | H94: 0 | I94: 0 | J94: 0 | K94: 0 | L94: 0 | M94: 0 | N94: 0 | O94: 0 | P94: 0 | Q94: 0 | R94: 0 | S94: 0 | T94: 0 | U94: 0 | V94: 0 | W94: 0 | X94: 0 | Y94: 0 | Z94: 0 | AA94: 0 | AB94: 0 | AC94: 0 | AD94: 0 | AE94: 0 | AF94: 0 | AG94: 0 | AH94: 0 | AI94: 0 | AJ94: 0 | AK94: 0 | AL94: 0 | AM94: 0 | AN94: 0 | AO94: 0 | AP94: 0 | AQ94: 0 | AR94: 0 | AS94: 0 | AT94: 0 | AU94: 0 | AV94: 0 | AW94: 0 | AX94: 0 | AY94: 0
A95: ='Allocation Methodology'!A9 -> 5 | B95: ='Allocation Methodology'!B9 -> Loblaw & York Region Demand Response | C95: ='Allocation Methodology'!C9 -> Business, Industrial | D95: ='Allocation Methodology'!D9 -> 2006 | E95: ='Allocation Methodology'!E9 -> Final | F95: FALSE | G95: 0 | H95: 0 | I95: 0 | J95: 0 | K95: 0 | L95: 0 | M95: 0 | N95: 0 | O95: 0 | P95: 0 | Q95: 0 | R95: 0 | S95: 0 | T95: 0 | U95: 0 | V95: 0 | W95: 0 | X95: 0 | Y95: 0 | Z95: 0 | AA95: 0 | AB95: 0 | AC95: 0 | AD95: 0 | AE95: 0 | AF95: 0 | AG95: 0 | AH95: 0 | AI95: 0 | AJ95: 0 | AK95: 0 | AL95: 0 | AM95: 0 | AN95: 0 | AO95: 0 | AP95: 0 | AQ95: 0 | AR95: 0 | AS95: 0 | AT95: 0 | AU95: 0 | AV95: 0 | AW95: 0 | AX95: 0 | AY95: 0
A96: ='Allocation Methodology'!A10 -> 6 | B96: ='Allocation Methodology'!B10 -> Great Refrigerator Roundup | C96: ='Allocation Methodology'!C10 -> Consumer | D96: ='Allocation Methodology'!D10 -> 2007 | E96: ='Allocation Methodology'!E10 -> Final | F96: FALSE | G96: 0 | H96: 104.8748985 | I96: 104.8748985 | J96: 104.8748985 | K96: 104.8748985 | L96: 104.4608416 | M96: 104.0467848 | N96: 104.0467848 | O96: 104.0467848 | P96: 87.13523651 | Q96: 0 | R96: 0 | S96: 0 | T96: 0 | U96: 0 | V96: 0 | W96: 0 | X96: 0 | Y96: 0 | Z96: 0 | AA96: 0 | AB96: 0 | AC96: 0 | AD96: 0 | AE96: 0 | AF96: 0 | AG96: 0 | AH96: 0 | AI96: 0 | AJ96: 0 | AK96: 0 | AL96: 0 | AM96: 0 | AN96: 0 | AO96: 0 | AP96: 0 | AQ96: 0 | AR96: 0 | AS96: 0 | AT96: 0 | AU96: 0 | AV96: 0 | AW96: 0 | AX96: 0 | AY96: 0
A97: ='Allocation Methodology'!A11 -> 7 | B97: ='Allocation Methodology'!B11 -> Cool & Hot Savings Rebate | C97: ='Allocation Methodology'!C11 -> Consumer | D97: ='Allocation Methodology'!D11 -> 2007 | E97: ='Allocation Methodology'!E11 -> Final | F97: FALSE | G97: 0 | H97: 209.8038091 | I97: 209.8038091 | J97: 209.8038091 | K97: 209.8038091 | L97: 209.8038091 | M97: 199.8570978 | N97: 199.8570978 | O97: 199.8570978 | P97: 199.8570978 | Q97: 199.8570978 | R97: 199.8570978 | S97: 199.8570978 | T97: 199.8570978 | U97: 199.8570978 | V97: 199.8570978 | W97: 21.91605933 | X97: 21.91605933 | Y97: 21.91605933 | Z97: 0 | AA97: 0 | AB97: 0 | AC97: 0 | AD97: 0 | AE97: 0 | AF97: 0 | AG97: 0 | AH97: 0 | AI97: 0 | AJ97: 0 | AK97: 0 | AL97: 0 | AM97: 0 | AN97: 0 | AO97: 0 | AP97: 0 | AQ97: 0 | AR97: 0 | AS97: 0 | AT97: 0 | AU97: 0 | AV97: 0 | AW97: 0 | AX97: 0 | AY97: 0
A98: ='Allocation Methodology'!A12 -> 8 | B98: ='Allocation Methodology'!B12 -> Every Kilowatt Counts | C98: ='Allocation Methodology'!C12 -> Consumer | D98: ='Allocation Methodology'!D12 -> 2007 | E98: ='Allocation Methodology'!E12 -> Final | F98: FALSE | G98: 0 | H98: 1257.654451 | I98: 1242.273431 | J98: 1242.273431 | K98: 1242.273431 | L98: 1242.273431 | M98: 1199.850336 | N98: 1199.850336 | O98: 1199.850336 | P98: 97.44678656 | Q98: 97.44678656 | R98: 18.36160852 | S98: 18.36160852 | T98: 18.36160852 | U98: 18.36160852 | V98: 18.36160852 | W98: 10.96891033 | X98: 4.97670365 | Y98: 4.97670365 | Z98: 0 | AA98: 0 | AB98: 0 | AC98: 0 | AD98: 0 | AE98: 0 | AF98: 0 | AG98: 0 | AH98: 0 | AI98: 0 | AJ98: 0 | AK98: 0 | AL98: 0 | AM98: 0 | AN98: 0 | AO98: 0 | AP98: 0 | AQ98: 0 | AR98: 0 | AS98: 0 | AT98: 0 | AU98: 0 | AV98: 0 | AW98: 0 | AX98: 0 | AY98: 0
A99: ='Allocation Methodology'!A13 -> 9 | B99: ='Allocation Methodology'!B13 -> peaksaver® | C99: ='Allocation Methodology'!C13 -> Consumer, Business | D99: ='Allocation Methodology'!D13 -> 2007 | E99: ='Allocation Methodology'!E13 -> Final | F99: FALSE | G99: 0 | H99: 0 | I99: 0 | J99: 0 | K99: 0 | L99: 0 | M99: 0 | N99: 0 | O99: 0 | P99: 0 | Q99: 0 | R99: 0 | S99: 0 | T99: 0 | U99: 0 | V99: 0 | W99: 0 | X99: 0 | Y99: 0 | Z99: 0 | AA99: 0 | AB99: 0 | AC99: 0 | AD99: 0 | AE99: 0 | AF99: 0 | AG99: 0 | AH99: 0 | AI99: 0 | AJ99: 0 | AK99: 0 | AL99: 0 | AM99: 0 | AN99: 0 | AO99: 0 | AP99: 0 | AQ99: 0 | AR99: 0 | AS99: 0 | AT99: 0 | AU99: 0 | AV99: 0 | AW99: 0 | AX99: 0 | AY99: 0
A100: ='Allocation Methodology'!A14 -> 10 | B100: ='Allocation Methodology'!B14 -> Summer Savings | C100: ='Allocation Methodology'!C14 -> Consumer | D100: ='Allocation Methodology'!D14 -> 2007 | E100: ='Allocation Methodology'!E14 -> Final | F100: FALSE | G100: 0 | H100: 599.9724684 | I100: 101.1268184 | J100: 38.27812985 | K100: 38.27812985 | L100: 38.27812985 | M100: 38.27812985 | N100: 38.27812985 | O100: 38.27812985 | P100: 24.31061604 | Q100: 24.31061604 | R100: 24.31061604 | S100: 24.31061604 | T100: 24.31061604 | U100: 24.31061604 | V100: 0 | W100: 0 | X100: 0 | Y100: 0 | Z100: 0 | AA100: 0 | AB100: 0 | AC100: 0 | AD100: 0 | AE100: 0 | AF100: 0 | AG100: 0 | AH100: 0 | AI100: 0 | AJ100: 0 | AK100: 0 | AL100: 0 | AM100: 0 | AN100: 0 | AO100: 0 | AP100: 0 | AQ100: 0 | AR100: 0 | AS100: 0 | AT100: 0 | AU100: 0 | AV100: 0 | AW100: 0 | AX100: 0 | AY100: 0
A101: ='Allocation Methodology'!A15 -> 11 | B101: ='Allocation Methodology'!B15 -> Aboriginal | C101: ='Allocation Methodology'!C15 -> Consumer | D101: ='Allocation Methodology'!D15 -> 2007 | E101: ='Allocation Methodology'!E15 -> Final | F101: FALSE | G101: 0 | H101: 0 | I101: 0 | J101: 0 | K101: 0 | L101: 0 | M101: 0 | N101: 0 | O101: 0 | P101: 0 | Q101: 0 | R101: 0 | S101: 0 | T101: 0 | U101: 0 | V101: 0 | W101: 0 | X101: 0 | Y101: 0 | Z101: 0 | AA101: 0 | AB101: 0 | AC101: 0 | AD101: 0 | AE101: 0 | AF101: 0 | AG101: 0 | AH101: 0 | AI101: 0 | AJ101: 0 | AK101: 0 | AL101: 0 | AM101: 0 | AN101: 0 | AO101: 0 | AP101: 0 | AQ101: 0 | AR101: 0 | AS101: 0 | AT101: 0 | AU101: 0 | AV101: 0 | AW101: 0 | AX101: 0 | AY101: 0
A102: ='Allocation Methodology'!A16 -> 12 | B102: ='Allocation Methodology'!B16 -> Affordable Housing Pilot | C102: ='Allocation Methodology'!C16 -> Consumer Low-Income | D102: ='Allocation Methodology'!D16 -> 2007 | E102: ='Allocation Methodology'!E16 -> Final | F102: FALSE | G102: 0 | H102: 79.85784 | I102: 79.85784 | J102: 79.85784 | K102: 79.85784 | L102: 79.85784 | M102: 79.85784 | N102: 79.85784 | O102: 79.85784 | P102: 79.85784 | Q102: 79.85784 | R102: 79.85784 | S102: 79.85784 | T102: 79.85784 | U102: 79.85784 | V102: 0 | W102: 0 | X102: 0 | Y102: 0 | Z102: 0 | AA102: 0 | AB102: 0 | AC102: 0 | AD102: 0 | AE102: 0 | AF102: 0 | AG102: 0 | AH102: 0 | AI102: 0 | AJ102: 0 | AK102: 0 | AL102: 0 | AM102: 0 | AN102: 0 | AO102: 0 | AP102: 0 | AQ102: 0 | AR102: 0 | AS102: 0 | AT102: 0 | AU102: 0 | AV102: 0 | AW102: 0 | AX102: 0 | AY102: 0
A103: ='Allocation Methodology'!A17 -> 13 | B103: ='Allocation Methodology'!B17 -> Social Housing Pilot | C103: ='Allocation Methodology'!C17 -> Consumer Low-Income | D103: ='Allocation Methodology'!D17 -> 2007 | E103: ='Allocation Methodology'!E17 -> Final | F103: FALSE | G103: 0 | H103: 114.3048156 | I103: 114.3048156 | J103: 114.3048156 | K103: 114.3048156 | L103: 114.3048156 | M103: 114.3048156 | N103: 114.3048156 | O103: 114.3048156 | P103: 114.3048156 | Q103: 114.3048156 | R103: 0 | S103: 0 | T103: 0 | U103: 0 | V103: 0 | W103: 0 | X103: 0 | Y103: 0 | Z103: 0 | AA103: 0 | AB103: 0 | AC103: 0 | AD103: 0 | AE103: 0 | AF103: 0 | AG103: 0 | AH103: 0 | AI103: 0 | AJ103: 0 | AK103: 0 | AL103: 0 | AM103: 0 | AN103: 0 | AO103: 0 | AP103: 0 | AQ103: 0 | AR103: 0 | AS103: 0 | AT103: 0 | AU103: 0 | AV103: 0 | AW103: 0 | AX103: 0 | AY103: 0
A104: ='Allocation Methodology'!A18 -> 14 | B104: ='Allocation Methodology'!B18 -> Energy Efficiency Assistance for Houses Pilot | C104: ='Allocation Methodology'!C18 -> Consumer Low-Income | D104: ='Allocation Methodology'!D18 -> 2007 | E104: ='Allocation Methodology'!E18 -> Final | F104: FALSE | G104: 0 | H104: 156.425661 | I104: 156.425661 | J104: 156.425661 | K104: 156.425661 | L104: 156.425661 | M104: 156.425661 | N104: 156.425661 | O104: 156.425661 | P104: 156.425661 | Q104: 156.425661 | R104: 156.425661 | S104: 156.425661 | T104: 156.425661 | U104: 156.425661 | V104: 156.425661 | W104: 156.425661 | X104: 156.425661 | Y104: 156.425661 | Z104: 156.425661 | AA104: 0 | AB104: 0 | AC104: 0 | AD104: 0 | AE104: 0 | AF104: 0 | AG104: 0 | AH104: 0 | AI104: 0 | AJ104: 0 | AK104: 0 | AL104: 0 | AM104: 0 | AN104: 0 | AO104: 0 | AP104: 0 | AQ104: 0 | AR104: 0 | AS104: 0 | AT104: 0 | AU104: 0 | AV104: 0 | AW104: 0 | AX104: 0 | AY104: 0
A105: ='Allocation Methodology'!A19 -> 15 | B105: ='Allocation Methodology'!B19 -> Electricity Retrofit Incentive | C105: ='Allocation Methodology'!C19 -> Business | D105: ='Allocation Methodology'!D19 -> 2007 | E105: ='Allocation Methodology'!E19 -> Final | F105: FALSE | G105: 0 | H105: 7.327080891 | I105: 7.327080891 | J105: 7.327080891 | K105: 7.327080891 | L105: 7.327080891 | M105: 0 | N105: 0 | O105: 0 | P105: 0 | Q105: 0 | R105: 0 | S105: 0 | T105: 0 | U105: 0 | V105: 0 | W105: 0 | X105: 0 | Y105: 0 | Z105: 0 | AA105: 0 | AB105: 0 | AC105: 0 | AD105: 0 | AE105: 0 | AF105: 0 | AG105: 0 | AH105: 0 | AI105: 0 | AJ105: 0 | AK105: 0 | AL105: 0 | AM105: 0 | AN105: 0 | AO105: 0 | AP105: 0 | AQ105: 0 | AR105: 0 | AS105: 0 | AT105: 0 | AU105: 0 | AV105: 0 | AW105: 0 | AX105: 0 | AY105: 0
A106: ='Allocation Methodology'!A20 -> 16 | B106: ='Allocation Methodology'!B20 -> Toronto Comprehensive | C106: ='Allocation Methodology'!C20 -> Business | D106: ='Allocation Methodology'!D20 -> 2007 | E106: ='Allocation Methodology'!E20 -> Final | F106: FALSE | G106: 0 | H106: 0 | I106: 0 | J106: 0 | K106: 0 | L106: 0 | M106: 0 | N106: 0 | O106: 0 | P106: 0 | Q106: 0 | R106: 0 | S106: 0 | T106: 0 | U106: 0 | V106: 0 | W106: 0 | X106: 0 | Y106: 0 | Z106: 0 | AA106: 0 | AB106: 0 | AC106: 0 | AD106: 0 | AE106: 0 | AF106: 0 | AG106: 0 | AH106: 0 | AI106: 0 | AJ106: 0 | AK106: 0 | AL106: 0 | AM106: 0 | AN106: 0 | AO106: 0 | AP106: 0 | AQ106: 0 | AR106: 0 | AS106: 0 | AT106: 0 | AU106: 0 | AV106: 0 | AW106: 0 | AX106: 0 | AY106: 0
A107: ='Allocation Methodology'!A21 -> 17 | B107: ='Allocation Methodology'!B21 -> Demand Response 1 | C107: ='Allocation Methodology'!C21 -> Business, Industrial | D107: ='Allocation Methodology'!D21 -> 2007 | E107: ='Allocation Methodology'!E21 -> Final | F107: FALSE | G107: 0 | H107: 0 | I107: 0 | J107: 0 | K107: 0 | L107: 0 | M107: 0 | N107: 0 | O107: 0 | P107: 0 | Q107: 0 | R107: 0 | S107: 0 | T107: 0 | U107: 0 | V107: 0 | W107: 0 | X107: 0 | Y107: 0 | Z107: 0 | AA107: 0 | AB107: 0 | AC107: 0 | AD107: 0 | AE107: 0 | AF107: 0 | AG107: 0 | AH107: 0 | AI107: 0 | AJ107: 0 | AK107: 0 | AL107: 0 | AM107: 0 | AN107: 0 | AO107: 0 | AP107: 0 | AQ107: 0 | AR107: 0 | AS107: 0 | AT107: 0 | AU107: 0 | AV107: 0 | AW107: 0 | AX107: 0 | AY107: 0
A108: ='Allocation Methodology'!A22 -> 18 | B108: ='Allocation Methodology'!B22 -> Loblaw & York Region Demand Response | C108: ='Allocation Methodology'!C22 -> Business, Industrial | D108: ='Allocation Methodology'!D22 -> 2007 | E108: ='Allocation Methodology'!E22 -> Final | F108: FALSE | G108: 0 | H108: 0 | I108: 0 | J108: 0 | K108: 0 | L108: 0 | M108: 0 | N108: 0 | O108: 0 | P108: 0 | Q108: 0 | R108: 0 | S108: 0 | T108: 0 | U108: 0 | V108: 0 | W108: 0 | X108: 0 | Y108: 0 | Z108: 0 | AA108: 0 | AB108: 0 | AC108: 0 | AD108: 0 | AE108: 0 | AF108: 0 | AG108: 0 | AH108: 0 | AI108: 0 | AJ108: 0 | AK108: 0 | AL108: 0 | AM108: 0 | AN108: 0 | AO108: 0 | AP108: 0 | AQ108: 0 | AR108: 0 | AS108: 0 | AT108: 0 | AU108: 0 | AV108: 0 | AW108: 0 | AX108: 0 | AY108: 0
A109: ='Allocation Methodology'!A23 -> 19 | B109: ='Allocation Methodology'!B23 -> Renewable Energy Standard Offer | C109: ='Allocation Methodology'!C23 -> Consumer, Business, Industrial | D109: ='Allocation Methodology'!D23 -> 2007 | E109: ='Allocation Methodology'!E23 -> Final | F109: FALSE | G109: 0 | H109: 26.670696 | I109: 26.670696 | J109: 26.670696 | K109: 26.670696 | L109: 26.670696 | M109: 26.670696 | N109: 26.670696 | O109: 26.670696 | P109: 26.670696 | Q109: 26.670696 | R109: 26.670696 | S109: 26.670696 | T109: 26.670696 | U109: 26.670696 | V109: 26.670696 | W109: 26.670696 | X109: 26.670696 | Y109: 26.670696 | Z109: 26.670696 | AA109: 26.670696 | AB109: 0 | AC109: 0 | AD109: 0 | AE109: 0 | AF109: 0 | AG109: 0 | AH109: 0 | AI109: 0 | AJ109: 0 | AK109: 0 | AL109: 0 | AM109: 0 | AN109: 0 | AO109: 0 | AP109: 0 | AQ109: 0 | AR109: 0 | AS109: 0 | AT109: 0 | AU109: 0 | AV109: 0 | AW109: 0 | AX109: 0 | AY109: 0
A110: ='Allocation Methodology'!A24 -> 20 | B110: ='Allocation Methodology'!B24 -> Great Refrigerator Roundup | C110: ='Allocation Methodology'!C24 -> Consumer | D110: ='Allocation Methodology'!D24 -> 2008 | E110: ='Allocation Methodology'!E24 -> Final | F110: FALSE | G110: 0 | H110: 0 | I110: 235.11639 | J110: 235.11639 | K110: 235.11639 | L110: 235.11639 | M110: 234.86817 | N110: 234.61995 | O110: 234.61995 | P110: 234.61995 | Q110: 188.82875 | R110: 0 | S110: 0 | T110: 0 | U110: 0 | V110: 0 | W110: 0 | X110: 0 | Y110: 0 | Z110: 0 | AA110: 0 | AB110: 0 | AC110: 0 | AD110: 0 | AE110: 0 | AF110: 0 | AG110: 0 | AH110: 0 | AI110: 0 | AJ110: 0 | AK110: 0 | AL110: 0 | AM110: 0 | AN110: 0 | AO110: 0 | AP110: 0 | AQ110: 0 | AR110: 0 | AS110: 0 | AT110: 0 | AU110: 0 | AV110: 0 | AW110: 0 | AX110: 0 | AY110: 0
A111: ='Allocation Methodology'!A25 -> 21 | B111: ='Allocation Methodology'!B25 -> Cool Savings Rebate | C111: ='Allocation Methodology'!C25 -> Consumer | D111: ='Allocation Methodology'!D25 -> 2008 | E111: ='Allocation Methodology'!E25 -> Final | F111: FALSE | G111: 0 | H111: 0 | I111: 221.4527239 | J111: 221.4527239 | K111: 221.4527239 | L111: 221.4527239 | M111: 221.4527239 | N111: 221.4527239 | O111: 221.4527239 | P111: 221.4527239 | Q111: 221.4527239 | R111: 221.4527239 | S111: 221.4527239 | T111: 221.4527239 | U111: 221.4527239 | V111: 221.4527239 | W111: 221.4527239 | X111: 176.5931894 | Y111: 176.5931894 | Z111: 176.5931894 | AA111: 0 | AB111: 0 | AC111: 0 | AD111: 0 | AE111: 0 | AF111: 0 | AG111: 0 | AH111: 0 | AI111: 0 | AJ111: 0 | AK111: 0 | AL111: 0 | AM111: 0 | AN111: 0 | AO111: 0 | AP111: 0 | AQ111: 0 | AR111: 0 | AS111: 0 | AT111: 0 | AU111: 0 | AV111: 0 | AW111: 0 | AX111: 0 | AY111: 0
A112: ='Allocation Methodology'!A26 -> 22 | B112: ='Allocation Methodology'!B26 -> Every Kilowatt Counts Power Savings Event | C112: ='Allocation Methodology'!C26 -> Consumer | D112: ='Allocation Methodology'!D26 -> 2008 | E112: ='Allocation Methodology'!E26 -> Final | F112: FALSE | G112: 0 | H112: 0 | I112: 1124.149157 | J112: 1119.258946 | K112: 1119.258946 | L112: 1119.258946 | M112: 949.9898744 | N112: 949.9898744 | O112: 773.7256012 | P112: 642.041263 | Q112: 405.3639219 | R112: 400.1970916 | S112: 328.1659581 | T112: 328.1659581 | U112: 311.2909799 | V112: 311.2909799 | W112: 311.2909799 | X112: 299.6608153 | Y112: 0 | Z112: 0 | AA112: 0 | AB112: 0 | AC112: 0 | AD112: 0 | AE112: 0 | AF112: 0 | AG112: 0 | AH112: 0 | AI112: 0 | AJ112: 0 | AK112: 0 | AL112: 0 | AM112: 0 | AN112: 0 | AO112: 0 | AP112: 0 | AQ112: 0 | AR112: 0 | AS112: 0 | AT112: 0 | AU112: 0 | AV112: 0 | AW112: 0 | AX112: 0 | AY112: 0
A113: ='Allocation Methodology'!A27 -> 23 | B113: ='Allocation Methodology'!B27 -> peaksaver® | C113: ='Allocation Methodology'!C27 -> Consumer, Business | D113: ='Allocation Methodology'!D27 -> 2008 | E113: ='Allocation Methodology'!E27 -> Final | F113: FALSE | G113: 0 | H113: 0 | I113: 3.65895 | J113: 3.65895 | K113: 3.65895 | L113: 3.65895 | M113: 3.65895 | N113: 3.65895 | O113: 3.65895 | P113: 3.65895 | Q113: 3.65895 | R113: 3.65895 | S113: 3.65895 | T113: 3.65895 | U113: 3.65895 | V113: 0 | W113: 0 | X113: 0 | Y113: 0 | Z113: 0 | AA113: 0 | AB113: 0 | AC113: 0 | AD113: 0 | AE113: 0 | AF113: 0 | AG113: 0 | AH113: 0 | AI113: 0 | AJ113: 0 | AK113: 0 | AL113: 0 | AM113: 0 | AN113: 0 | AO113: 0 | AP113: 0 | AQ113: 0 | AR113: 0 | AS113: 0 | AT113: 0 | AU113: 0 | AV113: 0 | AW113: 0 | AX113: 0 | AY113: 0
A114: ='Allocation Methodology'!A28 -> 24 | B114: ='Allocation Methodology'!B28 -> Summer Sweepstakes | C114: ='Allocation Methodology'!C28 -> Consumer | D114: ='Allocation Methodology'!D28 -> 2008 | E114: ='Allocation Methodology'!E28 -> Final | F114: FALSE | G114: 0 | H114: 0 | I114: 808.8945916 | J114: 291.8923306 | K114: 291.8923306 | L114: 291.8923306 | M114: 291.8923306 | N114: 291.8923306 | O114: 291.8923306 | P114: 291.8923306 | Q114: 159.909029 | R114: 159.909029 | S114: 121.1629439 | T114: 121.1629439 | U114: 121.1629439 | V114: 107.1962032 | W114: 102.2197849 | X114: 97.18486551 | Y114: 97.18486551 | Z114: 97.18486551 | AA114: 97.18486551 | AB114: 97.18486551 | AC114: 0 | AD114: 0 | AE114: 0 | AF114: 0 | AG114: 0 | AH114: 0 | AI114: 0 | AJ114: 0 | AK114: 0 | AL114: 0 | AM114: 0 | AN114: 0 | AO114: 0 | AP114: 0 | AQ114: 0 | AR114: 0 | AS114: 0 | AT114: 0 | AU114: 0 | AV114: 0 | AW114: 0 | AX114: 0 | AY114: 0
A115: ='Allocation Methodology'!A29 -> 25 | B115: ='Allocation Methodology'!B29 -> Electricity Retrofit Incentive | C115: ='Allocation Methodology'!C29 -> Consumer, Business | D115: ='Allocation Methodology'!D29 -> 2008 | E115: ='Allocation Methodology'!E29 -> Final | F115: FALSE | G115: 0 | H115: 0 | I115: 601.39433 | J115: 601.390223 | K115: 601.390223 | L115: 601.390223 | M115: 601.390223 | N115: 601.390223 | O115: 601.390223 | P115: 601.390223 | Q115: 552.3337949 | R115: 552.3337949 | S115: 552.3337949 | T115: 552.3337949 | U115: 552.3337949 | V115: 552.3337949 | W115: 552.3337949 | X115: 535.763781 | Y115: 0 | Z115: 0 | AA115: 0 | AB115: 0 | AC115: 0 | AD115: 0 | AE115: 0 | AF115: 0 | AG115: 0 | AH115: 0 | AI115: 0 | AJ115: 0 | AK115: 0 | AL115: 0 | AM115: 0 | AN115: 0 | AO115: 0 | AP115: 0 | AQ115: 0 | AR115: 0 | AS115: 0 | AT115: 0 | AU115: 0 | AV115: 0 | AW115: 0 | AX115: 0 | AY115: 0
A116: ='Allocation Methodology'!A30 -> 26 | B116: ='Allocation Methodology'!B30 -> Toronto Comprehensive | C116: ='Allocation Methodology'!C30 -> Consumer, Consumer Low-Income, Business | D116: ='Allocation Methodology'!D30 -> 2008 | E116: ='Allocation Methodology'!E30 -> Final | F116: FALSE | G116: 0 | H116: 0 | I116: 0 | J116: 0 | K116: 0 | L116: 0 | M116: 0 | N116: 0 | O116: 0 | P116: 0 | Q116: 0 | R116: 0 | S116: 0 | T116: 0 | U116: 0 | V116: 0 | W116: 0 | X116: 0 | Y116: 0 | Z116: 0 | AA116: 0 | AB116: 0 | AC116: 0 | AD116: 0 | AE116: 0 | AF116: 0 | AG116: 0 | AH116: 0 | AI116: 0 | AJ116: 0 | AK116: 0 | AL116: 0 | AM116: 0 | AN116: 0 | AO116: 0 | AP116: 0 | AQ116: 0 | AR116: 0 | AS116: 0 | AT116: 0 | AU116: 0 | AV116: 0 | AW116: 0 | AX116: 0 | AY116: 0
A117: ='Allocation Methodology'!A31 -> 27 | B117: ='Allocation Methodology'!B31 -> High Performance New Construction | C117: ='Allocation Methodology'!C31 -> Business | D117: ='Allocation Methodology'!D31 -> 2008 | E117: ='Allocation Methodology'!E31 -> Final | F117: FALSE | G117: 0 | H117: 0 | I117: 3.991066113 | J117: 3.991066113 | K117: 3.991066113 | L117: 3.991066113 | M117: 3.991066113 | N117: 3.991066113 | O117: 3.991066113 | P117: 3.991066113 | Q117: 3.991066113 | R117: 3.991066113 | S117: 3.991066113 | T117: 3.991066113 | U117: 3.991066113 | V117: 3.991066113 | W117: 0 | X117: 0 | Y117: 0 | Z117: 0 | AA117: 0 | AB117: 0 | AC117: 0 | AD117: 0 | AE117: 0 | AF117: 0 | AG117: 0 | AH117: 0 | AI117: 0 | AJ117: 0 | AK117: 0 | AL117: 0 | AM117: 0 | AN117: 0 | AO117: 0 | AP117: 0 | AQ117: 0 | AR117: 0 | AS117: 0 | AT117: 0 | AU117: 0 | AV117: 0 | AW117: 0 | AX117: 0 | AY117: 0
A118: ='Allocation Methodology'!A32 -> 28 | B118: ='Allocation Methodology'!B32 -> Power Savings Blitz | C118: ='Allocation Methodology'!C32 -> Business | D118: ='Allocation Methodology'!D32 -> 2008 | E118: ='Allocation Methodology'!E32 -> Final | F118: FALSE | G118: 0 | H118: 0 | I118: 7.277994 | J118: 7.277994 | K118: 3.3729984 | L118: 3.3729984 | M118: 3.3729984 | N118: 3.3729984 | O118: 3.3729984 | P118: 3.3729984 | Q118: 3.3729984 | R118: 3.3729984 | S118: 3.3729984 | T118: 3.3729984 | U118: 3.3729984 | V118: 3.3729984 | W118: 3.3729984 | X118: 0 | Y118: 0 | Z118: 0 | AA118: 0 | AB118: 0 | AC118: 0 | AD118: 0 | AE118: 0 | AF118: 0 | AG118: 0 | AH118: 0 | AI118: 0 | AJ118: 0 | AK118: 0 | AL118: 0 | AM118: 0 | AN118: 0 | AO118: 0 | AP118: 0 | AQ118: 0 | AR118: 0 | AS118: 0 | AT118: 0 | AU118: 0 | AV118: 0 | AW118: 0 | AX118: 0 | AY118: 0
A119: ='Allocation Methodology'!A33 -> 29 | B119: ='Allocation Methodology'!B33 -> Demand Response 1 | C119: ='Allocation Methodology'!C33 -> Business, Industrial | D119: ='Allocation Methodology'!D33 -> 2008 | E119: ='Allocation Methodology'!E33 -> Final | F119: FALSE | G119: 0 | H119: 0 | I119: 0 | J119: 0 | K119: 0 | L119: 0 | M119: 0 | N119: 0 | O119: 0 | P119: 0 | Q119: 0 | R119: 0 | S119: 0 | T119: 0 | U119: 0 | V119: 0 | W119: 0 | X119: 0 | Y119: 0 | Z119: 0 | AA119: 0 | AB119: 0 | AC119: 0 | AD119: 0 | AE119: 0 | AF119: 0 | AG119: 0 | AH119: 0 | AI119: 0 | AJ119: 0 | AK119: 0 | AL119: 0 | AM119: 0 | AN119: 0 | AO119: 0 | AP119: 0 | AQ119: 0 | AR119: 0 | AS119: 0 | AT119: 0 | AU119: 0 | AV119: 0 | AW119: 0 | AX119: 0 | AY119: 0
A120: ='Allocation Methodology'!A34 -> 30 | B120: ='Allocation Methodology'!B34 -> Demand Response 3 | C120: ='Allocation Methodology'!C34 -> Business, Industrial | D120: ='Allocation Methodology'!D34 -> 2008 | E120: ='Allocation Methodology'!E34 -> Final | F120: FALSE | G120: 0 | H120: 0 | I120: 0 | J120: 0 | K120: 0 | L120: 0 | M120: 0 | N120: 0 | O120: 0 | P120: 0 | Q120: 0 | R120: 0 | S120: 0 | T120: 0 | U120: 0 | V120: 0 | W120: 0 | X120: 0 | Y120: 0 | Z120: 0 | AA120: 0 | AB120: 0 | AC120: 0 | AD120: 0 | AE120: 0 | AF120: 0 | AG120: 0 | AH120: 0 | AI120: 0 | AJ120: 0 | AK120: 0 | AL120: 0 | AM120: 0 | AN120: 0 | AO120: 0 | AP120: 0 | AQ120: 0 | AR120: 0 | AS120: 0 | AT120: 0 | AU120: 0 | AV120: 0 | AW120: 0 | AX120: 0 | AY120: 0
A121: ='Allocation Methodology'!A35 -> 31 | B121: ='Allocation Methodology'!B35 -> Loblaw & York Region Demand Response | C121: ='Allocation Methodology'!C35 -> Business, Industrial | D121: ='Allocation Methodology'!D35 -> 2008 | E121: ='Allocation Methodology'!E35 -> Final | F121: FALSE | G121: 0 | H121: 0 | I121: 0 | J121: 0 | K121: 0 | L121: 0 | M121: 0 | N121: 0 | O121: 0 | P121: 0 | Q121: 0 | R121: 0 | S121: 0 | T121: 0 | U121: 0 | V121: 0 | W121: 0 | X121: 0 | Y121: 0 | Z121: 0 | AA121: 0 | AB121: 0 | AC121: 0 | AD121: 0 | AE121: 0 | AF121: 0 | AG121: 0 | AH121: 0 | AI121: 0 | AJ121: 0 | AK121: 0 | AL121: 0 | AM121: 0 | AN121: 0 | AO121: 0 | AP121: 0 | AQ121: 0 | AR121: 0 | AS121: 0 | AT121: 0 | AU121: 0 | AV121: 0 | AW121: 0 | AX121: 0 | AY121: 0
A122: ='Allocation Methodology'!A36 -> 32 | B122: ='Allocation Methodology'!B36 -> Renewable Energy Standard Offer | C122: ='Allocation Methodology'!C36 -> Consumer, Business | D122: ='Allocation Methodology'!D36 -> 2008 | E122: ='Allocation Methodology'!E36 -> Final | F122: FALSE | G122: 0 | H122: 0 | I122: 0 | J122: 0 | K122: 0 | L122: 0 | M122: 0 | N122: 0 | O122: 0 | P122: 0 | Q122: 0 | R122: 0 | S122: 0 | T122: 0 | U122: 0 | V122: 0 | W122: 0 | X122: 0 | Y122: 0 | Z122: 0 | AA122: 0 | AB122: 0 | AC122: 0 | AD122: 0 | AE122: 0 | AF122: 0 | AG122: 0 | AH122: 0 | AI122: 0 | AJ122: 0 | AK122: 0 | AL122: 0 | AM122: 0 | AN122: 0 | AO122: 0 | AP122: 0 | AQ122: 0 | AR122: 0 | AS122: 0 | AT122: 0 | AU122: 0 | AV122: 0 | AW122: 0 | AX122: 0 | AY122: 0
A123: ='Allocation Methodology'!A37 -> 33 | B123: ='Allocation Methodology'!B37 -> Other Customer Based Generation | C123: ='Allocation Methodology'!C37 -> Business | D123: ='Allocation Methodology'!D37 -> 2008 | E123: ='Allocation Methodology'!E37 -> Final | F123: FALSE | G123: 0 | H123: 0 | I123: 0 | J123: 0 | K123: 0 | L123: 0 | M123: 0 | N123: 0 | O123: 0 | P123: 0 | Q123: 0 | R123: 0 | S123: 0 | T123: 0 | U123: 0 | V123: 0 | W123: 0 | X123: 0 | Y123: 0 | Z123: 0 | AA123: 0 | AB123: 0 | AC123: 0 | AD123: 0 | AE123: 0 | AF123: 0 | AG123: 0 | AH123: 0 | AI123: 0 | AJ123: 0 | AK123: 0 | AL123: 0 | AM123: 0 | AN123: 0 | AO123: 0 | AP123: 0 | AQ123: 0 | AR123: 0 | AS123: 0 | AT123: 0 | AU123: 0 | AV123: 0 | AW123: 0 | AX123: 0 | AY123: 0
A124: ='Allocation Methodology'!A38 -> 34 | B124: ='Allocation Methodology'!B38 -> LDC Custom - Hydro One Networks Inc. - Double Return | C124: ='Allocation Methodology'!C38 -> Business, Industrial | D124: ='Allocation Methodology'!D38 -> 2008 | E124: ='Allocation Methodology'!E38 -> Final | F124: FALSE | G124: 0 | H124: 0 | I124: 0 | J124: 0 | K124: 0 | L124: 0 | M124: 0 | N124: 0 | O124: 0 | P124: 0 | Q124: 0 | R124: 0 | S124: 0 | T124: 0 | U124: 0 | V124: 0 | W124: 0 | X124: 0 | Y124: 0 | Z124: 0 | AA124: 0 | AB124: 0 | AC124: 0 | AD124: 0 | AE124: 0 | AF124: 0 | AG124: 0 | AH124: 0 | AI124: 0 | AJ124: 0 | AK124: 0 | AL124: 0 | AM124: 0 | AN124: 0 | AO124: 0 | AP124: 0 | AQ124: 0 | AR124: 0 | AS124: 0 | AT124: 0 | AU124: 0 | AV124: 0 | AW124: 0 | AX124: 0 | AY124: 0
A125: ='Allocation Methodology'!A39 -> 35 | B125: ='Allocation Methodology'!B39 -> Great Refrigerator Roundup | C125: ='Allocation Methodology'!C39 -> Consumer | D125: ='Allocation Methodology'!D39 -> 2009 | E125: ='Allocation Methodology'!E39 -> Final | F125: FALSE | G125: 0 | H125: 0 | I125: 0 | J125: 190.7178278 | K125: 190.7178278 | L125: 190.7178278 | M125: 190.3122237 | N125: 135.0007359 | O125: 0 | P125: 0 | Q125: 0 | R125: 0 | S125: 0 | T125: 0 | U125: 0 | V125: 0 | W125: 0 | X125: 0 | Y125: 0 | Z125: 0 | AA125: 0 | AB125: 0 | AC125: 0 | AD125: 0 | AE125: 0 | AF125: 0 | AG125: 0 | AH125: 0 | AI125: 0 | AJ125: 0 | AK125: 0 | AL125: 0 | AM125: 0 | AN125: 0 | AO125: 0 | AP125: 0 | AQ125: 0 | AR125: 0 | AS125: 0 | AT125: 0 | AU125: 0 | AV125: 0 | AW125: 0 | AX125: 0 | AY125: 0
A126: ='Allocation Methodology'!A40 -> 36 | B126: ='Allocation Methodology'!B40 -> Cool Savings Rebate | C126: ='Allocation Methodology'!C40 -> Consumer | D126: ='Allocation Methodology'!D40 -> 2009 | E126: ='Allocation Methodology'!E40 -> Final | F126: FALSE | G126: 0 | H126: 0 | I126: 0 | J126: 278.6205577 | K126: 278.6205577 | L126: 278.6205577 | M126: 277.6296972 | N126: 276.2048019 | O126: 274.5282774 | P126: 274.5282774 | Q126: 274.5282774 | R126: 274.5282774 | S126: 274.5282774 | T126: 268.395259 | U126: 268.395259 | V126: 268.395259 | W126: 268.395259 | X126: 268.395259 | Y126: 262.673043 | Z126: 262.673043 | AA126: 262.673043 | AB126: 220.2228438 | AC126: 0 | AD126: 0 | AE126: 0 | AF126: 0 | AG126: 0 | AH126: 0 | AI126: 0 | AJ126: 0 | AK126: 0 | AL126: 0 | AM126: 0 | AN126: 0 | AO126: 0 | AP126: 0 | AQ126: 0 | AR126: 0 | AS126: 0 | AT126: 0 | AU126: 0 | AV126: 0 | AW126: 0 | AX126: 0 | AY126: 0
A127: ='Allocation Methodology'!A41 -> 37 | B127: ='Allocation Methodology'!B41 -> Every Kilowatt Counts Power Savings Event | C127: ='Allocation Methodology'!C41 -> Consumer | D127: ='Allocation Methodology'!D41 -> 2009 | E127: ='Allocation Methodology'!E41 -> Final | F127: FALSE | G127: 0 | H127: 0 | I127: 0 | J127: 484.4785714 | K127: 464.3749574 | L127: 464.3749574 | M127: 464.3465743 | N127: 461.2571858 | O127: 443.0619053 | P127: 352.7475625 | Q127: 350.7769684 | R127: 224.3520472 | S127: 224.3520472 | T127: 162.5152392 | U127: 162.3937536 | V127: 113.8119064 | W127: 113.8119064 | X127: 106.8889034 | Y127: 55.21890145 | Z127: 19.60488069 | AA127: 12.52802561 | AB127: 12.16653608 | AC127: 12.16653608 | AD127: 0 | AE127: 0 | AF127: 0 | AG127: 0 | AH127: 0 | AI127: 0 | AJ127: 0 | AK127: 0 | AL127: 0 | AM127: 0 | AN127: 0 | AO127: 0 | AP127: 0 | AQ127: 0 | AR127: 0 | AS127: 0 | AT127: 0 | AU127: 0 | AV127: 0 | AW127: 0 | AX127: 0 | AY127: 0
A128: ='Allocation Methodology'!A42 -> 38 | B128: ='Allocation Methodology'!B42 -> peaksaver® | C128: ='Allocation Methodology'!C42 -> Consumer, Business | D128: ='Allocation Methodology'!D42 -> 2009 | E128: ='Allocation Methodology'!E42 -> Final | F128: FALSE | G128: 0 | H128: 0 | I128: 0 | J128: 0.2137748457 | K128: 0.2137748457 | L128: 0.2137748457 | M128: 0.2137748457 | N128: 0.2137748457 | O128: 0.2137748457 | P128: 0.2137748457 | Q128: 0.2137748457 | R128: 0.2137748457 | S128: 0.2137748457 | T128: 0.2137748457 | U128: 0.2137748457 | V128: 0.2137748457 | W128: 0 | X128: 0 | Y128: 0 | Z128: 0 | AA128: 0 | AB128: 0 | AC128: 0 | AD128: 0 | AE128: 0 | AF128: 0 | AG128: 0 | AH128: 0 | AI128: 0 | AJ128: 0 | AK128: 0 | AL128: 0 | AM128: 0 | AN128: 0 | AO128: 0 | AP128: 0 | AQ128: 0 | AR128: 0 | AS128: 0 | AT128: 0 | AU128: 0 | AV128: 0 | AW128: 0 | AX128: 0 | AY128: 0
A129: ='Allocation Methodology'!A43 -> 39 | B129: ='Allocation Methodology'!B43 -> Electricity Retrofit Incentive | C129: ='Allocation Methodology'!C43 -> Consumer, Business | D129: ='Allocation Methodology'!D43 -> 2009 | E129: ='Allocation Methodology'!E43 -> Final | F129: FALSE | G129: 0 | H129: 0 | I129: 0 | J129: 1878.397129 | K129: 1878.397129 | L129: 1878.397129 | M129: 1878.397129 | N129: 1878.397129 | O129: 1878.397129 | P129: 1729.96555 | Q129: 1626.818182 | R129: 1626.818182 | S129: 1626.818182 | T129: 1317.722727 | U129: 0 | V129: 0 | W129: 0 | X129: 0 | Y129: 0 | Z129: 0 | AA129: 0 | AB129: 0 | AC129: 0 | AD129: 0 | AE129: 0 | AF129: 0 | AG129: 0 | AH129: 0 | AI129: 0 | AJ129: 0 | AK129: 0 | AL129: 0 | AM129: 0 | AN129: 0 | AO129: 0 | AP129: 0 | AQ129: 0 | AR129: 0 | AS129: 0 | AT129: 0 | AU129: 0 | AV129: 0 | AW129: 0 | AX129: 0 | AY129: 0
A130: ='Allocation Methodology'!A44 -> 40 | B130: ='Allocation Methodology'!B44 -> Toronto Comprehensive | C130: ='Allocation Methodology'!C44 -> Consumer, Consumer Low-Income, Business, Industrial | D130: ='Allocation Methodology'!D44 -> 2009 | E130: ='Allocation Methodology'!E44 -> Final | F130: FALSE | G130: 0 | H130: 0 | I130: 0 | J130: 0 | K130: 0 | L130: 0 | M130: 0 | N130: 0 | O130: 0 | P130: 0 | Q130: 0 | R130: 0 | S130: 0 | T130: 0 | U130: 0 | V130: 0 | W130: 0 | X130: 0 | Y130: 0 | Z130: 0 | AA130: 0 | AB130: 0 | AC130: 0 | AD130: 0 | AE130: 0 | AF130: 0 | AG130: 0 | AH130: 0 | AI130: 0 | AJ130: 0 | AK130: 0 | AL130: 0 | AM130: 0 | AN130: 0 | AO130: 0 | AP130: 0 | AQ130: 0 | AR130: 0 | AS130: 0 | AT130: 0 | AU130: 0 | AV130: 0 | AW130: 0 | AX130: 0 | AY130: 0
A131: ='Allocation Methodology'!A45 -> 41 | B131: ='Allocation Methodology'!B45 -> High Performance New Construction | C131: ='Allocation Methodology'!C45 -> Business | D131: ='Allocation Methodology'!D45 -> 2009 | E131: ='Allocation Methodology'!E45 -> Final | F131: FALSE | G131: 0 | H131: 0 | I131: 0 | J131: 117.0732256 | K131: 117.0732256 | L131: 117.0732256 | M131: 117.0732256 | N131: 117.0732256 | O131: 117.0732256 | P131: 117.0732256 | Q131: 117.0732256 | R131: 117.0732256 | S131: 117.0732256 | T131: 117.0732256 | U131: 117.0732256 | V131: 117.0732256 | W131: 117.0732256 | X131: 117.0732256 | Y131: 117.0732256 | Z131: 117.0732256 | AA131: 117.0732256 | AB131: 117.0732256 | AC131: 117.0732256 | AD131: 0 | AE131: 0 | AF131: 0 | AG131: 0 | AH131: 0 | AI131: 0 | AJ131: 0 | AK131: 0 | AL131: 0 | AM131: 0 | AN131: 0 | AO131: 0 | AP131: 0 | AQ131: 0 | AR131: 0 | AS131: 0 | AT131: 0 | AU131: 0 | AV131: 0 | AW131: 0 | AX131: 0 | AY131: 0
A132: ='Allocation Methodology'!A46 -> 42 | B132: ='Allocation Methodology'!B46 -> Power Savings Blitz | C132: ='Allocation Methodology'!C46 -> Business | D132: ='Allocation Methodology'!D46 -> 2009 | E132: ='Allocation Methodology'!E46 -> Final | F132: FALSE | G132: 0 | H132: 0 | I132: 0 | J132: 2436.010673 | K132: 2436.010673 | L132: 2436.010673 | M132: 2436.010673 | N132: 2436.010673 | O132: 2436.010673 | P132: 2436.010673 | Q132: 2436.010673 | R132: 1372.006011 | S132: 0 | T132: 0 | U132: 0 | V132: 0 | W132: 0 | X132: 0 | Y132: 0 | Z132: 0 | AA132: 0 | AB132: 0 | AC132: 0 | AD132: 0 | AE132: 0 | AF132: 0 | AG132: 0 | AH132: 0 | AI132: 0 | AJ132: 0 | AK132: 0 | AL132: 0 | AM132: 0 | AN132: 0 | AO132: 0 | AP132: 0 | AQ132: 0 | AR132: 0 | AS132: 0 | AT132: 0 | AU132: 0 | AV132: 0 | AW132: 0 | AX132: 0 | AY132: 0
A133: ='Allocation Methodology'!A47 -> 43 | B133: ='Allocation Methodology'!B47 -> Multi-Family Energy Efficiency Rebates | C133: ='Allocation Methodology'!C47 -> Consumer, Consumer Low-Income | D133: ='Allocation Methodology'!D47 -> 2009 | E133: ='Allocation Methodology'!E47 -> Final | F133: FALSE | G133: 0 | H133: 0 | I133: 0 | J133: 0 | K133: 0 | L133: 0 | M133: 0 | N133: 0 | O133: 0 | P133: 0 | Q133: 0 | R133: 0 | S133: 0 | T133: 0 | U133: 0 | V133: 0 | W133: 0 | X133: 0 | Y133: 0 | Z133: 0 | AA133: 0 | AB133: 0 | AC133: 0 | AD133: 0 | AE133: 0 | AF133: 0 | AG133: 0 | AH133: 0 | AI133: 0 | AJ133: 0 | AK133: 0 | AL133: 0 | AM133: 0 | AN133: 0 | AO133: 0 | AP133: 0 | AQ133: 0 | AR133: 0 | AS133: 0 | AT133: 0 | AU133: 0 | AV133: 0 | AW133: 0 | AX133: 0 | AY133: 0
A134: ='Allocation Methodology'!A48 -> 44 | B134: ='Allocation Methodology'!B48 -> Demand Response 1 | C134: ='Allocation Methodology'!C48 -> Business, Industrial | D134: ='Allocation Methodology'!D48 -> 2009 | E134: ='Allocation Methodology'!E48 -> Final | F134: FALSE | G134: 0 | H134: 0 | I134: 0 | J134: 101.8672268 | K134: 0 | L134: 0 | M134: 0 | N134: 0 | O134: 0 | P134: 0 | Q134: 0 | R134: 0 | S134: 0 | T134: 0 | U134: 0 | V134: 0 | W134: 0 | X134: 0 | Y134: 0 | Z134: 0 | AA134: 0 | AB134: 0 | AC134: 0 | AD134: 0 | AE134: 0 | AF134: 0 | AG134: 0 | AH134: 0 | AI134: 0 | AJ134: 0 | AK134: 0 | AL134: 0 | AM134: 0 | AN134: 0 | AO134: 0 | AP134: 0 | AQ134: 0 | AR134: 0 | AS134: 0 | AT134: 0 | AU134: 0 | AV134: 0 | AW134: 0 | AX134: 0 | AY134: 0
A135: ='Allocation Methodology'!A49 -> 45 | B135: ='Allocation Methodology'!B49 -> Demand Response 2 | C135: ='Allocation Methodology'!C49 -> Business, Industrial | D135: ='Allocation Methodology'!D49 -> 2009 | E135: ='Allocation Methodology'!E49 -> Final | F135: FALSE | G135: 0 | H135: 0 | I135: 0 | J135: 969.7230811 | K135: 0 | L135: 0 | M135: 0 | N135: 0 | O135: 0 | P135: 0 | Q135: 0 | R135: 0 | S135: 0 | T135: 0 | U135: 0 | V135: 0 | W135: 0 | X135: 0 | Y135: 0 | Z135: 0 | AA135: 0 | AB135: 0 | AC135: 0 | AD135: 0 | AE135: 0 | AF135: 0 | AG135: 0 | AH135: 0 | AI135: 0 | AJ135: 0 | AK135: 0 | AL135: 0 | AM135: 0 | AN135: 0 | AO135: 0 | AP135: 0 | AQ135: 0 | AR135: 0 | AS135: 0 | AT135: 0 | AU135: 0 | AV135: 0 | AW135: 0 | AX135: 0 | AY135: 0
A136: ='Allocation Methodology'!A50 -> 46 | B136: ='Allocation Methodology'!B50 -> Demand Response 3 | C136: ='Allocation Methodology'!C50 -> Business, Industrial | D136: ='Allocation Methodology'!D50 -> 2009 | E136: ='Allocation Methodology'!E50 -> Final | F136: FALSE | G136: 0 | H136: 0 | I136: 0 | J136: 18.52131396 | K136: 0 | L136: 0 | M136: 0 | N136: 0 | O136: 0 | P136: 0 | Q136: 0 | R136: 0 | S136: 0 | T136: 0 | U136: 0 | V136: 0 | W136: 0 | X136: 0 | Y136: 0 | Z136: 0 | AA136: 0 | AB136: 0 | AC136: 0 | AD136: 0 | AE136: 0 | AF136: 0 | AG136: 0 | AH136: 0 | AI136: 0 | AJ136: 0 | AK136: 0 | AL136: 0 | AM136: 0 | AN136: 0 | AO136: 0 | AP136: 0 | AQ136: 0 | AR136: 0 | AS136: 0 | AT136: 0 | AU136: 0 | AV136: 0 | AW136: 0 | AX136: 0 | AY136: 0
A137: ='Allocation Methodology'!A51 -> 47 | B137: ='Allocation Methodology'!B51 -> Loblaw & York Region Demand Response | C137: ='Allocation Methodology'!C51 -> Business, Industrial | D137: ='Allocation Methodology'!D51 -> 2009 | E137: ='Allocation Methodology'!E51 -> Final | F137: FALSE | G137: 0 | H137: 0 | I137: 0 | J137: 0 | K137: 0 | L137: 0 | M137: 0 | N137: 0 | O137: 0 | P137: 0 | Q137: 0 | R137: 0 | S137: 0 | T137: 0 | U137: 0 | V137: 0 | W137: 0 | X137: 0 | Y137: 0 | Z137: 0 | AA137: 0 | AB137: 0 | AC137: 0 | AD137: 0 | AE137: 0 | AF137: 0 | AG137: 0 | AH137: 0 | AI137: 0 | AJ137: 0 | AK137: 0 | AL137: 0 | AM137: 0 | AN137: 0 | AO137: 0 | AP137: 0 | AQ137: 0 | AR137: 0 | AS137: 0 | AT137: 0 | AU137: 0 | AV137: 0 | AW137: 0 | AX137: 0 | AY137: 0
A138: ='Allocation Methodology'!A52 -> 48 | B138: ='Allocation Methodology'!B52 -> LDC Custom - Thunder Bay Hydro - Phantom Load | C138: ='Allocation Methodology'!C52 -> Consumer | D138: ='Allocation Methodology'!D52 -> 2009 | E138: ='Allocation Methodology'!E52 -> Final | F138: FALSE | G138: 0 | H138: 0 | I138: 0 | J138: 0 | K138: 0 | L138: 0 | M138: 0 | N138: 0 | O138: 0 | P138: 0 | Q138: 0 | R138: 0 | S138: 0 | T138: 0 | U138: 0 | V138: 0 | W138: 0 | X138: 0 | Y138: 0 | Z138: 0 | AA138: 0 | AB138: 0 | AC138: 0 | AD138: 0 | AE138: 0 | AF138: 0 | AG138: 0 | AH138: 0 | AI138: 0 | AJ138: 0 | AK138: 0 | AL138: 0 | AM138: 0 | AN138: 0 | AO138: 0 | AP138: 0 | AQ138: 0 | AR138: 0 | AS138: 0 | AT138: 0 | AU138: 0 | AV138: 0 | AW138: 0 | AX138: 0 | AY138: 0
A139: ='Allocation Methodology'!A53 -> 49 | B139: ='Allocation Methodology'!B53 -> LDC Custom - Toronto Hydro - Summer Challenge | C139: ='Allocation Methodology'!C53 -> Consumer | D139: ='Allocation Methodology'!D53 -> 2009 | E139: ='Allocation Methodology'!E53 -> Final | F139: FALSE | G139: 0 | H139: 0 | I139: 0 | J139: 0 | K139: 0 | L139: 0 | M139: 0 | N139: 0 | O139: 0 | P139: 0 | Q139: 0 | R139: 0 | S139: 0 | T139: 0 | U139: 0 | V139: 0 | W139: 0 | X139: 0 | Y139: 0 | Z139: 0 | AA139: 0 | AB139: 0 | AC139: 0 | AD139: 0 | AE139: 0 | AF139: 0 | AG139: 0 | AH139: 0 | AI139: 0 | AJ139: 0 | AK139: 0 | AL139: 0 | AM139: 0 | AN139: 0 | AO139: 0 | AP139: 0 | AQ139: 0 | AR139: 0 | AS139: 0 | AT139: 0 | AU139: 0 | AV139: 0 | AW139: 0 | AX139: 0 | AY139: 0
A140: ='Allocation Methodology'!A54 -> 50 | B140: ='Allocation Methodology'!B54 -> LDC Custom - PowerStream - Data Centers | C140: ='Allocation Methodology'!C54 -> Business | D140: ='Allocation Methodology'!D54 -> 2009 | E140: ='Allocation Methodology'!E54 -> Final | G140: 0 | H140: 0 | I140: 0 | J140: 0 | K140: 0 | L140: 0 | M140: 0 | N140: 0 | O140: 0 | P140: 0 | Q140: 0 | R140: 0 | S140: 0 | T140: 0 | U140: 0 | V140: 0 | W140: 0 | X140: 0 | Y140: 0 | Z140: 0 | AA140: 0 | AB140: 0 | AC140: 0 | AD140: 0 | AE140: 0 | AF140: 0 | AG140: 0 | AH140: 0 | AI140: 0 | AJ140: 0 | AK140: 0 | AL140: 0 | AM140: 0 | AN140: 0 | AO140: 0 | AP140: 0 | AQ140: 0 | AR140: 0 | AS140: 0 | AT140: 0 | AU140: 0 | AV140: 0 | AW140: 0 | AX140: 0 | AY140: 0
A141: ='Allocation Methodology'!A55 -> 51 | B141: ='Allocation Methodology'!B55 -> Toronto Comprehensive Adjustment | C141: ='Allocation Methodology'!C55 -> Consumer, Business | D141: ='Allocation Methodology'!D55 -> 2008 | E141: ='Allocation Methodology'!E55 -> Final | G141: 0 | H141: 0 | I141: 0 | J141: 0 | K141: 0 | L141: 0 | M141: 0 | N141: 0 | O141: 0 | P141: 0 | Q141: 0 | R141: 0 | S141: 0 | T141: 0 | U141: 0 | V141: 0 | W141: 0 | X141: 0 | Y141: 0 | Z141: 0 | AA141: 0 | AB141: 0 | AC141: 0 | AD141: 0 | AE141: 0 | AF141: 0 | AG141: 0 | AH141: 0 | AI141: 0 | AJ141: 0 | AK141: 0 | AL141: 0 | AM141: 0 | AN141: 0 | AO141: 0 | AP141: 0 | AQ141: 0 | AR141: 0 | AS141: 0 | AT141: 0 | AU141: 0 | AV141: 0 | AW141: 0 | AX141: 0 | AY141: 0
A142: ='Allocation Methodology'!A56 -> 52 | B142: ='Allocation Methodology'!B56 -> LDC Custom - Hydro One Networks Inc. - Double Return Adjustment | C142: ='Allocation Methodology'!C56 -> Business, Industrial | D142: ='Allocation Methodology'!D56 -> 2008 | E142: ='Allocation Methodology'!E56 -> Final | G142: 0 | H142: 0 | I142: 0 | J142: 0 | K142: 0 | L142: 0 | M142: 0 | N142: 0 | O142: 0 | P142: 0 | Q142: 0 | R142: 0 | S142: 0 | T142: 0 | U142: 0 | V142: 0 | W142: 0 | X142: 0 | Y142: 0 | Z142: 0 | AA142: 0 | AB142: 0 | AC142: 0 | AD142: 0 | AE142: 0 | AF142: 0 | AG142: 0 | AH142: 0 | AI142: 0 | AJ142: 0 | AK142: 0 | AL142: 0 | AM142: 0 | AN142: 0 | AO142: 0 | AP142: 0 | AQ142: 0 | AR142: 0 | AS142: 0 | AT142: 0 | AU142: 0 | AV142: 0 | AW142: 0 | AX142: 0 | AY142: 0
A143: ='Allocation Methodology'!A57 -> 53 | B143: ='Allocation Methodology'!B57 -> Great Refrigerator Roundup | C143: ='Allocation Methodology'!C57 -> Consumer | D143: ='Allocation Methodology'!D57 -> 2010 | E143: ='Allocation Methodology'!E57 -> Final | G143: 0 | H143: 0 | I143: 0 | J143: 0 | K143: 379.6110368 | L143: 379.6110368 | M143: 379.6110368 | N143: 379.0625575 | O143: 330.7626846 | P143: 0 | Q143: 0 | R143: 0 | S143: 0 | T143: 0 | U143: 0 | V143: 0 | W143: 0 | X143: 0 | Y143: 0 | Z143: 0 | AA143: 0 | AB143: 0 | AC143: 0 | AD143: 0 | AE143: 0 | AF143: 0 | AG143: 0 | AH143: 0 | AI143: 0 | AJ143: 0 | AK143: 0 | AL143: 0 | AM143: 0 | AN143: 0 | AO143: 0 | AP143: 0 | AQ143: 0 | AR143: 0 | AS143: 0 | AT143: 0 | AU143: 0 | AV143: 0 | AW143: 0 | AX143: 0 | AY143: 0
A144: ='Allocation Methodology'!A58 -> 54 | B144: ='Allocation Methodology'!B58 -> Cool Savings Rebate | C144: ='Allocation Methodology'!C58 -> Consumer | D144: ='Allocation Methodology'!D58 -> 2010 | E144: ='Allocation Methodology'!E58 -> Final | G144: 0 | H144: 0 | I144: 0 | J144: 0 | K144: 350.3387864 | L144: 350.3387864 | M144: 350.3387864 | N144: 350.3387864 | O144: 350.3387864 | P144: 350.3387864 | Q144: 350.3387864 | R144: 350.3387864 | S144: 350.3387864 | T144: 350.3387864 | U144: 350.3387864 | V144: 350.3387864 | W144: 350.3387864 | X144: 350.3387864 | Y144: 350.3387864 | Z144: 343.1083597 | AA144: 343.1083597 | AB144: 343.1083597 | AC144: 300.6533025 | AD144: 0 | AE144: 0 | AF144: 0 | AG144: 0 | AH144: 0 | AI144: 0 | AJ144: 0 | AK144: 0 | AL144: 0 | AM144: 0 | AN144: 0 | AO144: 0 | AP144: 0 | AQ144: 0 | AR144: 0 | AS144: 0 | AT144: 0 | AU144: 0 | AV144: 0 | AW144: 0 | AX144: 0 | AY144: 0
A145: ='Allocation Methodology'!A59 -> 55 | B145: ='Allocation Methodology'!B59 -> Every Kilowatt Counts Power Savings Event | C145: ='Allocation Methodology'!C59 -> Consumer | D145: ='Allocation Methodology'!D59 -> 2010 | E145: ='Allocation Methodology'!E59 -> Final | G145: 0 | H145: 0 | I145: 0 | J145: 0 | K145: 185.7276073 | L145: 163.2407544 | M145: 158.0454714 | N145: 158.0454714 | O145: 158.0454714 | P145: 81.34890284 | Q145: 62.11265394 | R145: 62.11265394 | S145: 60.52906435 | T145: 56.95156451 | U145: 43.8089483 | V145: 43.8089483 | W145: 38.69893288 | X145: 38.69893288 | Y145: 38.69893288 | Z145: 22.02878268 | AA145: 0.5377608952 | AB145: 0.5377608952 | AC145: 0.5377608952 | AD145: 0.5377608952 | AE145: 0 | AF145: 0 | AG145: 0 | AH145: 0 | AI145: 0 | AJ145: 0 | AK145: 0 | AL145: 0 | AM145: 0 | AN145: 0 | AO145: 0 | AP145: 0 | AQ145: 0 | AR145: 0 | AS145: 0 | AT145: 0 | AU145: 0 | AV145: 0 | AW145: 0 | AX145: 0 | AY145: 0
A146: ='Allocation Methodology'!A60 -> 56 | B146: ='Allocation Methodology'!B60 -> peaksaver® | C146: ='Allocation Methodology'!C60 -> Consumer, Business | D146: ='Allocation Methodology'!D60 -> 2010 | E146: ='Allocation Methodology'!E60 -> Final | G146: 0 | H146: 0 | I146: 0 | J146: 0 | K146: 1.686852115 | L146: 1.686852115 | M146: 1.686852115 | N146: 1.686852115 | O146: 1.686852115 | P146: 1.686852115 | Q146: 1.686852115 | R146: 1.686852115 | S146: 1.686852115 | T146: 1.686852115 | U146: 1.686852115 | V146: 1.686852115 | W146: 1.686852115 | X146: 0 | Y146: 0 | Z146: 0 | AA146: 0 | AB146: 0 | AC146: 0 | AD146: 0 | AE146: 0 | AF146: 0 | AG146: 0 | AH146: 0 | AI146: 0 | AJ146: 0 | AK146: 0 | AL146: 0 | AM146: 0 | AN146: 0 | AO146: 0 | AP146: 0 | AQ146: 0 | AR146: 0 | AS146: 0 | AT146: 0 | AU146: 0 | AV146: 0 | AW146: 0 | AX146: 0 | AY146: 0
A147: ='Allocation Methodology'!A61 -> 57 | B147: ='Allocation Methodology'!B61 -> Electricity Retrofit Incentive | C147: ='Allocation Methodology'!C61 -> Consumer, Business | D147: ='Allocation Methodology'!D61 -> 2010 | E147: ='Allocation Methodology'!E61 -> Final | G147: 0 | H147: 0 | I147: 0 | J147: 0 | K147: 6300.851113 | L147: 6300.851113 | M147: 6300.851113 | N147: 6300.851113 | O147: 6300.851113 | P147: 6300.851113 | Q147: 6300.851113 | R147: 6300.851113 | S147: 6233.16068 | T147: 1410.217348 | U147: 0 | V147: 0 | W147: 0 | X147: 0 | Y147: 0 | Z147: 0 | AA147: 0 | AB147: 0 | AC147: 0 | AD147: 0 | AE147: 0 | AF147: 0 | AG147: 0 | AH147: 0 | AI147: 0 | AJ147: 0 | AK147: 0 | AL147: 0 | AM147: 0 | AN147: 0 | AO147: 0 | AP147: 0 | AQ147: 0 | AR147: 0 | AS147: 0 | AT147: 0 | AU147: 0 | AV147: 0 | AW147: 0 | AX147: 0 | AY147: 0
A148: ='Allocation Methodology'!A62 -> 58 | B148: ='Allocation Methodology'!B62 -> Toronto Comprehensive | C148: ='Allocation Methodology'!C62 -> Consumer, Consumer Low-Income, Business, Industrial | D148: ='Allocation Methodology'!D62 -> 2010 | E148: ='Allocation Methodology'!E62 -> Final | G148: 0 | H148: 0 | I148: 0 | J148: 0 | K148: 0 | L148: 0 | M148: 0 | N148: 0 | O148: 0 | P148: 0 | Q148: 0 | R148: 0 | S148: 0 | T148: 0 | U148: 0 | V148: 0 | W148: 0 | X148: 0 | Y148: 0 | Z148: 0 | AA148: 0 | AB148: 0 | AC148: 0 | AD148: 0 | AE148: 0 | AF148: 0 | AG148: 0 | AH148: 0 | AI148: 0 | AJ148: 0 | AK148: 0 | AL148: 0 | AM148: 0 | AN148: 0 | AO148: 0 | AP148: 0 | AQ148: 0 | AR148: 0 | AS148: 0 | AT148: 0 | AU148: 0 | AV148: 0 | AW148: 0 | AX148: 0 | AY148: 0
A149: ='Allocation Methodology'!A63 -> 59 | B149: ='Allocation Methodology'!B63 -> High Performance New Construction | C149: ='Allocation Methodology'!C63 -> Business | D149: ='Allocation Methodology'!D63 -> 2010 | E149: ='Allocation Methodology'!E63 -> Final | G149: 0 | H149: 0 | I149: 0 | J149: 0 | K149: 404.8938912 | L149: 404.8938912 | M149: 404.8938912 | N149: 404.8938912 | O149: 404.8938912 | P149: 404.8938912 | Q149: 404.8938912 | R149: 404.8938912 | S149: 404.8938912 | T149: 404.8938912 | U149: 404.8938912 | V149: 404.8938912 | W149: 404.8938912 | X149: 404.8938912 | Y149: 404.8938912 | Z149: 404.8938912 | AA149: 404.8938912 | AB149: 404.8938912 | AC149: 404.8938912 | AD149: 404.8938912 | AE149: 0 | AF149: 0 | AG149: 0 | AH149: 0 | AI149: 0 | AJ149: 0 | AK149: 0 | AL149: 0 | AM149: 0 | AN149: 0 | AO149: 0 | AP149: 0 | AQ149: 0 | AR149: 0 | AS149: 0 | AT149: 0 | AU149: 0 | AV149: 0 | AW149: 0 | AX149: 0 | AY149: 0
A150: ='Allocation Methodology'!A64 -> 60 | B150: ='Allocation Methodology'!B64 -> Power Savings Blitz | C150: ='Allocation Methodology'!C64 -> Business | D150: ='Allocation Methodology'!D64 -> 2010 | E150: ='Allocation Methodology'!E64 -> Final | G150: 0 | H150: 0 | I150: 0 | J150: 0 | K150: 1629.481562 | L150: 1629.481562 | M150: 1629.481562 | N150: 1629.481562 | O150: 1629.481562 | P150: 1629.481562 | Q150: 1629.481562 | R150: 1099.742769 | S150: 0 | T150: 0 | U150: 0 | V150: 0 | W150: 0 | X150: 0 | Y150: 0 | Z150: 0 | AA150: 0 | AB150: 0 | AC150: 0 | AD150: 0 | AE150: 0 | AF150: 0 | AG150: 0 | AH150: 0 | AI150: 0 | AJ150: 0 | AK150: 0 | AL150: 0 | AM150: 0 | AN150: 0 | AO150: 0 | AP150: 0 | AQ150: 0 | AR150: 0 | AS150: 0 | AT150: 0 | AU150: 0 | AV150: 0 | AW150: 0 | AX150: 0 | AY150: 0
A151: ='Allocation Methodology'!A65 -> 61 | B151: ='Allocation Methodology'!B65 -> Multi-Family Energy Efficiency Rebates | C151: ='Allocation Methodology'!C65 -> Consumer, Consumer Low-Income | D151: ='Allocation Methodology'!D65 -> 2010 | E151: ='Allocation Methodology'!E65 -> Final | G151: 0 | H151: 0 | I151: 0 | J151: 0 | K151: 106.0021856 | L151: 106.0021856 | M151: 106.0021856 | N151: 106.0021856 | O151: 106.0021856 | P151: 106.0021856 | Q151: 106.0021856 | R151: 106.0021856 | S151: 106.0021856 | T151: 9.475055697 | U151: 0 | V151: 0 | W151: 0 | X151: 0 | Y151: 0 | Z151: 0 | AA151: 0 | AB151: 0 | AC151: 0 | AD151: 0 | AE151: 0 | AF151: 0 | AG151: 0 | AH151: 0 | AI151: 0 | AJ151: 0 | AK151: 0 | AL151: 0 | AM151: 0 | AN151: 0 | AO151: 0 | AP151: 0 | AQ151: 0 | AR151: 0 | AS151: 0 | AT151: 0 | AU151: 0 | AV151: 0 | AW151: 0 | AX151: 0 | AY151: 0
A152: ='Allocation Methodology'!A66 -> 62 | B152: ='Allocation Methodology'!B66 -> Demand Response 2 | C152: ='Allocation Methodology'!C66 -> Business, Industrial | D152: ='Allocation Methodology'!D66 -> 2010 | E152: ='Allocation Methodology'!E66 -> Final | G152: 0 | H152: 0 | I152: 0 | J152: 0 | K152: 1913.500708 | L152: 0 | M152: 0 | N152: 0 | O152: 0 | P152: 0 | Q152: 0 | R152: 0 | S152: 0 | T152: 0 | U152: 0 | V152: 0 | W152: 0 | X152: 0 | Y152: 0 | Z152: 0 | AA152: 0 | AB152: 0 | AC152: 0 | AD152: 0 | AE152: 0 | AF152: 0 | AG152: 0 | AH152: 0 | AI152: 0 | AJ152: 0 | AK152: 0 | AL152: 0 | AM152: 0 | AN152: 0 | AO152: 0 | AP152: 0 | AQ152: 0 | AR152: 0 | AS152: 0 | AT152: 0 | AU152: 0 | AV152: 0 | AW152: 0 | AX152: 0 | AY152: 0
A153: ='Allocation Methodology'!A67 -> 63 | B153: ='Allocation Methodology'!B67 -> Demand Response 3 | C153: ='Allocation Methodology'!C67 -> Business, Industrial | D153: ='Allocation Methodology'!D67 -> 2010 | E153: ='Allocation Methodology'!E67 -> Final | G153: 0 | H153: 0 | I153: 0 | J153: 0 | K153: 67.81853694 | L153: 0 | M153: 0 | N153: 0 | O153: 0 | P153: 0 | Q153: 0 | R153: 0 | S153: 0 | T153: 0 | U153: 0 | V153: 0 | W153: 0 | X153: 0 | Y153: 0 | Z153: 0 | AA153: 0 | AB153: 0 | AC153: 0 | AD153: 0 | AE153: 0 | AF153: 0 | AG153: 0 | AH153: 0 | AI153: 0 | AJ153: 0 | AK153: 0 | AL153: 0 | AM153: 0 | AN153: 0 | AO153: 0 | AP153: 0 | AQ153: 0 | AR153: 0 | AS153: 0 | AT153: 0 | AU153: 0 | AV153: 0 | AW153: 0 | AX153: 0 | AY153: 0
A154: ='Allocation Methodology'!A68 -> 64 | B154: ='Allocation Methodology'!B68 -> Loblaw & York Region Demand Response | C154: ='Allocation Methodology'!C68 -> Business, Industrial | D154: ='Allocation Methodology'!D68 -> 2010 | E154: ='Allocation Methodology'!E68 -> Final | G154: 0 | H154: 0 | I154: 0 | J154: 0 | K154: 0 | L154: 0 | M154: 0 | N154: 0 | O154: 0 | P154: 0 | Q154: 0 | R154: 0 | S154: 0 | T154: 0 | U154: 0 | V154: 0 | W154: 0 | X154: 0 | Y154: 0 | Z154: 0 | AA154: 0 | AB154: 0 | AC154: 0 | AD154: 0 | AE154: 0 | AF154: 0 | AG154: 0 | AH154: 0 | AI154: 0 | AJ154: 0 | AK154: 0 | AL154: 0 | AM154: 0 | AN154: 0 | AO154: 0 | AP154: 0 | AQ154: 0 | AR154: 0 | AS154: 0 | AT154: 0 | AU154: 0 | AV154: 0 | AW154: 0 | AX154: 0 | AY154: 0
A155: ='Allocation Methodology'!A69 -> 65 | B155: ='Allocation Methodology'!B69 -> LDC Custom - Hydro Ottawa - Small Commercial Demand Response | C155: ='Allocation Methodology'!C69 -> Consumer | D155: ='Allocation Methodology'!D69 -> 2010 | E155: ='Allocation Methodology'!E69 -> Final | G155: 0 | H155: 0 | I155: 0 | J155: 0 | K155: 0 | L155: 0 | M155: 0 | N155: 0 | O155: 0 | P155: 0 | Q155: 0 | R155: 0 | S155: 0 | T155: 0 | U155: 0 | V155: 0 | W155: 0 | X155: 0 | Y155: 0 | Z155: 0 | AA155: 0 | AB155: 0 | AC155: 0 | AD155: 0 | AE155: 0 | AF155: 0 | AG155: 0 | AH155: 0 | AI155: 0 | AJ155: 0 | AK155: 0 | AL155: 0 | AM155: 0 | AN155: 0 | AO155: 0 | AP155: 0 | AQ155: 0 | AR155: 0 | AS155: 0 | AT155: 0 | AU155: 0 | AV155: 0 | AW155: 0 | AX155: 0 | AY155: 0
A157: 2006 Subtotal | G157: =SUM(G91:G95) -> 3653.79172 | H157: =SUM(H91:H95) -> 3653.79172 | I157: 3653.79172 | J157: 3653.79172 | K157: 634.5827174 | L157: 634.5827174 | M157: 580.4704176 | N157: 580.4704176 | O157: 545.4413928 | P157: 545.4413928 | Q157: 515.3218037 | R157: 515.3218037 | S157: 515.3218037 | T157: 515.3218037 | U157: 466.4629872 | V157: 405.4567406 | W157: 405.4567406 | X157: 405.4567406 | Y157: 219.0802205 | Z157: 219.0802205 | AA157: 127.8328468 | AB157: 127.8328468 | AC157: 127.8328468 | AD157: 127.8328468 | AE157: 127.8328468 | AF157: 10.65123502 | AG157: 10.65123502 | AH157: 10.65123502 | AI157: 10.65123502 | AJ157: 10.65123502 | AK157: =SUM(AK91:AK95) -> 0 | AL157: 0 | AM157: 0 | AN157: 0 | AO157: 0 | AP157: 0 | AQ157: 0 | AR157: 0 | AS157: 0 | AT157: 0 | AU157: 0 | AV157: 0 | AW157: 0 | AX157: 0 | AY157: 0
A159: 2007 Subtotal | G159: =SUM(G96:G109) -> 0 | H159: =SUM(H96:H109) -> 2556.891721 | I159: 2042.665051 | J159: 1979.816362 | K159: 1979.816362 | L159: 1979.402305 | M159: 1919.291361 | N159: 1919.291361 | O159: 1919.291361 | P159: 786.0087495 | Q159: 698.873513 | R159: 505.4835194 | S159: 505.4835194 | T159: 505.4835194 | U159: 505.4835194 | V159: 401.3150633 | W159: 215.9813266 | X159: 209.9891199 | Y159: 209.9891199 | Z159: 183.096357 | AA159: 26.670696 | AB159: 0 | AC159: 0 | AD159: 0 | AE159: 0 | AF159: 0 | AG159: 0 | AH159: 0 | AI159: 0 | AJ159: 0 | AK159: =SUM(AK96:AK109) -> 0 | AL159: 0 | AM159: 0 | AN159: 0 | AO159: 0 | AP159: 0 | AQ159: 0 | AR159: 0 | AS159: 0 | AT159: 0 | AU159: 0 | AV159: 0 | AW159: 0 | AX159: 0 | AY159: 0
A161: 2008 Subtotal | G161: =SUM(G110:G124,G141:G142) -> 0 | H161: =SUM(H110:H124,H141:H142) -> 0 | I161: 3005.935203 | J161: 2484.038624 | K161: 2480.133628 | L161: 2480.133628 | M161: 2310.616336 | N161: 2310.368116 | O161: 2134.103843 | P161: 2002.419505 | Q161: 1538.911234 | R161: 1344.915654 | S161: 1234.138435 | T161: 1234.138435 | U161: 1217.263457 | V161: 1199.637766 | W161: 1190.670282 | X161: 1109.202651 | Y161: 273.7780549 | Z161: 273.7780549 | AA161: 97.18486551 | AB161: 97.18486551 | AC161: 0 | AD161: 0 | AE161: 0 | AF161: 0 | AG161: 0 | AH161: 0 | AI161: 0 | AJ161: 0 | AK161: 0 | AL161: 0 | AM161: 0 | AN161: 0 | AO161: 0 | AP161: 0 | AQ161: 0 | AR161: 0 | AS161: 0 | AT161: 0 | AU161: 0 | AV161: 0 | AW161: 0 | AX161: 0 | AY161: 0
A163: 2009 Subtotal | G163: =SUM(G125:G140) -> 0 | H163: =SUM(H125:H140) -> 0 | I163: 0 | J163: 6475.623381 | K163: 5365.408145 | L163: 5365.408145 | M163: 5363.983297 | N163: 5304.157526 | O163: 5149.284985 | P163: 4910.539063 | Q163: 4805.421101 | R163: 3614.991518 | S163: 2242.985507 | T163: 1865.920226 | U163: 548.076013 | V163: 499.4941658 | W163: 499.2803909 | X163: 492.3573879 | Y163: 434.9651701 | Z163: 399.3511493 | AA163: 392.2742942 | AB163: 349.4626054 | AC163: 129.2397616 | AD163: 0 | AE163: 0 | AF163: 0 | AG163: 0 | AH163: 0 | AI163: 0 | AJ163: 0 | AK163: 0 | AL163: 0 | AM163: 0 | AN163: 0 | AO163: 0 | AP163: 0 | AQ163: 0 | AR163: 0 | AS163: 0 | AT163: 0 | AU163: 0 | AV163: 0 | AW163: 0 | AX163: 0 | AY163: 0
A165: 2010 Subtotal | G165: =SUM(G143:G155) -> 0 | H165: =SUM(H143:H155) -> 0 | I165: 0 | J165: 0 | K165: 11339.91228 | L165: 9336.106181 | M165: 9330.910898 | N165: 9330.362419 | O165: 9282.062546 | P165: 8874.603293 | Q165: 8855.367044 | R165: 8325.628251 | S165: 7156.61146 | T165: 2233.563498 | U165: 800.728478 | V165: 800.728478 | W165: 795.6184626 | X165: 793.9316104 | Y165: 793.9316104 | Z165: 770.0310335 | AA165: 748.5400118 | AB165: 748.5400118 | AC165: 706.0849545 | AD165: 405.4316521 | AE165: 0 | AF165: 0 | AG165: 0 | AH165: 0 | AI165: 0 | AJ165: 0 | AK165: 0 | AL165: 0 | AM165: 0 | AN165: 0 | AO165: 0 | AP165: 0 | AQ165: 0 | AR165: 0 | AS165: 0 | AT165: 0 | AU165: 0 | AV165: 0 | AW165: 0 | AX165: 0 | AY165: 0
A167: Overall Total | G167: =SUM(G91:G155) -> 3653.79172 | H167: =SUM(H91:H155) -> 6210.68344 | I167: 8702.391973 | J167: 14593.27009 | K167: 21799.85313 | L167: 19795.63298 | M167: 19505.27231 | N167: 19444.64984 | O167: 19030.18413 | P167: 17119.012 | Q167: 16413.8947 | R167: 14306.34075 | S167: 11654.54072 | T167: 6354.427483 | U167: 3538.014455 | V167: 3306.632214 | W167: 3107.007203 | X167: 3010.93751 | Y167: 1931.744176 | Z167: 1845.336815 | AA167: 1392.502714 | AB167: 1323.020329 | AC167: 963.157563 | AD167: 533.2644989 | AE167: 127.8328468 | AF167: 10.65123502 | AG167: 10.65123502 | AH167: 10.65123502 | AI167: 10.65123502 | AJ167: 10.65123502 | AK167: 0 | AL167: 0 | AM167: 0 | AN167: 0 | AO167: 0 | AP167: 0 | AQ167: 0 | AR167: 0 | AS167: 0 | AT167: 0 | AU167: 0 | AV167: 0 | AW167: 0 | AX167: 0 | AY167: 0
G168: 96 | H168: =G168+1 -> 97 | I168: =H168+1 -> 98 | J168: 99 | K168: 100 | L168: 101 | M168: 102 | N168: 103 | O168: 104 | P168: 105 | Q168: 106 | R168: 107 | S168: 108 | T168: 109 | U168: 110 | V168: 111 | W168: 112 | X168: 113 | Y168: 114 | Z168: 115 | AA168: 116 | AB168: 117 | AC168: 118 | AD168: 119 | AE168: 120 | AF168: 121 | AG168: 122 | AH168: 123 | AI168: 124 | AJ168: 125 | AK168: =AJ168+1 -> 126 | AL168: 127 | AM168: 128 | AN168: 129 | AO168: 130 | AP168: 131 | AQ168: 132 | AR168: 133 | AS168: 134 | AT168: 135 | AU168: 136 | AV168: 137 | AW168: 138 | AX168: 139 | AY168: 140
A170: Gross Summer Peak Demand Savings (MW)
A171: # | B171: Initiative Name | C171: Program Name | D171: Program Year | E171: Results Status | G171: 2006 | H171: =G171+1 -> 2007 | I171: =H171+1 -> 2008 | J171: 2009 | K171: 2010 | L171: 2011 | M171: 2012 | N171: 2013 | O171: 2014 | P171: 2015 | Q171: 2016 | R171: 2017 | S171: 2018 | T171: 2019 | U171: 2020 | V171: 2021 | W171: 2022 | X171: 2023 | Y171: 2024 | Z171: 2025 | AA171: 2026 | AB171: 2027 | AC171: 2028 | AD171: 2029 | AE171: 2030 | AF171: 2031 | AG171: 2032 | AH171: 2033 | AI171: 2034 | AJ171: 2035 | AK171: =AJ171+1 -> 2036 | AL171: 2037 | AM171: 2038 | AN171: 2039 | AO171: 2040 | AP171: 2041 | AQ171: 2042 | AR171: 2043 | AS171: 2044 | AT171: 2045 | AU171: 2046 | AV171: 2047 | AW171: 2048 | AX171: 2049 | AY171: 2050
A173: ='Allocation Methodology'!A5 -> 1 | B173: ='Allocation Methodology'!B5 -> Secondary Refrigerator Retirement Pilot | C173: ='Allocation Methodology'!C5 -> Consumer | D173: ='Allocation Methodology'!D5 -> 2006 | E173: ='Allocation Methodology'!E5 -> Final | F173: FALSE | G173: 0.01362828292 | H173: 0.01362828292 | I173: 0.01362828292 | J173: 0.01362828292 | K173: 0.01362828292 | L173: 0.01362828292 | M173: 0 | N173: 0 | O173: 0 | P173: 0 | Q173: 0 | R173: 0 | S173: 0 | T173: 0 | U173: 0 | V173: 0 | W173: 0 | X173: 0 | Y173: 0 | Z173: 0 | AA173: 0 | AB173: 0 | AC173: 0 | AD173: 0 | AE173: 0 | AF173: 0 | AG173: 0 | AH173: 0 | AI173: 0 | AJ173: 0 | AK173: 0 | AL173: 0 | AM173: 0 | AN173: 0 | AO173: 0 | AP173: 0 | AQ173: 0 | AR173: 0 | AS173: 0 | AT173: 0 | AU173: 0 | AV173: 0 | AW173: 0 | AX173: 0 | AY173: 0
A174: ='Allocation Methodology'!A6 -> 2 | B174: ='Allocation Methodology'!B6 -> Cool & Hot Savings Rebate | C174: ='Allocation Methodology'!C6 -> Consumer | D174: ='Allocation Methodology'!D6 -> 2006 | E174: ='Allocation Methodology'!E6 -> Final | F174: FALSE | G174: 0.1505280734 | H174: 0.1505280734 | I174: 0.1505280734 | J174: 0.1505280734 | K174: 0.1505280734 | L174: 0.1505280734 | M174: 0.1505280734 | N174: 0.1505280734 | O174: 0.1106613079 | P174: 0.1106613079 | Q174: 0.1106613079 | R174: 0.1106613079 | S174: 0.1106613079 | T174: 0.1106613079 | U174: 0.05513797174 | V174: 0.02400574532 | W174: 0.02400574532 | X174: 0.02400574532 | Y174: 0 | Z174: 0 | AA174: 0 | AB174: 0 | AC174: 0 | AD174: 0 | AE174: 0 | AF174: 0 | AG174: 0 | AH174: 0 | AI174: 0 | AJ174: 0 | AK174: 0 | AL174: 0 | AM174: 0 | AN174: 0 | AO174: 0 | AP174: 0 | AQ174: 0 | AR174: 0 | AS174: 0 | AT174: 0 | AU174: 0 | AV174: 0 | AW174: 0 | AX174: 0 | AY174: 0
A175: ='Allocation Methodology'!A7 -> 3 | B175: ='Allocation Methodology'!B7 -> Every Kilowatt Counts | C175: ='Allocation Methodology'!C7 -> Consumer | D175: ='Allocation Methodology'!D7 -> 2006 | E175: ='Allocation Methodology'!E7 -> Final | F175: FALSE | G175: 0.0454215284 | H175: 0.0454215284 | I175: 0.0454215284 | J175: 0.0454215284 | K175: 0.0454215284 | L175: 0.0454215284 | M175: 0.0454215284 | N175: 0.0454215284 | O175: 0.0454215284 | P175: 0.0454215284 | Q175: 0.0454215284 | R175: 0.0454215284 | S175: 0.0454215284 | T175: 0.0454215284 | U175: 0.0454215284 | V175: 0.03752984307 | W175: 0.03752984307 | X175: 0.03752984307 | Y175: 0.001680948317 | Z175: 0.001680948317 | AA175: 0 | AB175: 0 | AC175: 0 | AD175: 0 | AE175: 0 | AF175: 0 | AG175: 0 | AH175: 0 | AI175: 0 | AJ175: 0 | AK175: 0 | AL175: 0 | AM175: 0 | AN175: 0 | AO175: 0 | AP175: 0 | AQ175: 0 | AR175: 0 | AS175: 0 | AT175: 0 | AU175: 0 | AV175: 0 | AW175: 0 | AX175: 0 | AY175: 0
A176: ='Allocation Methodology'!A8 -> 4 | B176: ='Allocation Methodology'!B8 -> Demand Response 1 | C176: ='Allocation Methodology'!C8 -> Business, Industrial | D176: ='Allocation Methodology'!D8 -> 2006 | E176: ='Allocation Methodology'!E8 -> Final | F176: FALSE | G176: 3.996998778 | H176: 0 | I176: 0 | J176: 0 | K176: 0 | L176: 0 | M176: 0 | N176: 0 | O176: 0 | P176: 0 | Q176: 0 | R176: 0 | S176: 0 | T176: 0 | U176: 0 | V176: 0 | W176: 0 | X176: 0 | Y176: 0 | Z176: 0 | AA176: 0 | AB176: 0 | AC176: 0 | AD176: 0 | AE176: 0 | AF176: 0 | AG176: 0 | AH176: 0 | AI176: 0 | AJ176: 0 | AK176: 0 | AL176: 0 | AM176: 0 | AN176: 0 | AO176: 0 | AP176: 0 | AQ176: 0 | AR176: 0 | AS176: 0 | AT176: 0 | AU176: 0 | AV176: 0 | AW176: 0 | AX176: 0 | AY176: 0
A177: ='Allocation Methodology'!A9 -> 5 | B177: ='Allocation Methodology'!B9 -> Loblaw & York Region Demand Response | C177: ='Allocation Methodology'!C9 -> Business, Industrial | D177: ='Allocation Methodology'!D9 -> 2006 | E177: ='Allocation Methodology'!E9 -> Final | F177: FALSE | G177: 0.1956362353 | H177: 0 | I177: 0 | J177: 0 | K177: 0 | L177: 0 | M177: 0 | N177: 0 | O177: 0 | P177: 0 | Q177: 0 | R177: 0 | S177: 0 | T177: 0 | U177: 0 | V177: 0 | W177: 0 | X177: 0 | Y177: 0 | Z177: 0 | AA177: 0 | AB177: 0 | AC177: 0 | AD177: 0 | AE177: 0 | AF177: 0 | AG177: 0 | AH177: 0 | AI177: 0 | AJ177: 0 | AK177: 0 | AL177: 0 | AM177: 0 | AN177: 0 | AO177: 0 | AP177: 0 | AQ177: 0 | AR177: 0 | AS177: 0 | AT177: 0 | AU177: 0 | AV177: 0 | AW177: 0 | AX177: 0 | AY177: 0
A178: ='Allocation Methodology'!A10 -> 6 | B178: ='Allocation Methodology'!B10 -> Great Refrigerator Roundup | C178: ='Allocation Methodology'!C10 -> Consumer | D178: ='Allocation Methodology'!D10 -> 2007 | E178: ='Allocation Methodology'!E10 -> Final | F178: FALSE | G178: 0 | H178: 0.03361951406 | I178: 0.03361951406 | J178: 0.03361951406 | K178: 0.03361951406 | L178: 0.02912693698 | M178: 0.02912693698 | N178: 0.02912693698 | O178: 0.02912693698 | P178: 0.02379885366 | Q178: 0 | R178: 0 | S178: 0 | T178: 0 | U178: 0 | V178: 0 | W178: 0 | X178: 0 | Y178: 0 | Z178: 0 | AA178: 0 | AB178: 0 | AC178: 0 | AD178: 0 | AE178: 0 | AF178: 0 | AG178: 0 | AH178: 0 | AI178: 0 | AJ178: 0 | AK178: 0 | AL178: 0 | AM178: 0 | AN178: 0 | AO178: 0 | AP178: 0 | AQ178: 0 | AR178: 0 | AS178: 0 | AT178: 0 | AU178: 0 | AV178: 0 | AW178: 0 | AX178: 0 | AY178: 0
A179: ='Allocation Methodology'!A11 -> 7 | B179: ='Allocation Methodology'!B11 -> Cool & Hot Savings Rebate | C179: ='Allocation Methodology'!C11 -> Consumer | D179: ='Allocation Methodology'!D11 -> 2007 | E179: ='Allocation Methodology'!E11 -> Final | F179: FALSE | G179: 0 | H179: 0.293843597 | I179: 0.293843597 | J179: 0.293843597 | K179: 0.293843597 | L179: 0.293843597 | M179: 0.2246201312 | N179: 0.2246201312 | O179: 0.2246201312 | P179: 0.2246201312 | Q179: 0.2246201312 | R179: 0.2246201312 | S179: 0.2246201312 | T179: 0.2246201312 | U179: 0.2246201312 | V179: 0.2246201312 | W179: 0.04189725401 | X179: 0.04189725401 | Y179: 0.04189725401 | Z179: 0 | AA179: 0 | AB179: 0 | AC179: 0 | AD179: 0 | AE179: 0 | AF179: 0 | AG179: 0 | AH179: 0 | AI179: 0 | AJ179: 0 | AK179: 0 | AL179: 0 | AM179: 0 | AN179: 0 | AO179: 0 | AP179: 0 | AQ179: 0 | AR179: 0 | AS179: 0 | AT179: 0 | AU179: 0 | AV179: 0 | AW179: 0 | AX179: 0 | AY179: 0
A180: ='Allocation Methodology'!A12 -> 8 | B180: ='Allocation Methodology'!B12 -> Every Kilowatt Counts | C180: ='Allocation Methodology'!C12 -> Consumer | D180: ='Allocation Methodology'!D12 -> 2007 | E180: ='Allocation Methodology'!E12 -> Final | F180: FALSE | G180: 0 | H180: 0.07051123658 | I180: 0.06220318604 | J180: 0.06220318604 | K180: 0.06220318604 | L180: 0.06220318604 | M180: 0.06220318604 | N180: 0.06220318604 | O180: 0.06220318604 | P180: 0.01923046352 | Q180: 0.01923046352 | R180: 0.0007049245216 | S180: 0.0007049245216 | T180: 0.0007049245216 | U180: 0.0007049245216 | V180: 0.0007049245216 | W180: 0.0007049245216 | X180: 0.0002084919837 | Y180: 0.0002084919837 | Z180: 0 | AA180: 0 | AB180: 0 | AC180: 0 | AD180: 0 | AE180: 0 | AF180: 0 | AG180: 0 | AH180: 0 | AI180: 0 | AJ180: 0 | AK180: 0 | AL180: 0 | AM180: 0 | AN180: 0 | AO180: 0 | AP180: 0 | AQ180: 0 | AR180: 0 | AS180: 0 | AT180: 0 | AU180: 0 | AV180: 0 | AW180: 0 | AX180: 0 | AY180: 0
A181: ='Allocation Methodology'!A13 -> 9 | B181: ='Allocation Methodology'!B13 -> peaksaver® | C181: ='Allocation Methodology'!C13 -> Consumer, Business | D181: ='Allocation Methodology'!D13 -> 2007 | E181: ='Allocation Methodology'!E13 -> Final | F181: FALSE | G181: 0 | H181: 0.00315 | I181: 0.00315 | J181: 0.00315 | K181: 0.00315 | L181: 0.00315 | M181: 0.00315 | N181: 0.00315 | O181: 0.00315 | P181: 0.00315 | Q181: 0.00315 | R181: 0.00315 | S181: 0.00315 | T181: 0 | U181: 0 | V181: 0 | W181: 0 | X181: 0 | Y181: 0 | Z181: 0 | AA181: 0 | AB181: 0 | AC181: 0 | AD181: 0 | AE181: 0 | AF181: 0 | AG181: 0 | AH181: 0 | AI181: 0 | AJ181: 0 | AK181: 0 | AL181: 0 | AM181: 0 | AN181: 0 | AO181: 0 | AP181: 0 | AQ181: 0 | AR181: 0 | AS181: 0 | AT181: 0 | AU181: 0 | AV181: 0 | AW181: 0 | AX181: 0 | AY181: 0
A182: ='Allocation Methodology'!A14 -> 10 | B182: ='Allocation Methodology'!B14 -> Summer Savings | C182: ='Allocation Methodology'!C14 -> Consumer | D182: ='Allocation Methodology'!D14 -> 2007 | E182: ='Allocation Methodology'!E14 -> Final | F182: FALSE | G182: 0 | H182: 2.799051873 | I182: 0.8347487423 | J182: 0.4019134778 | K182: 0.4019134778 | L182: 0.4019134778 | M182: 0.4019134778 | N182: 0.4019134778 | O182: 0.4019134778 | P182: 0.3982973123 | Q182: 0.3982973123 | R182: 0.3982973123 | S182: 0.3982973123 | T182: 0.3982973123 | U182: 0.3982973123 | V182: 0 | W182: 0 | X182: 0 | Y182: 0 | Z182: 0 | AA182: 0 | AB182: 0 | AC182: 0 | AD182: 0 | AE182: 0 | AF182: 0 | AG182: 0 | AH182: 0 | AI182: 0 | AJ182: 0 | AK182: 0 | AL182: 0 | AM182: 0 | AN182: 0 | AO182: 0 | AP182: 0 | AQ182: 0 | AR182: 0 | AS182: 0 | AT182: 0 | AU182: 0 | AV182: 0 | AW182: 0 | AX182: 0 | AY182: 0
A183: ='Allocation Methodology'!A15 -> 11 | B183: ='Allocation Methodology'!B15 -> Aboriginal | C183: ='Allocation Methodology'!C15 -> Consumer | D183: ='Allocation Methodology'!D15 -> 2007 | E183: ='Allocation Methodology'!E15 -> Final | F183: FALSE | G183: 0 | H183: 0 | I183: 0 | J183: 0 | K183: 0 | L183: 0 | M183: 0 | N183: 0 | O183: 0 | P183: 0 | Q183: 0 | R183: 0 | S183: 0 | T183: 0 | U183: 0 | V183: 0 | W183: 0 | X183: 0 | Y183: 0 | Z183: 0 | AA183: 0 | AB183: 0 | AC183: 0 | AD183: 0 | AE183: 0 | AF183: 0 | AG183: 0 | AH183: 0 | AI183: 0 | AJ183: 0 | AK183: 0 | AL183: 0 | AM183: 0 | AN183: 0 | AO183: 0 | AP183: 0 | AQ183: 0 | AR183: 0 | AS183: 0 | AT183: 0 | AU183: 0 | AV183: 0 | AW183: 0 | AX183: 0 | AY183: 0
A184: ='Allocation Methodology'!A16 -> 12 | B184: ='Allocation Methodology'!B16 -> Affordable Housing Pilot | C184: ='Allocation Methodology'!C16 -> Consumer Low-Income | D184: ='Allocation Methodology'!D16 -> 2007 | E184: ='Allocation Methodology'!E16 -> Final | F184: FALSE | G184: 0 | H184: 0.0074017 | I184: 0.0074017 | J184: 0.0074017 | K184: 0.0074017 | L184: 0.0074017 | M184: 0.0074017 | N184: 0.0074017 | O184: 0.0074017 | P184: 0.0074017 | Q184: 0.0074017 | R184: 0.0074017 | S184: 0.0074017 | T184: 0.0074017 | U184: 0.0074017 | V184: 0 | W184: 0 | X184: 0 | Y184: 0 | Z184: 0 | AA184: 0 | AB184: 0 | AC184: 0 | AD184: 0 | AE184: 0 | AF184: 0 | AG184: 0 | AH184: 0 | AI184: 0 | AJ184: 0 | AK184: 0 | AL184: 0 | AM184: 0 | AN184: 0 | AO184: 0 | AP184: 0 | AQ184: 0 | AR184: 0 | AS184: 0 | AT184: 0 | AU184: 0 | AV184: 0 | AW184: 0 | AX184: 0 | AY184: 0
A185: ='Allocation Methodology'!A17 -> 13 | B185: ='Allocation Methodology'!B17 -> Social Housing Pilot | C185: ='Allocation Methodology'!C17 -> Consumer Low-Income | D185: ='Allocation Methodology'!D17 -> 2007 | E185: ='Allocation Methodology'!E17 -> Final | F185: FALSE | G185: 0 | H185: 0.01344762537 | I185: 0.01344762537 | J185: 0.01344762537 | K185: 0.01344762537 | L185: 0.01344762537 | M185: 0.01344762537 | N185: 0.01344762537 | O185: 0.01344762537 | P185: 0.01344762537 | Q185: 0.01344762537 | R185: 0 | S185: 0 | T185: 0 | U185: 0 | V185: 0 | W185: 0 | X185: 0 | Y185: 0 | Z185: 0 | AA185: 0 | AB185: 0 | AC185: 0 | AD185: 0 | AE185: 0 | AF185: 0 | AG185: 0 | AH185: 0 | AI185: 0 | AJ185: 0 | AK185: 0 | AL185: 0 | AM185: 0 | AN185: 0 | AO185: 0 | AP185: 0 | AQ185: 0 | AR185: 0 | AS185: 0 | AT185: 0 | AU185: 0 | AV185: 0 | AW185: 0 | AX185: 0 | AY185: 0
A186: ='Allocation Methodology'!A18 -> 14 | B186: ='Allocation Methodology'!B18 -> Energy Efficiency Assistance for Houses Pilot | C186: ='Allocation Methodology'!C18 -> Consumer Low-Income | D186: ='Allocation Methodology'!D18 -> 2007 | E186: ='Allocation Methodology'!E18 -> Final | F186: FALSE | G186: 0 | H186: 0.02172333333 | I186: 0.02172333333 | J186: 0.02172333333 | K186: 0.02172333333 | L186: 0.02172333333 | M186: 0.02172333333 | N186: 0.02172333333 | O186: 0.02172333333 | P186: 0.02172333333 | Q186: 0.02172333333 | R186: 0.02172333333 | S186: 0.02172333333 | T186: 0.02172333333 | U186: 0.02172333333 | V186: 0.02172333333 | W186: 0.02172333333 | X186: 0.02172333333 | Y186: 0.02172333333 | Z186: 0.02172333333 | AA186: 0 | AB186: 0 | AC186: 0 | AD186: 0 | AE186: 0 | AF186: 0 | AG186: 0 | AH186: 0 | AI186: 0 | AJ186: 0 | AK186: 0 | AL186: 0 | AM186: 0 | AN186: 0 | AO186: 0 | AP186: 0 | AQ186: 0 | AR186: 0 | AS186: 0 | AT186: 0 | AU186: 0 | AV186: 0 | AW186: 0 | AX186: 0 | AY186: 0
A187: ='Allocation Methodology'!A19 -> 15 | B187: ='Allocation Methodology'!B19 -> Electricity Retrofit Incentive | C187: ='Allocation Methodology'!C19 -> Business | D187: ='Allocation Methodology'!D19 -> 2007 | E187: ='Allocation Methodology'!E19 -> Final | F187: FALSE | G187: 0 | H187: 0.002930832356 | I187: 0.002930832356 | J187: 0.002930832356 | K187: 0.002930832356 | L187: 0.002930832356 | M187: 0 | N187: 0 | O187: 0 | P187: 0 | Q187: 0 | R187: 0 | S187: 0 | T187: 0 | U187: 0 | V187: 0 | W187: 0 | X187: 0 | Y187: 0 | Z187: 0 | AA187: 0 | AB187: 0 | AC187: 0 | AD187: 0 | AE187: 0 | AF187: 0 | AG187: 0 | AH187: 0 | AI187: 0 | AJ187: 0 | AK187: 0 | AL187: 0 | AM187: 0 | AN187: 0 | AO187: 0 | AP187: 0 | AQ187: 0 | AR187: 0 | AS187: 0 | AT187: 0 | AU187: 0 | AV187: 0 | AW187: 0 | AX187: 0 | AY187: 0
A188: ='Allocation Methodology'!A20 -> 16 | B188: ='Allocation Methodology'!B20 -> Toronto Comprehensive | C188: ='Allocation Methodology'!C20 -> Business | D188: ='Allocation Methodology'!D20 -> 2007 | E188: ='Allocation Methodology'!E20 -> Final | F188: FALSE | G188: 0 | H188: 0 | I188: 0 | J188: 0 | K188: 0 | L188: 0 | M188: 0 | N188: 0 | O188: 0 | P188: 0 | Q188: 0 | R188: 0 | S188: 0 | T188: 0 | U188: 0 | V188: 0 | W188: 0 | X188: 0 | Y188: 0 | Z188: 0 | AA188: 0 | AB188: 0 | AC188: 0 | AD188: 0 | AE188: 0 | AF188: 0 | AG188: 0 | AH188: 0 | AI188: 0 | AJ188: 0 | AK188: 0 | AL188: 0 | AM188: 0 | AN188: 0 | AO188: 0 | AP188: 0 | AQ188: 0 | AR188: 0 | AS188: 0 | AT188: 0 | AU188: 0 | AV188: 0 | AW188: 0 | AX188: 0 | AY188: 0
A189: ='Allocation Methodology'!A21 -> 17 | B189: ='Allocation Methodology'!B21 -> Demand Response 1 | C189: ='Allocation Methodology'!C21 -> Business, Industrial | D189: ='Allocation Methodology'!D21 -> 2007 | E189: ='Allocation Methodology'!E21 -> Final | F189: FALSE | G189: 0 | H189: 4.477514761 | I189: 0 | J189: 0 | K189: 0 | L189: 0 | M189: 0 | N189: 0 | O189: 0 | P189: 0 | Q189: 0 | R189: 0 | S189: 0 | T189: 0 | U189: 0 | V189: 0 | W189: 0 | X189: 0 | Y189: 0 | Z189: 0 | AA189: 0 | AB189: 0 | AC189: 0 | AD189: 0 | AE189: 0 | AF189: 0 | AG189: 0 | AH189: 0 | AI189: 0 | AJ189: 0 | AK189: 0 | AL189: 0 | AM189: 0 | AN189: 0 | AO189: 0 | AP189: 0 | AQ189: 0 | AR189: 0 | AS189: 0 | AT189: 0 | AU189: 0 | AV189: 0 | AW189: 0 | AX189: 0 | AY189: 0
A190: ='Allocation Methodology'!A22 -> 18 | B190: ='Allocation Methodology'!B22 -> Loblaw & York Region Demand Response | C190: ='Allocation Methodology'!C22 -> Business, Industrial | D190: ='Allocation Methodology'!D22 -> 2007 | E190: ='Allocation Methodology'!E22 -> Final | F190: FALSE | G190: 0 | H190: 0.3724795642 | I190: 0 | J190: 0 | K190: 0 | L190: 0 | M190: 0 | N190: 0 | O190: 0 | P190: 0 | Q190: 0 | R190: 0 | S190: 0 | T190: 0 | U190: 0 | V190: 0 | W190: 0 | X190: 0 | Y190: 0 | Z190: 0 | AA190: 0 | AB190: 0 | AC190: 0 | AD190: 0 | AE190: 0 | AF190: 0 | AG190: 0 | AH190: 0 | AI190: 0 | AJ190: 0 | AK190: 0 | AL190: 0 | AM190: 0 | AN190: 0 | AO190: 0 | AP190: 0 | AQ190: 0 | AR190: 0 | AS190: 0 | AT190: 0 | AU190: 0 | AV190: 0 | AW190: 0 | AX190: 0 | AY190: 0
A191: ='Allocation Methodology'!A23 -> 19 | B191: ='Allocation Methodology'!B23 -> Renewable Energy Standard Offer | C191: ='Allocation Methodology'!C23 -> Consumer, Business, Industrial | D191: ='Allocation Methodology'!D23 -> 2007 | E191: ='Allocation Methodology'!E23 -> Final | F191: FALSE | G191: 0 | H191: 0.02342 | I191: 0.02342 | J191: 0.02342 | K191: 0.02342 | L191: 0.02342 | M191: 0.02342 | N191: 0.02342 | O191: 0.02342 | P191: 0.02342 | Q191: 0.02342 | R191: 0.02342 | S191: 0.02342 | T191: 0.02342 | U191: 0.02342 | V191: 0.02342 | W191: 0.02342 | X191: 0.02342 | Y191: 0.02342 | Z191: 0.02342 | AA191: 0.02342 | AB191: 0 | AC191: 0 | AD191: 0 | AE191: 0 | AF191: 0 | AG191: 0 | AH191: 0 | AI191: 0 | AJ191: 0 | AK191: 0 | AL191: 0 | AM191: 0 | AN191: 0 | AO191: 0 | AP191: 0 | AQ191: 0 | AR191: 0 | AS191: 0 | AT191: 0 | AU191: 0 | AV191: 0 | AW191: 0 | AX191: 0 | AY191: 0
A192: ='Allocation Methodology'!A24 -> 20 | B192: ='Allocation Methodology'!B24 -> Great Refrigerator Roundup | C192: ='Allocation Methodology'!C24 -> Consumer | D192: ='Allocation Methodology'!D24 -> 2008 | E192: ='Allocation Methodology'!E24 -> Final | F192: FALSE | G192: 0 | H192: 0 | I192: 0.04663309012 | J192: 0.04663309012 | K192: 0.04663309012 | L192: 0.04663309012 | M192: 0.04524009012 | N192: 0.04524009012 | O192: 0.04524009012 | P192: 0.04524009012 | Q192: 0.03516841885 | R192: 0 | S192: 0 | T192: 0 | U192: 0 | V192: 0 | W192: 0 | X192: 0 | Y192: 0 | Z192: 0 | AA192: 0 | AB192: 0 | AC192: 0 | AD192: 0 | AE192: 0 | AF192: 0 | AG192: 0 | AH192: 0 | AI192: 0 | AJ192: 0 | AK192: 0 | AL192: 0 | AM192: 0 | AN192: 0 | AO192: 0 | AP192: 0 | AQ192: 0 | AR192: 0 | AS192: 0 | AT192: 0 | AU192: 0 | AV192: 0 | AW192: 0 | AX192: 0 | AY192: 0
A193: ='Allocation Methodology'!A25 -> 21 | B193: ='Allocation Methodology'!B25 -> Cool Savings Rebate | C193: ='Allocation Methodology'!C25 -> Consumer | D193: ='Allocation Methodology'!D25 -> 2008 | E193: ='Allocation Methodology'!E25 -> Final | F193: FALSE | G193: 0 | H193: 0 | I193: 0.2435471787 | J193: 0.2435471787 | K193: 0.2435471787 | L193: 0.2435471787 | M193: 0.2435471787 | N193: 0.2435471787 | O193: 0.2435471787 | P193: 0.2435471787 | Q193: 0.2435471787 | R193: 0.2435471787 | S193: 0.2435471787 | T193: 0.2435471787 | U193: 0.2435471787 | V193: 0.2435471787 | W193: 0.2435471787 | X193: 0.1976472781 | Y193: 0.1976472781 | Z193: 0.1976472781 | AA193: 0 | AB193: 0 | AC193: 0 | AD193: 0 | AE193: 0 | AF193: 0 | AG193: 0 | AH193: 0 | AI193: 0 | AJ193: 0 | AK193: 0 | AL193: 0 | AM193: 0 | AN193: 0 | AO193: 0 | AP193: 0 | AQ193: 0 | AR193: 0 | AS193: 0 | AT193: 0 | AU193: 0 | AV193: 0 | AW193: 0 | AX193: 0 | AY193: 0
A194: ='Allocation Methodology'!A26 -> 22 | B194: ='Allocation Methodology'!B26 -> Every Kilowatt Counts Power Savings Event | C194: ='Allocation Methodology'!C26 -> Consumer | D194: ='Allocation Methodology'!D26 -> 2008 | E194: ='Allocation Methodology'!E26 -> Final | F194: FALSE | G194: 0 | H194: 0 | I194: 0.1468277185 | J194: 0.1390643459 | K194: 0.1390643459 | L194: 0.1390643459 | M194: 0.1252317274 | N194: 0.1252317274 | O194: 0.09842715938 | P194: 0.08735010522 | Q194: 0.06853535374 | R194: 0.05666603529 | S194: 0.05030125565 | T194: 0.05030125565 | U194: 0.02790038539 | V194: 0.02790038539 | W194: 0.02790038539 | X194: 0.02790038539 | Y194: 0 | Z194: 0 | AA194: 0 | AB194: 0 | AC194: 0 | AD194: 0 | AE194: 0 | AF194: 0 | AG194: 0 | AH194: 0 | AI194: 0 | AJ194: 0 | AK194: 0 | AL194: 0 | AM194: 0 | AN194: 0 | AO194: 0 | AP194: 0 | AQ194: 0 | AR194: 0 | AS194: 0 | AT194: 0 | AU194: 0 | AV194: 0 | AW194: 0 | AX194: 0 | AY194: 0
A195: ='Allocation Methodology'!A27 -> 23 | B195: ='Allocation Methodology'!B27 -> peaksaver® | C195: ='Allocation Methodology'!C27 -> Consumer, Business | D195: ='Allocation Methodology'!D27 -> 2008 | E195: ='Allocation Methodology'!E27 -> Final | F195: FALSE | G195: 0 | H195: 0 | I195: 0.203275 | J195: 0.203275 | K195: 0.203275 | L195: 0.203275 | M195: 0.203275 | N195: 0.203275 | O195: 0.203275 | P195: 0.203275 | Q195: 0.203275 | R195: 0.203275 | S195: 0.203275 | T195: 0.203275 | U195: 0.203275 | V195: 0 | W195: 0 | X195: 0 | Y195: 0 | Z195: 0 | AA195: 0 | AB195: 0 | AC195: 0 | AD195: 0 | AE195: 0 | AF195: 0 | AG195: 0 | AH195: 0 | AI195: 0 | AJ195: 0 | AK195: 0 | AL195: 0 | AM195: 0 | AN195: 0 | AO195: 0 | AP195: 0 | AQ195: 0 | AR195: 0 | AS195: 0 | AT195: 0 | AU195: 0 | AV195: 0 | AW195: 0 | AX195: 0 | AY195: 0
A196: ='Allocation Methodology'!A28 -> 24 | B196: ='Allocation Methodology'!B28 -> Summer Sweepstakes | C196: ='Allocation Methodology'!C28 -> Consumer | D196: ='Allocation Methodology'!D28 -> 2008 | E196: ='Allocation Methodology'!E28 -> Final | F196: FALSE | G196: 0 | H196: 0 | I196: 0.2637632692 | J196: 0.1512562019 | K196: 0.1512562019 | L196: 0.1512562019 | M196: 0.1512562019 | N196: 0.1512562019 | O196: 0.1512562019 | P196: 0.1512562019 | Q196: 0.1459920698 | R196: 0.1459920698 | S196: 0.1444466886 | T196: 0.1444466886 | U196: 0.1444466886 | V196: 0.1426099818 | W196: 0.1419202261 | X196: 0.1349160839 | Y196: 0.1349160839 | Z196: 0.1349160839 | AA196: 0.1349160839 | AB196: 0.1349160839 | AC196: 0 | AD196: 0 | AE196: 0 | AF196: 0 | AG196: 0 | AH196: 0 | AI196: 0 | AJ196: 0 | AK196: 0 | AL196: 0 | AM196: 0 | AN196: 0 | AO196: 0 | AP196: 0 | AQ196: 0 | AR196: 0 | AS196: 0 | AT196: 0 | AU196: 0 | AV196: 0 | AW196: 0 | AX196: 0 | AY196: 0
A197: ='Allocation Methodology'!A29 -> 25 | B197: ='Allocation Methodology'!B29 -> Electricity Retrofit Incentive | C197: ='Allocation Methodology'!C29 -> Consumer, Business | D197: ='Allocation Methodology'!D29 -> 2008 | E197: ='Allocation Methodology'!E29 -> Final | F197: FALSE | G197: 0 | H197: 0 | I197: 0.2039037941 | J197: 0.2039037941 | K197: 0.2039037941 | L197: 0.2039037941 | M197: 0.2039037941 | N197: 0.2039037941 | O197: 0.2039037941 | P197: 0.2039037941 | Q197: 0.2008732514 | R197: 0.2008732514 | S197: 0.2008732514 | T197: 0.2008732514 | U197: 0.2008732514 | V197: 0.2008732514 | W197: 0.2008732514 | X197: 0.1948470538 | Y197: 0 | Z197: 0 | AA197: 0 | AB197: 0 | AC197: 0 | AD197: 0 | AE197: 0 | AF197: 0 | AG197: 0 | AH197: 0 | AI197: 0 | AJ197: 0 | AK197: 0 | AL197: 0 | AM197: 0 | AN197: 0 | AO197: 0 | AP197: 0 | AQ197: 0 | AR197: 0 | AS197: 0 | AT197: 0 | AU197: 0 | AV197: 0 | AW197: 0 | AX197: 0 | AY197: 0
A198: ='Allocation Methodology'!A30 -> 26 | B198: ='Allocation Methodology'!B30 -> Toronto Comprehensive | C198: ='Allocation Methodology'!C30 -> Consumer, Consumer Low-Income, Business | D198: ='Allocation Methodology'!D30 -> 2008 | E198: ='Allocation Methodology'!E30 -> Final | F198: FALSE | G198: 0 | H198: 0 | I198: 0 | J198: 0 | K198: 0 | L198: 0 | M198: 0 | N198: 0 | O198: 0 | P198: 0 | Q198: 0 | R198: 0 | S198: 0 | T198: 0 | U198: 0 | V198: 0 | W198: 0 | X198: 0 | Y198: 0 | Z198: 0 | AA198: 0 | AB198: 0 | AC198: 0 | AD198: 0 | AE198: 0 | AF198: 0 | AG198: 0 | AH198: 0 | AI198: 0 | AJ198: 0 | AK198: 0 | AL198: 0 | AM198: 0 | AN198: 0 | AO198: 0 | AP198: 0 | AQ198: 0 | AR198: 0 | AS198: 0 | AT198: 0 | AU198: 0 | AV198: 0 | AW198: 0 | AX198: 0 | AY198: 0
A199: ='Allocation Methodology'!A31 -> 27 | B199: ='Allocation Methodology'!B31 -> High Performance New Construction | C199: ='Allocation Methodology'!C31 -> Business | D199: ='Allocation Methodology'!D31 -> 2008 | E199: ='Allocation Methodology'!E31 -> Final | F199: FALSE | G199: 0 | H199: 0 | I199: 0.006754417513 | J199: 0.006754417513 | K199: 0.006754417513 | L199: 0.006754417513 | M199: 0.006754417513 | N199: 0.006754417513 | O199: 0.006754417513 | P199: 0.006754417513 | Q199: 0.006754417513 | R199: 0.006754417513 | S199: 0.006754417513 | T199: 0.006754417513 | U199: 0.006754417513 | V199: 0.006754417513 | W199: 0 | X199: 0 | Y199: 0 | Z199: 0 | AA199: 0 | AB199: 0 | AC199: 0 | AD199: 0 | AE199: 0 | AF199: 0 | AG199: 0 | AH199: 0 | AI199: 0 | AJ199: 0 | AK199: 0 | AL199: 0 | AM199: 0 | AN199: 0 | AO199: 0 | AP199: 0 | AQ199: 0 | AR199: 0 | AS199: 0 | AT199: 0 | AU199: 0 | AV199: 0 | AW199: 0 | AX199: 0 | AY199: 0
A200: ='Allocation Methodology'!A32 -> 28 | B200: ='Allocation Methodology'!B32 -> Power Savings Blitz | C200: ='Allocation Methodology'!C32 -> Business | D200: ='Allocation Methodology'!D32 -> 2008 | E200: ='Allocation Methodology'!E32 -> Final | F200: FALSE | G200: 0 | H200: 0 | I200: 0.001076 | J200: 0.001076 | K200: 0.000504 | L200: 0.000504 | M200: 0.000504 | N200: 0.000504 | O200: 0.000504 | P200: 0.000504 | Q200: 0.000504 | R200: 0.000504 | S200: 0.000504 | T200: 0.000504 | U200: 0.000504 | V200: 0.000504 | W200: 0.000504 | X200: 0 | Y200: 0 | Z200: 0 | AA200: 0 | AB200: 0 | AC200: 0 | AD200: 0 | AE200: 0 | AF200: 0 | AG200: 0 | AH200: 0 | AI200: 0 | AJ200: 0 | AK200: 0 | AL200: 0 | AM200: 0 | AN200: 0 | AO200: 0 | AP200: 0 | AQ200: 0 | AR200: 0 | AS200: 0 | AT200: 0 | AU200: 0 | AV200: 0 | AW200: 0 | AX200: 0 | AY200: 0
A201: ='Allocation Methodology'!A33 -> 29 | B201: ='Allocation Methodology'!B33 -> Demand Response 1 | C201: ='Allocation Methodology'!C33 -> Business, Industrial | D201: ='Allocation Methodology'!D33 -> 2008 | E201: ='Allocation Methodology'!E33 -> Final | F201: FALSE | G201: 0 | H201: 0 | I201: 6.112449861 | J201: 0 | K201: 0 | L201: 0 | M201: 0 | N201: 0 | O201: 0 | P201: 0 | Q201: 0 | R201: 0 | S201: 0 | T201: 0 | U201: 0 | V201: 0 | W201: 0 | X201: 0 | Y201: 0 | Z201: 0 | AA201: 0 | AB201: 0 | AC201: 0 | AD201: 0 | AE201: 0 | AF201: 0 | AG201: 0 | AH201: 0 | AI201: 0 | AJ201: 0 | AK201: 0 | AL201: 0 | AM201: 0 | AN201: 0 | AO201: 0 | AP201: 0 | AQ201: 0 | AR201: 0 | AS201: 0 | AT201: 0 | AU201: 0 | AV201: 0 | AW201: 0 | AX201: 0 | AY201: 0
A202: ='Allocation Methodology'!A34 -> 30 | B202: ='Allocation Methodology'!B34 -> Demand Response 3 | C202: ='Allocation Methodology'!C34 -> Business, Industrial | D202: ='Allocation Methodology'!D34 -> 2008 | E202: ='Allocation Methodology'!E34 -> Final | F202: FALSE | G202: 0 | H202: 0 | I202: 1.182023065 | J202: 0 | K202: 0 | L202: 0 | M202: 0 | N202: 0 | O202: 0 | P202: 0 | Q202: 0 | R202: 0 | S202: 0 | T202: 0 | U202: 0 | V202: 0 | W202: 0 | X202: 0 | Y202: 0 | Z202: 0 | AA202: 0 | AB202: 0 | AC202: 0 | AD202: 0 | AE202: 0 | AF202: 0 | AG202: 0 | AH202: 0 | AI202: 0 | AJ202: 0 | AK202: 0 | AL202: 0 | AM202: 0 | AN202: 0 | AO202: 0 | AP202: 0 | AQ202: 0 | AR202: 0 | AS202: 0 | AT202: 0 | AU202: 0 | AV202: 0 | AW202: 0 | AX202: 0 | AY202: 0
A203: ='Allocation Methodology'!A35 -> 31 | B203: ='Allocation Methodology'!B35 -> Loblaw & York Region Demand Response | C203: ='Allocation Methodology'!C35 -> Business, Industrial | D203: ='Allocation Methodology'!D35 -> 2008 | E203: ='Allocation Methodology'!E35 -> Final | F203: FALSE | G203: 0 | H203: 0 | I203: 0.4061987497 | J203: 0 | K203: 0 | L203: 0 | M203: 0 | N203: 0 | O203: 0 | P203: 0 | Q203: 0 | R203: 0 | S203: 0 | T203: 0 | U203: 0 | V203: 0 | W203: 0 | X203: 0 | Y203: 0 | Z203: 0 | AA203: 0 | AB203: 0 | AC203: 0 | AD203: 0 | AE203: 0 | AF203: 0 | AG203: 0 | AH203: 0 | AI203: 0 | AJ203: 0 | AK203: 0 | AL203: 0 | AM203: 0 | AN203: 0 | AO203: 0 | AP203: 0 | AQ203: 0 | AR203: 0 | AS203: 0 | AT203: 0 | AU203: 0 | AV203: 0 | AW203: 0 | AX203: 0 | AY203: 0
A204: ='Allocation Methodology'!A36 -> 32 | B204: ='Allocation Methodology'!B36 -> Renewable Energy Standard Offer | C204: ='Allocation Methodology'!C36 -> Consumer, Business | D204: ='Allocation Methodology'!D36 -> 2008 | E204: ='Allocation Methodology'!E36 -> Final | F204: FALSE | G204: 0 | H204: 0 | I204: 0 | J204: 0 | K204: 0 | L204: 0 | M204: 0 | N204: 0 | O204: 0 | P204: 0 | Q204: 0 | R204: 0 | S204: 0 | T204: 0 | U204: 0 | V204: 0 | W204: 0 | X204: 0 | Y204: 0 | Z204: 0 | AA204: 0 | AB204: 0 | AC204: 0 | AD204: 0 | AE204: 0 | AF204: 0 | AG204: 0 | AH204: 0 | AI204: 0 | AJ204: 0 | AK204: 0 | AL204: 0 | AM204: 0 | AN204: 0 | AO204: 0 | AP204: 0 | AQ204: 0 | AR204: 0 | AS204: 0 | AT204: 0 | AU204: 0 | AV204: 0 | AW204: 0 | AX204: 0 | AY204: 0
A205: ='Allocation Methodology'!A37 -> 33 | B205: ='Allocation Methodology'!B37 -> Other Customer Based Generation | C205: ='Allocation Methodology'!C37 -> Business | D205: ='Allocation Methodology'!D37 -> 2008 | E205: ='Allocation Methodology'!E37 -> Final | F205: FALSE | G205: 0 | H205: 0 | I205: 0 | J205: 0 | K205: 0 | L205: 0 | M205: 0 | N205: 0 | O205: 0 | P205: 0 | Q205: 0 | R205: 0 | S205: 0 | T205: 0 | U205: 0 | V205: 0 | W205: 0 | X205: 0 | Y205: 0 | Z205: 0 | AA205: 0 | AB205: 0 | AC205: 0 | AD205: 0 | AE205: 0 | AF205: 0 | AG205: 0 | AH205: 0 | AI205: 0 | AJ205: 0 | AK205: 0 | AL205: 0 | AM205: 0 | AN205: 0 | AO205: 0 | AP205: 0 | AQ205: 0 | AR205: 0 | AS205: 0 | AT205: 0 | AU205: 0 | AV205: 0 | AW205: 0 | AX205: 0 | AY205: 0
A206: ='Allocation Methodology'!A38 -> 34 | B206: ='Allocation Methodology'!B38 -> LDC Custom - Hydro One Networks Inc. - Double Return | C206: ='Allocation Methodology'!C38 -> Business, Industrial | D206: ='Allocation Methodology'!D38 -> 2008 | E206: ='Allocation Methodology'!E38 -> Final | F206: FALSE | G206: 0 | H206: 0 | I206: 0 | J206: 0 | K206: 0 | L206: 0 | M206: 0 | N206: 0 | O206: 0 | P206: 0 | Q206: 0 | R206: 0 | S206: 0 | T206: 0 | U206: 0 | V206: 0 | W206: 0 | X206: 0 | Y206: 0 | Z206: 0 | AA206: 0 | AB206: 0 | AC206: 0 | AD206: 0 | AE206: 0 | AF206: 0 | AG206: 0 | AH206: 0 | AI206: 0 | AJ206: 0 | AK206: 0 | AL206: 0 | AM206: 0 | AN206: 0 | AO206: 0 | AP206: 0 | AQ206: 0 | AR206: 0 | AS206: 0 | AT206: 0 | AU206: 0 | AV206: 0 | AW206: 0 | AX206: 0 | AY206: 0
A207: ='Allocation Methodology'!A39 -> 35 | B207: ='Allocation Methodology'!B39 -> Great Refrigerator Roundup | C207: ='Allocation Methodology'!C39 -> Consumer | D207: ='Allocation Methodology'!D39 -> 2009 | E207: ='Allocation Methodology'!E39 -> Final | F207: FALSE | G207: 0 | H207: 0 | I207: 0 | J207: 0.05247134151 | K207: 0.05247134151 | L207: 0.05247134151 | M207: 0.05131690572 | N207: 0.03471334125 | O207: 0 | P207: 0 | Q207: 0 | R207: 0 | S207: 0 | T207: 0 | U207: 0 | V207: 0 | W207: 0 | X207: 0 | Y207: 0 | Z207: 0 | AA207: 0 | AB207: 0 | AC207: 0 | AD207: 0 | AE207: 0 | AF207: 0 | AG207: 0 | AH207: 0 | AI207: 0 | AJ207: 0 | AK207: 0 | AL207: 0 | AM207: 0 | AN207: 0 | AO207: 0 | AP207: 0 | AQ207: 0 | AR207: 0 | AS207: 0 | AT207: 0 | AU207: 0 | AV207: 0 | AW207: 0 | AX207: 0 | AY207: 0
A208: ='Allocation Methodology'!A40 -> 36 | B208: ='Allocation Methodology'!B40 -> Cool Savings Rebate | C208: ='Allocation Methodology'!C40 -> Consumer | D208: ='Allocation Methodology'!D40 -> 2009 | E208: ='Allocation Methodology'!E40 -> Final | F208: FALSE | G208: 0 | H208: 0 | I208: 0 | J208: 0.4198023691 | K208: 0.4198023691 | L208: 0.4198023691 | M208: 0.418944381 | N208: 0.4188027684 | O208: 0.4187184811 | P208: 0.4187184811 | Q208: 0.4187184811 | R208: 0.4187184811 | S208: 0.4187184811 | T208: 0.4159373823 | U208: 0.4159373823 | V208: 0.4159373823 | W208: 0.4159373823 | X208: 0.4159373823 | Y208: 0.4048641764 | Z208: 0.4048641764 | AA208: 0.4048641764 | AB208: 0.3245200123 | AC208: 0 | AD208: 0 | AE208: 0 | AF208: 0 | AG208: 0 | AH208: 0 | AI208: 0 | AJ208: 0 | AK208: 0 | AL208: 0 | AM208: 0 | AN208: 0 | AO208: 0 | AP208: 0 | AQ208: 0 | AR208: 0 | AS208: 0 | AT208: 0 | AU208: 0 | AV208: 0 | AW208: 0 | AX208: 0 | AY208: 0
A209: ='Allocation Methodology'!A41 -> 37 | B209: ='Allocation Methodology'!B41 -> Every Kilowatt Counts Power Savings Event | C209: ='Allocation Methodology'!C41 -> Consumer | D209: ='Allocation Methodology'!D41 -> 2009 | E209: ='Allocation Methodology'!E41 -> Final | F209: FALSE | G209: 0 | H209: 0 | I209: 0 | J209: 0.1339807642 | K209: 0.1285388001 | L209: 0.1285388001 | M209: 0.1285388001 | N209: 0.1280646099 | O209: 0.1280646099 | P209: 0.1206328797 | Q209: 0.1206328797 | R209: 0.0971724009 | S209: 0.0971724009 | T209: 0.08506945148 | U209: 0.08504467298 | V209: 0.05653788576 | W209: 0.05653788576 | X209: 0.05369370927 | Y209: 0.01018647642 | Z209: 0.007411164799 | AA209: 0.007411164799 | AB209: 0.005406544562 | AC209: 0.005406544562 | AD209: 0 | AE209: 0 | AF209: 0 | AG209: 0 | AH209: 0 | AI209: 0 | AJ209: 0 | AK209: 0 | AL209: 0 | AM209: 0 | AN209: 0 | AO209: 0 | AP209: 0 | AQ209: 0 | AR209: 0 | AS209: 0 | AT209: 0 | AU209: 0 | AV209: 0 | AW209: 0 | AX209: 0 | AY209: 0
A210: ='Allocation Methodology'!A42 -> 38 | B210: ='Allocation Methodology'!B42 -> peaksaver® | C210: ='Allocation Methodology'!C42 -> Consumer, Business | D210: ='Allocation Methodology'!D42 -> 2009 | E210: ='Allocation Methodology'!E42 -> Final | F210: FALSE | G210: 0 | H210: 0 | I210: 0 | J210: 0.1372863725 | K210: 0.1372863725 | L210: 0.1372863725 | M210: 0.1372863725 | N210: 0.1372863725 | O210: 0.1372863725 | P210: 0.1372863725 | Q210: 0.1372863725 | R210: 0.1372863725 | S210: 0.1372863725 | T210: 0.1372863725 | U210: 0.1372863725 | V210: 0.1372863725 | W210: 0 | X210: 0 | Y210: 0 | Z210: 0 | AA210: 0 | AB210: 0 | AC210: 0 | AD210: 0 | AE210: 0 | AF210: 0 | AG210: 0 | AH210: 0 | AI210: 0 | AJ210: 0 | AK210: 0 | AL210: 0 | AM210: 0 | AN210: 0 | AO210: 0 | AP210: 0 | AQ210: 0 | AR210: 0 | AS210: 0 | AT210: 0 | AU210: 0 | AV210: 0 | AW210: 0 | AX210: 0 | AY210: 0
A211: ='Allocation Methodology'!A43 -> 39 | B211: ='Allocation Methodology'!B43 -> Electricity Retrofit Incentive | C211: ='Allocation Methodology'!C43 -> Consumer, Business | D211: ='Allocation Methodology'!D43 -> 2009 | E211: ='Allocation Methodology'!E43 -> Final | F211: FALSE | G211: 0 | H211: 0 | I211: 0 | J211: 0.4102392344 | K211: 0.4102392344 | L211: 0.4102392344 | M211: 0.4102392344 | N211: 0.4102392344 | O211: 0.4102392344 | P211: 0.4102392344 | Q211: 0.3818181818 | R211: 0.3818181818 | S211: 0.3818181818 | T211: 0.3818181818 | U211: 0 | V211: 0 | W211: 0 | X211: 0 | Y211: 0 | Z211: 0 | AA211: 0 | AB211: 0 | AC211: 0 | AD211: 0 | AE211: 0 | AF211: 0 | AG211: 0 | AH211: 0 | AI211: 0 | AJ211: 0 | AK211: 0 | AL211: 0 | AM211: 0 | AN211: 0 | AO211: 0 | AP211: 0 | AQ211: 0 | AR211: 0 | AS211: 0 | AT211: 0 | AU211: 0 | AV211: 0 | AW211: 0 | AX211: 0 | AY211: 0
A212: ='Allocation Methodology'!A44 -> 40 | B212: ='Allocation Methodology'!B44 -> Toronto Comprehensive | C212: ='Allocation Methodology'!C44 -> Consumer, Consumer Low-Income, Business, Industrial | D212: ='Allocation Methodology'!D44 -> 2009 | E212: ='Allocation Methodology'!E44 -> Final | F212: FALSE | G212: 0 | H212: 0 | I212: 0 | J212: 0 | K212: 0 | L212: 0 | M212: 0 | N212: 0 | O212: 0 | P212: 0 | Q212: 0 | R212: 0 | S212: 0 | T212: 0 | U212: 0 | V212: 0 | W212: 0 | X212: 0 | Y212: 0 | Z212: 0 | AA212: 0 | AB212: 0 | AC212: 0 | AD212: 0 | AE212: 0 | AF212: 0 | AG212: 0 | AH212: 0 | AI212: 0 | AJ212: 0 | AK212: 0 | AL212: 0 | AM212: 0 | AN212: 0 | AO212: 0 | AP212: 0 | AQ212: 0 | AR212: 0 | AS212: 0 | AT212: 0 | AU212: 0 | AV212: 0 | AW212: 0 | AX212: 0 | AY212: 0
A213: ='Allocation Methodology'!A45 -> 41 | B213: ='Allocation Methodology'!B45 -> High Performance New Construction | C213: ='Allocation Methodology'!C45 -> Business | D213: ='Allocation Methodology'!D45 -> 2009 | E213: ='Allocation Methodology'!E45 -> Final | F213: FALSE | G213: 0 | H213: 0 | I213: 0 | J213: 0.07335763281 | K213: 0.07335763281 | L213: 0.07335763281 | M213: 0.07335763281 | N213: 0.07335763281 | O213: 0.07335763281 | P213: 0.07335763281 | Q213: 0.07335763281 | R213: 0.07335763281 | S213: 0.07335763281 | T213: 0.07335763281 | U213: 0.07335763281 | V213: 0.07335763281 | W213: 0.07335763281 | X213: 0.07335763281 | Y213: 0.07335763281 | Z213: 0.07335763281 | AA213: 0.07335763281 | AB213: 0.07335763281 | AC213: 0.07335763281 | AD213: 0 | AE213: 0 | AF213: 0 | AG213: 0 | AH213: 0 | AI213: 0 | AJ213: 0 | AK213: 0 | AL213: 0 | AM213: 0 | AN213: 0 | AO213: 0 | AP213: 0 | AQ213: 0 | AR213: 0 | AS213: 0 | AT213: 0 | AU213: 0 | AV213: 0 | AW213: 0 | AX213: 0 | AY213: 0
A214: ='Allocation Methodology'!A46 -> 42 | B214: ='Allocation Methodology'!B46 -> Power Savings Blitz | C214: ='Allocation Methodology'!C46 -> Business | D214: ='Allocation Methodology'!D46 -> 2009 | E214: ='Allocation Methodology'!E46 -> Final | F214: FALSE | G214: 0 | H214: 0 | I214: 0 | J214: 0.6572660375 | K214: 0.6572660375 | L214: 0.6572660375 | M214: 0.6572660375 | N214: 0.6572660375 | O214: 0.6572660375 | P214: 0.6572660375 | Q214: 0.6572660375 | R214: 0.6572660375 | S214: 0 | T214: 0 | U214: 0 | V214: 0 | W214: 0 | X214: 0 | Y214: 0 | Z214: 0 | AA214: 0 | AB214: 0 | AC214: 0 | AD214: 0 | AE214: 0 | AF214: 0 | AG214: 0 | AH214: 0 | AI214: 0 | AJ214: 0 | AK214: 0 | AL214: 0 | AM214: 0 | AN214: 0 | AO214: 0 | AP214: 0 | AQ214: 0 | AR214: 0 | AS214: 0 | AT214: 0 | AU214: 0 | AV214: 0 | AW214: 0 | AX214: 0 | AY214: 0
A215: ='Allocation Methodology'!A47 -> 43 | B215: ='Allocation Methodology'!B47 -> Multi-Family Energy Efficiency Rebates | C215: ='Allocation Methodology'!C47 -> Consumer, Consumer Low-Income | D215: ='Allocation Methodology'!D47 -> 2009 | E215: ='Allocation Methodology'!E47 -> Final | F215: FALSE | G215: 0 | H215: 0 | I215: 0 | J215: 0 | K215: 0 | L215: 0 | M215: 0 | N215: 0 | O215: 0 | P215: 0 | Q215: 0 | R215: 0 | S215: 0 | T215: 0 | U215: 0 | V215: 0 | W215: 0 | X215: 0 | Y215: 0 | Z215: 0 | AA215: 0 | AB215: 0 | AC215: 0 | AD215: 0 | AE215: 0 | AF215: 0 | AG215: 0 | AH215: 0 | AI215: 0 | AJ215: 0 | AK215: 0 | AL215: 0 | AM215: 0 | AN215: 0 | AO215: 0 | AP215: 0 | AQ215: 0 | AR215: 0 | AS215: 0 | AT215: 0 | AU215: 0 | AV215: 0 | AW215: 0 | AX215: 0 | AY215: 0
A216: ='Allocation Methodology'!A48 -> 44 | B216: ='Allocation Methodology'!B48 -> Demand Response 1 | C216: ='Allocation Methodology'!C48 -> Business, Industrial | D216: ='Allocation Methodology'!D48 -> 2009 | E216: ='Allocation Methodology'!E48 -> Final | F216: FALSE | G216: 0 | H216: 0 | I216: 0 | J216: 2.318471623 | K216: 0 | L216: 0 | M216: 0 | N216: 0 | O216: 0 | P216: 0 | Q216: 0 | R216: 0 | S216: 0 | T216: 0 | U216: 0 | V216: 0 | W216: 0 | X216: 0 | Y216: 0 | Z216: 0 | AA216: 0 | AB216: 0 | AC216: 0 | AD216: 0 | AE216: 0 | AF216: 0 | AG216: 0 | AH216: 0 | AI216: 0 | AJ216: 0 | AK216: 0 | AL216: 0 | AM216: 0 | AN216: 0 | AO216: 0 | AP216: 0 | AQ216: 0 | AR216: 0 | AS216: 0 | AT216: 0 | AU216: 0 | AV216: 0 | AW216: 0 | AX216: 0 | AY216: 0
A217: ='Allocation Methodology'!A49 -> 45 | B217: ='Allocation Methodology'!B49 -> Demand Response 2 | C217: ='Allocation Methodology'!C49 -> Business, Industrial | D217: ='Allocation Methodology'!D49 -> 2009 | E217: ='Allocation Methodology'!E49 -> Final | F217: FALSE | G217: 0 | H217: 0 | I217: 0 | J217: 1.574311687 | K217: 0 | L217: 0 | M217: 0 | N217: 0 | O217: 0 | P217: 0 | Q217: 0 | R217: 0 | S217: 0 | T217: 0 | U217: 0 | V217: 0 | W217: 0 | X217: 0 | Y217: 0 | Z217: 0 | AA217: 0 | AB217: 0 | AC217: 0 | AD217: 0 | AE217: 0 | AF217: 0 | AG217: 0 | AH217: 0 | AI217: 0 | AJ217: 0 | AK217: 0 | AL217: 0 | AM217: 0 | AN217: 0 | AO217: 0 | AP217: 0 | AQ217: 0 | AR217: 0 | AS217: 0 | AT217: 0 | AU217: 0 | AV217: 0 | AW217: 0 | AX217: 0 | AY217: 0
A218: ='Allocation Methodology'!A50 -> 46 | B218: ='Allocation Methodology'!B50 -> Demand Response 3 | C218: ='Allocation Methodology'!C50 -> Business, Industrial | D218: ='Allocation Methodology'!D50 -> 2009 | E218: ='Allocation Methodology'!E50 -> Final | F218: FALSE | G218: 0 | H218: 0 | I218: 0 | J218: 2.249016696 | K218: 0 | L218: 0 | M218: 0 | N218: 0 | O218: 0 | P218: 0 | Q218: 0 | R218: 0 | S218: 0 | T218: 0 | U218: 0 | V218: 0 | W218: 0 | X218: 0 | Y218: 0 | Z218: 0 | AA218: 0 | AB218: 0 | AC218: 0 | AD218: 0 | AE218: 0 | AF218: 0 | AG218: 0 | AH218: 0 | AI218: 0 | AJ218: 0 | AK218: 0 | AL218: 0 | AM218: 0 | AN218: 0 | AO218: 0 | AP218: 0 | AQ218: 0 | AR218: 0 | AS218: 0 | AT218: 0 | AU218: 0 | AV218: 0 | AW218: 0 | AX218: 0 | AY218: 0
A219: ='Allocation Methodology'!A51 -> 47 | B219: ='Allocation Methodology'!B51 -> Loblaw & York Region Demand Response | C219: ='Allocation Methodology'!C51 -> Business, Industrial | D219: ='Allocation Methodology'!D51 -> 2009 | E219: ='Allocation Methodology'!E51 -> Final | F219: FALSE | G219: 0 | H219: 0 | I219: 0 | J219: 0.3864339864 | K219: 0 | L219: 0 | M219: 0 | N219: 0 | O219: 0 | P219: 0 | Q219: 0 | R219: 0 | S219: 0 | T219: 0 | U219: 0 | V219: 0 | W219: 0 | X219: 0 | Y219: 0 | Z219: 0 | AA219: 0 | AB219: 0 | AC219: 0 | AD219: 0 | AE219: 0 | AF219: 0 | AG219: 0 | AH219: 0 | AI219: 0 | AJ219: 0 | AK219: 0 | AL219: 0 | AM219: 0 | AN219: 0 | AO219: 0 | AP219: 0 | AQ219: 0 | AR219: 0 | AS219: 0 | AT219: 0 | AU219: 0 | AV219: 0 | AW219: 0 | AX219: 0 | AY219: 0
... 99 more rows

Sheet Initiative Level - Prov
A1: OPA Conservation & Demand Management Programs
A2: Initiative Results at End-User Level | G2: 1 | H2: 2 | I2: 3 | J2: 4 | K2: 5 | L2: 6 | M2: 7 | N2: 8 | O2: 9 | P2: 10 | Q2: 11 | R2: 12 | S2: 13 | T2: 14 | U2: 15 | V2: 16 | W2: 17 | X2: 18 | Y2: 19 | Z2: 20 | AA2: 21 | AB2: 22 | AC2: 23 | AD2: 24 | AE2: 25 | AF2: 26 | AG2: 27 | AH2: 28 | AI2: 29 | AJ2: 30
A4: For: | B4: Province Wide
A6: Net Summer Peak Demand Savings (MW)
A7: # | B7: Initiative Name | C7: Program Name | D7: Program Year | E7: Results Status | G7: 2006 | H7: =G7+1 -> 2007 | I7: 2008 | J7: 2009 | K7: 2010 | L7: 2011 | M7: 2012 | N7: 2013 | O7: 2014 | P7: 2015 | Q7: 2016 | R7: 2017 | S7: 2018 | T7: 2019 | U7: 2020 | V7: 2021 | W7: 2022 | X7: 2023 | Y7: 2024 | Z7: 2025 | AA7: 2026 | AB7: 2027 | AC7: 2028 | AD7: 2029 | AE7: 2030 | AF7: 2031 | AG7: 2032 | AH7: 2033 | AI7: 2034 | AJ7: 2035 | AK7: 2036 | AL7: 2037 | AM7: 2038 | AN7: 2039 | AO7: 2040 | AP7: 2041 | AQ7: 2042 | AR7: 2043 | AS7: 2044 | AT7: 2045 | AU7: 2046 | AV7: 2047 | AW7: 2048 | AX7: 2049 | AY7: 2050
A9: ='Allocation Methodology'!A5 -> 1 | B9: ='Allocation Methodology'!B5 -> Secondary Refrigerator Retirement Pilot | C9: ='Allocation Methodology'!C5 -> Consumer | D9: ='Allocation Methodology'!D5 -> 2006 | E9: ='Allocation Methodology'!E5 -> Final | F9: FALSE | G9: 1.2682476 | H9: 1.2682476 | I9: 1.2682476 | J9: 1.2682476 | K9: 1.2682476 | L9: 1.2682476 | M9: 0 | N9: 0 | O9: 0 | P9: 0 | Q9: 0 | R9: 0 | S9: 0 | T9: 0 | U9: 0 | V9: 0 | W9: 0 | X9: 0 | Y9: 0 | Z9: 0 | AA9: 0 | AB9: 0 | AC9: 0 | AD9: 0 | AE9: 0 | AF9: 0 | AG9: 0 | AH9: 0 | AI9: 0 | AJ9: 0 | AK9: 0 | AL9: 0 | AM9: 0 | AN9: 0 | AO9: 0 | AP9: 0 | AQ9: 0 | AR9: 0 | AS9: 0 | AT9: 0 | AU9: 0 | AV9: 0 | AW9: 0 | AX9: 0 | AY9: 0
A10: ='Allocation Methodology'!A6 -> 2 | B10: ='Allocation Methodology'!B6 -> Cool & Hot Savings Rebate | C10: ='Allocation Methodology'!C6 -> Consumer | D10: ='Allocation Methodology'!D6 -> 2006 | E10: ='Allocation Methodology'!E6 -> Final | F10: FALSE | G10: 12.8007571 | H10: 12.8007571 | I10: 12.8007571 | J10: 12.8007571 | K10: 12.8007571 | L10: 12.8007571 | M10: 12.8007571 | N10: 12.8007571 | O10: 9.090757098 | P10: 9.090757098 | Q10: 9.090757098 | R10: 9.090757098 | S10: 9.090757098 | T10: 9.090757098 | U10: 3.923757098 | V10: 2.07107677 | W10: 2.07107677 | X10: 2.07107677 | Y10: 0 | Z10: 0 | AA10: 0 | AB10: 0 | AC10: 0 | AD10: 0 | AE10: 0 | AF10: 0 | AG10: 0 | AH10: 0 | AI10: 0 | AJ10: 0 | AK10: 0 | AL10: 0 | AM10: 0 | AN10: 0 | AO10: 0 | AP10: 0 | AQ10: 0 | AR10: 0 | AS10: 0 | AT10: 0 | AU10: 0 | AV10: 0 | AW10: 0 | AX10: 0 | AY10: 0
A11: ='Allocation Methodology'!A7 -> 3 | B11: ='Allocation Methodology'!B7 -> Every Kilowatt Counts | C11: ='Allocation Methodology'!C7 -> Consumer | D11: ='Allocation Methodology'!D7 -> 2006 | E11: ='Allocation Methodology'!E7 -> Final | F11: FALSE | G11: 4.226926071 | H11: 4.226926071 | I11: 4.226926071 | J11: 4.226926071 | K11: 4.226926071 | L11: 4.226926071 | M11: 4.226926071 | N11: 4.226926071 | O11: 4.226926071 | P11: 4.226926071 | Q11: 4.226926071 | R11: 4.226926071 | S11: 4.226926071 | T11: 4.226926071 | U11: 4.226926071 | V11: 3.492526071 | W11: 3.492526071 | X11: 3.492526071 | Y11: 0.156429 | Z11: 0.156429 | AA11: 0 | AB11: 0 | AC11: 0 | AD11: 0 | AE11: 0 | AF11: 0 | AG11: 0 | AH11: 0 | AI11: 0 | AJ11: 0 | AK11: 0 | AL11: 0 | AM11: 0 | AN11: 0 | AO11: 0 | AP11: 0 | AQ11: 0 | AR11: 0 | AS11: 0 | AT11: 0 | AU11: 0 | AV11: 0 | AW11: 0 | AX11: 0 | AY11: 0
A12: ='Allocation Methodology'!A8 -> 4 | B12: ='Allocation Methodology'!B8 -> Demand Response 1 | C12: ='Allocation Methodology'!C8 -> Business, Industrial | D12: ='Allocation Methodology'!D8 -> 2006 | E12: ='Allocation Methodology'!E8 -> Final | F12: FALSE | G12: 265.6 | H12: 0 | I12: 0 | J12: 0 | K12: 0 | L12: 0 | M12: 0 | N12: 0 | O12: 0 | P12: 0 | Q12: 0 | R12: 0 | S12: 0 | T12: 0 | U12: 0 | V12: 0 | W12: 0 | X12: 0 | Y12: 0 | Z12: 0 | AA12: 0 | AB12: 0 | AC12: 0 | AD12: 0 | AE12: 0 | AF12: 0 | AG12: 0 | AH12: 0 | AI12: 0 | AJ12: 0 | AK12: 0 | AL12: 0 | AM12: 0 | AN12: 0 | AO12: 0 | AP12: 0 | AQ12: 0 | AR12: 0 | AS12: 0 | AT12: 0 | AU12: 0 | AV12: 0 | AW12: 0 | AX12: 0 | AY12: 0
A13: ='Allocation Methodology'!A9 -> 5 | B13: ='Allocation Methodology'!B9 -> Loblaw & York Region Demand Response | C13: ='Allocation Methodology'!C9 -> Business, Industrial | D13: ='Allocation Methodology'!D9 -> 2006 | E13: ='Allocation Methodology'!E9 -> Final | F13: FALSE | G13: 13 | H13: 0 | I13: 0 | J13: 0 | K13: 0 | L13: 0 | M13: 0 | N13: 0 | O13: 0 | P13: 0 | Q13: 0 | R13: 0 | S13: 0 | T13: 0 | U13: 0 | V13: 0 | W13: 0 | X13: 0 | Y13: 0 | Z13: 0 | AA13: 0 | AB13: 0 | AC13: 0 | AD13: 0 | AE13: 0 | AF13: 0 | AG13: 0 | AH13: 0 | AI13: 0 | AJ13: 0 | AK13: 0 | AL13: 0 | AM13: 0 | AN13: 0 | AO13: 0 | AP13: 0 | AQ13: 0 | AR13: 0 | AS13: 0 | AT13: 0 | AU13: 0 | AV13: 0 | AW13: 0 | AX13: 0 | AY13: 0
A14: ='Allocation Methodology'!A10 -> 6 | B14: ='Allocation Methodology'!B10 -> Great Refrigerator Roundup | C14: ='Allocation Methodology'!C10 -> Consumer | D14: ='Allocation Methodology'!D10 -> 2007 | E14: ='Allocation Methodology'!E10 -> Final | F14: FALSE | G14: 0 | H14: 1.736718226 | I14: 1.736718226 | J14: 1.736718226 | K14: 1.736718226 | L14: 1.55252762 | M14: 1.55252762 | N14: 1.55252762 | O14: 1.55252762 | P14: 1.188723032 | Q14: 0 | R14: 0 | S14: 0 | T14: 0 | U14: 0 | V14: 0 | W14: 0 | X14: 0 | Y14: 0 | Z14: 0 | AA14: 0 | AB14: 0 | AC14: 0 | AD14: 0 | AE14: 0 | AF14: 0 | AG14: 0 | AH14: 0 | AI14: 0 | AJ14: 0 | AK14: 0 | AL14: 0 | AM14: 0 | AN14: 0 | AO14: 0 | AP14: 0 | AQ14: 0 | AR14: 0 | AS14: 0 | AT14: 0 | AU14: 0 | AV14: 0 | AW14: 0 | AX14: 0 | AY14: 0
A15: ='Allocation Methodology'!A11 -> 7 | B15: ='Allocation Methodology'!B11 -> Cool & Hot Savings Rebate | C15: ='Allocation Methodology'!C11 -> Consumer | D15: ='Allocation Methodology'!D11 -> 2007 | E15: ='Allocation Methodology'!E11 -> Final | F15: FALSE | G15: 0 | H15: 14.57306239 | I15: 14.57306239 | J15: 14.57306239 | K15: 14.57306239 | L15: 14.57306239 | M15: 13.4407114 | N15: 13.4407114 | O15: 13.4407114 | P15: 13.4407114 | Q15: 13.4407114 | R15: 13.4407114 | S15: 13.4407114 | T15: 13.4407114 | U15: 13.4407114 | V15: 13.4407114 | W15: 2.494962501 | X15: 2.494962501 | Y15: 2.494962501 | Z15: 0 | AA15: 0 | AB15: 0 | AC15: 0 | AD15: 0 | AE15: 0 | AF15: 0 | AG15: 0 | AH15: 0 | AI15: 0 | AJ15: 0 | AK15: 0 | AL15: 0 | AM15: 0 | AN15: 0 | AO15: 0 | AP15: 0 | AQ15: 0 | AR15: 0 | AS15: 0 | AT15: 0 | AU15: 0 | AV15: 0 | AW15: 0 | AX15: 0 | AY15: 0
A16: ='Allocation Methodology'!A12 -> 8 | B16: ='Allocation Methodology'!B12 -> Every Kilowatt Counts | C16: ='Allocation Methodology'!C12 -> Consumer | D16: ='Allocation Methodology'!D12 -> 2007 | E16: ='Allocation Methodology'!E12 -> Final | F16: FALSE | G16: 0 | H16: 5.069862434 | I16: 4.594150274 | J16: 4.594150274 | K16: 4.594150274 | L16: 4.594150274 | M16: 4.594150274 | N16: 4.594150274 | O16: 4.594150274 | P16: 1.117596414 | Q16: 1.117596414 | R16: 0.045138632 | S16: 0.045138632 | T16: 0.045138632 | U16: 0.045138632 | V16: 0.045138632 | W16: 0.045138632 | X16: 0.016713312 | Y16: 0.016713312 | Z16: 0 | AA16: 0 | AB16: 0 | AC16: 0 | AD16: 0 | AE16: 0 | AF16: 0 | AG16: 0 | AH16: 0 | AI16: 0 | AJ16: 0 | AK16: 0 | AL16: 0 | AM16: 0 | AN16: 0 | AO16: 0 | AP16: 0 | AQ16: 0 | AR16: 0 | AS16: 0 | AT16: 0 | AU16: 0 | AV16: 0 | AW16: 0 | AX16: 0 | AY16: 0
A17: ='Allocation Methodology'!A13 -> 9 | B17: ='Allocation Methodology'!B13 -> peaksaver® | C17: ='Allocation Methodology'!C13 -> Consumer, Business | D17: ='Allocation Methodology'!D13 -> 2007 | E17: ='Allocation Methodology'!E13 -> Final | F17: FALSE | G17: 0 | H17: 13.322241 | I17: 13.322241 | J17: 13.322241 | K17: 13.322241 | L17: 13.322241 | M17: 13.322241 | N17: 13.322241 | O17: 13.322241 | P17: 13.322241 | Q17: 13.322241 | R17: 13.322241 | S17: 13.322241 | T17: 0 | U17: 0 | V17: 0 | W17: 0 | X17: 0 | Y17: 0 | Z17: 0 | AA17: 0 | AB17: 0 | AC17: 0 | AD17: 0 | AE17: 0 | AF17: 0 | AG17: 0 | AH17: 0 | AI17: 0 | AJ17: 0 | AK17: 0 | AL17: 0 | AM17: 0 | AN17: 0 | AO17: 0 | AP17: 0 | AQ17: 0 | AR17: 0 | AS17: 0 | AT17: 0 | AU17: 0 | AV17: 0 | AW17: 0 | AX17: 0 | AY17: 0
A18: ='Allocation Methodology'!A14 -> 10 | B18: ='Allocation Methodology'!B14 -> Summer Savings | C18: ='Allocation Methodology'!C14 -> Consumer | D18: ='Allocation Methodology'!D14 -> 2007 | E18: ='Allocation Methodology'!E14 -> Final | F18: FALSE | G18: 0 | H18: 45.3504793 | I18: 13.52467095 | J18: 6.511836751 | K18: 6.511836751 | L18: 6.511836751 | M18: 6.511836751 | N18: 6.511836751 | O18: 6.511836751 | P18: 6.453247327 | Q18: 6.453247327 | R18: 6.453247327 | S18: 6.453247327 | T18: 6.453247327 | U18: 6.453247327 | V18: 0 | W18: 0 | X18: 0 | Y18: 0 | Z18: 0 | AA18: 0 | AB18: 0 | AC18: 0 | AD18: 0 | AE18: 0 | AF18: 0 | AG18: 0 | AH18: 0 | AI18: 0 | AJ18: 0 | AK18: 0 | AL18: 0 | AM18: 0 | AN18: 0 | AO18: 0 | AP18: 0 | AQ18: 0 | AR18: 0 | AS18: 0 | AT18: 0 | AU18: 0 | AV18: 0 | AW18: 0 | AX18: 0 | AY18: 0
A19: ='Allocation Methodology'!A15 -> 11 | B19: ='Allocation Methodology'!B15 -> Aboriginal | C19: ='Allocation Methodology'!C15 -> Consumer | D19: ='Allocation Methodology'!D15 -> 2007 | E19: ='Allocation Methodology'!E15 -> Final | F19: FALSE | G19: 0 | H19: 0.945871 | I19: 0.945871 | J19: 0.945871 | K19: 0.945871 | L19: 0 | M19: 0 | N19: 0 | O19: 0 | P19: 0 | Q19: 0 | R19: 0 | S19: 0 | T19: 0 | U19: 0 | V19: 0 | W19: 0 | X19: 0 | Y19: 0 | Z19: 0 | AA19: 0 | AB19: 0 | AC19: 0 | AD19: 0 | AE19: 0 | AF19: 0 | AG19: 0 | AH19: 0 | AI19: 0 | AJ19: 0 | AK19: 0 | AL19: 0 | AM19: 0 | AN19: 0 | AO19: 0 | AP19: 0 | AQ19: 0 | AR19: 0 | AS19: 0 | AT19: 0 | AU19: 0 | AV19: 0 | AW19: 0 | AX19: 0 | AY19: 0
A20: ='Allocation Methodology'!A16 -> 12 | B20: ='Allocation Methodology'!B16 -> Affordable Housing Pilot | C20: ='Allocation Methodology'!C16 -> Consumer Low-Income | D20: ='Allocation Methodology'!D16 -> 2007 | E20: ='Allocation Methodology'!E16 -> Final | F20: FALSE | G20: 0 | H20: 0.311610585 | I20: 0.311610585 | J20: 0.311610585 | K20: 0.311610585 | L20: 0.311610585 | M20: 0.311610585 | N20: 0.311610585 | O20: 0.311610585 | P20: 0.311610585 | Q20: 0.311610585 | R20: 0.311610585 | S20: 0.311610585 | T20: 0.311610585 | U20: 0.311610585 | V20: 0 | W20: 0 | X20: 0 | Y20: 0 | Z20: 0 | AA20: 0 | AB20: 0 | AC20: 0 | AD20: 0 | AE20: 0 | AF20: 0 | AG20: 0 | AH20: 0 | AI20: 0 | AJ20: 0 | AK20: 0 | AL20: 0 | AM20: 0 | AN20: 0 | AO20: 0 | AP20: 0 | AQ20: 0 | AR20: 0 | AS20: 0 | AT20: 0 | AU20: 0 | AV20: 0 | AW20: 0 | AX20: 0 | AY20: 0
A21: ='Allocation Methodology'!A17 -> 13 | B21: ='Allocation Methodology'!B17 -> Social Housing Pilot | C21: ='Allocation Methodology'!C17 -> Consumer Low-Income | D21: ='Allocation Methodology'!D17 -> 2007 | E21: ='Allocation Methodology'!E17 -> Final | F21: FALSE | G21: 0 | H21: 1.4 | I21: 1.4 | J21: 1.4 | K21: 1.4 | L21: 1.4 | M21: 1.4 | N21: 1.4 | O21: 1.4 | P21: 1.4 | Q21: 1.4 | R21: 0 | S21: 0 | T21: 0 | U21: 0 | V21: 0 | W21: 0 | X21: 0 | Y21: 0 | Z21: 0 | AA21: 0 | AB21: 0 | AC21: 0 | AD21: 0 | AE21: 0 | AF21: 0 | AG21: 0 | AH21: 0 | AI21: 0 | AJ21: 0 | AK21: 0 | AL21: 0 | AM21: 0 | AN21: 0 | AO21: 0 | AP21: 0 | AQ21: 0 | AR21: 0 | AS21: 0 | AT21: 0 | AU21: 0 | AV21: 0 | AW21: 0 | AX21: 0 | AY21: 0
A22: ='Allocation Methodology'!A18 -> 14 | B22: ='Allocation Methodology'!B18 -> Energy Efficiency Assistance for Houses Pilot | C22: ='Allocation Methodology'!C18 -> Consumer Low-Income | D22: ='Allocation Methodology'!D18 -> 2007 | E22: ='Allocation Methodology'!E18 -> Final | F22: FALSE | G22: 0 | H22: 0.5029666667 | I22: 0.5029666667 | J22: 0.5029666667 | K22: 0.5029666667 | L22: 0.5029666667 | M22: 0.5029666667 | N22: 0.5029666667 | O22: 0.5029666667 | P22: 0.5029666667 | Q22: 0.5029666667 | R22: 0.5029666667 | S22: 0.5029666667 | T22: 0.5029666667 | U22: 0.5029666667 | V22: 0.5029666667 | W22: 0.5029666667 | X22: 0.5029666667 | Y22: 0.5029666667 | Z22: 0.5029666667 | AA22: 0 | AB22: 0 | AC22: 0 | AD22: 0 | AE22: 0 | AF22: 0 | AG22: 0 | AH22: 0 | AI22: 0 | AJ22: 0 | AK22: 0 | AL22: 0 | AM22: 0 | AN22: 0 | AO22: 0 | AP22: 0 | AQ22: 0 | AR22: 0 | AS22: 0 | AT22: 0 | AU22: 0 | AV22: 0 | AW22: 0 | AX22: 0 | AY22: 0
A23: ='Allocation Methodology'!A19 -> 15 | B23: ='Allocation Methodology'!B19 -> Electricity Retrofit Incentive | C23: ='Allocation Methodology'!C19 -> Business | D23: ='Allocation Methodology'!D19 -> 2007 | E23: ='Allocation Methodology'!E19 -> Final | F23: FALSE | G23: 0 | H23: 1.8 | I23: 1.8 | J23: 1.8 | K23: 1.8 | L23: 1.8 | M23: 0 | N23: 0 | O23: 0 | P23: 0 | Q23: 0 | R23: 0 | S23: 0 | T23: 0 | U23: 0 | V23: 0 | W23: 0 | X23: 0 | Y23: 0 | Z23: 0 | AA23: 0 | AB23: 0 | AC23: 0 | AD23: 0 | AE23: 0 | AF23: 0 | AG23: 0 | AH23: 0 | AI23: 0 | AJ23: 0 | AK23: 0 | AL23: 0 | AM23: 0 | AN23: 0 | AO23: 0 | AP23: 0 | AQ23: 0 | AR23: 0 | AS23: 0 | AT23: 0 | AU23: 0 | AV23: 0 | AW23: 0 | AX23: 0 | AY23: 0
A24: ='Allocation Methodology'!A20 -> 16 | B24: ='Allocation Methodology'!B20 -> Toronto Comprehensive | C24: ='Allocation Methodology'!C20 -> Business | D24: ='Allocation Methodology'!D20 -> 2007 | E24: ='Allocation Methodology'!E20 -> Final | F24: FALSE | G24: 0 | H24: 130.9000005 | I24: 130.9000005 | J24: 130.9000005 | K24: 130.9000005 | L24: 130.9000005 | M24: 0 | N24: 0 | O24: 0 | P24: 0 | Q24: 0 | R24: 0 | S24: 0 | T24: 0 | U24: 0 | V24: 0 | W24: 0 | X24: 0 | Y24: 0 | Z24: 0 | AA24: 0 | AB24: 0 | AC24: 0 | AD24: 0 | AE24: 0 | AF24: 0 | AG24: 0 | AH24: 0 | AI24: 0 | AJ24: 0 | AK24: 0 | AL24: 0 | AM24: 0 | AN24: 0 | AO24: 0 | AP24: 0 | AQ24: 0 | AR24: 0 | AS24: 0 | AT24: 0 | AU24: 0 | AV24: 0 | AW24: 0 | AX24: 0 | AY24: 0
A25: ='Allocation Methodology'!A21 -> 17 | B25: ='Allocation Methodology'!B21 -> Demand Response 1 | C25: ='Allocation Methodology'!C21 -> Business, Industrial | D25: ='Allocation Methodology'!D21 -> 2007 | E25: ='Allocation Methodology'!E21 -> Final | F25: FALSE | G25: 0 | H25: 317.35 | I25: 0 | J25: 0 | K25: 0 | L25: 0 | M25: 0 | N25: 0 | O25: 0 | P25: 0 | Q25: 0 | R25: 0 | S25: 0 | T25: 0 | U25: 0 | V25: 0 | W25: 0 | X25: 0 | Y25: 0 | Z25: 0 | AA25: 0 | AB25: 0 | AC25: 0 | AD25: 0 | AE25: 0 | AF25: 0 | AG25: 0 | AH25: 0 | AI25: 0 | AJ25: 0 | AK25: 0 | AL25: 0 | AM25: 0 | AN25: 0 | AO25: 0 | AP25: 0 | AQ25: 0 | AR25: 0 | AS25: 0 | AT25: 0 | AU25: 0 | AV25: 0 | AW25: 0 | AX25: 0 | AY25: 0
A26: ='Allocation Methodology'!A22 -> 18 | B26: ='Allocation Methodology'!B22 -> Loblaw & York Region Demand Response | C26: ='Allocation Methodology'!C22 -> Business, Industrial | D26: ='Allocation Methodology'!D22 -> 2007 | E26: ='Allocation Methodology'!E22 -> Final | F26: FALSE | G26: 0 | H26: 26.4 | I26: 0 | J26: 0 | K26: 0 | L26: 0 | M26: 0 | N26: 0 | O26: 0 | P26: 0 | Q26: 0 | R26: 0 | S26: 0 | T26: 0 | U26: 0 | V26: 0 | W26: 0 | X26: 0 | Y26: 0 | Z26: 0 | AA26: 0 | AB26: 0 | AC26: 0 | AD26: 0 | AE26: 0 | AF26: 0 | AG26: 0 | AH26: 0 | AI26: 0 | AJ26: 0 | AK26: 0 | AL26: 0 | AM26: 0 | AN26: 0 | AO26: 0 | AP26: 0 | AQ26: 0 | AR26: 0 | AS26: 0 | AT26: 0 | AU26: 0 | AV26: 0 | AW26: 0 | AX26: 0 | AY26: 0
A27: ='Allocation Methodology'!A23 -> 19 | B27: ='Allocation Methodology'!B23 -> Renewable Energy Standard Offer | C27: ='Allocation Methodology'!C23 -> Consumer, Business, Industrial | D27: ='Allocation Methodology'!D23 -> 2007 | E27: ='Allocation Methodology'!E23 -> Final | F27: FALSE | G27: 0 | H27: 2.36055 | I27: 2.36055 | J27: 2.36055 | K27: 2.36055 | L27: 2.36055 | M27: 2.36055 | N27: 2.36055 | O27: 2.36055 | P27: 2.36055 | Q27: 2.36055 | R27: 2.36055 | S27: 2.36055 | T27: 2.36055 | U27: 2.36055 | V27: 2.36055 | W27: 2.36055 | X27: 2.36055 | Y27: 2.36055 | Z27: 2.36055 | AA27: 2.36055 | AB27: 0 | AC27: 0 | AD27: 0 | AE27: 0 | AF27: 0 | AG27: 0 | AH27: 0 | AI27: 0 | AJ27: 0 | AK27: 0 | AL27: 0 | AM27: 0 | AN27: 0 | AO27: 0 | AP27: 0 | AQ27: 0 | AR27: 0 | AS27: 0 | AT27: 0 | AU27: 0 | AV27: 0 | AW27: 0 | AX27: 0 | AY27: 0
A28: ='Allocation Methodology'!A24 -> 20 | B28: ='Allocation Methodology'!B24 -> Great Refrigerator Roundup | C28: ='Allocation Methodology'!C24 -> Consumer | D28: ='Allocation Methodology'!D24 -> 2008 | E28: ='Allocation Methodology'!E24 -> Final | F28: FALSE | G28: 0 | H28: 0 | I28: 3.666622753 | J28: 3.666622753 | K28: 3.666622753 | L28: 3.666622753 | M28: 3.553288273 | N28: 3.553288273 | O28: 3.553288273 | P28: 3.553288273 | Q28: 2.745736593 | R28: 0 | S28: 0 | T28: 0 | U28: 0 | V28: 0 | W28: 0 | X28: 0 | Y28: 0 | Z28: 0 | AA28: 0 | AB28: 0 | AC28: 0 | AD28: 0 | AE28: 0 | AF28: 0 | AG28: 0 | AH28: 0 | AI28: 0 | AJ28: 0 | AK28: 0 | AL28: 0 | AM28: 0 | AN28: 0 | AO28: 0 | AP28: 0 | AQ28: 0 | AR28: 0 | AS28: 0 | AT28: 0 | AU28: 0 | AV28: 0 | AW28: 0 | AX28: 0 | AY28: 0
A29: ='Allocation Methodology'!A25 -> 21 | B29: ='Allocation Methodology'!B25 -> Cool Savings Rebate | C29: ='Allocation Methodology'!C25 -> Consumer | D29: ='Allocation Methodology'!D25 -> 2008 | E29: ='Allocation Methodology'!E25 -> Final | F29: FALSE | G29: 0 | H29: 0 | I29: 14.81919657 | J29: 14.81919657 | K29: 14.81919657 | L29: 14.81919657 | M29: 14.81919657 | N29: 14.81919657 | O29: 14.81919657 | P29: 14.81919657 | Q29: 14.81919657 | R29: 14.81919657 | S29: 14.81919657 | T29: 14.81919657 | U29: 14.81919657 | V29: 14.81919657 | W29: 14.81919657 | X29: 12.01744018 | Y29: 12.01744018 | Z29: 12.01744018 | AA29: 0 | AB29: 0 | AC29: 0 | AD29: 0 | AE29: 0 | AF29: 0 | AG29: 0 | AH29: 0 | AI29: 0 | AJ29: 0 | AK29: 0 | AL29: 0 | AM29: 0 | AN29: 0 | AO29: 0 | AP29: 0 | AQ29: 0 | AR29: 0 | AS29: 0 | AT29: 0 | AU29: 0 | AV29: 0 | AW29: 0 | AX29: 0 | AY29: 0
A30: ='Allocation Methodology'!A26 -> 22 | B30: ='Allocation Methodology'!B26 -> Every Kilowatt Counts Power Savings Event | C30: ='Allocation Methodology'!C26 -> Consumer | D30: ='Allocation Methodology'!D26 -> 2008 | E30: ='Allocation Methodology'!E26 -> Final | F30: FALSE | G30: 0 | H30: 0 | I30: 6.476224533 | J30: 6.188465586 | K30: 6.188465586 | L30: 6.188465586 | M30: 5.624894017 | N30: 5.624894017 | O30: 4.326802745 | P30: 3.888367368 | Q30: 2.849752221 | R30: 2.298891621 | S30: 2.0263448 | T30: 2.0263448 | U30: 0.9919931003 | V30: 0.9919931003 | W30: 0.9919931003 | X30: 0.9919931003 | Y30: 0 | Z30: 0 | AA30: 0 | AB30: 0 | AC30: 0 | AD30: 0 | AE30: 0 | AF30: 0 | AG30: 0 | AH30: 0 | AI30: 0 | AJ30: 0 | AK30: 0 | AL30: 0 | AM30: 0 | AN30: 0 | AO30: 0 | AP30: 0 | AQ30: 0 | AR30: 0 | AS30: 0 | AT30: 0 | AU30: 0 | AV30: 0 | AW30: 0 | AX30: 0 | AY30: 0
A31: ='Allocation Methodology'!A27 -> 23 | B31: ='Allocation Methodology'!B27 -> peaksaver® | C31: ='Allocation Methodology'!C27 -> Consumer, Business | D31: ='Allocation Methodology'!D27 -> 2008 | E31: ='Allocation Methodology'!E27 -> Final | F31: FALSE | G31: 0 | H31: 0 | I31: 34.0526205 | J31: 34.0526205 | K31: 34.0526205 | L31: 34.0526205 | M31: 34.0526205 | N31: 34.0526205 | O31: 34.0526205 | P31: 34.0526205 | Q31: 34.0526205 | R31: 34.0526205 | S31: 34.0526205 | T31: 34.0526205 | U31: 34.0526205 | V31: 0 | W31: 0 | X31: 0 | Y31: 0 | Z31: 0 | AA31: 0 | AB31: 0 | AC31: 0 | AD31: 0 | AE31: 0 | AF31: 0 | AG31: 0 | AH31: 0 | AI31: 0 | AJ31: 0 | AK31: 0 | AL31: 0 | AM31: 0 | AN31: 0 | AO31: 0 | AP31: 0 | AQ31: 0 | AR31: 0 | AS31: 0 | AT31: 0 | AU31: 0 | AV31: 0 | AW31: 0 | AX31: 0 | AY31: 0
A32: ='Allocation Methodology'!A28 -> 24 | B32: ='Allocation Methodology'!B28 -> Summer Sweepstakes | C32: ='Allocation Methodology'!C28 -> Consumer | D32: ='Allocation Methodology'!D28 -> 2008 | E32: ='Allocation Methodology'!E28 -> Final | F32: FALSE | G32: 0 | H32: 0 | I32: 9.5 | J32: 5.447816607 | K32: 5.447816607 | L32: 5.447816607 | M32: 5.447816607 | N32: 5.447816607 | O32: 5.447816607 | P32: 5.447816607 | Q32: 5.258217595 | R32: 5.258217595 | S32: 5.202557377 | T32: 5.202557377 | U32: 5.202557377 | V32: 5.136404439 | W32: 5.111561409 | X32: 4.859292201 | Y32: 4.859292201 | Z32: 4.859292201 | AA32: 4.859292201 | AB32: 4.859292201 | AC32: 0 | AD32: 0 | AE32: 0 | AF32: 0 | AG32: 0 | AH32: 0 | AI32: 0 | AJ32: 0 | AK32: 0 | AL32: 0 | AM32: 0 | AN32: 0 | AO32: 0 | AP32: 0 | AQ32: 0 | AR32: 0 | AS32: 0 | AT32: 0 | AU32: 0 | AV32: 0 | AW32: 0 | AX32: 0 | AY32: 0
A33: ='Allocation Methodology'!A29 -> 25 | B33: ='Allocation Methodology'!B29 -> Electricity Retrofit Incentive | C33: ='Allocation Methodology'!C29 -> Consumer, Business | D33: ='Allocation Methodology'!D29 -> 2008 | E33: ='Allocation Methodology'!E29 -> Final | F33: FALSE | G33: 0 | H33: 0 | I33: 10.0117 | J33: 10.01173152 | K33: 10.01173152 | L33: 10.01173152 | M33: 10.01173152 | N33: 10.01173152 | O33: 10.01173152 | P33: 10.01173152 | Q33: 9.8629 | R33: 9.8629 | S33: 9.8629 | T33: 9.8629 | U33: 9.8629 | V33: 9.8629 | W33: 9.8629 | X33: 9.567013 | Y33: 0 | Z33: 0 | AA33: 0 | AB33: 0 | AC33: 0 | AD33: 0 | AE33: 0 | AF33: 0 | AG33: 0 | AH33: 0 | AI33: 0 | AJ33: 0 | AK33: 0 | AL33: 0 | AM33: 0 | AN33: 0 | AO33: 0 | AP33: 0 | AQ33: 0 | AR33: 0 | AS33: 0 | AT33: 0 | AU33: 0 | AV33: 0 | AW33: 0 | AX33: 0 | AY33: 0
A34: ='Allocation Methodology'!A30 -> 26 | B34: ='Allocation Methodology'!B30 -> Toronto Comprehensive | C34: ='Allocation Methodology'!C30 -> Consumer, Consumer Low-Income, Business | D34: ='Allocation Methodology'!D30 -> 2008 | E34: ='Allocation Methodology'!E30 -> Final | F34: FALSE | G34: 0 | H34: 0 | I34: 10.296423 | J34: 10.29642 | K34: 10.26842 | L34: 10.26842 | M34: 10.26842 | N34: 10.26842 | O34: 10.26842 | P34: 10.26842 | Q34: 8.32102 | R34: 4.88236 | S34: 4.86536 | T34: 4.86536 | U34: 4.78736 | V34: 4.78736 | W34: 4.78736 | X34: 4.6904716 | Y34: 0.4486028 | Z34: 0.4486028 | AA34: 0.4486028 | AB34: 0.4486028 | AC34: 0 | AD34: 0 | AE34: 0 | AF34: 0 | AG34: 0 | AH34: 0 | AI34: 0 | AJ34: 0 | AK34: 0 | AL34: 0 | AM34: 0 | AN34: 0 | AO34: 0 | AP34: 0 | AQ34: 0 | AR34: 0 | AS34: 0 | AT34: 0 | AU34: 0 | AV34: 0 | AW34: 0 | AX34: 0 | AY34: 0
A35: ='Allocation Methodology'!A31 -> 27 | B35: ='Allocation Methodology'!B31 -> High Performance New Construction | C35: ='Allocation Methodology'!C31 -> Business | D35: ='Allocation Methodology'!D31 -> 2008 | E35: ='Allocation Methodology'!E31 -> Final | F35: FALSE | G35: 0 | H35: 0 | I35: 0.34 | J35: 0.34 | K35: 0.34 | L35: 0.34 | M35: 0.34 | N35: 0.34 | O35: 0.34 | P35: 0.34 | Q35: 0.34 | R35: 0.34 | S35: 0.34 | T35: 0.34 | U35: 0.34 | V35: 0.34 | W35: 0 | X35: 0 | Y35: 0 | Z35: 0 | AA35: 0 | AB35: 0 | AC35: 0 | AD35: 0 | AE35: 0 | AF35: 0 | AG35: 0 | AH35: 0 | AI35: 0 | AJ35: 0 | AK35: 0 | AL35: 0 | AM35: 0 | AN35: 0 | AO35: 0 | AP35: 0 | AQ35: 0 | AR35: 0 | AS35: 0 | AT35: 0 | AU35: 0 | AV35: 0 | AW35: 0 | AX35: 0 | AY35: 0
A36: ='Allocation Methodology'!A32 -> 28 | B36: ='Allocation Methodology'!B32 -> Power Savings Blitz | C36: ='Allocation Methodology'!C32 -> Business | D36: ='Allocation Methodology'!D32 -> 2008 | E36: ='Allocation Methodology'!E32 -> Final | F36: FALSE | G36: 0 | H36: 0 | I36: 0.442643079 | J36: 0.442643079 | K36: 0.363912999 | L36: 0.363912999 | M36: 0.363912999 | N36: 0.36388203 | O36: 0.36388203 | P36: 0.3615654 | Q36: 0.3615654 | R36: 0.3615654 | S36: 0.3615654 | T36: 0.3615654 | U36: 0.3615654 | V36: 0.3615654 | W36: 0.3615654 | X36: 0.00854112 | Y36: 0 | Z36: 0 | AA36: 0 | AB36: 0 | AC36: 0 | AD36: 0 | AE36: 0 | AF36: 0 | AG36: 0 | AH36: 0 | AI36: 0 | AJ36: 0 | AK36: 0 | AL36: 0 | AM36: 0 | AN36: 0 | AO36: 0 | AP36: 0 | AQ36: 0 | AR36: 0 | AS36: 0 | AT36: 0 | AU36: 0 | AV36: 0 | AW36: 0 | AX36: 0 | AY36: 0
A37: ='Allocation Methodology'!A33 -> 29 | B37: ='Allocation Methodology'!B33 -> Demand Response 1 | C37: ='Allocation Methodology'!C33 -> Business, Industrial | D37: ='Allocation Methodology'!D33 -> 2008 | E37: ='Allocation Methodology'!E33 -> Final | F37: FALSE | G37: 0 | H37: 0 | I37: 439.55 | J37: 0 | K37: 0 | L37: 0 | M37: 0 | N37: 0 | O37: 0 | P37: 0 | Q37: 0 | R37: 0 | S37: 0 | T37: 0 | U37: 0 | V37: 0 | W37: 0 | X37: 0 | Y37: 0 | Z37: 0 | AA37: 0 | AB37: 0 | AC37: 0 | AD37: 0 | AE37: 0 | AF37: 0 | AG37: 0 | AH37: 0 | AI37: 0 | AJ37: 0 | AK37: 0 | AL37: 0 | AM37: 0 | AN37: 0 | AO37: 0 | AP37: 0 | AQ37: 0 | AR37: 0 | AS37: 0 | AT37: 0 | AU37: 0 | AV37: 0 | AW37: 0 | AX37: 0 | AY37: 0
A38: ='Allocation Methodology'!A34 -> 30 | B38: ='Allocation Methodology'!B34 -> Demand Response 3 | C38: ='Allocation Methodology'!C34 -> Business, Industrial | D38: ='Allocation Methodology'!D34 -> 2008 | E38: ='Allocation Methodology'!E34 -> Final | F38: FALSE | G38: 0 | H38: 0 | I38: 85 | J38: 0 | K38: 0 | L38: 0 | M38: 0 | N38: 0 | O38: 0 | P38: 0 | Q38: 0 | R38: 0 | S38: 0 | T38: 0 | U38: 0 | V38: 0 | W38: 0 | X38: 0 | Y38: 0 | Z38: 0 | AA38: 0 | AB38: 0 | AC38: 0 | AD38: 0 | AE38: 0 | AF38: 0 | AG38: 0 | AH38: 0 | AI38: 0 | AJ38: 0 | AK38: 0 | AL38: 0 | AM38: 0 | AN38: 0 | AO38: 0 | AP38: 0 | AQ38: 0 | AR38: 0 | AS38: 0 | AT38: 0 | AU38: 0 | AV38: 0 | AW38: 0 | AX38: 0 | AY38: 0
A39: ='Allocation Methodology'!A35 -> 31 | B39: ='Allocation Methodology'!B35 -> Loblaw & York Region Demand Response | C39: ='Allocation Methodology'!C35 -> Business, Industrial | D39: ='Allocation Methodology'!D35 -> 2008 | E39: ='Allocation Methodology'!E35 -> Final | F39: FALSE | G39: 0 | H39: 0 | I39: 29.21 | J39: 0 | K39: 0 | L39: 0 | M39: 0 | N39: 0 | O39: 0 | P39: 0 | Q39: 0 | R39: 0 | S39: 0 | T39: 0 | U39: 0 | V39: 0 | W39: 0 | X39: 0 | Y39: 0 | Z39: 0 | AA39: 0 | AB39: 0 | AC39: 0 | AD39: 0 | AE39: 0 | AF39: 0 | AG39: 0 | AH39: 0 | AI39: 0 | AJ39: 0 | AK39: 0 | AL39: 0 | AM39: 0 | AN39: 0 | AO39: 0 | AP39: 0 | AQ39: 0 | AR39: 0 | AS39: 0 | AT39: 0 | AU39: 0 | AV39: 0 | AW39: 0 | AX39: 0 | AY39: 0
A40: ='Allocation Methodology'!A36 -> 32 | B40: ='Allocation Methodology'!B36 -> Renewable Energy Standard Offer | C40: ='Allocation Methodology'!C36 -> Consumer, Business | D40: ='Allocation Methodology'!D36 -> 2008 | E40: ='Allocation Methodology'!E36 -> Final | F40: FALSE | G40: 0 | H40: 0 | I40: 1.779785 | J40: 1.779785 | K40: 1.779785 | L40: 1.779785 | M40: 1.779785 | N40: 1.779785 | O40: 1.779785 | P40: 1.779785 | Q40: 1.779785 | R40: 1.779785 | S40: 1.779785 | T40: 1.779785 | U40: 1.779785 | V40: 1.779785 | W40: 1.779785 | X40: 1.779785 | Y40: 1.779785 | Z40: 1.779785 | AA40: 1.779785 | AB40: 1.779785 | AC40: 0 | AD40: 0 | AE40: 0 | AF40: 0 | AG40: 0 | AH40: 0 | AI40: 0 | AJ40: 0 | AK40: 0 | AL40: 0 | AM40: 0 | AN40: 0 | AO40: 0 | AP40: 0 | AQ40: 0 | AR40: 0 | AS40: 0 | AT40: 0 | AU40: 0 | AV40: 0 | AW40: 0 | AX40: 0 | AY40: 0
A41: ='Allocation Methodology'!A37 -> 33 | B41: ='Allocation Methodology'!B37 -> Other Customer Based Generation | C41: ='Allocation Methodology'!C37 -> Business | D41: ='Allocation Methodology'!D37 -> 2008 | E41: ='Allocation Methodology'!E37 -> Final | F41: FALSE | G41: 0 | H41: 0 | I41: 7.3 | J41: 7.3 | K41: 7.3 | L41: 7.3 | M41: 7.3 | N41: 7.3 | O41: 7.3 | P41: 7.3 | Q41: 7.3 | R41: 7.3 | S41: 7.3 | T41: 7.3 | U41: 7.3 | V41: 7.3 | W41: 7.3 | X41: 7.3 | Y41: 7.3 | Z41: 7.3 | AA41: 7.3 | AB41: 7.3 | AC41: 0 | AD41: 0 | AE41: 0 | AF41: 0 | AG41: 0 | AH41: 0 | AI41: 0 | AJ41: 0 | AK41: 0 | AL41: 0 | AM41: 0 | AN41: 0 | AO41: 0 | AP41: 0 | AQ41: 0 | AR41: 0 | AS41: 0 | AT41: 0 | AU41: 0 | AV41: 0 | AW41: 0 | AX41: 0 | AY41: 0
A42: ='Allocation Methodology'!A38 -> 34 | B42: ='Allocation Methodology'!B38 -> LDC Custom - Hydro One Networks Inc. - Double Return | C42: ='Allocation Methodology'!C38 -> Business, Industrial | D42: ='Allocation Methodology'!D38 -> 2008 | E42: ='Allocation Methodology'!E38 -> Final | F42: FALSE | G42: 0 | H42: 0 | I42: 52 | J42: 0 | K42: 0 | L42: 0 | M42: 0 | N42: 0 | O42: 0 | P42: 0 | Q42: 0 | R42: 0 | S42: 0 | T42: 0 | U42: 0 | V42: 0 | W42: 0 | X42: 0 | Y42: 0 | Z42: 0 | AA42: 0 | AB42: 0 | AC42: 0 | AD42: 0 | AE42: 0 | AF42: 0 | AG42: 0 | AH42: 0 | AI42: 0 | AJ42: 0 | AK42: 0 | AL42: 0 | AM42: 0 | AN42: 0 | AO42: 0 | AP42: 0 | AQ42: 0 | AR42: 0 | AS42: 0 | AT42: 0 | AU42: 0 | AV42: 0 | AW42: 0 | AX42: 0 | AY42: 0
A43: ='Allocation Methodology'!A39 -> 35 | B43: ='Allocation Methodology'!B39 -> Great Refrigerator Roundup | C43: ='Allocation Methodology'!C39 -> Consumer | D43: ='Allocation Methodology'!D39 -> 2009 | E43: ='Allocation Methodology'!E39 -> Final | F43: FALSE | G43: 0 | H43: 0 | I43: 0 | J43: 5.036852267 | K43: 5.036852267 | L43: 5.036852267 | M43: 4.883197281 | N43: 3.490238641 | O43: 0 | P43: 0 | Q43: 0 | R43: 0 | S43: 0 | T43: 0 | U43: 0 | V43: 0 | W43: 0 | X43: 0 | Y43: 0 | Z43: 0 | AA43: 0 | AB43: 0 | AC43: 0 | AD43: 0 | AE43: 0 | AF43: 0 | AG43: 0 | AH43: 0 | AI43: 0 | AJ43: 0 | AK43: 0 | AL43: 0 | AM43: 0 | AN43: 0 | AO43: 0 | AP43: 0 | AQ43: 0 | AR43: 0 | AS43: 0 | AT43: 0 | AU43: 0 | AV43: 0 | AW43: 0 | AX43: 0 | AY43: 0
A44: ='Allocation Methodology'!A40 -> 36 | B44: ='Allocation Methodology'!B40 -> Cool Savings Rebate | C44: ='Allocation Methodology'!C40 -> Consumer | D44: ='Allocation Methodology'!D40 -> 2009 | E44: ='Allocation Methodology'!E40 -> Final | F44: FALSE | G44: 0 | H44: 0 | I44: 0 | J44: 18.93331758 | K44: 18.93331758 | L44: 18.93331758 | M44: 18.84479352 | N44: 18.83018245 | O44: 18.821486 | P44: 18.821486 | Q44: 18.821486 | R44: 18.821486 | S44: 18.821486 | T44: 18.53454241 | U44: 18.53454241 | V44: 18.53454241 | W44: 18.53454241 | X44: 18.53454241 | Y44: 18.08389603 | Z44: 18.08389603 | AA44: 18.08389603 | AB44: 13.2952443 | AC44: 0 | AD44: 0 | AE44: 0 | AF44: 0 | AG44: 0 | AH44: 0 | AI44: 0 | AJ44: 0 | AK44: 0 | AL44: 0 | AM44: 0 | AN44: 0 | AO44: 0 | AP44: 0 | AQ44: 0 | AR44: 0 | AS44: 0 | AT44: 0 | AU44: 0 | AV44: 0 | AW44: 0 | AX44: 0 | AY44: 0
A45: ='Allocation Methodology'!A41 -> 37 | B45: ='Allocation Methodology'!B41 -> Every Kilowatt Counts Power Savings Event | C45: ='Allocation Methodology'!C41 -> Consumer | D45: ='Allocation Methodology'!D41 -> 2009 | E45: ='Allocation Methodology'!E41 -> Final | F45: FALSE | G45: 0 | H45: 0 | I45: 0 | J45: 5.06409997 | K45: 4.978474995 | L45: 4.978474995 | M45: 4.978474995 | N45: 4.956121744 | O45: 4.956121744 | P45: 4.593311183 | Q45: 4.593311183 | R45: 3.51237828 | S45: 3.51237828 | T45: 3.117479347 | U45: 3.116181747 | V45: 1.584116386 | W45: 1.584116386 | X45: 1.510409429 | Y45: 0.2604697534 | Z45: 0.1166503882 | AA45: 0.1166503882 | AB45: 0.07300430369 | AC45: 0.07300430369 | AD45: 0 | AE45: 0 | AF45: 0 | AG45: 0 | AH45: 0 | AI45: 0 | AJ45: 0 | AK45: 0 | AL45: 0 | AM45: 0 | AN45: 0 | AO45: 0 | AP45: 0 | AQ45: 0 | AR45: 0 | AS45: 0 | AT45: 0 | AU45: 0 | AV45: 0 | AW45: 0 | AX45: 0 | AY45: 0
A46: ='Allocation Methodology'!A42 -> 38 | B46: ='Allocation Methodology'!B42 -> peaksaver® | C46: ='Allocation Methodology'!C42 -> Consumer, Business | D46: ='Allocation Methodology'!D42 -> 2009 | E46: ='Allocation Methodology'!E42 -> Final | F46: FALSE | G46: 0 | H46: 0 | I46: 0 | J46: 25.71576286 | K46: 25.71576286 | L46: 25.71576286 | M46: 25.71576286 | N46: 25.71576286 | O46: 25.71576286 | P46: 25.71576286 | Q46: 25.71576286 | R46: 25.71576286 | S46: 25.71576286 | T46: 25.71576286 | U46: 25.71576286 | V46: 25.71576286 | W46: 0 | X46: 0 | Y46: 0 | Z46: 0 | AA46: 0 | AB46: 0 | AC46: 0 | AD46: 0 | AE46: 0 | AF46: 0 | AG46: 0 | AH46: 0 | AI46: 0 | AJ46: 0 | AK46: 0 | AL46: 0 | AM46: 0 | AN46: 0 | AO46: 0 | AP46: 0 | AQ46: 0 | AR46: 0 | AS46: 0 | AT46: 0 | AU46: 0 | AV46: 0 | AW46: 0 | AX46: 0 | AY46: 0
A47: ='Allocation Methodology'!A43 -> 39 | B47: ='Allocation Methodology'!B43 -> Electricity Retrofit Incentive | C47: ='Allocation Methodology'!C43 -> Consumer, Business | D47: ='Allocation Methodology'!D43 -> 2009 | E47: ='Allocation Methodology'!E43 -> Final | F47: FALSE | G47: 0 | H47: 0 | I47: 0 | J47: 0 | K47: 0 | L47: 0 | M47: 0 | N47: 0 | O47: 0 | P47: 0 | Q47: 0 | R47: 0 | S47: 0 | T47: 0 | U47: 0 | V47: 0 | W47: 0 | X47: 0 | Y47: 0 | Z47: 0 | AA47: 0 | AB47: 0 | AC47: 0 | AD47: 0 | AE47: 0 | AF47: 0 | AG47: 0 | AH47: 0 | AI47: 0 | AJ47: 0 | AK47: 0 | AL47: 0 | AM47: 0 | AN47: 0 | AO47: 0 | AP47: 0 | AQ47: 0 | AR47: 0 | AS47: 0 | AT47: 0 | AU47: 0 | AV47: 0 | AW47: 0 | AX47: 0 | AY47: 0
A48: ='Allocation Methodology'!A44 -> 40 | B48: ='Allocation Methodology'!B44 -> Toronto Comprehensive | C48: ='Allocation Methodology'!C44 -> Consumer, Consumer Low-Income, Business, Industrial | D48: ='Allocation Methodology'!D44 -> 2009 | E48: ='Allocation Methodology'!E44 -> Final | F48: FALSE | G48: 0 | H48: 0 | I48: 0 | J48: 12.3108 | K48: 12.3108 | L48: 12.3108 | M48: 12.3108 | N48: 12.3108 | O48: 12.3108 | P48: 12.3108 | Q48: 11.7368 | R48: 9.8458 | S48: 8.5858 | T48: 8.5858 | U48: 5.8798 | V48: 3.0738 | W48: 3.0738 | X48: 3.0738 | Y48: 3.0738 | Z48: 3.0738 | AA48: 3.0738 | AB48: 3.0738 | AC48: 3.0738 | AD48: 0.4176 | AE48: 0 | AF48: 0 | AG48: 0 | AH48: 0 | AI48: 0 | AJ48: 0 | AK48: 0 | AL48: 0 | AM48: 0 | AN48: 0 | AO48: 0 | AP48: 0 | AQ48: 0 | AR48: 0 | AS48: 0 | AT48: 0 | AU48: 0 | AV48: 0 | AW48: 0 | AX48: 0 | AY48: 0
A49: ='Allocation Methodology'!A45 -> 41 | B49: ='Allocation Methodology'!B45 -> High Performance New Construction | C49: ='Allocation Methodology'!C45 -> Business | D49: ='Allocation Methodology'!D45 -> 2009 | E49: ='Allocation Methodology'!E45 -> Final | F49: FALSE | G49: 0 | H49: 0 | I49: 0 | J49: 3.8815 | K49: 3.8815 | L49: 3.8815 | M49: 3.8815 | N49: 3.8815 | O49: 3.8815 | P49: 3.8815 | Q49: 3.8815 | R49: 3.8815 | S49: 3.8815 | T49: 3.8815 | U49: 3.8815 | V49: 3.8815 | W49: 3.8815 | X49: 3.8815 | Y49: 3.8815 | Z49: 3.8815 | AA49: 3.8815 | AB49: 3.8815 | AC49: 3.8815 | AD49: 0 | AE49: 0 | AF49: 0 | AG49: 0 | AH49: 0 | AI49: 0 | AJ49: 0 | AK49: 0 | AL49: 0 | AM49: 0 | AN49: 0 | AO49: 0 | AP49: 0 | AQ49: 0 | AR49: 0 | AS49: 0 | AT49: 0 | AU49: 0 | AV49: 0 | AW49: 0 | AX49: 0 | AY49: 0
A50: ='Allocation Methodology'!A46 -> 42 | B50: ='Allocation Methodology'!B46 -> Power Savings Blitz | C50: ='Allocation Methodology'!C46 -> Business | D50: ='Allocation Methodology'!D46 -> 2009 | E50: ='Allocation Methodology'!E46 -> Final | F50: FALSE | G50: 0 | H50: 0 | I50: 0 | J50: 44.6 | K50: 44.6 | L50: 44.6 | M50: 44.6 | N50: 44.6 | O50: 44.6 | P50: 44.6 | Q50: 44.6 | R50: 44.6 | S50: 0 | T50: 0 | U50: 0 | V50: 0 | W50: 0 | X50: 0 | Y50: 0 | Z50: 0 | AA50: 0 | AB50: 0 | AC50: 0 | AD50: 0 | AE50: 0 | AF50: 0 | AG50: 0 | AH50: 0 | AI50: 0 | AJ50: 0 | AK50: 0 | AL50: 0 | AM50: 0 | AN50: 0 | AO50: 0 | AP50: 0 | AQ50: 0 | AR50: 0 | AS50: 0 | AT50: 0 | AU50: 0 | AV50: 0 | AW50: 0 | AX50: 0 | AY50: 0
A51: ='Allocation Methodology'!A47 -> 43 | B51: ='Allocation Methodology'!B47 -> Multi-Family Energy Efficiency Rebates | C51: ='Allocation Methodology'!C47 -> Consumer, Consumer Low-Income | D51: ='Allocation Methodology'!D47 -> 2009 | E51: ='Allocation Methodology'!E47 -> Final | F51: FALSE | G51: 0 | H51: 0 | I51: 0 | J51: 0.3 | K51: 0.3 | L51: 0.3 | M51: 0.3 | N51: 0.3 | O51: 0.3 | P51: 0.3 | Q51: 0.3 | R51: 0.3 | S51: 0.3 | T51: 0.3 | U51: 0.3 | V51: 0.3 | W51: 0 | X51: 0 | Y51: 0 | Z51: 0 | AA51: 0 | AB51: 0 | AC51: 0 | AD51: 0 | AE51: 0 | AF51: 0 | AG51: 0 | AH51: 0 | AI51: 0 | AJ51: 0 | AK51: 0 | AL51: 0 | AM51: 0 | AN51: 0 | AO51: 0 | AP51: 0 | AQ51: 0 | AR51: 0 | AS51: 0 | AT51: 0 | AU51: 0 | AV51: 0 | AW51: 0 | AX51: 0 | AY51: 0
A52: ='Allocation Methodology'!A48 -> 44 | B52: ='Allocation Methodology'!B48 -> Demand Response 1 | C52: ='Allocation Methodology'!C48 -> Business, Industrial | D52: ='Allocation Methodology'!D48 -> 2009 | E52: ='Allocation Methodology'!E48 -> Final | F52: FALSE | G52: 0 | H52: 0 | I52: 0 | J52: 175.25 | K52: 0 | L52: 0 | M52: 0 | N52: 0 | O52: 0 | P52: 0 | Q52: 0 | R52: 0 | S52: 0 | T52: 0 | U52: 0 | V52: 0 | W52: 0 | X52: 0 | Y52: 0 | Z52: 0 | AA52: 0 | AB52: 0 | AC52: 0 | AD52: 0 | AE52: 0 | AF52: 0 | AG52: 0 | AH52: 0 | AI52: 0 | AJ52: 0 | AK52: 0 | AL52: 0 | AM52: 0 | AN52: 0 | AO52: 0 | AP52: 0 | AQ52: 0 | AR52: 0 | AS52: 0 | AT52: 0 | AU52: 0 | AV52: 0 | AW52: 0 | AX52: 0 | AY52: 0
A53: ='Allocation Methodology'!A49 -> 45 | B53: ='Allocation Methodology'!B49 -> Demand Response 2 | C53: ='Allocation Methodology'!C49 -> Business, Industrial | D53: ='Allocation Methodology'!D49 -> 2009 | E53: ='Allocation Methodology'!E49 -> Final | F53: FALSE | G53: 0 | H53: 0 | I53: 0 | J53: 119 | K53: 0 | L53: 0 | M53: 0 | N53: 0 | O53: 0 | P53: 0 | Q53: 0 | R53: 0 | S53: 0 | T53: 0 | U53: 0 | V53: 0 | W53: 0 | X53: 0 | Y53: 0 | Z53: 0 | AA53: 0 | AB53: 0 | AC53: 0 | AD53: 0 | AE53: 0 | AF53: 0 | AG53: 0 | AH53: 0 | AI53: 0 | AJ53: 0 | AK53: 0 | AL53: 0 | AM53: 0 | AN53: 0 | AO53: 0 | AP53: 0 | AQ53: 0 | AR53: 0 | AS53: 0 | AT53: 0 | AU53: 0 | AV53: 0 | AW53: 0 | AX53: 0 | AY53: 0
A54: ='Allocation Methodology'!A50 -> 46 | B54: ='Allocation Methodology'!B50 -> Demand Response 3 | C54: ='Allocation Methodology'!C50 -> Business, Industrial | D54: ='Allocation Methodology'!D50 -> 2009 | E54: ='Allocation Methodology'!E50 -> Final | F54: FALSE | G54: 0 | H54: 0 | I54: 0 | J54: 170 | K54: 0 | L54: 0 | M54: 0 | N54: 0 | O54: 0 | P54: 0 | Q54: 0 | R54: 0 | S54: 0 | T54: 0 | U54: 0 | V54: 0 | W54: 0 | X54: 0 | Y54: 0 | Z54: 0 | AA54: 0 | AB54: 0 | AC54: 0 | AD54: 0 | AE54: 0 | AF54: 0 | AG54: 0 | AH54: 0 | AI54: 0 | AJ54: 0 | AK54: 0 | AL54: 0 | AM54: 0 | AN54: 0 | AO54: 0 | AP54: 0 | AQ54: 0 | AR54: 0 | AS54: 0 | AT54: 0 | AU54: 0 | AV54: 0 | AW54: 0 | AX54: 0 | AY54: 0
A55: ='Allocation Methodology'!A51 -> 47 | B55: ='Allocation Methodology'!B51 -> Loblaw & York Region Demand Response | C55: ='Allocation Methodology'!C51 -> Business, Industrial | D55: ='Allocation Methodology'!D51 -> 2009 | E55: ='Allocation Methodology'!E51 -> Final | F55: FALSE | G55: 0 | H55: 0 | I55: 0 | J55: 29.21 | K55: 0 | L55: 0 | M55: 0 | N55: 0 | O55: 0 | P55: 0 | Q55: 0 | R55: 0 | S55: 0 | T55: 0 | U55: 0 | V55: 0 | W55: 0 | X55: 0 | Y55: 0 | Z55: 0 | AA55: 0 | AB55: 0 | AC55: 0 | AD55: 0 | AE55: 0 | AF55: 0 | AG55: 0 | AH55: 0 | AI55: 0 | AJ55: 0 | AK55: 0 | AL55: 0 | AM55: 0 | AN55: 0 | AO55: 0 | AP55: 0 | AQ55: 0 | AR55: 0 | AS55: 0 | AT55: 0 | AU55: 0 | AV55: 0 | AW55: 0 | AX55: 0 | AY55: 0
A56: ='Allocation Methodology'!A52 -> 48 | B56: ='Allocation Methodology'!B52 -> LDC Custom - Thunder Bay Hydro - Phantom Load | C56: ='Allocation Methodology'!C52 -> Consumer | D56: ='Allocation Methodology'!D52 -> 2009 | E56: ='Allocation Methodology'!E52 -> Final | F56: FALSE | G56: 0 | H56: 0 | I56: 0 | J56: 0.0099 | K56: 0 | L56: 0 | M56: 0 | N56: 0 | O56: 0 | P56: 0 | Q56: 0 | R56: 0 | S56: 0 | T56: 0 | U56: 0 | V56: 0 | W56: 0 | X56: 0 | Y56: 0 | Z56: 0 | AA56: 0 | AB56: 0 | AC56: 0 | AD56: 0 | AE56: 0 | AF56: 0 | AG56: 0 | AH56: 0 | AI56: 0 | AJ56: 0 | AK56: 0 | AL56: 0 | AM56: 0 | AN56: 0 | AO56: 0 | AP56: 0 | AQ56: 0 | AR56: 0 | AS56: 0 | AT56: 0 | AU56: 0 | AV56: 0 | AW56: 0 | AX56: 0 | AY56: 0
A57: ='Allocation Methodology'!A53 -> 49 | B57: ='Allocation Methodology'!B53 -> LDC Custom - Toronto Hydro - Summer Challenge | C57: ='Allocation Methodology'!C53 -> Consumer | D57: ='Allocation Methodology'!D53 -> 2009 | E57: ='Allocation Methodology'!E53 -> Final | F57: FALSE | G57: 0 | H57: 0 | I57: 0 | J57: 0.33 | K57: 0 | L57: 0 | M57: 0 | N57: 0 | O57: 0 | P57: 0 | Q57: 0 | R57: 0 | S57: 0 | T57: 0 | U57: 0 | V57: 0 | W57: 0 | X57: 0 | Y57: 0 | Z57: 0 | AA57: 0 | AB57: 0 | AC57: 0 | AD57: 0 | AE57: 0 | AF57: 0 | AG57: 0 | AH57: 0 | AI57: 0 | AJ57: 0 | AK57: 0 | AL57: 0 | AM57: 0 | AN57: 0 | AO57: 0 | AP57: 0 | AQ57: 0 | AR57: 0 | AS57: 0 | AT57: 0 | AU57: 0 | AV57: 0 | AW57: 0 | AX57: 0 | AY57: 0
A58: ='Allocation Methodology'!A54 -> 50 | B58: ='Allocation Methodology'!B54 -> LDC Custom - PowerStream - Data Centers | C58: ='Allocation Methodology'!C54 -> Business | D58: ='Allocation Methodology'!D54 -> 2009 | E58: ='Allocation Methodology'!E54 -> Final | G58: 0 | H58: 0 | I58: 0 | J58: 0.25 | K58: 0.25 | L58: 0.25 | M58: 0.25 | N58: 0.25 | O58: 0.25 | P58: 0.25 | Q58: 0.25 | R58: 0.25 | S58: 0.25 | T58: 0.25 | U58: 0.25 | V58: 0.25 | W58: 0.25 | X58: 0.25 | Y58: 0.25 | Z58: 0.25 | AA58: 0.25 | AB58: 0.25 | AC58: 0.25 | AD58: 0 | AE58: 0 | AF58: 0 | AG58: 0 | AH58: 0 | AI58: 0 | AJ58: 0 | AK58: 0 | AL58: 0 | AM58: 0 | AN58: 0 | AO58: 0 | AP58: 0 | AQ58: 0 | AR58: 0 | AS58: 0 | AT58: 0 | AU58: 0 | AV58: 0 | AW58: 0 | AX58: 0 | AY58: 0
